Workbook

Sheet 資料輸入
B1: =商品名稱&"_建議書" -> 保誠人壽美滿相傳外幣終身壽險(113)(定期給付型)_建議書 | W1: =IF(高齡話術檢核=TRUE,IF(補充資訊檢核<>1,"錄音話術補充資訊",""),"") ->  | AB1: =IF(補充資訊檢核=1,"填寫完成請點選錄音話術表","") -> 
S4: 保費明細表 | W4: 是否為雙招攬案件 | AB4: =IF(高齡話術檢核=TRUE,"保/經代公司","") -> 
B5: 基本資料 | Q5: ="《"&版號&"版》" -> 《V1.1版》 | S5: 建議書
S6: 建議書【橫式】 | W6: =IF(高齡話術檢核=TRUE,"保/經代公司名稱","") ->  | AB6: =IF(AND(高齡話術檢核=TRUE,服務單位檢核=TRUE),"通路名稱","") -> 
C7: 被保人 | D7: 貴保戶 | E7: 性別 | F7: 男 | G7: 生日 | H7: 740701 | I7: (民國年月日，EX：770101) | L7: 保險年齡 | M7: =IF(ISERROR(被保人保險年齡),"",IF(被保人日月檢核,被保人保險年齡,"")) -> 40 | N7: 歲 | O7: 職業等級 | P7: 1 | S7: 商品利益說明表(不含紅利部分)
K8: =IF(ISERROR(被保人生日),"","◆被保人保險年齡將在"&TEXT(下一歲生日,"yyyy")-1911&TEXT(下一歲生日,"年M月D日")&"到達下一歲。 ") -> ◆被保人保險年齡將在115年1月2日到達下一歲。 | S8: 減少保險金額影響表 | W8: =IF(高齡話術檢核=TRUE,"業務員","") ->  | AB8: =IF(高齡話術檢核=TRUE,IF(雙招攬判斷=TRUE,"第二招攬業務員",""),"") -> 
C9: 要保人身分 | D9: 與被保險人為「同一人」 | S9: 保險金分期定期給付試算表
C10: 要保人 | D10: 貴保戶 | E10: 性別 | F10: 男 | G10: 生日 | H10: 740701 | I10: (民國年月日，EX：770101) | L10: 保險年齡 | M10: =IF(ISERROR(要保人保險年齡),"",IF(要保人日月檢核,要保人保險年齡,"")) -> 40 | N10: 歲 | S10: 保障明細表 - BNLTRU1附約 | W10: =IF(高齡話術檢核=TRUE,"登錄字號","") ->  | AB10: =IF(高齡話術檢核=TRUE,IF(雙招攬判斷=TRUE,"登錄證字號 (第二招攬業務員)",""),"") -> 
K11: =IF(ISERROR(要保人保險年齡),"",IF(要保人日月檢核,#REF!,"")) ->  | S11: 保障明細表 - ADDNTR2附約
C12: 繳款人身分 | D12: 與被保險人為「同一人」 | S12: 保障明細表 - BWPNTR1豁免附約(甲)
C13: 繳款人 | D13: 貴保戶 | E13: 性別 | F13: - | G13: 生日 | H13: 740701 | I13: (民國年月日，EX：770101) | L13: 保險年齡 | M13: =IF(ISERROR(繳款人保險年齡),"",IF(繳款人日月檢核,繳款人保險年齡,"")) -> 40 | N13: 歲 | S13: 保障明細表 - BWPNTR2豁免附約(乙) | W13: =IF(高齡話術檢核=TRUE,"要保人身分證字號","") ->  | AB13: =IF(高齡話術檢核=TRUE,"投保目的及需求 (請與業務員報告書一致) ※請下拉選填 ","") ->  | AD13: 保障
S14: 保障明細表 - CWPNTR3豁免附約(甲) | AD14: 子女教育經費
B15: 小提醒 | S15: 保障明細表 - CWPNTR4豁免附約(乙) | W15: =IF(高齡話術檢核=TRUE,"被保人身分證字號","") ->  | AD15: 退休規劃
B16: =INDEX(資料檢核!H7:H10,資料檢核!G7)&IF(資料檢核!G13<>1,資料檢核!H13,"")&IF(資料檢核!G14<>1,資料檢核!H14,"")&INDEX(資料檢核!D7:D10,資料檢核!C7)&IF(資料檢核!C13<>1,資料檢核!D13,"")&IF(資料檢核!C14<>1,資料檢核!D14,"")&IF(資料檢核!C15<>1,資料檢核!D15,"")&INDEX(資料檢核!L7:L10,資料檢核!K7)&IF(資料檢核!K13<>1,資料檢核!L13,"")&IF(資料檢核!K14<>1,資料檢核!L14,"")&INDEX(資料檢核!D18:D21,資料檢核!C18)&IF(資料檢核!C22<>1,資料檢核!D22,"")&IF(豁免承保對象,資料檢核!D24,"")&IF(資料檢核!G19<>1,資料檢核!H19,"")&IF(資料檢核!G20<>1,資料檢核!H20,"")&IF(資料檢核!G21<>1,資料檢核!H21,"")&IF(資料檢核!G22<>1,資料檢核!H22,"")&IF(資料檢核!G24<>1,資料檢核!H24,"")&IF(資料檢核!G25<>1,資料檢核!H25,"")&INDEX(資料檢核!D29:D32,資料檢核!C29)&IF(資料檢核!C33<>1,資料檢核!D33,"")&IF(資料檢核!C34<>1,資料檢核!D34,"")&INDEX(資料檢核!H29:H32,資料檢核!G29)&IF(資料檢核!K30<>1,資料檢核!L30,"")&IF(資料檢核!K31<>1,資料檢核!L31,"")&IF(資料檢核!K32<>1,資料檢核!L32,"")&IF(資料檢核!K33<>1,資料檢核!L33,"")&IF(資料檢核!K34<>1,資料檢核!L34,"")&IF(資料檢核!C42<>1,資料檢核!D42,"")&IF(資料檢核!C61<>1,資料檢核!D61,"")&INDEX(資料檢核!D51:D58,資料檢核!C51)&IF(資料檢核!C74=TRUE,資料檢核!D74,"") ->  | AD16: 房屋貸款
W17: =IF(高齡話術檢核=TRUE,"繳款人身分證字號","") ->  | AD17: 其它
W19: =IF(高齡話術檢核,錄音填寫與錄音對象提示訊息,"") -> 
B22: 投保內容
M23: ="※ 請確認(體檢保額估算匯率)之匯率為最新公告之數值(每季更新滙率)" -> ※ 請確認(體檢保額估算匯率)之匯率為最新公告之數值(每季更新滙率)
C24: 計算方式 | D24: 保險金額 | E24: =IF(計算方式="主約保費試算保額","預計主約年繳保費","保險金額") -> 保險金額 | G24: 100000 | I24: =" "&"元" -> 元 | J24: 體檢保額估算匯率 | L24: 31.91
C26: 繳別 | D26: 年繳 | E26: 首/續期繳費方式 | G26: 匯款或自動轉帳
H28: 繳費年期 | J28: 投保金額/單位/計劃 | L28: 每期原始保費 | N28: 高保費折扣後保費 | S28: 高保費折扣級距
C30: 主約商品 | D30: =商品名稱 -> 保誠人壽美滿相傳外幣終身壽險(113)(定期給付型) | G30: =商品代號 -> ARLPLU42 | H30: 6 | I30: 年期 | J30: =IF(總檢核,主約保險金額,"") -> 100000 | K30: =" "&"元" -> 元 | L30: =IF(總檢核,IF(ISNA(首期表定保費),"",ROUND(首期表定保費,0)),0) -> 10190 | M30: =" "&"元" -> 元 | N30: =IF(總檢核,IF(ISNA(高保費折扣後保費_主約使用),"",高保費折扣後保費_主約使用),0) -> 10139 | P30: =" "&"元" -> 元 | S30: 年繳化保險費 | T30: 高保費折扣
S31: =IF(OR(主約繳費年期=6,主約繳費年期=6),IF(主約繳費年期=6,"1萬美元(含)以上","1萬美元(含)以上"),"") -> 1萬美元(含)以上 | T31: =IF(OR(主約繳費年期=6,主約繳費年期=6),"0.5%","") -> 0.5%
C32: 附約 | D32: =BNLTRU1商品名稱 -> 保誠人壽美滿人生美元定期壽險附約 | G32: =BNLTRU1商品代碼 -> BNLTRU1 | I32: 年期 | K32: =" "&"元" -> 元 | L32: =IF(總檢核,IF(BNLTRU1檢核,IF(OR(BNLTRU1附約保額="",BNLTRU1附約保額=0),0,ROUND(BNLTRU1_首期表定保費,個別險種進位數)),0),0) -> 0 | M32: =" "&"元" -> 元
C34: 附約 | D34: =ADDNTR2商品名稱 -> 保誠人壽特安心一年期特定傷病美元健康保險附約 | G34: =ADDNTR2商品代碼 -> ADDNTR2 | H34: =ADDNTR2年期&"年期" -> 1年期 | K34: =" "&"元" -> 元 | L34: =IF(總檢核,IF(ADDNTR2檢核,IF(OR(ADDNTR2附約保額="",ADDNTR2附約保額=0),0,ROUND(ADDNTR2_首期表定保費,個別險種進位數)),0),0) -> 0 | M34: =" "&"元" -> 元 | S34: =IF(OR(主約繳費年期=6,主約繳費年期=6),IF(主約繳費年期=6,"1.5萬美元(含)以上","1.5萬美元(含)以上"),"") -> 1.5萬美元(含)以上 | T34: =IF(OR(主約繳費年期=6,主約繳費年期=6),"1.0%","") -> 1.0%
C36: 豁免附約 | D36: =IF(OR(要保人身分="與被保險人為「同一人」",AND(要保人=被保人,要保人性別=被保人性別,要保人生日6碼=被保人生日6碼)),BWPNTR2商品名稱,BWPNTR1商品名稱) -> 保誠人壽豁元乙美元豁免保險費健康保險附約 | G36: =IF(OR(要保人身分="與被保險人為「同一人」",AND(要保人=被保人,要保人性別=被保人性別,要保人生日6碼=被保人生日6碼)),BWPNTR2商品代碼,BWPNTR1商品代碼) -> BWPNTR2 | H36: =IF(OR(payterm=6,payterm=10,payterm=15,payterm=20),IF(AND(要保人=被保人,要保人性別=被保人性別,要保人生日6碼=被保人生日6碼),TEXT(BWPNTR2年期,0),TEXT(BWPNTR1年期,0))&"年期","-") -> 6年期 | L36: =IF(總檢核,IF(AND(豁免附約檢核,豁免附約一是否附加="附加"),IF(豁免附約一=BWPNTR1商品名稱,BWPNTR1_首期表定保費,BWPNTR2_首期表定保費),0),0) -> 0 | M36: =" "&"元" -> 元 | S36: =IF(OR(主約繳費年期=6,主約繳費年期=6),IF(主約繳費年期=6,"2萬美元(含)以上","2萬美元(含)以上"),"") -> 2萬美元(含)以上 | T36: =IF(OR(主約繳費年期=6,主約繳費年期=6),"1.5%","") -> 1.5%
C38: 豁免附約 | D38: =IF(OR(要保人身分="與被保險人為「同一人」",AND(要保人=被保人,要保人性別=被保人性別,要保人生日6碼=被保人生日6碼)),BWPNTR4商品名稱,BWPNTR3商品名稱) -> 保誠人壽美滿美元豁免保險費健康保險附約乙型 | G38: =IF(OR(要保人身分="與被保險人為「同一人」",AND(要保人=被保人,要保人性別=被保人性別,要保人生日6碼=被保人生日6碼)),BWPNTR4商品代碼,BWPNTR3商品代碼) -> CWPNTR4 | H38: =IF(OR(payterm=3,payterm=6,payterm=8,payterm=10,payterm=12,payterm=15,payterm=20),IF(AND(要保人=被保人,要保人性別=被保人性別,要保人生日6碼=被保人生日6碼),TEXT(BWPNTR4年期,0),TEXT(BWPNTR3年期,0))&"年期","-") -> 6年期 | L38: =IF(總檢核,IF(AND(豁免附約檢核,豁免附約二是否附加="附加"),IF(豁免附約二=BWPNTR3商品名稱,BWPNTR3_首期表定保費,BWPNTR4_首期表定保費),0),0) -> 0 | M38: =" "&"元" -> 元
K40: 每期原始總保費 合計 | L40: =L30+L32+L34+L36+L38 -> 10190 | M40: =" "&"元" -> 元
K42: 每期折扣後總保費 合計 | L42: =IF(總檢核,IF(ISERROR((高保費折扣後保費_主約使用+L32+L34+L36+L38)*(1-首期繳費折扣)),0,(高保費折扣後保費_主約使用+L32+L34+L36+L38)*(1-首期繳費折扣)),0) -> 10037.61 | M42: =" "&"元" -> 元
B46: 分期定期給付
C48: 指定保險金比例 | E48: 100 | F48: % | G48: 分期定期保險金給付期間 | J48: 10 | K48: 年 | L48: =IF(資料檢核!G62<>1,資料檢核!H62,"")&IF(資料檢核!G63<>1,資料檢核!H63,"") -> 
B51: 分期定額給付
C53: 指定保險金比例 | E53: 100 | F53: =" "&"%" -> % | G53: 分期定額保險金 | J53: 5000 | K53: =" "&"元" -> 元 | L53: =INDEX(資料檢核!L62:L64,資料檢核!K62) -> 
B56: ※本商品為終身壽險，給付項目無生存保險金或年金給付，且任何保單年度之減少保險金額，均會減少保單保障、解約金及紅利，建議必須依照自身財務及保障需求妥適規劃。 ※詳情可參閱減少保險金額影響表
B57: ※減額後的「基本保險金額」，不得低於本保險最低承保金額！
B58: 定額提領(減少保險金額)
D59: ="建議提領試算年齡須至少大於投保年齡加"&開始提領年齡&"歲！" -> 建議提領試算年齡須至少大於投保年齡加6歲！ | L59: =IF(總檢核,IF(ISERROR(MATCH(0,提領後基本保額金額表,0)),"",IF(MATCH(0,提領後基本保額金額表,0)<BPP,"提醒，依此方式提領，基本保險金額將於保險契約有效期間內歸零","")),"") -> 
C60: 年齡一 | E60: =" "&"歲起" -> 歲起 | H60: 每年提領金額 | K60: =" "&幣別 -> 美元
E61: =IF(資料檢核!C68<>1,資料檢核!D68,"") -> 
C62: 年齡二 | E62: =" "&"歲起" -> 歲起 | H62: 每年提領金額 | K62: =" "&幣別 -> 美元
E63: =IF(資料檢核!C69<>1,資料檢核!D69,"") -> 
C64: 年齡三 | E64: =" "&"歲起" -> 歲起 | H64: 每年提領金額 | K64: =" "&幣別 -> 美元
E65: =IF(資料檢核!C70<>1,資料檢核!D70,"") -> 
B67: 額外一次提領(減少保險金額)
D68: ="建議提領試算年齡須至少大於投保年齡加"&開始提領年齡&"歲！" -> 建議提領試算年齡須至少大於投保年齡加6歲！ | L68: =IF(總檢核,IF(ISERROR(MATCH(0,提領後基本保額金額表,0)),"",IF(MATCH(0,提領後基本保額金額表,0)<BPP,"提醒，依此方式提領，基本保險金額將於保險契約有效期間內歸零","")),"") -> 
C69: 年齡一 | E69: =" "&"歲" -> 歲 | H69: 當年提領金額 | K69: =" "&幣別 -> 美元
E70: =IF(資料檢核!G68<>1,資料檢核!H68,"") -> 
C71: 年齡二 | E71: =" "&"歲" -> 歲 | H71: 當年提領金額 | K71: =" "&幣別 -> 美元
E72: =IF(資料檢核!G69<>1,資料檢核!H69,"") -> 
C73: 年齡三 | E73: =" "&"歲" -> 歲 | H73: 當年提領金額 | K73: =" "&幣別 -> 美元
E74: =IF(資料檢核!G70<>1,資料檢核!H70,"") -> 
B76: 簡易投保規則 | D76: 【詳細說明請詳業務手冊之相關投保規則】
B77: =" 【ARLPLU42－保誠人壽美滿相傳外幣終身壽險(113)(定期給付型)】"&IF(主約繳費年期=6," 投保年齡：0～75歲"," 投保年齡：0～75歲")&" 投保限額：10,000～250萬美元(以美元/元為投保單位) 適用高保費折扣：《年繳化保費1萬美元(含)以上》0.5% /《年繳化保費1.5萬美元(含)以上》1.0% /《年繳化保費2萬元(含)以上》1.5% 適用指定金融機構帳戶自動轉帳、匯款折扣 需檢附經保戶簽名之建議書及審閱期間確認聲明書 本商品屬於外國帳戶稅收遵從法(FATCA)及金融機構執行共同申報及盡職審查作業(CRS)適用商品" -> 【ARLPLU42－保誠人壽美滿相傳外幣終身壽險(113)(定期給付型)】 投保年齡：0～75歲 投保限額：10,000～250萬美元(以美元/元為投保單位) 適用高保費折扣：《年繳化保費1萬美元(含)以上》0.5% /《年繳化保費1.5萬美元(含)以上》1.0% /《年繳化保費2萬元(含)以上》1.5% 適用指定金融機構帳戶自動轉帳、匯款折扣 需檢附經保戶簽名之建議書及審閱期間確認聲明書 本商品屬於外國帳戶稅收遵從法(FATCA)及金融機構執行共同申報及盡職審查作業(CRS)適用商品
B84: 【BNLTRU1 - 保誠人壽美滿人生美元定期壽險附約】 投保年齡：《6/10/15年期》15足～65歲 /《20年期》15足～60歲 投保限額：1萬～100萬美元(以美元/仟元為單位，且以該保單壽險主約保額之5倍為限) 【ADDNTR2 - 保誠人壽特安心一年期特定傷病美元健康保險附約】 投保年齡：0～70歲 投保限額：1萬～3萬美元(以美元/萬元為單位) 【BWPNTR1 - 保誠人壽豁元甲美元豁免保險費保險附約】※要保人與被保險人為不同人時附加 投保年齡：《6/10/15年期》15足～60歲 /《20年期》15足～55歲 【BWPNTR2 - 保誠人壽豁元乙美元豁免保險費健康保險附約】※要保人與被保險人為同一人時附加 投保年齡：《6/10/15年期》15足～60歲 /《20年期》15足～55歲 【CWPNTR3 - 保誠人壽美滿美元豁免保險費保險附約甲型】※要保人與被保險人為不同人時附加 投保年齡：《3年期》15足～73歲 /《6年期》15足～70歲 /《8年期》15足～68歲 /《10年期》15足～66歲 /《12年期》15足～64歲 /《15年期》15足～61歲 /《20年期》15足～56歲 【CWPNTR4 - 保誠人壽美滿美元豁免保險費健康保險附約乙型】※要保人與被保險人為同一人時附加 投保年齡：《3年期》0～73歲 /《6年期》0～70歲 /《8年期》0～68歲 /《10年期》0～66歲 /《12年期》0～64歲 /《15年期》0～61歲 /《20年期》0～56歲
D105: 被保人群組
D106: 生日檢核 | E106: =資料檢核!G7 -> 1
D107: 姓名檢核 | E107: =資料檢核!G13 -> 1
D108: 性別檢核 | E108: =資料檢核!G14 -> 1
D109: 保額/保費檢核 | E109: =資料檢核!C18 -> 1
D110: 職業等級檢核 | E110: =資料檢核!G21 -> 1
D112: 要保人群組
D113: 生日檢核 | E113: =資料檢核!C7 -> 1
D114: 姓名檢核 | E114: =資料檢核!C13 -> 1
D115: 性別檢核 | E115: =資料檢核!C14 -> 1
D116: 身份辨識 | E116: =資料檢核!C15 -> 1
D118: 繳款人群組
D119: 生日檢核 | E119: =資料檢核!K7 -> 1
D120: 姓名檢核 | E120: =資料檢核!K13 -> 1
D121: 身份辨識 | E121: =資料檢核!K14 -> 1
D123: 分期保險金檢核
D124: 保險金比例 | E124: =資料檢核!G63 -> 1
D125: 分期金額/期間 | E125: =資料檢核!G62 -> 1
D127: 定額保險金檢核
D128: 保額限制 | E128: =資料檢核!K63 -> 1
D129: 保險金比例 | E129: =資料檢核!K64 -> 1
D131: 定額提領
D132: 年齡一 | E132: =資料檢核!C68 -> 1
D133: 年齡二 | E133: =資料檢核!C69 -> 1
D134: 年齡三 | E134: =資料檢核!C70 -> 1
D136: 額外提領
D137: 年齡一 | E137: =資料檢核!G68 -> 1
D138: 年齡二 | E138: =資料檢核!G69 -> 1
D139: 年齡三 | E139: =資料檢核!G70 -> 1
D141: 其他
D142: 繳別輸入 | E142: =資料檢核!G19 -> 1
D143: 計算方式輸入 | E143: =資料檢核!G20 -> 1
D144: 首期繳費方式 | E144: =資料檢核!G22 -> 1
D145: 續期繳費方式 | E145: =資料檢核!G23 -> 1
D146: 繳費年期輸入 | E146: =資料檢核!G24 -> 1
D147: 體檢匯率輸入 | E147: =資料檢核!G25 -> 1
D149: BNLTRU1
D150: 保額檢核 | E150: =資料檢核!C29 -> 1
D151: 年期檢核 | E151: =資料檢核!C33 -> 1
D152: 空白檢核 | E152: =資料檢核!C34 -> 1
D154: ADDNTR2
D155: 保額檢核 | E155: =資料檢核!G29 -> 1
D157: 豁免
D158: 豁免一檢核 | E158: =資料檢核!K30 -> 1
D159: 豁免二檢核 | E159: =資料檢核!K31 -> 1
D160: 豁免一規則檢核 | E160: =資料檢核!K32 -> 1
D161: 豁免二規則檢核 | E161: =資料檢核!K33 -> 1
D162: 豁免擇一檢核 | E162: =資料檢核!K34 -> 1
D163: 反灰檢核一 | E163: =資料檢核!K35 -> 1
D164: 反灰檢核二 | E164: =資料檢核!K36 -> 1
D166: 體檢保額
D167: 檢核 | E167: =資料檢核!C42 -> 1
D169: 15足歲以下
D170: 檢核 | E170: =資料檢核!C61 -> 1

Sheet 商品對照 (hidden)
B2: 附約對照 | C2: 條款說明 | D2: 序號
B3: 壽險_附約 | C3: 說明商品重要條款內容、除外責任(壽險附約) | D3: 8
B4: 健康險_附約 | C4: 說明商品重要條款內容、除外責任(健康險附約) | D4: 7
B5: 特定傷害險_附約 | C5: 說明商品重要條款內容、除外責任(特定傷病險附約) | D5: 6
B6: 癌症險_附約 | C6: 說明商品重要條款內容、除外責任(癌症險附約) | D6: 5
B7: 失能險_附約 | C7: 說明商品重要條款內容、除外責任(失能險附約) | D7: 4
B8: 長照險_附約 | C8: 說明商品重要條款內容、除外責任(長照險附約) | D8: 3
B9: 傷害險_附約 | C9: 說明商品重要條款內容、除外責任(傷害險附約) | D9: 2
B10: 豁免_附約 | C10: 說明商品重要條款內容、除外責任(豁免險附約) | D10: 1
A15: 序號 | B15: No | C15: 名稱 | D15: 類別 | E15: 項目名稱 | F15: 話術 | G15: 話術
A16: =IF(G16="N",0,IF(ISNA(VLOOKUP(D16,$B$3:$D$10,3,FALSE)),0,ABS(VLOOKUP(D16,$B$3:$D$10,3,FALSE)&5))) -> 0 | B16: 附約1 | C16: =_xlfn.SINGLE(IF(AND(_xlfn.SINGLE(附約一年期)<>"",_xlfn.SINGLE(附約一保額)<>""),附約一名稱,"")) ->  | D16: =IFERROR(VLOOKUP(C16,#REF!,25,FALSE),"") ->  | E16: =IF(G16="N","",IF(ISNA(VLOOKUP(D16,$B$3:$D$10,2,FALSE)),"",VLOOKUP(D16,$B$3:$D$10,2,FALSE))) ->  | F16: =IF(E16="","","銷售人員:"& IFERROR(VLOOKUP(C16,#REF!,12,FALSE),"")) ->  | G16: =IF(IFERROR(VLOOKUP(C16,#REF!,25,FALSE),"")="","N","Y") -> N
A17: =IF(G17="N",0,IF(ISNA(VLOOKUP(D17,$B$3:$D$10,3,FALSE)),0,ABS(VLOOKUP(D17,$B$3:$D$10,3,FALSE)&5))) -> 0 | E17: =IF(G17="N","",IF(ISNA(VLOOKUP(D17,$B$3:$D$10,2,FALSE)),"",VLOOKUP(D17,$B$3:$D$10,2,FALSE))) -> 
A18: =IF(G18="N",0,IF(ISNA(VLOOKUP(D18,$B$3:$D$10,3,FALSE)),0,ABS(VLOOKUP(D18,$B$3:$D$10,3,FALSE)&5))) -> 0 | E18: =IF(G18="N","",IF(ISNA(VLOOKUP(D18,$B$3:$D$10,2,FALSE)),"",VLOOKUP(D18,$B$3:$D$10,2,FALSE))) -> 
A19: =IF(G19="N",0,IF(ISNA(VLOOKUP(D19,$B$3:$D$10,3,FALSE)),0,ABS(VLOOKUP(D19,$B$3:$D$10,3,FALSE)&5))) -> 0 | E19: =IF(G19="N","",IF(ISNA(VLOOKUP(D19,$B$3:$D$10,2,FALSE)),"",VLOOKUP(D19,$B$3:$D$10,2,FALSE))) -> 
A22: =IFERROR(IF(LARGE($A$16:$A$19,1)=0,"",LARGE($A$16:$A$19,1)),"") ->  | B22: =IF(ISNA(VLOOKUP(A22,$A$16:$F$19,5,FALSE)),"",VLOOKUP(A22,$A$16:$F$19,5,FALSE)) ->  | C22: =IF(ISNA(VLOOKUP(A22,$A$16:$F$19,6,FALSE)),"",VLOOKUP(A22,$A$16:$F$19,6,FALSE)) -> 
A23: =IFERROR(IF(LARGE($A$16:$A$19,2)=0,"",LARGE($A$16:$A$19,2)),"") ->  | B23: =IF(ISNA(VLOOKUP(A23,$A$16:$F$19,5,FALSE)),"",VLOOKUP(A23,$A$16:$F$19,5,FALSE)) ->  | C23: =IF(ISNA(VLOOKUP(A23,$A$16:$F$19,6,FALSE)),"",VLOOKUP(A23,$A$16:$F$19,6,FALSE)) -> 
A24: =IFERROR(IF(LARGE($A$16:$A$19,3)=0,"",LARGE($A$16:$A$19,3)),"") ->  | B24: =IF(ISNA(VLOOKUP(A24,$A$16:$F$19,5,FALSE)),"",VLOOKUP(A24,$A$16:$F$19,5,FALSE)) ->  | C24: =IF(ISNA(VLOOKUP(A24,$A$16:$F$19,6,FALSE)),"",VLOOKUP(A24,$A$16:$F$19,6,FALSE)) -> 
A25: =IFERROR(IF(LARGE($A$16:$A$19,4)=0,"",LARGE($A$16:$A$19,4)),"") ->  | B25: =IF(ISNA(VLOOKUP(A25,$A$16:$F$19,5,FALSE)),"",VLOOKUP(A25,$A$16:$F$19,5,FALSE)) ->  | C25: =IF(ISNA(VLOOKUP(A25,$A$16:$F$19,6,FALSE)),"",VLOOKUP(A25,$A$16:$F$19,6,FALSE)) -> 

Sheet 錄音對象切換 (hidden)
A1: 錄音對象為一人高齡，所有客戶皆需錄音 | B1: N

Sheet 錄音話術範本
B1: 保誠人壽銷售錄音範本20250101版
B2: ='B2_錄音程序&共同文字'!B2 -> 準備錄音話術 | C2: ð | D2: ='B2_錄音程序&共同文字'!B3 -> 撥打錄音專線0809-070-898 | E2: ð | F2: ='B2_錄音程序&共同文字'!B4 -> 輸入要保人或錄音客戶ID後9碼或居留證後8碼加「#」 | G2: ð | H2: ='B2_錄音程序&共同文字'!B5 -> 嘟一聲後，開始宣讀錄音內容 | I2: ð | J2: ='B2_錄音程序&共同文字'!B6 -> 錄音完成，按#字鍵 | K2: ð | L2: ='B2_錄音程序&共同文字'!B7 -> 重聽留言按1，結束按3。
B3: =IF(AND(高齡錄音檢核,補充資訊檢核=1),IFERROR(IF(FIND("兆豐",服務公司),錄音前作業提醒_開頭語_兆豐版,錄音前作業提醒_開頭語),錄音前作業提醒_開頭語),"") -> 
B6: 回到繳款人錄音話術範本 | F6: 回到資料輸入頁面
B7: =IF(AND(高齡錄音檢核,補充資訊檢核=1),"要保人/被保險人高齡錄音話術範本","") -> 
B8: =IF(AND(高齡錄音檢核,補充資訊檢核=1),"序號","") ->  | C8: =IF(AND(高齡錄音檢核,補充資訊檢核=1),"項目","") ->  | D8: =IF(AND(高齡錄音檢核,補充資訊檢核=1),"銷售人員與要保人/被保險人錄音說明內容","") -> 
B9: =IF(AND(高齡錄音檢核,補充資訊檢核=1),1,"") ->  | C9: =IF(AND(高齡錄音檢核,補充資訊檢核=1),"取得要保人/被保險人同意錄音及說明係購買保險商品","") ->  | D9: =IF(AND(高齡錄音檢核,補充資訊檢核=1),IF(D1_高齡錄音資料檢核!C16=4,D1_高齡錄音資料檢核!D16,錄音序號1_開頭語),"") -> 
D10: =IF(AND(高齡錄音檢核,補充資訊檢核=1),IF(D1_高齡錄音資料檢核!C16=4,"",'B2_錄音程序&共同文字'!C10),"") -> 
B11: =IF(AND(高齡錄音檢核,補充資訊檢核=1),2,"") ->  | C11: =IF(AND(高齡錄音檢核,補充資訊檢核=1),"告知繳費年期與繳費金額","") ->  | D11: =IF(AND(高齡錄音檢核,補充資訊檢核=1),IF(D1_高齡錄音資料檢核!C16=4,D1_高齡錄音資料檢核!D16,IFERROR(IF(FIND("花旗",服務公司),錄音序號2_開頭語_花旗版),錄音序號2_開頭語)),"") -> 
D13: =IF(AND(高齡錄音檢核,補充資訊檢核=1),IF(D1_高齡錄音資料檢核!C16=4,"",錄音序號2_結尾語),"") -> 
B14: =IF(AND(高齡錄音檢核,補充資訊檢核=1),3,"") ->  | C14: =IF(AND(高齡錄音檢核,補充資訊檢核=1),"說明商品重要條款內容、除外責任、建議書內容","") ->  | D14: =IF(AND(高齡錄音檢核,補充資訊檢核=1),IF(D1_高齡錄音資料檢核!C16=4,D1_高齡錄音資料檢核!D16,錄音序號3組合版),"") -> 
D16: =IF(AND(高齡錄音檢核,補充資訊檢核=1),IF(D1_高齡錄音資料檢核!C16=4,"",IFERROR(IF(FIND("第一",服務公司),"",錄音序號3_結尾語),錄音序號3_結尾語)&IFERROR(IF(FIND("第一",服務公司),錄音序號3_結尾語_一銀版,""),"")&IFERROR(IF(FIND("台新",服務公司),"",錄音序號4_結尾語),IFERROR(IF(FIND("第一",服務公司),"",錄音序號4_結尾語),IFERROR(IF(FIND("花旗",服務公司),"",錄音序號4_結尾語),錄音序號4_結尾語)))),"") -> 
B17: =IF(AND(高齡話術檢核,補充資訊檢核=1),IF(C17="","",4),"") ->  | C17: =IF(AND(高齡話術檢核,補充資訊檢核=1),B6_解約金附約ePOS調整!B22,"") ->  | D17: =IF(AND(高齡話術檢核,補充資訊檢核=1),IF(D1_高齡錄音資料檢核!C16=4,"",B6_解約金附約ePOS調整!C22),"") -> 
B18: =IF(AND(高齡話術檢核,補充資訊檢核=1),IF(C18="","",5),"") ->  | C18: =IF(AND(高齡話術檢核,補充資訊檢核=1),B6_解約金附約ePOS調整!B23,"") ->  | D18: =IF(AND(高齡話術檢核,補充資訊檢核=1),IF(D1_高齡錄音資料檢核!C16=4,"",B6_解約金附約ePOS調整!C23),"") -> 
B19: =IF(C19="","",B18+1) ->  | C19: =IF(AND(高齡話術檢核,補充資訊檢核=1),B6_解約金附約ePOS調整!B24,"") ->  | D19: =IF(AND(高齡話術檢核,補充資訊檢核=1),IF(D1_高齡錄音資料檢核!C16=4,"",B6_解約金附約ePOS調整!C24),"") -> 
B20: =IF(AND(高齡錄音檢核,補充資訊檢核=1),MAX(B9:B19)+1,"") ->  | C20: =IF(AND(高齡話術檢核,補充資訊檢核=1),"說明保單相關風險_解約金商品_解約風險","") ->  | D20: =IF(AND(高齡話術檢核,補充資訊檢核=1),IF(D1_高齡錄音資料檢核!C16=4,D1_高齡錄音資料檢核!D16,IFERROR(IF(FIND("花旗（台灣）",服務公司),錄音序號4_開頭語_花旗版),IFERROR(IF(FIND("第一",服務公司),錄音序號4_開頭語_一銀版),IFERROR(IF(FIND("台新",服務公司),錄音序號4_開頭語_台新版),錄音序號4_開頭語)))),"") -> 
B21: =IF(AND(高齡話術檢核,補充資訊檢核=1),IF(C21="","",MAX(B$8:B20)+1),"") ->  | C21: =IF(AND(高齡話術檢核,補充資訊檢核=1),IF(D21="","","說明保單相關風險_解約金商品_分紅非保證"),"") ->  | D21: =IF(AND(高齡話術檢核,補充資訊檢核=1),IF(D1_高齡錄音資料檢核!C16=4,"",SUBSTITUTE(IF(OR(VLOOKUP(商品名稱,B1_解約金商品錄音話術table!B:K,9,0)="C",VLOOKUP(商品名稱,B1_解約金商品錄音話術table!B:K,9,0)="R"),分紅風險ePOS,"")&IF(VLOOKUP(商品名稱,B1_解約金商品錄音話術table!B:K,9,0)="H",綜合險分紅ePOS,"")&IF(VLOOKUP(商品名稱,B1_解約金商品錄音話術table!B:K,9,0)="I",綜合險分紅_傷害ePOS,"")&IF(OR(VLOOKUP(商品名稱,B1_解約金商品錄音話術table!B:K,9,0)="C1",VLOOKUP(商品名稱,B1_解約金商品錄音話術table!B:K,9,0)="R1"),分紅風險ePOS1,""),"","")),"") -> 
B22: =IF(AND(高齡話術檢核,補充資訊檢核=1),IF(C22="","",MAX(B$8:B21)+1),"") ->  | C22: =IF(AND(高齡話術檢核,補充資訊檢核=1),IF(D22="","","說明保單相關風險_解約金商品_匯率風險"),"") ->  | D22: =IF(AND(高齡話術檢核,補充資訊檢核=1),IF(D1_高齡錄音資料檢核!C16=4,"",SUBSTITUTE(IF(幣別="新臺幣","",匯率風險ePOS),"","")),"") -> 
B23: =IF(AND(高齡話術檢核,補充資訊檢核=1),MAX(B8:B22)+1,"") ->  | C23: =IF(AND(高齡錄音檢核,補充資訊檢核=1),"契撤期說明","") ->  | D23: =IF(AND(高齡錄音檢核,補充資訊檢核=1),IF(D1_高齡錄音資料檢核!C16=4,D1_高齡錄音資料檢核!D16,錄音序號5_開頭語),"") -> 
B24: =IF(AND(高齡話術檢核,補充資訊檢核=1),B23+1,"") ->  | C24: =IF(AND(高齡錄音檢核,補充資訊檢核=1),"要保人/被保險人聲明","") ->  | D24: =IF(AND(高齡錄音檢核,補充資訊檢核=1),IF(D1_高齡錄音資料檢核!C16=4,D1_高齡錄音資料檢核!D16,'B2_錄音程序&共同文字'!B15),"") -> 
D25: =IF(AND(高齡錄音檢核,補充資訊檢核=1),IF(D1_高齡錄音資料檢核!C16=4,"",錄音序號6_結尾語),"") -> 
B26: =IF(AND(高齡錄音檢核,補充資訊檢核=1),錄音後作業提醒&瘖啞人士注意事項,"") -> 

Sheet 錄音話術範本-繳款人
B1: 保誠人壽銷售錄音範本20250101版
B2: ='B2_錄音程序&共同文字'!B2 -> 準備錄音話術 | C2: ð | D2: ='B2_錄音程序&共同文字'!B3 -> 撥打錄音專線0809-070-898 | E2: ð | F2: ='B2_錄音程序&共同文字'!B4 -> 輸入要保人或錄音客戶ID後9碼或居留證後8碼加「#」 | G2: ð | H2: ='B2_錄音程序&共同文字'!B5 -> 嘟一聲後，開始宣讀錄音內容 | I2: ð | J2: ='B2_錄音程序&共同文字'!B6 -> 錄音完成，按#字鍵 | K2: ð | L2: ='B2_錄音程序&共同文字'!B7 -> 重聽留言按1，結束按3。
B3: =IF(AND(高齡錄音檢核,補充資訊檢核=1),IFERROR(IF(FIND("兆豐",服務公司),錄音前作業提醒_開頭語_兆豐版_繳款人,錄音前作業提醒_開頭語_繳款人),錄音前作業提醒_開頭語_繳款人),"") -> 
B6: 回到要/被保人錄音話術範本 | F6: 回到資料輸入頁面
B7: =IF(AND(高齡錄音檢核,補充資訊檢核=1),"繳款人高齡錄音話術範本","") -> 
B8: =IF(AND(高齡錄音檢核,補充資訊檢核=1),"序號","") ->  | C8: =IF(AND(高齡錄音檢核,補充資訊檢核=1),"項目","") ->  | D8: =IF(AND(高齡錄音檢核,補充資訊檢核=1),"銷售人員與繳款人錄音說明內容","") -> 
B9: =IF(AND(高齡錄音檢核,補充資訊檢核=1),1,"") ->  | C9: =IF(AND(高齡錄音檢核,補充資訊檢核=1),"取得繳款人同意錄音及說明係購買保險商品","") ->  | D9: =IF(AND(高齡錄音檢核,補充資訊檢核=1),IF(D1_高齡錄音資料檢核!C17=2,D1_高齡錄音資料檢核!D18,錄音序號1_開頭語_繳款人),"") -> 
D10: =IF(AND(高齡錄音檢核,補充資訊檢核=1),IF(D1_高齡錄音資料檢核!C17=2,"",錄音序號1_結尾語_繳款人),"") -> 
B11: =IF(AND(高齡錄音檢核,補充資訊檢核=1),2,"") ->  | C11: =IF(AND(高齡錄音檢核,補充資訊檢核=1),"告知繳費年期與繳費金額","") ->  | D11: =IF(AND(高齡錄音檢核,補充資訊檢核=1),IF(D1_高齡錄音資料檢核!C17=2,D1_高齡錄音資料檢核!D18,IFERROR(IF(FIND("花旗",服務公司),錄音序號2_開頭語_花旗版_繳款人),錄音序號2_開頭語_繳款人)),"") -> 
D13: =IF(AND(高齡錄音檢核,補充資訊檢核=1),IF(D1_高齡錄音資料檢核!C17=2,"",錄音序號2_結尾語_繳款人),"") -> 
B14: =IF(AND(高齡錄音檢核,補充資訊檢核=1),3,"") ->  | C14: =IF(AND(高齡錄音檢核,補充資訊檢核=1),"說明商品重要條款內容、除外責任、建議書內容","") ->  | D14: =IF(AND(高齡錄音檢核,補充資訊檢核=1),錄音序號3組合版繳款人,"") -> 
D16: =IF(AND(高齡錄音檢核,補充資訊檢核=1),IF(D1_高齡錄音資料檢核!C17=2,"",IFERROR(IF(FIND("第一",服務公司),"",錄音序號3_結尾語_繳款人),錄音序號3_結尾語_繳款人)&IFERROR(IF(FIND("第一",服務公司),錄音序號3_結尾語_一銀版_繳款人,""),"")&" "&IFERROR(IF(FIND("台新",服務公司),"",錄音序號4_結尾語_繳款人),IFERROR(IF(FIND("第一",服務公司),"",錄音序號4_結尾語_繳款人),IFERROR(IF(FIND("花旗",服務公司),"",錄音序號4_結尾語_繳款人),錄音序號4_結尾語_繳款人)))),"") -> 
B17: =IF(AND(高齡話術檢核,補充資訊檢核=1),IF(C17="","",4),"") ->  | C17: =IF(AND(高齡話術檢核,補充資訊檢核=1),IF(繳款人話術稿判斷=2,"",B6_解約金附約ePOS調整!J22),"") ->  | D17: =IF(AND(高齡話術檢核,補充資訊檢核=1),IF(D1_高齡錄音資料檢核!C17=2,"",B6_解約金附約ePOS調整!K22),"") -> 
B18: =IF(AND(高齡話術檢核,補充資訊檢核=1),IF(C18="","",5),"") ->  | C18: =IF(AND(高齡話術檢核,補充資訊檢核=1),IF(繳款人話術稿判斷=2,"",B6_解約金附約ePOS調整!J23),"") ->  | D18: =IF(AND(高齡話術檢核,補充資訊檢核=1),IF(D1_高齡錄音資料檢核!C17=2,"",B6_解約金附約ePOS調整!K23),"") -> 
B19: =IF(C19="","",B18+1) ->  | C19: =IF(AND(高齡話術檢核,補充資訊檢核=1),IF(繳款人話術稿判斷=2,"",B6_解約金附約ePOS調整!J24),"") ->  | D19: =IF(AND(高齡話術檢核,補充資訊檢核=1),IF(D1_高齡錄音資料檢核!C17=2,"",B6_解約金附約ePOS調整!K24),"") -> 
B20: =IF(AND(高齡錄音檢核,補充資訊檢核=1),MAX(B9:B19)+1,"") ->  | C20: =IF(AND(高齡話術檢核,補充資訊檢核=1),"說明保單相關風險_解約金商品_解約風險","") ->  | D20: =IF(AND(高齡話術檢核,補充資訊檢核=1),IF(D1_高齡錄音資料檢核!C17=2,D1_高齡錄音資料檢核!D18,IFERROR(IF(FIND("花旗（台灣）",服務公司),錄音序號4_開頭語_花旗版_繳款人),IFERROR(IF(FIND("第一",服務公司),錄音序號4_開頭語_一銀版_繳款人),IFERROR(IF(FIND("台新",服務公司),錄音序號4_開頭語_台新版_繳款人),錄音序號4_開頭語_繳款人)))),"") -> 
B21: =IF(AND(高齡話術檢核,補充資訊檢核=1),IF(C21="","",MAX(B$8:B20)+1),"") ->  | C21: =IF(D21="","","說明保單相關風險_解約金商品_分紅非保證") ->  | D21: =IF(AND(高齡話術檢核,補充資訊檢核=1),IF(D1_高齡錄音資料檢核!C17=2,"",SUBSTITUTE(IF(OR(VLOOKUP(商品名稱,B1_解約金商品錄音話術table!B:K,9,0)="C",VLOOKUP(商品名稱,B1_解約金商品錄音話術table!B:K,9,0)="R"),分紅風險_繳款人,"")&IF(VLOOKUP(商品名稱,B1_解約金商品錄音話術table!B:K,9,0)="H",綜合險分紅_繳款人,"")&IF(VLOOKUP(商品名稱,B1_解約金商品錄音話術table!B:K,9,0)="I",綜合險分紅_傷害_繳款人,"")&IF(OR(VLOOKUP(商品名稱,B1_解約金商品錄音話術table!B:K,9,0)="C1",VLOOKUP(商品名稱,B1_解約金商品錄音話術table!B:K,9,0)="R1"),分紅風險_繳款人1,""),"","")),"") -> 
B22: =IF(AND(高齡話術檢核,補充資訊檢核=1),MAX(B8:B21)+1,"") ->  | C22: =IF(AND(高齡錄音檢核,補充資訊檢核=1),"契撤期說明","") ->  | D22: =IF(AND(高齡錄音檢核,補充資訊檢核=1),IF(D1_高齡錄音資料檢核!C17=2,D1_高齡錄音資料檢核!D18,錄音序號5_開頭語_繳款人),"") -> 
B23: =IF(AND(高齡話術檢核,補充資訊檢核=1),B22+1,"") ->  | C23: =IF(AND(高齡錄音檢核,補充資訊檢核=1),"繳款人聲明","") ->  | D23: =IF(AND(高齡錄音檢核,補充資訊檢核=1),IF(D1_高齡錄音資料檢核!C17=2,D1_高齡錄音資料檢核!D18,錄音序號6_開頭語_繳款人),"") -> 
D24: =IF(AND(高齡錄音檢核,補充資訊檢核=1),IF(D1_高齡錄音資料檢核!C17=2,"",錄音序號6_結尾語_繳款人),"") -> 
B25: =IF(AND(高齡錄音檢核,補充資訊檢核=1),錄音後作業提醒&瘖啞人士注意事項_繳款人,"") -> 

Sheet B1_解約金商品錄音話術table (hidden)
A1: CRTABLE | B1: 商品名稱 | C1: TODATE | D1: 商品英文簡稱 | E1: LONGDESC | F1: 商品幣別 | G1: 商品類型 | H1: 主附約別 | I1: 解約金 | J1: 分紅類型 | K1: 錄音序號1_錄音取得要保人同意錄音及說明係購買保險商品 | L1: 錄音序號2_告知繳費年期與繳費金額 | M1: 錄音序號3_說明商品重要條款、除外責任、商品說明書內容 | N1: 錄音序號4_說明保單相關風險 | O1: 錄音序號5_契撤期說明 | P1: 錄音序號6_要保人聲明 | Q1: 投保年齡限制 | R1: 單位數 | S1: 保障年期 | T1: TW720_FATCA | U1: 補充話術 | V1: 錄音序號3_兆豐版 | W1: 錄音序號3_一銀版 | X1: 花旗/星展 | Y1: TYPE | Z1: 附約類型 | AA1: 給付項目 | AB1: 除外責任 | AC1: 除外責任_繳款人 | AD1: 給付項目-兆豐版 | AE1: 除外責任-兆豐版 | AF1: 除外責任_繳款人-兆豐版 | AG1: 保單利益一銀 | AH1: 除外責任一銀 | AI1: 除外責任_繳款人一銀
A2: EHA1 | B2: 保誠人壽 e 保庇健康保險 | C2: 9999-12-31 | D2: AMRNTB1 | E2: 一年期醫療險 | F2: NT$ | G2: 健康險-主約 | H2: M | R2: 元 | S2: 1年，可續保至被保險人保險年齡50歲 | Y2: NL
A3: 2914 | B3: 保誠人壽安康保終身健康保險 | C3: 9999-12-31 | D3: BDDNLB1 | E3: 重大疾病險 | F3: NT$ | G3: 健康險-主約 | H3: M | I3: N | R3: 元 | S3: 至被保險人保險年齡達99歲當年之保單週年日 | T3: O | Y3: NL
A4: 2803 | B4: 保誠人壽長照216長期照顧終身健康保險 | C4: 9999-12-31 | D4: ALTRLB1 | E4: ALTRLB1 | F4: NT$ | G4: 健康險-主約 | H4: M | I4: N | R4: 元 | S4: 至被保險人保險年齡達100歲當年之保單週年日 | T4: O | Y4: NL
A5: 2061 | B5: 保誠人壽倍感安心終身醫療健康保險 | C5: 9999-12-31 | D5: AHIRLB1 | E5: AHIRLB1 | F5: NT$ | G5: 健康險-主約 | H5: M | I5: N | R5: 計畫 | S5: 至被保險人保險年齡達100歲當年之保單週年日 | T5: I | Y5: NL
A6: 2773 | B6: 保誠人壽誠心防癌2.0健康保險 | C6: 9999-12-31 | D6: ACCRTB1 | E6: ACCRTB1 | F6: NT$ | G6: 健康險-主約 | H6: M | I6: N | R6: 元 | S6: 至被保險人保險年齡達75歲當年之保單週年日 | T6: O | Y6: NL
A7: ADR1 | B7: 保誠人壽一年定期重大疾病健康保險附約 ( 乙型 ) | C7: 9999-12-31 | D7: ADDNTR1 | E7: ADDNTR1 | F7: NT$ | G7: 健康險-附約 | H7: R | I7: N | T7: O | Z7: 特定傷病_附約
A8: HIRB | B8: 保誠人壽宜家保醫療健康保險附約 | C8: 9999-12-31 | D8: AHINTR1 | E8: AHINTR1 | F8: NT$ | G8: 健康險-附約 | H8: R | I8: N | T8: O | Z8: 健康險_附約
A9: NHS1 | B9: 保誠人壽新住院醫療限額給付健康保險附約 (108) | C9: 9999-12-31 | D9: AMRNTR1 | E9: AMRNTR1 | F9: NT$ | G9: 健康險-附約 | H9: R | I9: N | T9: O | Z9: 健康險_附約
A10: EAB1 | B10: 保誠人壽 e 騎幸福意外傷害保險 | C10: 9999-12-31 | D10: APANTB9 | E10: APANTB9 | F10: NT$ | G10: 意外險-主約 | H10: M | R10: 元 | S10: 1年，可續保至被保險人保險年齡75歲 | Y10: NL
A11: VPA5 | B11: 保誠人壽一三五人身傷害保險 | C11: 9999-12-31 | D11: CVPA | E11: CVPA | F11: NT$ | G11: 意外險-主約 | H11: M | I11: N | R11: 元 | S11: 1年，可續保至被保險人保險年齡80歲 | T11: O | Y11: NL
A12: EAD1 | B12: 保誠人壽平安御守意外傷害保險 | C12: 9999-12-31 | D12: APANTB11 | E12: APANTB11 | F12: NT$ | G12: 意外險-主約 | H12: M | R12: 元 | S12: 1年，可續保至被保險人保險年齡75歲 | Y12: NL
A13: EAE1 | B13: 保誠人壽平安護守意外傷害保險 | C13: 9999-12-31 | D13: APANTB4 | E13: APANTB4 | F13: NT$ | G13: 意外險-主約 | H13: M | R13: 元 | S13: 1年，可續保至被保險人保險年齡75歲 | Y13: NL
A14: EAC1 | B14: 保誠人壽阿里叭叭意外傷害保險 | C14: 9999-12-31 | D14: APANTB10 | E14: APANTB10 | F14: NT$ | G14: 意外險-主約 | H14: M | R14: 元 | S14: 1年，可續保至被保險人保險年齡75歲 | Y14: NL
A15: IPC3 | B15: 保誠人壽無微不至集體投保微型傷害保險 | C15: 9999-12-31 | D15: APANTB2 | E15: IPC3 | F15: NT$ | G15: 意外險-主約 | H15: M | I15: N | R15: 元 | S15: 1年，可續保至被保險人保險年齡70歲 | T15: O | Y15: NL
A16: EAA1 | B16: 保誠人壽嗶嗶守護意外傷害保險 | C16: 9999-12-31 | D16: APANTB8 | E16: APANTB8 | F16: NT$ | G16: 意外險-主約 | H16: M | R16: 元 | S16: 1年，可續保至被保險人保險年齡75歲 | Y16: NL
A17: ML03 | B17: 保誠人壽人身意外傷害住院醫療定額給付附加條款 | C17: 9999-12-31 | D17: ML03 | E17: ML03 | F17: NT$ | G17: 意外險-附加條款 | H17: R | I17: N | T17: O | Z17: 傷害險_附約
A18: MT04 | B18: 保誠人壽傷害醫療保險給付附加條款 | C18: 9999-12-31 | D18: MT04 | E18: MT04 | F18: NT$ | G18: 意外險-附加條款 | H18: R | I18: N | T18: O | Z18: 傷害險_附約
A19: ERB1 | B19: 保誠人壽 e 騎幸福意外傷害保險附約 | C19: 9999-12-31 | D19: APANTR3 | E19: APANTR3 | F19: NT$ | G19: 意外險-附約 | H19: R | Z19: 傷害險_附約
A20: PAA5 | B20: 保誠人壽人身意外傷害保險附約 | C20: 9999-12-31 | D20: CPAA | E20: CPAA | F20: NT$ | G20: 意外險-附約 | H20: R | I20: N | T20: O | Z20: 傷害險_附約
A21: PAF4 | B21: 保誠人壽火災暨陸海大眾運輸工具意外傷害保險附約 | C21: 9999-12-31 | D21: BPAFS | E21: PAF4 | F21: NT$ | G21: 意外險-附約 | H21: R | I21: N | T21: O | Z21: 傷害險_附約
A22: ERD1 | B22: 保誠人壽卡達安心意外傷害保險附約 | C22: 9999-12-31 | D22: APANTR5 | E22: APANTR5 | F22: NT$ | G22: 意外險-附約 | H22: R | Z22: 傷害險_附約
A23: ERC1 | B23: 保誠人壽阿里叭叭意外傷害保險附約 | C23: 9999-12-31 | D23: APANTR4 | E23: APANTR4 | F23: NT$ | G23: 意外險-附約 | H23: R | Z23: 傷害險_附約
A24: ERA1 | B24: 保誠人壽嗶嗶守護意外傷害保險附約 | C24: 9999-12-31 | D24: APANTR2 | E24: APANTR2 | F24: NT$ | G24: 意外險-附約 | H24: R | Z24: 傷害險_附約
A25: NTRF | B25: 保誠人壽一年定期壽險 | C25: 9999-12-31 | D25: ANLTLN5 | E25: ANLTLN5 | F25: NT$ | G25: 壽險-主約 | H25: M | R25: 元 | S25: 1年，可續保至被保險人保險年齡75歲 | Y25: NL
A26: EPA1 | B26: 保誠人壽 E 保倍意外傷害保險 | C26: 9999-12-31 | D26: APANTB3 | E26: APANTB3 | F26: NT$ | H26: M | I26: N | T26: O | Y26: NL | Z26: 傷害險_附約
A27: IPA5 | B27: 保誠人壽人身意外傷害保險 | C27: 9999-12-31 | D27: CIPA | E27: CIPA | F27: NT$ | H27: M | I27: N | T27: O | Y27: NL | Z27: 傷害險_附約
A28: ML13 | B28: 保誠人壽人身意外傷害住院醫療定額給付附加條款 | C28: 9999-12-31 | D28: ML13 | E28: ML13 | F28: NT$ | H28: R | I28: N | T28: O | Z28: 傷害險_附約
A29: UCC2 | B29: 保誠人壽一年定期防癌帳戶型健康保險附約 | C29: 9999-12-31 | D29: AUCCR1 | E29: 一年定期防癌健康帳戶型附約 | F29: NT$ | H29: R | I29: N | T29: O | Z29: 健康險_附約
A30: UCR3 | B30: 保誠人壽一年定期癌症醫療帳戶型健康保險附約 | C30: 9999-12-31 | D30: CUCR | E30: 一年定期癌症醫療帳戶型附約 | F30: NT$ | H30: R | I30: N | T30: O | Z30: 健康險_附約
A31: UHI6 | B31: 保誠人壽新一年定期住院醫療帳戶型健康保險附約 | C31: 9999-12-31 | D31: AUNHI | E31: 新一年定期住院醫療帳戶型附約 | F31: NT$ | H31: R | I31: N | T31: O | Z31: 健康險_附約
A32: UML4 | B32: 人身意外傷害住院醫療定額保險給付附加條款 | C32: 9999-12-31 | D32: CUML | E32: 意外傷害住院醫療定額附加條款 | F32: NT$ | H32: R | I32: N | T32: O | Z32: 健康險_附約
A33: UMT4 | B33: 人身意外傷害醫療保險給付附加條款 | C33: 9999-12-31 | D33: CUMT | E33: 意外傷害醫療保險附加條款 | F33: NT$ | H33: R | I33: N | T33: O | Z33: 健康險_附約
A34: UPA5 | B34: 保誠人壽一年定期意外傷害帳戶型保險附約 | C34: 9999-12-31 | D34: DUPAR | E34: 一年定期意外傷害帳戶型附約 | F34: NT$ | H34: R | I34: N | T34: O | Z34: 傷害險_附約
A35: UWC2 | B35: 保誠人壽一年定期安家豁免保險費帳戶型保險附約 | C35: 9999-12-31 | E35: 一年定期安家豁免保險費附約 | F35: NT$ | G35: 豁免_附約 | H35: R | I35: N | T35: O | Z35: =G35 -> 豁免_附約
A36: UWR7 | B36: 保誠人壽一年定期豁免保險費帳戶型保險附約 | C36: 9999-12-31 | D36: EUWPR | E36: 一年定期豁免帳戶型附約 | F36: NT$ | G36: 豁免_附約 | H36: R | I36: N | T36: O | Z36: =G36 -> 豁免_附約
A37: UWR8 | B37: 保誠人壽一年定期豁免保險費帳戶型保險附約 (106) | C37: 9999-12-31 | D37: FUWPR | E37: 一年定期豁免帳戶型附約 | F37: NT$ | G37: 豁免_附約 | H37: R | I37: N | T37: O | Z37: =G37 -> 豁免_附約
A38: CAR1 | B38: 保誠人壽標靶守護防癌健康保險附約 | C38: 9999-12-31 | D38: ACCNTR2 | E38: 一年期癌症險 | F38: NT$ | G38: 健康險-主約 | H38: R | Z38: 健康險_附約
A39: WPCB | B39: 保誠人壽安家豁免保險費附約(96) | C39: 9999-12-31 | D39: IWPC | E39: IWPC | F39: NT$ | G39: 豁免_附約 | H39: R | I39: Y | M39: =AA39&錄音序號_確認語_2&""&B1_解約金商品錄音話術table!AB39&錄音序號_確認語_2 ->  | Q39: 14足歲∼55歲 | R39: 元 | T39: I | V39: =AD39&錄音序號_確認語_2&AE39&錄音序號_確認語_2 ->  | W39: =AG39&錄音序號_確認語_2&B1_解約金商品錄音話術table!AH39&錄音序號_確認語_2 ->  | X39: =SUBSTITUTE(M39,"建議書摘要表","建議書") ->  | Z39: =G39 -> 豁免_附約 | AA39: 您所附加的保誠人壽安家豁免保險費附約(96)的給付項目，包含： 一、身故豁免保險費、 二、一至六級失能豁免保險費、 三、特定傷病豁免保險費、 以上給付條件載明在保單條款中， | AB39: 本商品除外責任，包括： 本附約被保險人故意、犯罪、酒駕行為或非法施用毒品致被保險人死亡或失能。 因除外責任所致的保險事故，保險公司將不予理賠。完整之除外責任都載明於保單條款中， | AC39: 您所附加的保誠人壽安家豁免保險費附約(96)的除外責任，包括： 本附約被保險人故意、犯罪、酒駕行為或非法施用毒品致被保險人死亡或失能。 因除外責任所致的保險事故，保險公司將不予理賠。完整之除外責任都載明於保單條款中，請問您清楚嗎？ 【請客戶回答：清楚/不清楚】 | AD39: 您所附加的保誠人壽安家豁免保險費附約 (96)的給付項目，包含： 一、身故豁免保險費、 二、一至六級失能豁免保險費、 三、特定傷病豁免保險費、 以上給付條件載明在保單條款中， | AE39: 本商品除外責任，包括： 一、本附約被保險人故意、犯罪、酒駕行為或非法施用毒品致被保險人死亡或失能。 因除外責任所致的保險事故，保險公司將不予理賠。完整之除外責任都載明於保單條款中， | AF39: 本商品除外責任，包括： 一、本附約被保險人故意、犯罪、酒駕行為或非法施用毒品致被保險人死亡或失能。 因除外責任所致的保險事故，保險公司將不予理賠。完整之除外責任都載明於保單條款中，請問您清楚嗎？ 【請客戶回答：清楚/不清楚】 | AG39: 您所附加的保誠人壽安家豁免保險費附約 (96)的保單利益，包含： 一、身故豁免保險費、 二、一至六級失能豁免保險費、 三、特定傷病豁免保險費、 給付內容跟給付時間有載明在保單條款中，這些保險給付的相關內容， | AH39: 本商品除外責任，包括： 一、本附約被保險人故意、犯罪、酒駕行為或非法施用毒品致被保險人死亡或失能。 因除外責任所致的保險事故，保險公司將不予理賠。完整之除外責任都載明於保單條款中， | AI39: 本商品除外責任，包括： 一、本附約被保險人故意、犯罪、酒駕行為或非法施用毒品致被保險人死亡或失能。 因除外責任所致的保險事故，保險公司將不予理賠。完整之除外責任都載明於保單條款中，請問您清楚嗎？ 【請客戶回答：清楚/不清楚】
A40: WPG3 | B40: 保誠人壽美滿美元豁免保險費保險附約甲型 | C40: 9999-12-31 | D40: AWPNTR3 | E40: AWPNTR3 | F40: USD | G40: 豁免_附約 | H40: R | I40: Y | M40: =AA40&錄音序號_確認語_2&""&B1_解約金商品錄音話術table!AB40&錄音序號_確認語_2 ->  | Q40: 3 年15 足歲～73 歲 6 年15 足歲～70 歲 12 年15 足歲～64 歲 | R40: 元 | T40: I | W40: =AG40&錄音序號_確認語_2&B1_解約金商品錄音話術table!AH40&錄音序號_確認語_2 ->  | Z40: 豁免_附約 | AA40: 您所附加的保誠人壽美滿美元豁免保險費保險附約甲型的給付項目，包含： 一、身故豁免保險費、 二、完全失能豁免保險費、 三、二至六級失能豁免保險費、 以上給付條件載明在保單條款中， | AB40: 本商品除外責任，包括： 本附約被保險人故意、犯罪、酒駕行為或非法施用毒品致被保險人死亡或失能。 因除外責任所致的保險事故，保險公司將不予理賠。完整之除外責任都載明於保單條款中， | AC40: 您所附加的保誠人壽美滿美元豁免保險費保險附約甲型的除外責任，包括： 本附約被保險人故意、犯罪、酒駕行為或非法施用毒品致被保險人死亡或失能。 因除外責任所致的保險事故，保險公司將不予理賠。完整之除外責任都載明於保單條款中，請問您清楚嗎？ 【請客戶回答：清楚/不清楚】 | AD40: 您所附加的保誠人壽美滿美元豁免保險費保險附約甲型的給付項目，包含： 一、身故豁免保險費、 二、完全失能豁免保險費、 三、二至六級失能豁免保險費、 以上給付條件載明在保單條款中， | AE40: 本商品除外責任，包括： 一、本附約被保險人故意、犯罪、酒駕行為或非法施用毒品致被保險人死亡或失能。 因除外責任所致的保險事故，保險公司將不予理賠。完整之除外責任都載明於保單條款中， | AF40: 本商品除外責任，包括： 一、本附約被保險人故意、犯罪、酒駕行為或非法施用毒品致被保險人死亡或失能。 因除外責任所致的保險事故，保險公司將不予理賠。完整之除外責任都載明於保單條款中，請問您清楚嗎？ 【請客戶回答：清楚/不清楚】 | AG40: 您所附加的保誠人壽美滿美元豁免保險費保險附約甲型的保單利益，包含： 一、身故豁免保險費、 二、完全失能豁免保險費、 三、二至六級失能豁免保險費、 給付內容跟給付時間有載明在保單條款中，這些保險給付的相關內容， | AH40: 本商品除外責任，包括： 一、本附約被保險人故意、犯罪、酒駕行為或非法施用毒品致被保險人死亡或失能。 因除外責任所致的保險事故，保險公司將不予理賠。完整之除外責任都載明於保單條款中， | AI40: 本商品除外責任，包括： 一、本附約被保險人故意、犯罪、酒駕行為或非法施用毒品致被保險人死亡或失能。 因除外責任所致的保險事故，保險公司將不予理賠。完整之除外責任都載明於保單條款中，請問您清楚嗎？ 【請客戶回答：清楚/不清楚】
A41: WPH3 | B41: 保誠人壽美滿美元豁免保險費健康保險附約乙型 | C41: 9999-12-31 | D41: AWPNTR4 | E41: AWPNTR4 | F41: USD | G41: 豁免_附約 | H41: R | I41: Y | M41: =AA41&錄音序號_確認語_2&""&B1_解約金商品錄音話術table!AB41&錄音序號_確認語_2 ->  | Q41: 3 年0 歲～73 歲 6 年0 歲～70 歲 12 年0 歲～64 歲 | R41: 元 | T41: I | W41: =AG41&錄音序號_確認語_2&B1_解約金商品錄音話術table!AH41&錄音序號_確認語_2 ->  | Z41: 豁免_附約 | AA41: 您所附加的保誠人壽美滿美元豁免保險費健康保險附約乙型的給付項目，包含： 一、二至六級失能豁免保險費、 以上給付條件載明在保單條款中， | AB41: 本商品除外責任，包括： 本附約被保險人故意、犯罪、酒駕行為或非法施用毒品致被保險人失能。 因除外責任所致的保險事故，保險公司將不予理賠。完整之除外責任都載明於保單條款中， | AC41: 您所附加的保誠人壽美滿美元豁免保險費健康保險附約乙型的除外責任，包括： 本附約被保險人故意、犯罪、酒駕行為或非法施用毒品致被保險人失能。 因除外責任所致的保險事故，保險公司將不予理賠。完整之除外責任都載明於保單條款中，請問您清楚嗎？ 【請客戶回答：清楚/不清楚】 | AD41: 您所附加的保誠人壽美滿美元豁免保險費健康保險附約乙型的給付項目，包含： 一、二至六級失能豁免保險費、 以上給付條件載明在保單條款中， | AE41: 本商品除外責任，包括： 一、本附約被保險人故意、犯罪、酒駕行為或非法施用毒品。 因除外責任致成失能，保險公司將不負豁免保險費的責任。完整之除外責任都載明於保單條款中， | AF41: 本商品除外責任，包括： 一、本附約被保險人故意、犯罪、酒駕行為或非法施用毒品。 因除外責任致成失能，保險公司將不負豁免保險費的責任。完整之除外責任都載明於保單條款中，請問您清楚嗎？ 【請客戶回答：清楚/不清楚】 | AG41: 您所附加的保誠人壽美滿美元豁免保險費健康保險附約乙型的保單利益，包含： 一、二至六級失能豁免保險費、 給付內容跟給付時間有載明在保單條款中，這些保險給付的相關內容， | AH41: 本商品除外責任，包括： 一、本附約被保險人故意、犯罪、酒駕行為或非法施用毒品。 因除外責任致成失能，保險公司將不負豁免保險費的責任。完整之除外責任都載明於保單條款中， | AI41: 本商品除外責任，包括： 一、本附約被保險人故意、犯罪、酒駕行為或非法施用毒品。 因除外責任致成失能，保險公司將不負豁免保險費的責任。完整之除外責任都載明於保單條款中，請問您清楚嗎？ 【請客戶回答：清楚/不清楚】
A42: WPF3 | B42: 保誠人壽豁元乙美元豁免保險費健康保險附約 | C42: 9999-12-31 | D42: AWPNTR2 | E42: AWPNTR2 | F42: USD | G42: 豁免_附約 | H42: R | I42: Y | M42: =AA42&錄音序號_確認語_2&""&B1_解約金商品錄音話術table!AB42&錄音序號_確認語_2 ->  | Q42: 6年、10年、15年：15足歲~60歲 20年：15足歲~55歲 | R42: 元 | T42: I | W42: =AG42&錄音序號_確認語_2&B1_解約金商品錄音話術table!AH42&錄音序號_確認語_2 ->  | Z42: 豁免_附約 | AA42: 您所附加的保誠人壽豁元乙美元豁免保險費健康保險附約的給付項目，包含： 一、重大疾病豁免保險費 以上給付條件載明在保單條款中， | AB42: 本商品除外責任，包括： 本附約被保險人故意、犯罪、酒駕行為或非法施用毒品致被保險人死亡或失能。 因除外責任所致的保險事故，保險公司將不予理賠。完整之除外責任都載明於保單條款中， | AC42: 您所附加的保誠人壽豁元乙美元豁免保險費健康保險附約的除外責任，包括： 本附約被保險人故意、犯罪、酒駕行為或非法施用毒品致被保險人死亡或失能。 因除外責任所致的保險事故，保險公司將不予理賠。完整之除外責任都載明於保單條款中，請問您清楚嗎？ 【請客戶回答：清楚/不清楚】 | AD42: 您所附加的保誠人壽豁元乙美元豁免保險費健康保險附約的給付項目，包含： 一、重大疾病豁免保險費 以上給付條件載明在保單條款中， | AE42: 本商品除外責任，包括： 一、本附約被保險人故意、犯罪、酒駕行為或非法施用毒品致被保險人死亡或失能。 因除外責任所致的保險事故，保險公司將不予理賠。完整之除外責任都載明於保單條款中， | AF42: 本商品除外責任，包括： 一、本附約被保險人故意、犯罪、酒駕行為或非法施用毒品致被保險人死亡或失能。 因除外責任所致的保險事故，保險公司將不予理賠。完整之除外責任都載明於保單條款中，請問您清楚嗎？ 【請客戶回答：清楚/不清楚】 | AG42: 您所附加的保誠人壽豁元乙美元豁免保險費健康保險附約的保單利益，包含： 一、重大疾病豁免保險費 給付內容跟給付時間有載明在保單條款中，這些保險給付的相關內容， | AH42: 本商品除外責任，包括： 一、本附約被保險人故意、犯罪、酒駕行為或非法施用毒品致被保險人死亡或失能。 因除外責任所致的保險事故，保險公司將不予理賠。完整之除外責任都載明於保單條款中， | AI42: 本商品除外責任，包括： 一、本附約被保險人故意、犯罪、酒駕行為或非法施用毒品致被保險人死亡或失能。 因除外責任所致的保險事故，保險公司將不予理賠。完整之除外責任都載明於保單條款中，請問您清楚嗎？ 【請客戶回答：清楚/不清楚】
A43: WPE3 | B43: 保誠人壽豁元甲美元豁免保險費保險附約 | C43: 9999-12-31 | D43: AWPNTR1 | E43: AWPNTR1 | F43: USD | G43: 豁免_附約 | H43: R | I43: Y | M43: =AA43&錄音序號_確認語_2&""&B1_解約金商品錄音話術table!AB43&錄音序號_確認語_2 ->  | Q43: 606年、10年、15年：15足歲~60歲 20年：15足歲~55歲 | R43: 元 | T43: I | W43: =AG43&錄音序號_確認語_2&B1_解約金商品錄音話術table!AH43&錄音序號_確認語_2 ->  | Z43: 豁免_附約 | AA43: 您所附加的保誠人壽豁元甲美元豁免保險費保險附約的給付項目，包含： 一、身故豁免保險費、 二、完全失能豁免保險費、 三、二至六級失能豁免保險費、 四、重大疾病豁免保險費 以上給付條件載明在保單條款中， | AB43: 本商品除外責任，包括： 本附約被保險人故意、犯罪、酒駕行為或非法施用毒品而致被保險人重大疾病。 因除外責任所致的保險事故，保險公司將不予理賠。完整之除外責任都載明於保單條款中， | AC43: 您所附加的保誠人壽豁元甲美元豁免保險費保險附約的除外責任，包括： 本附約被保險人故意、犯罪、酒駕行為或非法施用毒品而致被保險人重大疾病。 因除外責任所致的保險事故，保險公司將不予理賠。完整之除外責任都載明於保單條款中，請問您清楚嗎？ 【請客戶回答：清楚/不清楚】 | AD43: 您所附加的保誠人壽豁元甲美元豁免保險費保險附約的給付項目，包含： 一、身故豁免保險費、 二、完全失能豁免保險費、 三、二至六級失能豁免保險費、 四、重大疾病豁免保險費 以上給付條件載明在保單條款中， | AE43: 本商品除外責任，包括： 一、本附約被保險人故意、犯罪、酒駕行為或非法施用毒品。 因除外責任所致的重大疾病，保險公司將不負豁免保險費。完整之除外責任都載明於保單條款中， | AF43: 本商品除外責任，包括： 一、本附約被保險人故意、犯罪、酒駕行為或非法施用毒品。 因除外責任所致的重大疾病，保險公司將不負豁免保險費。完整之除外責任都載明於保單條款中，請問您清楚嗎？ 【請客戶回答：清楚/不清楚】 | AG43: 您所附加的保誠人壽豁元甲美元豁免保險費保險附約的保單利益，包含： 一、身故豁免保險費、 二、完全失能豁免保險費、 三、二至六級失能豁免保險費、 四、重大疾病豁免保險費 給付內容跟給付時間有載明在保單條款中，這些保險給付的相關內容， | AH43: 本商品除外責任，包括： 一、本附約被保險人故意、犯罪、酒駕行為或非法施用毒品。 因除外責任所致的重大疾病，保險公司將不負豁免保險費。完整之除外責任都載明於保單條款中， | AI43: 本商品除外責任，包括： 一、本附約被保險人故意、犯罪、酒駕行為或非法施用毒品。 因除外責任所致的重大疾病，保險公司將不負豁免保險費。完整之除外責任都載明於保單條款中，請問您清楚嗎？ 【請客戶回答：清楚/不清楚】
A44: WPDA | B44: 保誠人壽關心豁免保險費附約(96) | C44: 9999-12-31 | D44: HWPD | E44: HWPD | F44: NT$ | G44: 豁免_附約 | H44: R | I44: Y | M44: =AA44&錄音序號_確認語_2&""&B1_解約金商品錄音話術table!AB44&錄音序號_確認語_2 ->  | Q44: 14足歲∼55歲 | R44: 元 | T44: I | W44: =AG44&錄音序號_確認語_2&B1_解約金商品錄音話術table!AH44&錄音序號_確認語_2 ->  | Z44: 豁免_附約 | AA44: 您所附加的保誠人壽關心豁免保險費附約(96)的給付項目，包含： 一、特定傷病豁免保險費、 以上給付條件載明在保單條款中， | AB44: 本商品除外責任，包括： 本附約被保險人故意、犯罪、酒駕行為或非法施用毒品而致被保險人特定傷病。 因除外責任所致的保險事故，保險公司將不予理賠。完整之除外責任都載明於保單條款中， | AC44: 您所附加的保誠人壽關心豁免保險費附約(96)的除外責任，包括： 本附約被保險人故意、犯罪、酒駕行為或非法施用毒品而致被保險人特定傷病。 因除外責任所致的保險事故，保險公司將不予理賠。完整之除外責任都載明於保單條款中，請問您清楚嗎？ 【請客戶回答：清楚/不清楚】 | AD44: 您所附加的保誠人壽關心豁免保險費附約 (96)的給付項目，包含： 一、特定傷病豁免保險費、 以上給付條件載明在保單條款中， | AE44: 本商品除外責任，包括： 一、本附約被保險人故意、犯罪、酒駕行為或非法施用毒品。 因除外責任所致特定傷病，保險公司不負豁免保險費的責任。完整之除外責任都載明於保單條款中， | AF44: 本商品除外責任，包括： 一、本附約被保險人故意、犯罪、酒駕行為或非法施用毒品。 因除外責任所致特定傷病，保險公司不負豁免保險費的責任。完整之除外責任都載明於保單條款中，請問您清楚嗎？ 【請客戶回答：清楚/不清楚】 | AG44: 您所附加的保誠人壽關心豁免保險費附約 (96)的保單利益，包含： 一、特定傷病豁免保險費、 給付內容跟給付時間有載明在保單條款中，這些保險給付的相關內容， | AH44: 本商品除外責任，包括： 一、本附約被保險人故意、犯罪、酒駕行為或非法施用毒品。 因除外責任所致特定傷病，保險公司不負豁免保險費的責任。完整之除外責任都載明於保單條款中， | AI44: 本商品除外責任，包括： 一、本附約被保險人故意、犯罪、酒駕行為或非法施用毒品。 因除外責任所致特定傷病，保險公司不負豁免保險費的責任。完整之除外責任都載明於保單條款中，請問您清楚嗎？ 【請客戶回答：清楚/不清楚】
A45: 5704 | B45: 保誠人壽金滿意保險 | C45: 9999-12-31 | D45: BPARTB3 | E45: BPARTB3 | F45: NT$ | G45: 意外險-主約 | H45: M | I45: Y | M45: =AA45&錄音序號_確認語_2&""&B1_解約金商品錄音話術table!AB45&錄音序號_確認語_2 ->  | R45: 元 | T45: I | W45: =AG45&錄音序號_確認語_2&B1_解約金商品錄音話術table!AH45&錄音序號_確認語_2 ->  | Y45: NL | AA45: 您所投保的保誠人壽金滿意保險的給付項目，包含： 一、滿期保險金。 二、身故保險金或喪葬費用保險金。 三、完全失能保險金。 四、意外傷害身故保險金或喪葬費用保險金。 五、意外傷害失能保險金。 六、大眾運輸意外身故保險金或喪葬費用保險金。 七、生活扶助保險金。 八、意外傷害加護病房或燒燙傷病房慰問保險金。 九、重大燒燙傷保險金。 十、意外致成二至六級失能豁免保險費。 以上給付條件載明在保單條款中， | AB45: 本商品除外責任，包括： 一、要、被保險人故意行為或被保險人犯罪、酒駕行為。 二、戰爭（不論宣戰與否）、內亂及其他類似的武裝變亂。 三、原子或核子能裝置所引起的爆炸、灼熱、輻射或污染。 不保事項，包括： 一、被保險人從事角力、摔跤、柔道、空手道、跆拳道、馬術、拳擊、特技表演等的競賽或表演。 二、被保險人從事汽車、機車及自由車等的競賽或表演。 因除外責任及不保事項所致的保險事故，保險公司將不予理賠。完整之除外責任及不保事項規定都載明於保單條款中， | AC45: 本商品除外責任，包括： 一、要、被保險人故意行為或被保險人犯罪、酒駕行為。 二、戰爭（不論宣戰與否）、內亂及其他類似的武裝變亂。 三、原子或核子能裝置所引起的爆炸、灼熱、輻射或污染。 不保事項，包括： 一、被保險人從事角力、摔跤、柔道、空手道、跆拳道、馬術、拳擊、特技表演等的競賽或表演。 二、被保險人從事汽車、機車及自由車等的競賽或表演。 因除外責任及不保事項所致的保險事故，保險公司將不予理賠。完整之除外責任及不保事項規定都載明於保單條款中，請問您清楚嗎？ 【請客戶回答：清楚/不清楚】 | AD45: 您所投保的保誠人壽金滿意保險的給付項目，包含： 一、滿期保險金。 二、身故保險金或喪葬費用保險金。 三、完全失能保險金。 四、意外傷害身故保險金或喪葬費用保險金。 五、意外傷害失能保險金。 六、大眾運輸意外身故保險金或喪葬費用保險金。 七、生活扶助保險金。 八、意外傷害加護病房或燒燙傷病房慰問保險金。 九、重大燒燙傷保險金。 十、意外致成二至六級失能豁免保險費。 以上給付條件載明在保單條款中， | AE45: 本商品除外責任，包括： 一、要、被保險人故意行為或被保險人犯罪、酒駕行為。 二、戰爭（不論宣戰與否）、內亂及其他類似的武裝變亂。 三、原子或核子能裝置所引起的爆炸、灼熱、輻射或污染。 不保事項，包括： 一、被保險人從事角力、摔跤、柔道、空手道、跆拳道、馬術、拳擊、特技表演等的競賽或表演。 二、被保險人從事汽車、機車及自由車等的競賽或表演。 因除外責任及不保事項所致的保險事故，保險公司將不予理賠。完整之除外責任及不保事項規定都載明於保單條款中， | AF45: 本商品除外責任，包括： 一、要、被保險人故意行為或被保險人犯罪、酒駕行為。 二、戰爭（不論宣戰與否）、內亂及其他類似的武裝變亂。 三、原子或核子能裝置所引起的爆炸、灼熱、輻射或污染。 不保事項，包括： 一、被保險人從事角力、摔跤、柔道、空手道、跆拳道、馬術、拳擊、特技表演等的競賽或表演。 二、被保險人從事汽車、機車及自由車等的競賽或表演。 因除外責任及不保事項所致的保險事故，保險公司將不予理賠。完整之除外責任及不保事項規定都載明於保單條款中，請問您清楚嗎？ 【請客戶回答：清楚/不清楚】 | AG45: 您所投保的保誠人壽金滿意保險的保單利益，包含： 一、滿期保險金。 二、身故保險金或喪葬費用保險金。 三、完全失能保險金。 四、意外傷害身故保險金或喪葬費用保險金。 五、意外傷害失能保險金。 六、大眾運輸意外身故保險金或喪葬費用保險金。 七、生活扶助保險金。 八、意外傷害加護病房或燒燙傷病房慰問保險金。 九、重大燒燙傷保險金。 十、意外致成二至六級失能豁免保險費。 給付內容跟給付時間有載明在保單條款中，這些保險給付的相關內容， | AH45: 本商品除外責任，包括： 一、要、被保險人故意行為或被保險人犯罪、酒駕行為。 二、戰爭（不論宣戰與否）、內亂及其他類似的武裝變亂。 三、原子或核子能裝置所引起的爆炸、灼熱、輻射或污染。 不保事項，包括： 一、被保險人從事角力、摔跤、柔道、空手道、跆拳道、馬術、拳擊、特技表演等的競賽或表演。 二、被保險人從事汽車、機車及自由車等的競賽或表演。 因除外責任及不保事項所致的保險事故，保險公司將不予理賠。完整之除外責任及不保事項規定都載明於保單條款中， | AI45: 本商品除外責任，包括： 一、要、被保險人故意行為或被保險人犯罪、酒駕行為。 二、戰爭（不論宣戰與否）、內亂及其他類似的武裝變亂。 三、原子或核子能裝置所引起的爆炸、灼熱、輻射或污染。 不保事項，包括： 一、被保險人從事角力、摔跤、柔道、空手道、跆拳道、馬術、拳擊、特技表演等的競賽或表演。 二、被保險人從事汽車、機車及自由車等的競賽或表演。 因除外責任及不保事項所致的保險事故，保險公司將不予理賠。完整之除外責任及不保事項規定都載明於保單條款中，請問您清楚嗎？ 【請客戶回答：清楚/不清楚】
A46: 5713 | B46: 保誠人壽誠鑫滿意保險 | C46: 9999-12-31 | D46: APARTB4 | E46: APARTB4 | F46: NT$ | G46: 意外險-主約 | H46: M | I46: Y | M46: =AA46&錄音序號_確認語_2&""&B1_解約金商品錄音話術table!AB46&錄音序號_確認語_2 ->  | Q46: 20足歲~55歲 | R46: 元 | T46: I | W46: =AG46&錄音序號_確認語_2&B1_解約金商品錄音話術table!AH46&錄音序號_確認語_2 ->  | Y46: NL | AA46: 您所投保的保誠人壽誠鑫滿意保險的給付項目，包含： 一、滿期保險金。 二、生存保險金。 三、身故保險金或喪葬費用保險金。 四、完全失能保險金。 五、意外傷害身故保險金或喪葬費用保險金。 六、意外傷害失能保險金。 七、大眾運輸意外身故保險金或喪葬費用保險金。 八、生活扶助保險金。 九、意外傷害加護病房或燒燙傷病房慰問保險金。 十、重大燒燙傷保險金。 十、傷害住院日額保險金 十一、意外創傷縫合處置保險金 十二、意外致成二至六級失能豁免保險費。 以上給付條件載明在保單條款中， | AB46: 本商品除外責任，包括： 一、要、被保險人故意行為或被保險人犯罪、酒駕行為。 二、戰爭、內亂及其他類似的武裝變亂。 三、原子或核子能裝置所引起的爆炸、灼熱、輻射或污染。 不保事項，包括： 一、被保險人從事角力、摔跤、柔道、空手道、跆拳道、馬術、拳擊、特技表演等的競賽或表演。 二、被保險人從事汽車、機車及自由車等的競賽或表演。 因除外責任及不保事項所致的保險事故，保險公司將不予理賠。完整之除外責任及不保事項規定都載明於保單條款中， | AC46: 本商品除外責任，包括： 一、要、被保險人故意行為或被保險人犯罪、酒駕行為。 二、戰爭、內亂及其他類似的武裝變亂。 三、原子或核子能裝置所引起的爆炸、灼熱、輻射或污染。 不保事項，包括： 一、被保險人從事角力、摔跤、柔道、空手道、跆拳道、馬術、拳擊、特技表演等的競賽或表演。 二、被保險人從事汽車、機車及自由車等的競賽或表演。 因除外責任及不保事項所致的保險事故，保險公司將不予理賠。完整之除外責任及不保事項規定都載明於保單條款中，請問您清楚嗎？ 【請客戶回答：清楚/不清楚】 | AD46: 您所投保的保誠人壽誠鑫滿意保險的給付項目，包含： 一、滿期保險金。 二、生存保險金。 三、身故保險金或喪葬費用保險金。 四、完全失能保險金。 五、意外傷害身故保險金或喪葬費用保險金。 六、意外傷害失能保險金。 七、大眾運輸意外身故保險金或喪葬費用保險金。 八、生活扶助保險金。 九、意外傷害加護病房或燒燙傷病房慰問保險金。 十、重大燒燙傷保險金。 十、傷害住院日額保險金 十一、意外創傷縫合處置保險金 十二、意外致成二至六級失能豁免保險費。 以上給付條件載明在保單條款中， | AE46: 本商品除外責任，包括： 一、要、被保險人故意行為或被保險人犯罪、酒駕行為。 二、戰爭、內亂及其他類似的武裝變亂。 三、原子或核子能裝置所引起的爆炸、灼熱、輻射或污染。 不保事項，包括： 一、被保險人從事角力、摔跤、柔道、空手道、跆拳道、馬術、拳擊、特技表演等的競賽或表演。 二、被保險人從事汽車、機車及自由車等的競賽或表演。 因除外責任及不保事項所致的保險事故，保險公司將不予理賠。完整之除外責任及不保事項規定都載明於保單條款中， | AF46: 本商品除外責任，包括： 一、要、被保險人故意行為或被保險人犯罪、酒駕行為。 二、戰爭、內亂及其他類似的武裝變亂。 三、原子或核子能裝置所引起的爆炸、灼熱、輻射或污染。 不保事項，包括： 一、被保險人從事角力、摔跤、柔道、空手道、跆拳道、馬術、拳擊、特技表演等的競賽或表演。 二、被保險人從事汽車、機車及自由車等的競賽或表演。 因除外責任及不保事項所致的保險事故，保險公司將不予理賠。完整之除外責任及不保事項規定都載明於保單條款中，請問您清楚嗎？ 【請客戶回答：清楚/不清楚】 | AG46: 您所投保的保誠人壽誠鑫滿意保險的保單利益，包含： 一、滿期保險金。 二、生存保險金。 三、身故保險金或喪葬費用保險金。 四、完全失能保險金。 五、意外傷害身故保險金或喪葬費用保險金。 六、意外傷害失能保險金。 七、大眾運輸意外身故保險金或喪葬費用保險金。 八、生活扶助保險金。 九、意外傷害加護病房或燒燙傷病房慰問保險金。 十、重大燒燙傷保險金。 十、傷害住院日額保險金 十一、意外創傷縫合處置保險金 十二、意外致成二至六級失能豁免保險費。 給付內容跟給付時間有載明在保單條款中，這些保險給付的相關內容， | AH46: 本商品除外責任，包括： 一、要、被保險人故意行為或被保險人犯罪、酒駕行為。 二、戰爭、內亂及其他類似的武裝變亂。 三、原子或核子能裝置所引起的爆炸、灼熱、輻射或污染。 不保事項，包括： 一、被保險人從事角力、摔跤、柔道、空手道、跆拳道、馬術、拳擊、特技表演等的競賽或表演。 二、被保險人從事汽車、機車及自由車等的競賽或表演。 因除外責任及不保事項所致的保險事故，保險公司將不予理賠。完整之除外責任及不保事項規定都載明於保單條款中， | AI46: 本商品除外責任，包括： 一、要、被保險人故意行為或被保險人犯罪、酒駕行為。 二、戰爭、內亂及其他類似的武裝變亂。 三、原子或核子能裝置所引起的爆炸、灼熱、輻射或污染。 不保事項，包括： 一、被保險人從事角力、摔跤、柔道、空手道、跆拳道、馬術、拳擊、特技表演等的競賽或表演。 二、被保險人從事汽車、機車及自由車等的競賽或表演。 因除外責任及不保事項所致的保險事故，保險公司將不予理賠。完整之除外責任及不保事項規定都載明於保單條款中，請問您清楚嗎？ 【請客戶回答：清楚/不清楚】
A47: AAR1 | B47: 保誠人壽金滿意住院醫療傷害保險附約 | C47: 9999-12-31 | D47: APANTR1 | E47: APANTR1 | F47: NT$ | G47: 意外險-附約 | H47: R | I47: Y | M47: =AA47&錄音序號_確認語_2&""&B1_解約金商品錄音話術table!AB47&錄音序號_確認語_2 ->  | R47: 計畫 | T47: I | W47: =AG47&錄音序號_確認語_2&B1_解約金商品錄音話術table!AH47&錄音序號_確認語_2 ->  | Z47: 傷害險_附約 | AA47: 您所附加的保誠人壽金滿意住院醫療傷害保險附約的給付項目，包含： 一、傷害住院日額保險金、 二、傷害住院慰問保險金、 三、傷害住院手術醫療保險金、 四、傷害門診手術醫療保險金、 五、意外創傷縫合處置保險金、 六、意外致成一至六級失能豁免保險費 以上給付條件載明在保單條款中， | AB47: 本商品除外責任，包括： 一、要、被保險人故意行為或被保險人犯罪、酒駕行為。 二、戰爭、內亂及其他類似的武裝變亂。 三、原子或核子能裝置所引起的爆炸、灼熱、輻射或污染。 本商品不保事項，包括： 一、被保險人從事角力、摔跤、柔道、空手道、跆拳道、馬術、拳擊、特技表演等的競賽或表演。 二、被保險人從事汽車、機車及自由車等的競賽或表演。 因除外責任及不保事項所致的保險事故，保險公司將不予理賠。完整之除外責任及不保事項規定都載明於保單條款中， | AC47: 您所附加的保誠人壽金滿意住院醫療傷害保險附約的除外責任，包括： 一、要、被保險人故意行為或被保險人犯罪、酒駕行為。 二、戰爭、內亂及其他類似的武裝變亂。 三、原子或核子能裝置所引起的爆炸、灼熱、輻射或污染。 本商品不保事項，包括： 一、被保險人從事角力、摔跤、柔道、空手道、跆拳道、馬術、拳擊、特技表演等的競賽或表演。 二、被保險人從事汽車、機車及自由車等的競賽或表演。 因除外責任及不保事項所致的保險事故，保險公司將不予理賠。完整之除外責任及不保事項規定都載明於保單條款中，請問您清楚嗎？ 【請客戶回答：清楚/不清楚】 | AD47: 您所附加的保誠人壽金滿意住院醫療傷害保險附約的給付項目，包含： 一、傷害住院日額保險金、 二、傷害住院慰問保險金、 三、傷害住院手術醫療保險金、 四、傷害門診手術醫療保險金、 五、意外創傷縫合處置保險金、 六、意外致成一至六級失能豁免保險費 以上給付條件載明在保單條款中， | AE47: 本商品除外責任，包括： 一、要、被保險人故意行為或被保險人犯罪、酒駕行為。 二、戰爭、內亂及其他類似的武裝變亂。 三、原子或核子能裝置所引起的爆炸、灼熱、輻射或污染。 本商品不保事項，包括： 一、被保險人從事角力、摔跤、柔道、空手道、跆拳道、馬術、拳擊、特技表演等的競賽或表演。 二、被保險人從事汽車、機車及自由車等的競賽或表演。 因除外責任及不保事項所致的保險事故，保險公司將不予理賠。完整之除外責任及不保事項規定都載明於保單條款中， | AF47: 本商品除外責任，包括： 一、要、被保險人故意行為或被保險人犯罪、酒駕行為。 二、戰爭、內亂及其他類似的武裝變亂。 三、原子或核子能裝置所引起的爆炸、灼熱、輻射或污染。 本商品不保事項，包括： 一、被保險人從事角力、摔跤、柔道、空手道、跆拳道、馬術、拳擊、特技表演等的競賽或表演。 二、被保險人從事汽車、機車及自由車等的競賽或表演。 因除外責任及不保事項所致的保險事故，保險公司將不予理賠。完整之除外責任及不保事項規定都載明於保單條款中，請問您清楚嗎？ 【請客戶回答：清楚/不清楚】 | AG47: 您所附加的保誠人壽金滿意住院醫療傷害保險附約的保單利益，包含： 一、傷害住院日額保險金、 二、傷害住院慰問保險金、 三、傷害住院手術醫療保險金、 四、傷害門診手術醫療保險金、 五、意外創傷縫合處置保險金、 六、意外致成一至六級失能豁免保險費 給付內容跟給付時間有載明在保單條款中，這些保險給付的相關內容， | AH47: 本商品除外責任，包括： 一、要、被保險人故意行為或被保險人犯罪、酒駕行為。 二、戰爭、內亂及其他類似的武裝變亂。 三、原子或核子能裝置所引起的爆炸、灼熱、輻射或污染。 本商品不保事項，包括： 一、被保險人從事角力、摔跤、柔道、空手道、跆拳道、馬術、拳擊、特技表演等的競賽或表演。 二、被保險人從事汽車、機車及自由車等的競賽或表演。 因除外責任及不保事項所致的保險事故，保險公司將不予理賠。完整之除外責任及不保事項規定都載明於保單條款中， | AI47: 本商品除外責任，包括： 一、要、被保險人故意行為或被保險人犯罪、酒駕行為。 二、戰爭、內亂及其他類似的武裝變亂。 三、原子或核子能裝置所引起的爆炸、灼熱、輻射或污染。 本商品不保事項，包括： 一、被保險人從事角力、摔跤、柔道、空手道、跆拳道、馬術、拳擊、特技表演等的競賽或表演。 二、被保險人從事汽車、機車及自由車等的競賽或表演。 因除外責任及不保事項所致的保險事故，保險公司將不予理賠。完整之除外責任及不保事項規定都載明於保單條款中，請問您清楚嗎？ 【請客戶回答：清楚/不清楚】
A48: 5H03 | B48: 保誠人壽e無憂定期壽險 | C48: 9999-12-31 | D48: ANLTLN4 | E48: ANLTLN4 | F48: NT$ | G48: 壽險-主約 | H48: M | I48: Y | M48: =AA48&錄音序號_確認語_2&""&B1_解約金商品錄音話術table!AB48&錄音序號_確認語_2 ->  | R48: 元 | T48: I | W48: =AG48&錄音序號_確認語_2&B1_解約金商品錄音話術table!AH48&錄音序號_確認語_2 ->  | Y48: NL | AA48: 您所投保的保誠人壽e無憂定期壽險的給付項目，包含： 一、身故保險金或喪葬費用保險金、 二、完全失能保險金 以上給付條件載明在保單條款中， | AB48: 本商品除外責任，包括： 要、被保險人故意行為或被保險人犯罪行為致被保險人死亡或完全失能。 因除外責任所致的保險事故，保險公司將不予理賠。完整之除外責任都載明於保單條款中， | AC48: 本商品除外責任，包括： 要、被保險人故意行為或被保險人犯罪行為等除外責任所致的保險事故，保險公司將不予理賠。完整之除外責任都載明於保單條款中，請問您清楚嗎？ 【請客戶回答：清楚/不清楚】 | AD48: 您所投保的保誠人壽e無憂定期壽險的給付項目，包含： 一、身故保險金或喪葬費用保險金、 二、完全失能保險金 以上給付條件載明在保單條款中， | AE48: 本商品除外責任，包括： 一、要、被保險人故意行為或被保險人犯罪行為致被保險人死亡或完全失能。 因除外責任所致的保險事故，保險公司將不予理賠。完整之除外責任都載明於保單條款中， | AF48: 本商品除外責任，包括： 一、要、被保險人故意行為或被保險人犯罪行為致被保險人死亡或完全失能。 因除外責任所致的保險事故，保險公司將不予理賠。完整之除外責任都載明於保單條款中，請問您清楚嗎？ 【請客戶回答：清楚/不清楚】 | AG48: 您所投保的保誠人壽e無憂定期壽險的保單利益，包含： 一、身故保險金或喪葬費用保險金、 二、完全失能保險金 給付內容跟給付時間有載明在保單條款中，這些保險給付的相關內容， | AH48: 本商品除外責任，包括： 一、要、被保險人故意行為或被保險人犯罪行為致被保險人死亡或完全失能。 因除外責任所致的保險事故，保險公司將不予理賠。完整之除外責任都載明於保單條款中， | AI48: 本商品除外責任，包括： 一、要、被保險人故意行為或被保險人犯罪行為等除外責任所致的保險事故，保險公司將不予理賠。完整之除外責任都載明於保單條款中，請問您清楚嗎？ 【請客戶回答：清楚/不清楚】
A49: 550A | B49: 保誠人壽喜悅定期壽險(96) | C49: 9999-12-31 | D49: GNTL | E49: GNTL | F49: NT$ | G49: 壽險-主約 | H49: M | I49: Y | M49: =AA49&錄音序號_確認語_2&""&B1_解約金商品錄音話術table!AB49&錄音序號_確認語_2 ->  | R49: 元 | T49: I | W49: =AG49&錄音序號_確認語_2&B1_解約金商品錄音話術table!AH49&錄音序號_確認語_2 ->  | Y49: NL | AA49: 您所投保的保誠人壽喜悅定期壽險(96)的給付項目，包含： 一、身故保險金或喪葬費用保險金、 二、完全失能保險金 以上給付條件載明在保單條款中， | AB49: 本商品除外責任，包括： 要、被保險人故意行為或被保險人犯罪行為致被保險人死亡或完全失能。 因除外責任所致的保險事故，保險公司將不予理賠。完整之除外責任規定都載明於保單條款中， | AC49: 本商品除外責任，包括： 要、被保險人故意行為或被保險人犯罪行為等除外責任所致的保險事故，保險公司將不予理賠。完整之除外責任都載明於保單條款中，請問您清楚嗎？ 【請客戶回答：清楚/不清楚】 | AD49: 您所投保的保誠人壽喜悅定期壽險(96)的給付項目，包含： 一、身故保險金或喪葬費用保險金、 二、完全失能保險金 以上給付條件載明在保單條款中， | AE49: 本商品除外責任，包括： 一、要、被保險人故意行為或被保險人犯罪行為致被保險人死亡或完全失能。 因除外責任所致的保險事故，保險公司將不予理賠。完整之除外責任規定都載明於保單條款中， | AF49: 本商品除外責任，包括： 一、要、被保險人故意行為或被保險人犯罪行為致被保險人死亡或完全失能。 因除外責任所致的保險事故，保險公司將不予理賠。完整之除外責任規定都載明於保單條款中，請問您清楚嗎？ 【請客戶回答：清楚/不清楚】 | AG49: 您所投保的保誠人壽喜悅定期壽險(96)的保單利益，包含： 一、身故保險金或喪葬費用保險金、 二、完全失能保險金 給付內容跟給付時間有載明在保單條款中，這些保險給付的相關內容， | AH49: 本商品除外責任，包括： 一、要、被保險人故意行為或被保險人犯罪行為致被保險人死亡或完全失能。 因除外責任所致的保險事故，保險公司將不予理賠。完整之除外責任規定都載明於保單條款中， | AI49: 本商品除外責任，包括： 一、要、被保險人故意行為或被保險人犯罪行為等除外責任所致的保險事故，保險公司將不予理賠。完整之除外責任都載明於保單條款中，請問您清楚嗎？ 【請客戶回答：清楚/不清楚】
A50: NTRD | B50: 保誠人壽美滿人生美元定期壽險附約 | C50: 9999-12-31 | D50: ANLTRU1 | E50: ANLTRU1 | F50: USD | G50: 壽險-附約 | H50: R | I50: Y | M50: =AA50&錄音序號_確認語_2&""&B1_解約金商品錄音話術table!AB50&錄音序號_確認語_2 ->  | Q50: 6年、10年、15年：15足歲~65歲 20年：15足歲~60歲 | R50: 元 | T50: I | W50: =AG50&錄音序號_確認語_2&B1_解約金商品錄音話術table!AH50&錄音序號_確認語_2 ->  | Z50: 壽險_附約 | AA50: 您所附加的保誠人壽美滿人生美元定期壽險附約的給付項目，包含： 一、身故保險金或喪葬費用保險金、 二、完全失能保險金 以上給付條件載明在保單條款中， | AB50: 本商品除外責任，包括： 要、被保險人故意行為或被保險人犯罪行為致被保險人死亡或完全失能。 因除外責任所致的保險事故，保險公司將不予理賠。完整之除外責任規定都載明於保單條款中， | AC50: 您所附加的保誠人壽美滿人生美元定期壽險附約的除外責任，包括： 要、被保險人故意行為或被保險人犯罪行為等除外責任所致的保險事故，保險公司將不予理賠。完整之除外責任都載明於保單條款中，請問您清楚嗎？ 【請客戶回答：清楚/不清楚】 | AD50: 您所附加的保誠人壽美滿人生美元定期壽險附約的給付項目，包含： 一、身故保險金或喪葬費用保險金、 二、完全失能保險金 以上給付條件載明在保單條款中， | AE50: 本商品除外責任，包括： 一、要、被保險人故意行為或被保險人犯罪行為致被保險人死亡或完全失能。 因除外責任所致的保險事故，保險公司將不予理賠。完整之除外責任規定都載明於保單條款中， | AF50: 本商品除外責任，包括： 一、要、被保險人故意行為或被保險人犯罪行為致被保險人死亡或完全失能。 因除外責任所致的保險事故，保險公司將不予理賠。完整之除外責任規定都載明於保單條款中，請問您清楚嗎？ 【請客戶回答：清楚/不清楚】 | AG50: 您所附加的保誠人壽美滿人生美元定期壽險附約的保單利益，包含： 一、身故保險金或喪葬費用保險金、 二、完全失能保險金 給付內容跟給付時間有載明在保單條款中，這些保險給付的相關內容， | AH50: 本商品除外責任，包括： 一、要、被保險人故意行為或被保險人犯罪行為致被保險人死亡或完全失能。 因除外責任所致的保險事故，保險公司將不予理賠。完整之除外責任規定都載明於保單條款中， | AI50: 本商品除外責任，包括： 一、要、被保險人故意行為或被保險人犯罪行為等除外責任所致的保險事故，保險公司將不予理賠。完整之除外責任都載明於保單條款中，請問您清楚嗎？ 【請客戶回答：清楚/不清楚】
A51: NTRC | B51: 保誠人壽喜樂定期壽險附約 | C51: 9999-12-31 | D51: ANLTRN1 | E51: ANLTRN1 | F51: NT$ | G51: 壽險-附約 | H51: R | I51: Y | M51: =AA51&錄音序號_確認語_2&""&B1_解約金商品錄音話術table!AB51&錄音序號_確認語_2 ->  | R51: 元 | T51: I | W51: =AG51&錄音序號_確認語_2&B1_解約金商品錄音話術table!AH51&錄音序號_確認語_2 ->  | Z51: 壽險_附約 | AA51: 您所附加的保誠人壽喜樂定期壽險附約的給付項目，包含： 一、身故保險金或喪葬費用保險金、 二、完全失能保險金 以上給付條件載明在保單條款中， | AB51: 本商品除外責任，包括： 要、被保險人故意行為或被保險人犯罪行為致被保險人死亡或完全失能。 因除外責任所致的保險事故，保險公司將不予理賠。完整之除外責任規定都載明於保單條款中， | AC51: 您所附加的保誠人壽喜樂定期壽險附約的除外責任，包括： 要、被保險人故意行為或被保險人犯罪行為等除外責任所致的保險事故，保險公司將不予理賠。完整之除外責任都載明於保單條款中，請問您清楚嗎？ 【請客戶回答：清楚/不清楚】 | AD51: 您所附加的保誠人壽喜樂定期壽險附約的給付項目，包含： 一、身故保險金或喪葬費用保險金、 二、完全失能保險金 以上給付條件載明在保單條款中， | AE51: 本商品除外責任，包括： 一、要、被保險人故意行為或被保險人犯罪行為致被保險人死亡或完全失能。 因除外責任所致的保險事故，保險公司將不予理賠。完整之除外責任規定都載明於保單條款中， | AF51: 本商品除外責任，包括： 一、要、被保險人故意行為或被保險人犯罪行為致被保險人死亡或完全失能。 因除外責任所致的保險事故，保險公司將不予理賠。完整之除外責任規定都載明於保單條款中，請問您清楚嗎？ 【請客戶回答：清楚/不清楚】 | AG51: 您所附加的保誠人壽喜樂定期壽險附約的保單利益，包含： 一、身故保險金或喪葬費用保險金、 二、完全失能保險金 給付內容跟給付時間有載明在保單條款中，這些保險給付的相關內容， | AH51: 本商品除外責任，包括： 一、要、被保險人故意行為或被保險人犯罪行為致被保險人死亡或完全失能。 因除外責任所致的保險事故，保險公司將不予理賠。完整之除外責任規定都載明於保單條款中， | AI51: 本商品除外責任，包括： 一、要、被保險人故意行為或被保險人犯罪行為等除外責任所致的保險事故，保險公司將不予理賠。完整之除外責任都載明於保單條款中，請問您清楚嗎？ 【請客戶回答：清楚/不清楚】
A52: 5O13 | B52: 保誠人壽新守戶幸福減額定期壽險 | C52: 9999-12-31 | D52: BNDTLN7 | E52: 不分紅定期壽險 | F52: NT$ | G52: 壽險-主約 | H52: M | I52: Y | M52: =AA52&錄音序號_確認語_2&""&B1_解約金商品錄音話術table!AB52&錄音序號_確認語_2 ->  | R52: 元 | T52: I | W52: =AG52&錄音序號_確認語_2&B1_解約金商品錄音話術table!AH52&錄音序號_確認語_2 ->  | Y52: NL | AA52: 您所投保的保誠人壽新守戶幸福減額定期壽險的給付項目，包含： 一、身故保險金或喪葬費用保險金、 二、完全失能保險金 三、完全失能扶助保險金 四、嚴重第三度燒燙傷保險金 五、重大傷害失能安養保險金 六、大眾運輸意外身故保險金或喪葬費用保險金 七、特定意外身故保險金或喪葬費用保險金 八、意外身故遺族關懷保險金 以上給付條件載明在保單條款中， | AB52: 本商品除外責任，包括： 要、被保險人故意行為或被保險人犯罪、酒駕行為。 二、戰爭、內亂及其他類似的武裝變亂。 三、原子或核子能裝置所引起的爆炸、灼熱、輻射或污染。 不保事項，包括： 被保險人從事角力、摔跤、柔道、空手道、跆拳道、馬術、拳擊、特技表演等的競賽或表演。 二、被保險人從事汽車、機車及自由車等的競賽或表演。 因除外責任及不保事項所致的保險事故，保險公司將不予理賠。完整之除外責任及不保事項規定都載明於保單條款中， | AC52: 本商品除外責任，包括： 一、要、被保險人故意行為或被保險人犯罪、酒駕行為。 二、戰爭、內亂及其他類似的武裝變亂。 三、原子或核子能裝置所引起的爆炸、灼熱、輻射或污染。 不保事項，包括： 一、被保險人從事角力、摔跤、柔道、空手道、跆拳道、馬術、拳擊、特技表演等的競賽或表演。 二、被保險人從事汽車、機車及自由車等的競賽或表演。 因除外責任及不保事項所致的保險事故，保險公司將不予理賠。完整之除外責任及不保事項規定都載明於保單條款中，請問您清楚嗎？ 【請客戶回答：清楚/不清楚】 | AD52: 您所投保的保誠人壽家家幸福定期壽險的給付項目，包含： 一、身故保險金或喪葬費用保險金、 二、完全失能保險金 三、完全失能扶助保險金 四、嚴重第三度燒燙傷保險金 五、重大傷害失能安養保險金 六、大眾運輸意外身故保險金或喪葬費用保險金 七、特定意外身故保險金或喪葬費用保險金 八、意外身故遺族關懷保險金 以上給付條件載明在保單條款及「建議書摘要表」中， | AE52: 本商品除外責任，包括： 一、要、被保險人故意行為或被保險人犯罪、酒駕行為。 二、戰爭、內亂及其他類似的武裝變亂。 三、原子或核子能裝置所引起的爆炸、灼熱、輻射或污染。 不保事項，包括： 一、被保險人從事角力、摔跤、柔道、空手道、跆拳道、馬術、拳擊、特技表演等的競賽或表演。 二、被保險人從事汽車、機車及自由車等的競賽或表演。 因除外責任及不保事項所致的保險事故，保險公司將不予理賠。完整之除外責任及不保事項規定都載明於保單條款中， | AF52: 本商品除外責任，包括： 一、要、被保險人故意行為或被保險人犯罪、酒駕行為。 二、戰爭、內亂及其他類似的武裝變亂。 三、原子或核子能裝置所引起的爆炸、灼熱、輻射或污染。 不保事項，包括： 一、被保險人從事角力、摔跤、柔道、空手道、跆拳道、馬術、拳擊、特技表演等的競賽或表演。 二、被保險人從事汽車、機車及自由車等的競賽或表演。 因除外責任及不保事項所致的保險事故，保險公司將不予理賠。完整之除外責任及不保事項規定都載明於保單條款中，請問您清楚嗎？ 【請客戶回答：清楚/不清楚】 | AG52: 您所投保的保誠人壽新守戶幸福減額定期壽險的保單利益，包含： 一、身故保險金或喪葬費用保險金、 二、完全失能保險金 三、完全失能扶助保險金 四、嚴重第三度燒燙傷保險金 五、重大傷害失能安養保險金 六、大眾運輸意外身故保險金或喪葬費用保險金 七、特定意外身故保險金或喪葬費用保險金 八、意外身故遺族關懷保險金 給付內容跟給付時間有載明在保單條款中，這些保險給付的相關內容， | AH52: 本商品除外責任，包括： 一、要、被保險人故意行為或被保險人犯罪、酒駕行為。 二、戰爭、內亂及其他類似的武裝變亂。 三、原子或核子能裝置所引起的爆炸、灼熱、輻射或污染。 不保事項，包括： 一、被保險人從事角力、摔跤、柔道、空手道、跆拳道、馬術、拳擊、特技表演等的競賽或表演。 二、被保險人從事汽車、機車及自由車等的競賽或表演。 因除外責任及不保事項所致的保險事故，保險公司將不予理賠。完整之除外責任及不保事項規定都載明於保單條款中， | AI52: 本商品除外責任，包括： 一、要、被保險人故意行為或被保險人犯罪、酒駕行為。 二、戰爭、內亂及其他類似的武裝變亂。 三、原子或核子能裝置所引起的爆炸、灼熱、輻射或污染。 不保事項，包括： 一、被保險人從事角力、摔跤、柔道、空手道、跆拳道、馬術、拳擊、特技表演等的競賽或表演。 二、被保險人從事汽車、機車及自由車等的競賽或表演。 因除外責任及不保事項所致的保險事故，保險公司將不予理賠。完整之除外責任及不保事項規定都載明於保單條款中，請問您清楚嗎？ 【請客戶回答：清楚/不清楚】
A53: 5O14 | B53: 保誠人壽新守戶幸福減額定期壽險 | C53: 9999-12-31 | D53: BNDTLN7 | E53: 不分紅定期壽險 | F53: NT$ | G53: 壽險-主約 | H53: M | I53: Y | M53: =AA53&錄音序號_確認語_2&""&B1_解約金商品錄音話術table!AB53&錄音序號_確認語_2 ->  | R53: 元 | T53: I | W53: =AG53&錄音序號_確認語_2&B1_解約金商品錄音話術table!AH53&錄音序號_確認語_2 ->  | Y53: NL | AA53: 您所投保的保誠人壽新守戶幸福減額定期壽險的給付項目，包含： 一、身故保險金或喪葬費用保險金、 二、完全失能保險金 三、完全失能扶助保險金 四、嚴重第三度燒燙傷保險金 五、重大傷害失能安養保險金 六、大眾運輸意外身故保險金或喪葬費用保險金 七、特定意外身故保險金或喪葬費用保險金 八、意外身故遺族關懷保險金 以上給付條件載明在保單條款中， | AB53: 本商品除外責任，包括： 一、要、被保險人故意行為或被保險人犯罪、酒駕行為。 二、戰爭、內亂及其他類似的武裝變亂。 三、原子或核子能裝置所引起的爆炸、灼熱、輻射或污染。 不保事項，包括： 一、被保險人從事角力、摔跤、柔道、空手道、跆拳道、馬術、拳擊、特技表演等的競賽或表演。 二、被保險人從事汽車、機車及自由車等的競賽或表演。 因除外責任及不保事項所致的保險事故，保險公司將不予理賠。完整之除外責任及不保事項規定都載明於保單條款中， | AC53: 本商品除外責任，包括： 一、要、被保險人故意行為或被保險人犯罪、酒駕行為。 二、戰爭、內亂及其他類似的武裝變亂。 三、原子或核子能裝置所引起的爆炸、灼熱、輻射或污染。 不保事項，包括： 一、被保險人從事角力、摔跤、柔道、空手道、跆拳道、馬術、拳擊、特技表演等的競賽或表演。 二、被保險人從事汽車、機車及自由車等的競賽或表演。 因除外責任及不保事項所致的保險事故，保險公司將不予理賠。完整之除外責任及不保事項規定都載明於保單條款中，請問您清楚嗎？ 【請客戶回答：清楚/不清楚】 | AD53: 您所投保的保誠人壽家家幸福定期壽險的給付項目，包含： 一、身故保險金或喪葬費用保險金、 二、完全失能保險金 三、完全失能扶助保險金 四、嚴重第三度燒燙傷保險金 五、重大傷害失能安養保險金 六、大眾運輸意外身故保險金或喪葬費用保險金 七、特定意外身故保險金或喪葬費用保險金 八、意外身故遺族關懷保險金 以上給付條件載明在保單條款及「建議書摘要表」中， | AE53: 本商品除外責任，包括： 一、要、被保險人故意行為或被保險人犯罪、酒駕行為。 二、戰爭、內亂及其他類似的武裝變亂。 三、原子或核子能裝置所引起的爆炸、灼熱、輻射或污染。 不保事項，包括： 一、被保險人從事角力、摔跤、柔道、空手道、跆拳道、馬術、拳擊、特技表演等的競賽或表演。 二、被保險人從事汽車、機車及自由車等的競賽或表演。 因除外責任及不保事項所致的保險事故，保險公司將不予理賠。完整之除外責任及不保事項規定都載明於保單條款中， | AF53: 本商品除外責任，包括： 一、要、被保險人故意行為或被保險人犯罪、酒駕行為。 二、戰爭、內亂及其他類似的武裝變亂。 三、原子或核子能裝置所引起的爆炸、灼熱、輻射或污染。 不保事項，包括： 一、被保險人從事角力、摔跤、柔道、空手道、跆拳道、馬術、拳擊、特技表演等的競賽或表演。 二、被保險人從事汽車、機車及自由車等的競賽或表演。 因除外責任及不保事項所致的保險事故，保險公司將不予理賠。完整之除外責任及不保事項規定都載明於保單條款中，請問您清楚嗎？ 【請客戶回答：清楚/不清楚】 | AG53: 您所投保的保誠人壽新守戶幸福減額定期壽險的保單利益，包含： 一、身故保險金或喪葬費用保險金、 二、完全失能保險金 三、完全失能扶助保險金 四、嚴重第三度燒燙傷保險金 五、重大傷害失能安養保險金 六、大眾運輸意外身故保險金或喪葬費用保險金 七、特定意外身故保險金或喪葬費用保險金 八、意外身故遺族關懷保險金 給付內容跟給付時間有載明在保單條款中，這些保險給付的相關內容， | AH53: 本商品除外責任，包括： 一、要、被保險人故意行為或被保險人犯罪、酒駕行為。 二、戰爭、內亂及其他類似的武裝變亂。 三、原子或核子能裝置所引起的爆炸、灼熱、輻射或污染。 不保事項，包括： 一、被保險人從事角力、摔跤、柔道、空手道、跆拳道、馬術、拳擊、特技表演等的競賽或表演。 二、被保險人從事汽車、機車及自由車等的競賽或表演。 因除外責任及不保事項所致的保險事故，保險公司將不予理賠。完整之除外責任及不保事項規定都載明於保單條款中， | AI53: 本商品除外責任，包括： 一、要、被保險人故意行為或被保險人犯罪、酒駕行為。 二、戰爭、內亂及其他類似的武裝變亂。 三、原子或核子能裝置所引起的爆炸、灼熱、輻射或污染。 不保事項，包括： 一、被保險人從事角力、摔跤、柔道、空手道、跆拳道、馬術、拳擊、特技表演等的競賽或表演。 二、被保險人從事汽車、機車及自由車等的競賽或表演。 因除外責任及不保事項所致的保險事故，保險公司將不予理賠。完整之除外責任及不保事項規定都載明於保單條款中，請問您清楚嗎？ 【請客戶回答：清楚/不清楚】
A54: 5O15 | B54: 保誠人壽新守戶幸福減額定期壽險 | C54: 9999-12-31 | D54: BNDTLN7 | E54: 不分紅定期壽險 | F54: NT$ | G54: 壽險-主約 | H54: M | I54: Y | M54: =AA54&錄音序號_確認語_2&""&B1_解約金商品錄音話術table!AB54&錄音序號_確認語_2 ->  | R54: 元 | T54: I | W54: =AG54&錄音序號_確認語_2&B1_解約金商品錄音話術table!AH54&錄音序號_確認語_2 ->  | Y54: NL | AA54: 您所投保的保誠人壽新守戶幸福減額定期壽險的給付項目，包含： 一、身故保險金或喪葬費用保險金、 二、完全失能保險金 三、完全失能扶助保險金 四、嚴重第三度燒燙傷保險金 五、重大傷害失能安養保險金 六、大眾運輸意外身故保險金或喪葬費用保險金 七、特定意外身故保險金或喪葬費用保險金 八、意外身故遺族關懷保險金 以上給付條件載明在保單條款中， | AB54: 本商品除外責任，包括： 一、要、被保險人故意行為或被保險人犯罪、酒駕行為。 二、戰爭、內亂及其他類似的武裝變亂。 三、原子或核子能裝置所引起的爆炸、灼熱、輻射或污染。 不保事項，包括： 一、被保險人從事角力、摔跤、柔道、空手道、跆拳道、馬術、拳擊、特技表演等的競賽或表演。 二、被保險人從事汽車、機車及自由車等的競賽或表演。 因除外責任及不保事項所致的保險事故，保險公司將不予理賠。完整之除外責任及不保事項規定都載明於保單條款中， | AC54: 本商品除外責任，包括： 一、要、被保險人故意行為或被保險人犯罪、酒駕行為。 二、戰爭、內亂及其他類似的武裝變亂。 三、原子或核子能裝置所引起的爆炸、灼熱、輻射或污染。 不保事項，包括： 一、被保險人從事角力、摔跤、柔道、空手道、跆拳道、馬術、拳擊、特技表演等的競賽或表演。 二、被保險人從事汽車、機車及自由車等的競賽或表演。 因除外責任及不保事項所致的保險事故，保險公司將不予理賠。完整之除外責任及不保事項規定都載明於保單條款中，請問您清楚嗎？ 【請客戶回答：清楚/不清楚】 | AD54: 您所投保的保誠人壽家家幸福定期壽險的給付項目，包含： 一、身故保險金或喪葬費用保險金、 二、完全失能保險金 三、完全失能扶助保險金 四、嚴重第三度燒燙傷保險金 五、重大傷害失能安養保險金 六、大眾運輸意外身故保險金或喪葬費用保險金 七、特定意外身故保險金或喪葬費用保險金 八、意外身故遺族關懷保險金 以上給付條件載明在保單條款及「建議書摘要表」中， | AE54: 本商品除外責任，包括： 一、要、被保險人故意行為或被保險人犯罪、酒駕行為。 二、戰爭、內亂及其他類似的武裝變亂。 三、原子或核子能裝置所引起的爆炸、灼熱、輻射或污染。 不保事項，包括： 一、被保險人從事角力、摔跤、柔道、空手道、跆拳道、馬術、拳擊、特技表演等的競賽或表演。 二、被保險人從事汽車、機車及自由車等的競賽或表演。 因除外責任及不保事項所致的保險事故，保險公司將不予理賠。完整之除外責任及不保事項規定都載明於保單條款中， | AF54: 本商品除外責任，包括： 一、要、被保險人故意行為或被保險人犯罪、酒駕行為。 二、戰爭、內亂及其他類似的武裝變亂。 三、原子或核子能裝置所引起的爆炸、灼熱、輻射或污染。 不保事項，包括： 一、被保險人從事角力、摔跤、柔道、空手道、跆拳道、馬術、拳擊、特技表演等的競賽或表演。 二、被保險人從事汽車、機車及自由車等的競賽或表演。 因除外責任及不保事項所致的保險事故，保險公司將不予理賠。完整之除外責任及不保事項規定都載明於保單條款中，請問您清楚嗎？ 【請客戶回答：清楚/不清楚】 | AG54: 您所投保的保誠人壽新守戶幸福減額定期壽險的保單利益，包含： 一、身故保險金或喪葬費用保險金、 二、完全失能保險金 三、完全失能扶助保險金 四、嚴重第三度燒燙傷保險金 五、重大傷害失能安養保險金 六、大眾運輸意外身故保險金或喪葬費用保險金 七、特定意外身故保險金或喪葬費用保險金 八、意外身故遺族關懷保險金 給付內容跟給付時間有載明在保單條款中，這些保險給付的相關內容， | AH54: 本商品除外責任，包括： 一、要、被保險人故意行為或被保險人犯罪、酒駕行為。 二、戰爭、內亂及其他類似的武裝變亂。 三、原子或核子能裝置所引起的爆炸、灼熱、輻射或污染。 不保事項，包括： 一、被保險人從事角力、摔跤、柔道、空手道、跆拳道、馬術、拳擊、特技表演等的競賽或表演。 二、被保險人從事汽車、機車及自由車等的競賽或表演。 因除外責任及不保事項所致的保險事故，保險公司將不予理賠。完整之除外責任及不保事項規定都載明於保單條款中， | AI54: 本商品除外責任，包括： 一、要、被保險人故意行為或被保險人犯罪、酒駕行為。 二、戰爭、內亂及其他類似的武裝變亂。 三、原子或核子能裝置所引起的爆炸、灼熱、輻射或污染。 不保事項，包括： 一、被保險人從事角力、摔跤、柔道、空手道、跆拳道、馬術、拳擊、特技表演等的競賽或表演。 二、被保險人從事汽車、機車及自由車等的競賽或表演。 因除外責任及不保事項所致的保險事故，保險公司將不予理賠。完整之除外責任及不保事項規定都載明於保單條款中，請問您清楚嗎？ 【請客戶回答：清楚/不清楚】
A55: 5O16 | B55: 保誠人壽新守戶幸福減額定期壽險 | C55: 9999-12-31 | D55: BNDTLN7 | E55: 不分紅定期壽險 | F55: NT$ | G55: 壽險-主約 | H55: M | I55: Y | M55: =AA55&錄音序號_確認語_2&""&B1_解約金商品錄音話術table!AB55&錄音序號_確認語_2 ->  | R55: 元 | T55: I | W55: =AG55&錄音序號_確認語_2&B1_解約金商品錄音話術table!AH55&錄音序號_確認語_2 ->  | Y55: NL | AA55: 您所投保的保誠人壽新守戶幸福減額定期壽險的給付項目，包含： 一、身故保險金或喪葬費用保險金、 二、完全失能保險金 三、完全失能扶助保險金 四、嚴重第三度燒燙傷保險金 五、重大傷害失能安養保險金 六、大眾運輸意外身故保險金或喪葬費用保險金 七、特定意外身故保險金或喪葬費用保險金 八、意外身故遺族關懷保險金 以上給付條件載明在保單條款中， | AB55: 本商品除外責任，包括： 一、要、被保險人故意行為或被保險人犯罪、酒駕行為。 二、戰爭、內亂及其他類似的武裝變亂。 三、原子或核子能裝置所引起的爆炸、灼熱、輻射或污染。 不保事項，包括： 一、被保險人從事角力、摔跤、柔道、空手道、跆拳道、馬術、拳擊、特技表演等的競賽或表演。 二、被保險人從事汽車、機車及自由車等的競賽或表演。 因除外責任及不保事項所致的保險事故，保險公司將不予理賠。完整之除外責任及不保事項規定都載明於保單條款中， | AC55: 本商品除外責任，包括： 一、要、被保險人故意行為或被保險人犯罪、酒駕行為。 二、戰爭、內亂及其他類似的武裝變亂。 三、原子或核子能裝置所引起的爆炸、灼熱、輻射或污染。 不保事項，包括： 一、被保險人從事角力、摔跤、柔道、空手道、跆拳道、馬術、拳擊、特技表演等的競賽或表演。 二、被保險人從事汽車、機車及自由車等的競賽或表演。 因除外責任及不保事項所致的保險事故，保險公司將不予理賠。完整之除外責任及不保事項規定都載明於保單條款中，請問您清楚嗎？ 【請客戶回答：清楚/不清楚】 | AD55: 您所投保的保誠人壽家家幸福定期壽險的給付項目，包含： 一、身故保險金或喪葬費用保險金、 二、完全失能保險金 三、完全失能扶助保險金 四、嚴重第三度燒燙傷保險金 五、重大傷害失能安養保險金 六、大眾運輸意外身故保險金或喪葬費用保險金 七、特定意外身故保險金或喪葬費用保險金 八、意外身故遺族關懷保險金 以上給付條件載明在保單條款及「建議書摘要表」中， | AE55: 本商品除外責任，包括： 一、要、被保險人故意行為或被保險人犯罪、酒駕行為。 二、戰爭、內亂及其他類似的武裝變亂。 三、原子或核子能裝置所引起的爆炸、灼熱、輻射或污染。 不保事項，包括： 一、被保險人從事角力、摔跤、柔道、空手道、跆拳道、馬術、拳擊、特技表演等的競賽或表演。 二、被保險人從事汽車、機車及自由車等的競賽或表演。 因除外責任及不保事項所致的保險事故，保險公司將不予理賠。完整之除外責任及不保事項規定都載明於保單條款中， | AF55: 本商品除外責任，包括： 一、要、被保險人故意行為或被保險人犯罪、酒駕行為。 二、戰爭、內亂及其他類似的武裝變亂。 三、原子或核子能裝置所引起的爆炸、灼熱、輻射或污染。 不保事項，包括： 一、被保險人從事角力、摔跤、柔道、空手道、跆拳道、馬術、拳擊、特技表演等的競賽或表演。 二、被保險人從事汽車、機車及自由車等的競賽或表演。 因除外責任及不保事項所致的保險事故，保險公司將不予理賠。完整之除外責任及不保事項規定都載明於保單條款中，請問您清楚嗎？ 【請客戶回答：清楚/不清楚】 | AG55: 您所投保的保誠人壽新守戶幸福減額定期壽險的保單利益，包含： 一、身故保險金或喪葬費用保險金、 二、完全失能保險金 三、完全失能扶助保險金 四、嚴重第三度燒燙傷保險金 五、重大傷害失能安養保險金 六、大眾運輸意外身故保險金或喪葬費用保險金 七、特定意外身故保險金或喪葬費用保險金 八、意外身故遺族關懷保險金 給付內容跟給付時間有載明在保單條款中，這些保險給付的相關內容， | AH55: 本商品除外責任，包括： 一、要、被保險人故意行為或被保險人犯罪、酒駕行為。 二、戰爭、內亂及其他類似的武裝變亂。 三、原子或核子能裝置所引起的爆炸、灼熱、輻射或污染。 不保事項，包括： 一、被保險人從事角力、摔跤、柔道、空手道、跆拳道、馬術、拳擊、特技表演等的競賽或表演。 二、被保險人從事汽車、機車及自由車等的競賽或表演。 因除外責任及不保事項所致的保險事故，保險公司將不予理賠。完整之除外責任及不保事項規定都載明於保單條款中， | AI55: 本商品除外責任，包括： 一、要、被保險人故意行為或被保險人犯罪、酒駕行為。 二、戰爭、內亂及其他類似的武裝變亂。 三、原子或核子能裝置所引起的爆炸、灼熱、輻射或污染。 不保事項，包括： 一、被保險人從事角力、摔跤、柔道、空手道、跆拳道、馬術、拳擊、特技表演等的競賽或表演。 二、被保險人從事汽車、機車及自由車等的競賽或表演。 因除外責任及不保事項所致的保險事故，保險公司將不予理賠。完整之除外責任及不保事項規定都載明於保單條款中，請問您清楚嗎？ 【請客戶回答：清楚/不清楚】
A56: 5O17 | B56: 保誠人壽新守戶幸福減額定期壽險 | C56: 9999-12-31 | D56: BNDTLN7 | E56: 不分紅定期壽險 | F56: NT$ | G56: 壽險-主約 | H56: M | I56: Y | M56: =AA56&錄音序號_確認語_2&""&B1_解約金商品錄音話術table!AB56&錄音序號_確認語_2 ->  | R56: 元 | T56: I | W56: =AG56&錄音序號_確認語_2&B1_解約金商品錄音話術table!AH56&錄音序號_確認語_2 ->  | Y56: NL | AA56: 您所投保的保誠人壽新守戶幸福減額定期壽險的給付項目，包含： 一、身故保險金或喪葬費用保險金、 二、完全失能保險金 三、完全失能扶助保險金 四、嚴重第三度燒燙傷保險金 五、重大傷害失能安養保險金 六、大眾運輸意外身故保險金或喪葬費用保險金 七、特定意外身故保險金或喪葬費用保險金 八、意外身故遺族關懷保險金 以上給付條件載明在保單條款中， | AB56: 本商品除外責任，包括： 一、要、被保險人故意行為或被保險人犯罪、酒駕行為。 二、戰爭、內亂及其他類似的武裝變亂。 三、原子或核子能裝置所引起的爆炸、灼熱、輻射或污染。 不保事項，包括： 一、被保險人從事角力、摔跤、柔道、空手道、跆拳道、馬術、拳擊、特技表演等的競賽或表演。 二、被保險人從事汽車、機車及自由車等的競賽或表演。 因除外責任及不保事項所致的保險事故，保險公司將不予理賠。完整之除外責任及不保事項規定都載明於保單條款中， | AC56: 本商品除外責任，包括： 一、要、被保險人故意行為或被保險人犯罪、酒駕行為。 二、戰爭、內亂及其他類似的武裝變亂。 三、原子或核子能裝置所引起的爆炸、灼熱、輻射或污染。 不保事項，包括： 一、被保險人從事角力、摔跤、柔道、空手道、跆拳道、馬術、拳擊、特技表演等的競賽或表演。 二、被保險人從事汽車、機車及自由車等的競賽或表演。 因除外責任及不保事項所致的保險事故，保險公司將不予理賠。完整之除外責任及不保事項規定都載明於保單條款中，請問您清楚嗎？ 【請客戶回答：清楚/不清楚】 | AD56: 您所投保的保誠人壽家家幸福定期壽險的給付項目，包含： 一、身故保險金或喪葬費用保險金、 二、完全失能保險金 三、完全失能扶助保險金 四、嚴重第三度燒燙傷保險金 五、重大傷害失能安養保險金 六、大眾運輸意外身故保險金或喪葬費用保險金 七、特定意外身故保險金或喪葬費用保險金 八、意外身故遺族關懷保險金 以上給付條件載明在保單條款及「建議書摘要表」中， | AE56: 本商品除外責任，包括： 一、要、被保險人故意行為或被保險人犯罪、酒駕行為。 二、戰爭、內亂及其他類似的武裝變亂。 三、原子或核子能裝置所引起的爆炸、灼熱、輻射或污染。 不保事項，包括： 一、被保險人從事角力、摔跤、柔道、空手道、跆拳道、馬術、拳擊、特技表演等的競賽或表演。 二、被保險人從事汽車、機車及自由車等的競賽或表演。 因除外責任及不保事項所致的保險事故，保險公司將不予理賠。完整之除外責任及不保事項規定都載明於保單條款中， | AF56: 本商品除外責任，包括： 一、要、被保險人故意行為或被保險人犯罪、酒駕行為。 二、戰爭、內亂及其他類似的武裝變亂。 三、原子或核子能裝置所引起的爆炸、灼熱、輻射或污染。 不保事項，包括： 一、被保險人從事角力、摔跤、柔道、空手道、跆拳道、馬術、拳擊、特技表演等的競賽或表演。 二、被保險人從事汽車、機車及自由車等的競賽或表演。 因除外責任及不保事項所致的保險事故，保險公司將不予理賠。完整之除外責任及不保事項規定都載明於保單條款中，請問您清楚嗎？ 【請客戶回答：清楚/不清楚】 | AG56: 您所投保的保誠人壽新守戶幸福減額定期壽險的保單利益，包含： 一、身故保險金或喪葬費用保險金、 二、完全失能保險金 三、完全失能扶助保險金 四、嚴重第三度燒燙傷保險金 五、重大傷害失能安養保險金 六、大眾運輸意外身故保險金或喪葬費用保險金 七、特定意外身故保險金或喪葬費用保險金 八、意外身故遺族關懷保險金 給付內容跟給付時間有載明在保單條款中，這些保險給付的相關內容， | AH56: 本商品除外責任，包括： 一、要、被保險人故意行為或被保險人犯罪、酒駕行為。 二、戰爭、內亂及其他類似的武裝變亂。 三、原子或核子能裝置所引起的爆炸、灼熱、輻射或污染。 不保事項，包括： 一、被保險人從事角力、摔跤、柔道、空手道、跆拳道、馬術、拳擊、特技表演等的競賽或表演。 二、被保險人從事汽車、機車及自由車等的競賽或表演。 因除外責任及不保事項所致的保險事故，保險公司將不予理賠。完整之除外責任及不保事項規定都載明於保單條款中， | AI56: 本商品除外責任，包括： 一、要、被保險人故意行為或被保險人犯罪、酒駕行為。 二、戰爭、內亂及其他類似的武裝變亂。 三、原子或核子能裝置所引起的爆炸、灼熱、輻射或污染。 不保事項，包括： 一、被保險人從事角力、摔跤、柔道、空手道、跆拳道、馬術、拳擊、特技表演等的競賽或表演。 二、被保險人從事汽車、機車及自由車等的競賽或表演。 因除外責任及不保事項所致的保險事故，保險公司將不予理賠。完整之除外責任及不保事項規定都載明於保單條款中，請問您清楚嗎？ 【請客戶回答：清楚/不清楚】
A57: 5O18 | B57: 保誠人壽新守戶幸福減額定期壽險 | C57: 9999-12-31 | D57: BNDTLN7 | E57: 不分紅定期壽險 | F57: NT$ | G57: 壽險-主約 | H57: M | I57: Y | M57: =AA57&錄音序號_確認語_2&""&B1_解約金商品錄音話術table!AB57&錄音序號_確認語_2 ->  | R57: 元 | T57: I | W57: =AG57&錄音序號_確認語_2&B1_解約金商品錄音話術table!AH57&錄音序號_確認語_2 ->  | Y57: NL | AA57: 您所投保的保誠人壽新守戶幸福減額定期壽險的給付項目，包含： 一、身故保險金或喪葬費用保險金、 二、完全失能保險金 三、完全失能扶助保險金 四、嚴重第三度燒燙傷保險金 五、重大傷害失能安養保險金 六、大眾運輸意外身故保險金或喪葬費用保險金 七、特定意外身故保險金或喪葬費用保險金 八、意外身故遺族關懷保險金 以上給付條件載明在保單條款中， | AB57: 本商品除外責任，包括： 一、要、被保險人故意行為或被保險人犯罪、酒駕行為。 二、戰爭、內亂及其他類似的武裝變亂。 三、原子或核子能裝置所引起的爆炸、灼熱、輻射或污染。 不保事項，包括： 一、被保險人從事角力、摔跤、柔道、空手道、跆拳道、馬術、拳擊、特技表演等的競賽或表演。 二、被保險人從事汽車、機車及自由車等的競賽或表演。 因除外責任及不保事項所致的保險事故，保險公司將不予理賠。完整之除外責任及不保事項規定都載明於保單條款中， | AC57: 本商品除外責任，包括： 一、要、被保險人故意行為或被保險人犯罪、酒駕行為。 二、戰爭、內亂及其他類似的武裝變亂。 三、原子或核子能裝置所引起的爆炸、灼熱、輻射或污染。 不保事項，包括： 一、被保險人從事角力、摔跤、柔道、空手道、跆拳道、馬術、拳擊、特技表演等的競賽或表演。 二、被保險人從事汽車、機車及自由車等的競賽或表演。 因除外責任及不保事項所致的保險事故，保險公司將不予理賠。完整之除外責任及不保事項規定都載明於保單條款中，請問您清楚嗎？ 【請客戶回答：清楚/不清楚】 | AD57: 您所投保的保誠人壽家家幸福定期壽險的給付項目，包含： 一、身故保險金或喪葬費用保險金、 二、完全失能保險金 三、完全失能扶助保險金 四、嚴重第三度燒燙傷保險金 五、重大傷害失能安養保險金 六、大眾運輸意外身故保險金或喪葬費用保險金 七、特定意外身故保險金或喪葬費用保險金 八、意外身故遺族關懷保險金 以上給付條件載明在保單條款及「建議書摘要表」中， | AE57: 本商品除外責任，包括： 一、要、被保險人故意行為或被保險人犯罪、酒駕行為。 二、戰爭、內亂及其他類似的武裝變亂。 三、原子或核子能裝置所引起的爆炸、灼熱、輻射或污染。 不保事項，包括： 一、被保險人從事角力、摔跤、柔道、空手道、跆拳道、馬術、拳擊、特技表演等的競賽或表演。 二、被保險人從事汽車、機車及自由車等的競賽或表演。 因除外責任及不保事項所致的保險事故，保險公司將不予理賠。完整之除外責任及不保事項規定都載明於保單條款中， | AF57: 本商品除外責任，包括： 一、要、被保險人故意行為或被保險人犯罪、酒駕行為。 二、戰爭、內亂及其他類似的武裝變亂。 三、原子或核子能裝置所引起的爆炸、灼熱、輻射或污染。 不保事項，包括： 一、被保險人從事角力、摔跤、柔道、空手道、跆拳道、馬術、拳擊、特技表演等的競賽或表演。 二、被保險人從事汽車、機車及自由車等的競賽或表演。 因除外責任及不保事項所致的保險事故，保險公司將不予理賠。完整之除外責任及不保事項規定都載明於保單條款中，請問您清楚嗎？ 【請客戶回答：清楚/不清楚】 | AG57: 您所投保的保誠人壽新守戶幸福減額定期壽險的保單利益，包含： 一、身故保險金或喪葬費用保險金、 二、完全失能保險金 三、完全失能扶助保險金 四、嚴重第三度燒燙傷保險金 五、重大傷害失能安養保險金 六、大眾運輸意外身故保險金或喪葬費用保險金 七、特定意外身故保險金或喪葬費用保險金 八、意外身故遺族關懷保險金 給付內容跟給付時間有載明在保單條款中，這些保險給付的相關內容， | AH57: 本商品除外責任，包括： 一、要、被保險人故意行為或被保險人犯罪、酒駕行為。 二、戰爭、內亂及其他類似的武裝變亂。 三、原子或核子能裝置所引起的爆炸、灼熱、輻射或污染。 不保事項，包括： 一、被保險人從事角力、摔跤、柔道、空手道、跆拳道、馬術、拳擊、特技表演等的競賽或表演。 二、被保險人從事汽車、機車及自由車等的競賽或表演。 因除外責任及不保事項所致的保險事故，保險公司將不予理賠。完整之除外責任及不保事項規定都載明於保單條款中， | AI57: 本商品除外責任，包括： 一、要、被保險人故意行為或被保險人犯罪、酒駕行為。 二、戰爭、內亂及其他類似的武裝變亂。 三、原子或核子能裝置所引起的爆炸、灼熱、輻射或污染。 不保事項，包括： 一、被保險人從事角力、摔跤、柔道、空手道、跆拳道、馬術、拳擊、特技表演等的競賽或表演。 二、被保險人從事汽車、機車及自由車等的競賽或表演。 因除外責任及不保事項所致的保險事故，保險公司將不予理賠。完整之除外責任及不保事項規定都載明於保單條款中，請問您清楚嗎？ 【請客戶回答：清楚/不清楚】
A58: 5O19 | B58: 保誠人壽新守戶幸福減額定期壽險 | C58: 9999-12-31 | D58: BNDTLN7 | E58: 不分紅定期壽險 | F58: NT$ | G58: 壽險-主約 | H58: M | I58: Y | M58: =AA58&錄音序號_確認語_2&""&B1_解約金商品錄音話術table!AB58&錄音序號_確認語_2 ->  | R58: 元 | T58: I | W58: =AG58&錄音序號_確認語_2&B1_解約金商品錄音話術table!AH58&錄音序號_確認語_2 ->  | Y58: NL | AA58: 您所投保的保誠人壽新守戶幸福減額定期壽險的給付項目，包含： 一、身故保險金或喪葬費用保險金、 二、完全失能保險金 三、完全失能扶助保險金 四、嚴重第三度燒燙傷保險金 五、重大傷害失能安養保險金 六、大眾運輸意外身故保險金或喪葬費用保險金 七、特定意外身故保險金或喪葬費用保險金 八、意外身故遺族關懷保險金 以上給付條件載明在保單條款中， | AB58: 本商品除外責任，包括： 一、要、被保險人故意行為或被保險人犯罪、酒駕行為。 二、戰爭、內亂及其他類似的武裝變亂。 三、原子或核子能裝置所引起的爆炸、灼熱、輻射或污染。 不保事項，包括： 一、被保險人從事角力、摔跤、柔道、空手道、跆拳道、馬術、拳擊、特技表演等的競賽或表演。 二、被保險人從事汽車、機車及自由車等的競賽或表演。 因除外責任及不保事項所致的保險事故，保險公司將不予理賠。完整之除外責任及不保事項規定都載明於保單條款中， | AC58: 本商品除外責任，包括： 一、要、被保險人故意行為或被保險人犯罪、酒駕行為。 二、戰爭、內亂及其他類似的武裝變亂。 三、原子或核子能裝置所引起的爆炸、灼熱、輻射或污染。 不保事項，包括： 一、被保險人從事角力、摔跤、柔道、空手道、跆拳道、馬術、拳擊、特技表演等的競賽或表演。 二、被保險人從事汽車、機車及自由車等的競賽或表演。 因除外責任及不保事項所致的保險事故，保險公司將不予理賠。完整之除外責任及不保事項規定都載明於保單條款中，請問您清楚嗎？ 【請客戶回答：清楚/不清楚】 | AD58: 您所投保的保誠人壽家家幸福定期壽險的給付項目，包含： 一、身故保險金或喪葬費用保險金、 二、完全失能保險金 三、完全失能扶助保險金 四、嚴重第三度燒燙傷保險金 五、重大傷害失能安養保險金 六、大眾運輸意外身故保險金或喪葬費用保險金 七、特定意外身故保險金或喪葬費用保險金 八、意外身故遺族關懷保險金 以上給付條件載明在保單條款及「建議書摘要表」中， | AE58: 本商品除外責任，包括： 一、要、被保險人故意行為或被保險人犯罪、酒駕行為。 二、戰爭、內亂及其他類似的武裝變亂。 三、原子或核子能裝置所引起的爆炸、灼熱、輻射或污染。 不保事項，包括： 一、被保險人從事角力、摔跤、柔道、空手道、跆拳道、馬術、拳擊、特技表演等的競賽或表演。 二、被保險人從事汽車、機車及自由車等的競賽或表演。 因除外責任及不保事項所致的保險事故，保險公司將不予理賠。完整之除外責任及不保事項規定都載明於保單條款中， | AF58: 本商品除外責任，包括： 一、要、被保險人故意行為或被保險人犯罪、酒駕行為。 二、戰爭、內亂及其他類似的武裝變亂。 三、原子或核子能裝置所引起的爆炸、灼熱、輻射或污染。 不保事項，包括： 一、被保險人從事角力、摔跤、柔道、空手道、跆拳道、馬術、拳擊、特技表演等的競賽或表演。 二、被保險人從事汽車、機車及自由車等的競賽或表演。 因除外責任及不保事項所致的保險事故，保險公司將不予理賠。完整之除外責任及不保事項規定都載明於保單條款中，請問您清楚嗎？ 【請客戶回答：清楚/不清楚】 | AG58: 您所投保的保誠人壽新守戶幸福減額定期壽險的保單利益，包含： 一、身故保險金或喪葬費用保險金、 二、完全失能保險金 三、完全失能扶助保險金 四、嚴重第三度燒燙傷保險金 五、重大傷害失能安養保險金 六、大眾運輸意外身故保險金或喪葬費用保險金 七、特定意外身故保險金或喪葬費用保險金 八、意外身故遺族關懷保險金 給付內容跟給付時間有載明在保單條款中，這些保險給付的相關內容， | AH58: 本商品除外責任，包括： 一、要、被保險人故意行為或被保險人犯罪、酒駕行為。 二、戰爭、內亂及其他類似的武裝變亂。 三、原子或核子能裝置所引起的爆炸、灼熱、輻射或污染。 不保事項，包括： 一、被保險人從事角力、摔跤、柔道、空手道、跆拳道、馬術、拳擊、特技表演等的競賽或表演。 二、被保險人從事汽車、機車及自由車等的競賽或表演。 因除外責任及不保事項所致的保險事故，保險公司將不予理賠。完整之除外責任及不保事項規定都載明於保單條款中， | AI58: 本商品除外責任，包括： 一、要、被保險人故意行為或被保險人犯罪、酒駕行為。 二、戰爭、內亂及其他類似的武裝變亂。 三、原子或核子能裝置所引起的爆炸、灼熱、輻射或污染。 不保事項，包括： 一、被保險人從事角力、摔跤、柔道、空手道、跆拳道、馬術、拳擊、特技表演等的競賽或表演。 二、被保險人從事汽車、機車及自由車等的競賽或表演。 因除外責任及不保事項所致的保險事故，保險公司將不予理賠。完整之除外責任及不保事項規定都載明於保單條款中，請問您清楚嗎？ 【請客戶回答：清楚/不清楚】
A59: 5O20 | B59: 保誠人壽新守戶幸福減額定期壽險 | C59: 9999-12-31 | D59: BNDTLN7 | E59: 不分紅定期壽險 | F59: NT$ | G59: 壽險-主約 | H59: M | I59: Y | M59: =AA59&錄音序號_確認語_2&""&B1_解約金商品錄音話術table!AB59&錄音序號_確認語_2 ->  | R59: 元 | T59: I | W59: =AG59&錄音序號_確認語_2&B1_解約金商品錄音話術table!AH59&錄音序號_確認語_2 ->  | Y59: NL | AA59: 您所投保的保誠人壽新守戶幸福減額定期壽險的給付項目，包含： 一、身故保險金或喪葬費用保險金、 二、完全失能保險金 三、完全失能扶助保險金 四、嚴重第三度燒燙傷保險金 五、重大傷害失能安養保險金 六、大眾運輸意外身故保險金或喪葬費用保險金 七、特定意外身故保險金或喪葬費用保險金 八、意外身故遺族關懷保險金 以上給付條件載明在保單條款中， | AB59: 本商品除外責任，包括： 一、要、被保險人故意行為或被保險人犯罪、酒駕行為。 二、戰爭、內亂及其他類似的武裝變亂。 三、原子或核子能裝置所引起的爆炸、灼熱、輻射或污染。 不保事項，包括： 一、被保險人從事角力、摔跤、柔道、空手道、跆拳道、馬術、拳擊、特技表演等的競賽或表演。 二、被保險人從事汽車、機車及自由車等的競賽或表演。 因除外責任及不保事項所致的保險事故，保險公司將不予理賠。完整之除外責任及不保事項規定都載明於保單條款中， | AC59: 本商品除外責任，包括： 一、要、被保險人故意行為或被保險人犯罪、酒駕行為。 二、戰爭、內亂及其他類似的武裝變亂。 三、原子或核子能裝置所引起的爆炸、灼熱、輻射或污染。 不保事項，包括： 一、被保險人從事角力、摔跤、柔道、空手道、跆拳道、馬術、拳擊、特技表演等的競賽或表演。 二、被保險人從事汽車、機車及自由車等的競賽或表演。 因除外責任及不保事項所致的保險事故，保險公司將不予理賠。完整之除外責任及不保事項規定都載明於保單條款中，請問您清楚嗎？ 【請客戶回答：清楚/不清楚】 | AD59: 您所投保的保誠人壽家家幸福定期壽險的給付項目，包含： 一、身故保險金或喪葬費用保險金、 二、完全失能保險金 三、完全失能扶助保險金 四、嚴重第三度燒燙傷保險金 五、重大傷害失能安養保險金 六、大眾運輸意外身故保險金或喪葬費用保險金 七、特定意外身故保險金或喪葬費用保險金 八、意外身故遺族關懷保險金 以上給付條件載明在保單條款及「建議書摘要表」中， | AE59: 本商品除外責任，包括： 一、要、被保險人故意行為或被保險人犯罪、酒駕行為。 二、戰爭、內亂及其他類似的武裝變亂。 三、原子或核子能裝置所引起的爆炸、灼熱、輻射或污染。 不保事項，包括： 一、被保險人從事角力、摔跤、柔道、空手道、跆拳道、馬術、拳擊、特技表演等的競賽或表演。 二、被保險人從事汽車、機車及自由車等的競賽或表演。 因除外責任及不保事項所致的保險事故，保險公司將不予理賠。完整之除外責任及不保事項規定都載明於保單條款中， | AF59: 本商品除外責任，包括： 一、要、被保險人故意行為或被保險人犯罪、酒駕行為。 二、戰爭、內亂及其他類似的武裝變亂。 三、原子或核子能裝置所引起的爆炸、灼熱、輻射或污染。 不保事項，包括： 一、被保險人從事角力、摔跤、柔道、空手道、跆拳道、馬術、拳擊、特技表演等的競賽或表演。 二、被保險人從事汽車、機車及自由車等的競賽或表演。 因除外責任及不保事項所致的保險事故，保險公司將不予理賠。完整之除外責任及不保事項規定都載明於保單條款中，請問您清楚嗎？ 【請客戶回答：清楚/不清楚】 | AG59: 您所投保的保誠人壽新守戶幸福減額定期壽險的保單利益，包含： 一、身故保險金或喪葬費用保險金、 二、完全失能保險金 三、完全失能扶助保險金 四、嚴重第三度燒燙傷保險金 五、重大傷害失能安養保險金 六、大眾運輸意外身故保險金或喪葬費用保險金 七、特定意外身故保險金或喪葬費用保險金 八、意外身故遺族關懷保險金 給付內容跟給付時間有載明在保單條款中，這些保險給付的相關內容， | AH59: 本商品除外責任，包括： 一、要、被保險人故意行為或被保險人犯罪、酒駕行為。 二、戰爭、內亂及其他類似的武裝變亂。 三、原子或核子能裝置所引起的爆炸、灼熱、輻射或污染。 不保事項，包括： 一、被保險人從事角力、摔跤、柔道、空手道、跆拳道、馬術、拳擊、特技表演等的競賽或表演。 二、被保險人從事汽車、機車及自由車等的競賽或表演。 因除外責任及不保事項所致的保險事故，保險公司將不予理賠。完整之除外責任及不保事項規定都載明於保單條款中， | AI59: 本商品除外責任，包括： 一、要、被保險人故意行為或被保險人犯罪、酒駕行為。 二、戰爭、內亂及其他類似的武裝變亂。 三、原子或核子能裝置所引起的爆炸、灼熱、輻射或污染。 不保事項，包括： 一、被保險人從事角力、摔跤、柔道、空手道、跆拳道、馬術、拳擊、特技表演等的競賽或表演。 二、被保險人從事汽車、機車及自由車等的競賽或表演。 因除外責任及不保事項所致的保險事故，保險公司將不予理賠。完整之除外責任及不保事項規定都載明於保單條款中，請問您清楚嗎？ 【請客戶回答：清楚/不清楚】
A60: 5O21 | B60: 保誠人壽新守戶幸福減額定期壽險 | C60: 9999-12-31 | D60: BNDTLN7 | E60: 不分紅定期壽險 | F60: NT$ | G60: 壽險-主約 | H60: M | I60: Y | M60: =AA60&錄音序號_確認語_2&""&B1_解約金商品錄音話術table!AB60&錄音序號_確認語_2 ->  | R60: 元 | T60: I | W60: =AG60&錄音序號_確認語_2&B1_解約金商品錄音話術table!AH60&錄音序號_確認語_2 ->  | Y60: NL | AA60: 您所投保的保誠人壽新守戶幸福減額定期壽險的給付項目，包含： 一、身故保險金或喪葬費用保險金、 二、完全失能保險金 三、完全失能扶助保險金 四、嚴重第三度燒燙傷保險金 五、重大傷害失能安養保險金 六、大眾運輸意外身故保險金或喪葬費用保險金 七、特定意外身故保險金或喪葬費用保險金 八、意外身故遺族關懷保險金 以上給付條件載明在保單條款中， | AB60: 本商品除外責任，包括： 一、要、被保險人故意行為或被保險人犯罪、酒駕行為。 二、戰爭、內亂及其他類似的武裝變亂。 三、原子或核子能裝置所引起的爆炸、灼熱、輻射或污染。 不保事項，包括： 一、被保險人從事角力、摔跤、柔道、空手道、跆拳道、馬術、拳擊、特技表演等的競賽或表演。 二、被保險人從事汽車、機車及自由車等的競賽或表演。 因除外責任及不保事項所致的保險事故，保險公司將不予理賠。完整之除外責任及不保事項規定都載明於保單條款中， | AC60: 本商品除外責任，包括： 一、要、被保險人故意行為或被保險人犯罪、酒駕行為。 二、戰爭、內亂及其他類似的武裝變亂。 三、原子或核子能裝置所引起的爆炸、灼熱、輻射或污染。 不保事項，包括： 一、被保險人從事角力、摔跤、柔道、空手道、跆拳道、馬術、拳擊、特技表演等的競賽或表演。 二、被保險人從事汽車、機車及自由車等的競賽或表演。 因除外責任及不保事項所致的保險事故，保險公司將不予理賠。完整之除外責任及不保事項規定都載明於保單條款中，請問您清楚嗎？ 【請客戶回答：清楚/不清楚】 | AD60: 您所投保的保誠人壽家家幸福定期壽險的給付項目，包含： 一、身故保險金或喪葬費用保險金、 二、完全失能保險金 三、完全失能扶助保險金 四、嚴重第三度燒燙傷保險金 五、重大傷害失能安養保險金 六、大眾運輸意外身故保險金或喪葬費用保險金 七、特定意外身故保險金或喪葬費用保險金 八、意外身故遺族關懷保險金 以上給付條件載明在保單條款及「建議書摘要表」中， | AE60: 本商品除外責任，包括： 一、要、被保險人故意行為或被保險人犯罪、酒駕行為。 二、戰爭、內亂及其他類似的武裝變亂。 三、原子或核子能裝置所引起的爆炸、灼熱、輻射或污染。 不保事項，包括： 一、被保險人從事角力、摔跤、柔道、空手道、跆拳道、馬術、拳擊、特技表演等的競賽或表演。 二、被保險人從事汽車、機車及自由車等的競賽或表演。 因除外責任及不保事項所致的保險事故，保險公司將不予理賠。完整之除外責任及不保事項規定都載明於保單條款中， | AF60: 本商品除外責任，包括： 一、要、被保險人故意行為或被保險人犯罪、酒駕行為。 二、戰爭、內亂及其他類似的武裝變亂。 三、原子或核子能裝置所引起的爆炸、灼熱、輻射或污染。 不保事項，包括： 一、被保險人從事角力、摔跤、柔道、空手道、跆拳道、馬術、拳擊、特技表演等的競賽或表演。 二、被保險人從事汽車、機車及自由車等的競賽或表演。 因除外責任及不保事項所致的保險事故，保險公司將不予理賠。完整之除外責任及不保事項規定都載明於保單條款中，請問您清楚嗎？ 【請客戶回答：清楚/不清楚】 | AG60: 您所投保的保誠人壽新守戶幸福減額定期壽險的保單利益，包含： 一、身故保險金或喪葬費用保險金、 二、完全失能保險金 三、完全失能扶助保險金 四、嚴重第三度燒燙傷保險金 五、重大傷害失能安養保險金 六、大眾運輸意外身故保險金或喪葬費用保險金 七、特定意外身故保險金或喪葬費用保險金 八、意外身故遺族關懷保險金 給付內容跟給付時間有載明在保單條款中，這些保險給付的相關內容， | AH60: 本商品除外責任，包括： 一、要、被保險人故意行為或被保險人犯罪、酒駕行為。 二、戰爭、內亂及其他類似的武裝變亂。 三、原子或核子能裝置所引起的爆炸、灼熱、輻射或污染。 不保事項，包括： 一、被保險人從事角力、摔跤、柔道、空手道、跆拳道、馬術、拳擊、特技表演等的競賽或表演。 二、被保險人從事汽車、機車及自由車等的競賽或表演。 因除外責任及不保事項所致的保險事故，保險公司將不予理賠。完整之除外責任及不保事項規定都載明於保單條款中， | AI60: 本商品除外責任，包括： 一、要、被保險人故意行為或被保險人犯罪、酒駕行為。 二、戰爭、內亂及其他類似的武裝變亂。 三、原子或核子能裝置所引起的爆炸、灼熱、輻射或污染。 不保事項，包括： 一、被保險人從事角力、摔跤、柔道、空手道、跆拳道、馬術、拳擊、特技表演等的競賽或表演。 二、被保險人從事汽車、機車及自由車等的競賽或表演。 因除外責任及不保事項所致的保險事故，保險公司將不予理賠。完整之除外責任及不保事項規定都載明於保單條款中，請問您清楚嗎？ 【請客戶回答：清楚/不清楚】
A61: 5O22 | B61: 保誠人壽新守戶幸福減額定期壽險 | C61: 9999-12-31 | D61: BNDTLN7 | E61: 不分紅定期壽險 | F61: NT$ | G61: 壽險-主約 | H61: M | I61: Y | M61: =AA61&錄音序號_確認語_2&""&B1_解約金商品錄音話術table!AB61&錄音序號_確認語_2 ->  | R61: 元 | T61: I | W61: =AG61&錄音序號_確認語_2&B1_解約金商品錄音話術table!AH61&錄音序號_確認語_2 ->  | Y61: NL | AA61: 您所投保的保誠人壽新守戶幸福減額定期壽險的給付項目，包含： 一、身故保險金或喪葬費用保險金、 二、完全失能保險金 三、完全失能扶助保險金 四、嚴重第三度燒燙傷保險金 五、重大傷害失能安養保險金 六、大眾運輸意外身故保險金或喪葬費用保險金 七、特定意外身故保險金或喪葬費用保險金 八、意外身故遺族關懷保險金 以上給付條件載明在保單條款中， | AB61: 本商品除外責任，包括： 一、要、被保險人故意行為或被保險人犯罪、酒駕行為。 二、戰爭、內亂及其他類似的武裝變亂。 三、原子或核子能裝置所引起的爆炸、灼熱、輻射或污染。 不保事項，包括： 一、被保險人從事角力、摔跤、柔道、空手道、跆拳道、馬術、拳擊、特技表演等的競賽或表演。 二、被保險人從事汽車、機車及自由車等的競賽或表演。 因除外責任及不保事項所致的保險事故，保險公司將不予理賠。完整之除外責任及不保事項規定都載明於保單條款中， | AC61: 本商品除外責任，包括： 一、要、被保險人故意行為或被保險人犯罪、酒駕行為。 二、戰爭、內亂及其他類似的武裝變亂。 三、原子或核子能裝置所引起的爆炸、灼熱、輻射或污染。 不保事項，包括： 一、被保險人從事角力、摔跤、柔道、空手道、跆拳道、馬術、拳擊、特技表演等的競賽或表演。 二、被保險人從事汽車、機車及自由車等的競賽或表演。 因除外責任及不保事項所致的保險事故，保險公司將不予理賠。完整之除外責任及不保事項規定都載明於保單條款中，請問您清楚嗎？ 【請客戶回答：清楚/不清楚】 | AD61: 您所投保的保誠人壽家家幸福定期壽險的給付項目，包含： 一、身故保險金或喪葬費用保險金、 二、完全失能保險金 三、完全失能扶助保險金 四、嚴重第三度燒燙傷保險金 五、重大傷害失能安養保險金 六、大眾運輸意外身故保險金或喪葬費用保險金 七、特定意外身故保險金或喪葬費用保險金 八、意外身故遺族關懷保險金 以上給付條件載明在保單條款及「建議書摘要表」中， | AE61: 本商品除外責任，包括： 一、要、被保險人故意行為或被保險人犯罪、酒駕行為。 二、戰爭、內亂及其他類似的武裝變亂。 三、原子或核子能裝置所引起的爆炸、灼熱、輻射或污染。 不保事項，包括： 一、被保險人從事角力、摔跤、柔道、空手道、跆拳道、馬術、拳擊、特技表演等的競賽或表演。 二、被保險人從事汽車、機車及自由車等的競賽或表演。 因除外責任及不保事項所致的保險事故，保險公司將不予理賠。完整之除外責任及不保事項規定都載明於保單條款中， | AF61: 本商品除外責任，包括： 一、要、被保險人故意行為或被保險人犯罪、酒駕行為。 二、戰爭、內亂及其他類似的武裝變亂。 三、原子或核子能裝置所引起的爆炸、灼熱、輻射或污染。 不保事項，包括： 一、被保險人從事角力、摔跤、柔道、空手道、跆拳道、馬術、拳擊、特技表演等的競賽或表演。 二、被保險人從事汽車、機車及自由車等的競賽或表演。 因除外責任及不保事項所致的保險事故，保險公司將不予理賠。完整之除外責任及不保事項規定都載明於保單條款中，請問您清楚嗎？ 【請客戶回答：清楚/不清楚】 | AG61: 您所投保的保誠人壽新守戶幸福減額定期壽險的保單利益，包含： 一、身故保險金或喪葬費用保險金、 二、完全失能保險金 三、完全失能扶助保險金 四、嚴重第三度燒燙傷保險金 五、重大傷害失能安養保險金 六、大眾運輸意外身故保險金或喪葬費用保險金 七、特定意外身故保險金或喪葬費用保險金 八、意外身故遺族關懷保險金 給付內容跟給付時間有載明在保單條款中，這些保險給付的相關內容， | AH61: 本商品除外責任，包括： 一、要、被保險人故意行為或被保險人犯罪、酒駕行為。 二、戰爭、內亂及其他類似的武裝變亂。 三、原子或核子能裝置所引起的爆炸、灼熱、輻射或污染。 不保事項，包括： 一、被保險人從事角力、摔跤、柔道、空手道、跆拳道、馬術、拳擊、特技表演等的競賽或表演。 二、被保險人從事汽車、機車及自由車等的競賽或表演。 因除外責任及不保事項所致的保險事故，保險公司將不予理賠。完整之除外責任及不保事項規定都載明於保單條款中， | AI61: 本商品除外責任，包括： 一、要、被保險人故意行為或被保險人犯罪、酒駕行為。 二、戰爭、內亂及其他類似的武裝變亂。 三、原子或核子能裝置所引起的爆炸、灼熱、輻射或污染。 不保事項，包括： 一、被保險人從事角力、摔跤、柔道、空手道、跆拳道、馬術、拳擊、特技表演等的競賽或表演。 二、被保險人從事汽車、機車及自由車等的競賽或表演。 因除外責任及不保事項所致的保險事故，保險公司將不予理賠。完整之除外責任及不保事項規定都載明於保單條款中，請問您清楚嗎？ 【請客戶回答：清楚/不清楚】
A62: 9F36 | B62: 保誠人壽美利人生外幣終身壽險(109) | C62: 9999-12-31 | D62: DCLPLU1 | E62: DCLPLU1 | F62: USD | G62: 壽險-主約 | H62: M | I62: Y | J62: C | M62: =AA62&錄音序號_確認語_2&""&B1_解約金商品錄音話術table!AB62&錄音序號_確認語_2 ->  | R62: 元 | S62: 至被保險人保險年齡達100歲當年之保單週年日 | T62: I | U62: ■祝壽保險金(給付後保險契約效力終止) 被保險人於保險年齡達100歲當年之保單週年日仍生存時，按「保險金額」及「應已繳總保費」二者取其較大值，給付祝壽保險金。 ■身故保險金或喪葬費用保險金(給付後保險契約效力終止) 被保險人身故時，按下列二款計算方式所得金額取其較大值，給付身故保險金： (1)「保險金額」(若在繳費期間則加計已繳但未到期保險費)。 (2)「應已繳總保費」。 ※訂立保險契約時，以受監護宣告尚未撤銷者為被保險人，其身故保險金或完全失能保險金之計算，另依條款約定。 ■完全失能保險金(給付後保險契約效力終止) 被保險人完全失能時，按下列二款計算方式所得金額取其較大值，給付完全失能保險金： (1)「保險金額」(若在繳費期間則加計已繳但未到期保險費)。 (2)「應已繳總保費」。 ■保單紅利(非保證給付項目) 保單紅利包括年度紅利、長青紅利及長青解約紅利。年度紅利由保誠人壽每年依分紅保險業務之實際經營狀況核定；長青紅利及長青解約紅利，由保誠人壽每年依分紅保險業務之實際經營狀況且考量長期之分紅績效核定，作為下列紅利給付之基礎： 1.年度紅利：自第二保單週年日起，每年分配年度紅利予要保人。要保人可選擇下列任一方式領取年度紅利：(1)現金給付(2)抵繳應繳保險費(3)儲存生息。 2.長青紅利：自第三保單年度起，於被保險人身故、完全失能或保險年齡達100歲當年之保單週年日仍生存時，給付當時適用之長青紅利予要保人。 3.長青解約紅利：自第三保單年度起，於要保人申請終止保險契約或減少保險金額時，依要保人終止或減少之「保險金額」比例計算，給付當時適用之長青解約紅利予要保人。 | W62: =AG62&錄音序號_確認語_2&B1_解約金商品錄音話術table!AH62&錄音序號_確認語_2 ->  | Y62: RF | AA62: 您所投保的保誠人壽美利人生外幣終身壽險(109)的給付項目，包含： 一、祝壽保險金。 二、身故保險金或喪葬費用保險金。 三、完全失能保險金。 四、保單紅利：包含年度紅利、長青紅利及長青解約紅利。 以上給付條件載明在保單條款及「建議書摘要表」中， | AB62: 本商品除外責任，包括： 要、被保險人故意行為或被保險人犯罪行為致被保險人死亡或完全失能。 因除外責任所致的保險事故，保險公司將不予理賠。完整之除外責任都載明於保單條款中， | AC62: 本商品的除外責任，包括： 要、被保險人故意行為或被保險人犯罪行為等除外責任所致的保險事故，保險公司將不予理賠。完整之除外責任都載明於保單條款中，請問您清楚嗎？ 【請客戶回答：清楚/不清楚】 | AD62: 您所投保的保誠人壽美利人生外幣終身壽險(109)的給付項目，包含： 一、祝壽保險金。 二、身故保險金或喪葬費用保險金。 三、完全失能保險金。 四、保單紅利：包含年度紅利、長青紅利及長青解約紅利。 以上給付條件載明在保單條款及「建議書摘要表」中， | AE62: 本商品除外責任，包括： 一、要保人故意致被保險人於死。 二、被保險人故意自殺或自成附表一所列完全失能程度之一者。但自契約訂立或復效之日起二年後故意自殺致死者，保誠人壽仍負給付身故保險金或喪葬費用保險金之責任。 三、被保險人因犯罪處死或拒捕或越獄致死或致成保單條款附表一所列完全失能程度之一者。 因除外責任所致的保險事故，保誠人壽不負給付保險金的責任。完整之除外責任都載明於保單條款中， | AF62: 本商品除外責任，包括： 一、要保人故意致被保險人於死。 二、被保險人故意自殺或自成附表一所列完全失能程度之一者。但自契約訂立或復效之日起二年後故意自殺致死者，保誠人壽仍負給付身故保險金或喪葬費用保險金之責任。 三、被保險人因犯罪處死或拒捕或越獄致死或致成保單條款附表一所列完全失能程度之一者。 因除外責任所致的保險事故，保誠人壽不負給付保險金的責任。完整之除外責任都載明於保單條款中，請問您清楚嗎？ 【請客戶回答：清楚/不清楚】 | AG62: 您所投保的保誠人壽美利人生外幣終身壽險(109)的保單利益，包含： 一、祝壽保險金。 二、身故保險金或喪葬費用保險金。 三、完全失能保險金。 四、保單紅利：包含年度紅利、長青紅利及長青解約紅利。 給付內容跟給付時間有載明在保單條款及「建議書摘要表」中，這些保險給付及保單紅利的相關內容， | AH62: 本商品除外責任，包括： 一、要保人故意致被保險人於死。 二、被保險人故意自殺或自成附表一所列完全失能程度之一者。但自契約訂立或復效之日起二年後故意自殺致死者，保誠人壽仍負給付身故保險金或喪葬費用保險金之責任。 三、被保險人因犯罪處死或拒捕或越獄致死或致成保單條款附表一所列完全失能程度之一者。 因除外責任所致的保險事故，保誠人壽不負給付保險金的責任。完整之除外責任都載明於保單條款中， | AI62: 本商品除外責任，包括： 一、要保人故意致被保險人於死。 二、被保險人故意自殺或自成附表一所列完全失能程度之一者。但自契約訂立或復效之日起二年後故意自殺致死者，保誠人壽仍負給付身故保險金或喪葬費用保險金之責任。 三、被保險人因犯罪處死或拒捕或越獄致死或致成保單條款附表一所列完全失能程度之一者。 因除外責任所致的保險事故，保誠人壽不負給付保險金的責任。完整之除外責任都載明於保單條款中，請問您清楚嗎？ 【請客戶回答：清楚/不清楚】
A63: 9895 | B63: 保誠人壽享利人生終身壽險 | C63: 9999-12-31 | D63: CCLPLN2 | E63: CCLPLN2 | F63: NT$ | G63: 壽險-主約 | H63: M | I63: Y | J63: C | M63: =AA63&錄音序號_確認語_2&""&B1_解約金商品錄音話術table!AB63&錄音序號_確認語_2 ->  | R63: 元 | S63: 至被保險人保險年齡達100歲當年之保單週年日 | T63: I | U63: ■祝壽保險金( 給付後保險契約效力終止 ) 被保險人於保險年齡達 100 歲當年之保單週年日且仍生存時，以「保險金額」、保單價值準備金及「應已繳總保費」，三者取其最大值，給付祝壽保險金。 ■身故保險金或喪葬費用保險金、完全失能保險金 1. 被保險人身故或完全失能時，以「保險金額」、保單價值準備金乘以之保單價值準備金比率及「應已繳總保費」，三者取其最大值，給付身故保險金或完全失能保險金，給付後，保險契約效力即行終止，若要保人選擇保險金分期給付，則保險契約效力改於「分期定期保險金給付期間」屆滿時終止。 2. 若要保人選擇保險金分期給付，得事先約定欲分期給付之「指定保險金」及「分期定期保險金給付期間」。開始給付分期定期保險金後，保單不再享有紅利分配。 ※ 訂立保險契約時，以受監護宣告尚未撤銷者為被保險人，其身故保險金或完全失能保險金之計算，另依條款約定。 ※ 被保險人同時或先後致成保單條款附表一所列二項以上之完全失能程度者，保誠人壽僅給付一項完全失能保險金。 ■保單紅利( 非保證給付項目 ) 保誠人壽每年依分紅保險業務之實際經營狀況且考量未來長期之分紅績效，核定該年度之可分配盈餘，作為下列紅利給付之基礎： 1. 年度紅利：自第二保單週年日起，依當時已宣告之年度紅利金額給付予要保人。 要保人可選擇下列任一方式領取年度紅利：(1) 現金給付。(2) 儲存生息。 2. 長青紅利 / 長青解約紅利： (1) 長青紅利：自第六保單年度起，於被保險人身故、完全失能或保險年齡達 100歲當年之保單週年日仍生存時，給付當時適用之長青紅利予要保人。 (2) 長青解約紅利：自第六保單年度起，於要保人申請終止保險契約或減少「保險金額」時，依要保人終止或減少之「保險金額」比例計算，給付當時適用之長青解約紅利予要保人。 | W63: =AG63&錄音序號_確認語_2&B1_解約金商品錄音話術table!AH63&錄音序號_確認語_2 ->  | Y63: RL | AA63: 您所投保的保誠人壽享利人生終身壽險的給付項目，包含： 一、祝壽保險金。 二、身故保險金或喪葬費用保險金。 三、完全失能保險金。 四、保單紅利：包含年度紅利、長青紅利及長青解約紅利。 以上給付條件載明在保單條款及「建議書摘要表」中， | AB63: 本商品除外責任，包括： 要、被保險人故意行為或被保險人犯罪行為致被保險人死亡或完全失能。 因除外責任所致的保險事故，保險公司將不予理賠。完整之除外責任都載明於保單條款中， | AC63: 本商品除外責任，包括： 要、被保險人故意行為或被保險人犯罪行為等除外責任所致的保險事故，保險公司將不予理賠。完整之除外責任都載明於保單條款中，請問您清楚嗎？ 【請客戶回答：清楚/不清楚】 | AD63: 您所投保的保誠人壽享利人生終身壽險的給付項目，包含： 一、祝壽保險金。 二、身故保險金或喪葬費用保險金。 三、完全失能保險金。 四、保單紅利：包含年度紅利、長青紅利及長青解約紅利。 以上給付條件載明在保單條款及「建議書摘要表」中， | AE63: 本商品除外責任，包括： 一、要保人故意致被保險人於死。 二、被保險人故意自殺或自成附表一所列完全失能程度之一者。但自契約訂立或復效之日起二年後故意自殺致死者，保誠人壽仍負給付身故保險金或喪葬費用保險金之責任。 三、被保險人因犯罪處死或拒捕或越獄致死或致成保單條款附表一所列完全失能程度之一者。 因除外責任所致的保險事故，保誠人壽不負給付保險金的責任。完整之除外責任都載明於保單條款中， | AF63: 本商品除外責任，包括： 一、要保人故意致被保險人於死。 二、被保險人故意自殺或自成附表一所列完全失能程度之一者。但自契約訂立或復效之日起二年後故意自殺致死者，保誠人壽仍負給付身故保險金或喪葬費用保險金之責任。 三、被保險人因犯罪處死或拒捕或越獄致死或致成保單條款附表一所列完全失能程度之一者。 因除外責任所致的保險事故，保誠人壽不負給付保險金的責任。完整之除外責任都載明於保單條款中，請問您清楚嗎？ 【請客戶回答：清楚/不清楚】 | AG63: 您所投保的保誠人壽享利人生終身壽險的保單利益，包含： 一、祝壽保險金。 二、身故保險金或喪葬費用保險金。 三、完全失能保險金。 四、保單紅利：包含年度紅利、長青紅利及長青解約紅利。 給付內容跟給付時間有載明在保單條款及「建議書摘要表」中，這些保險給付及保單紅利的相關內容， | AH63: 本商品除外責任，包括： 一、要保人故意致被保險人於死。 二、被保險人故意自殺或自成附表一所列完全失能程度之一者。但自契約訂立或復效之日起二年後故意自殺致死者，保誠人壽仍負給付身故保險金或喪葬費用保險金之責任。 三、被保險人因犯罪處死或拒捕或越獄致死或致成保單條款附表一所列完全失能程度之一者。 因除外責任所致的保險事故，保誠人壽不負給付保險金的責任。完整之除外責任都載明於保單條款中， | AI63: 本商品除外責任，包括： 一、要保人故意致被保險人於死。 二、被保險人故意自殺或自成附表一所列完全失能程度之一者。但自契約訂立或復效之日起二年後故意自殺致死者，保誠人壽仍負給付身故保險金或喪葬費用保險金之責任。 三、被保險人因犯罪處死或拒捕或越獄致死或致成保單條款附表一所列完全失能程度之一者。 因除外責任所致的保險事故，保誠人壽不負給付保險金的責任。完整之除外責任都載明於保單條款中，請問您清楚嗎？ 【請客戶回答：清楚/不清楚】
A64: 9R24 | B64: 保誠人壽傳富世代外幣終身壽險(109) | C64: 9999-12-31 | D64: BRDPLU1 | E64: BRDPLU1 | F64: USD | G64: 壽險-主約 | H64: M | I64: Y | J64: R | M64: =AA64&錄音序號_確認語_2&""&B1_解約金商品錄音話術table!AB64&錄音序號_確認語_2 ->  | R64: 元 | S64: 至被保險人保險年齡達100歲當年之保單週年日 | T64: I | U64: ■祝壽保險金 被保險人於保險年齡達100歲當年之保單週年日仍生存，以「當年度保險金額」、依「基本保險金額」所計算的保單價值準備金、及「應已繳總保費」，三者取其最大值，給付祝壽保險金，給付後，保險契約效力終止。 ■身故保險金或喪葬費用保險金、完全失能保險金 1.被保險人身故或致成條款約定完全失能程度之一時，以「當年度保險金額」、依「基本保險金額」所計算的保單價值準備金乘以保單價值準備金比率、及「應已繳總保費」，三者取其最大值，給付身故保險金或完全失能保險金，給付後，保險契約效力即行終止，若要保人選擇指定分期給付，則保險契約效力改於「分期定期保險金給付期間」屆滿時終止。 2.若要保人選擇指定分期給付，得事先約定欲分期給付之「指定保險金」及「分期定期保險金給付期間」(5、10、15、20、25年)。開始給付分期定期保險金後，保單不再享有紅利分配。 ※訂立保險契約時，以受監護宣告尚未撤銷者為被保險人，其身故給付之計算，另依條款約定。 ■保單紅利(非保證給付項目) 保誠人壽每年依據分紅保險業務之實際經營狀況且考量未來長期之分紅績效，核定該年度之分紅保額，作為下列紅利分配之基礎，並自屆滿第十保單週年之日開始分配： 1.「增額分紅保額」：每年分配一次。於下列時點一次給付之： (1)被保險人身故、完全失能或保險年齡達100歲當年之保單週年日仍生存，給付「累積已分配增額分紅保額」。 (2)要保人終止契約時，給付「累積已分配增額分紅保額」的保單價值準備金。 2.「額外分紅保額」：包含「長青額外分紅保額」與「長青解約額外分紅保額」，自宣告日起一年內有效，並不逐年累積，因此每年公佈之「額外分紅保額」可能較前一年度增加，亦可能減少。 (1)被保險人身故、完全失能或保險年齡達100歲當年之保單週年日仍生存，給付「長青額外分紅保額」。 (2)要保人終止契約時，給付「長青解約額外分紅保額」的保單價值準備金。 | W64: =AG64&錄音序號_確認語_2&B1_解約金商品錄音話術table!AH64&錄音序號_確認語_2 ->  | Y64: RF | AA64: 您所投保的保誠人壽傳富世代外幣終身壽險(109)的給付項目，包含： 一、祝壽保險金。 二、身故保險金或喪葬費用保險金、完全失能保險金。 三、保單紅利：包含「增額分紅保額」及「額外分紅保額」。 以上給付條件載明在保單條款及「建議書摘要表」中， | AB64: 本商品除外責任，包括： 要、被保險人故意行為或被保險人犯罪行為致被保險人死亡或完全失能。 因除外責任所致的保險事故，保險公司將不予理賠。完整之除外責任都載明於保單條款中， | AC64: 本商品除外責任，包括： 要、被保險人故意行為或被保險人犯罪行為等除外責任所致的保險事故，保險公司將不予理賠。完整之除外責任都載明於保單條款中，請問您清楚嗎？ 【請客戶回答：清楚/不清楚】 | AD64: 您所投保的保誠人壽傳富世代外幣終身壽險(109)的給付項目，包含： 一、祝壽保險金。 二、身故保險金或喪葬費用保險金、完全失能保險金。 三、保單紅利：包含「增額分紅保額」及「額外分紅保額」。 以上給付條件載明在保單條款及「建議書摘要表」中， | AE64: 本商品除外責任，包括： 一、要保人故意致被保險人於死。 二、被保險人故意自殺或自成附表一所列完全失能程度之一者。但自契約訂立或復效之日起二年後故意自殺致死者，保誠人壽仍負給付身故保險金或喪葬費用保險金之責任。 三、被保險人因犯罪處死或拒捕或越獄致死或致成保單條款附表一所列完全失能程度之一者。 因除外責任所致的保險事故，保誠人壽不負給付保險金的責任。完整之除外責任都載明於保單條款中， | AF64: 本商品除外責任，包括： 一、要保人故意致被保險人於死。 二、被保險人故意自殺或自成附表一所列完全失能程度之一者。但自契約訂立或復效之日起二年後故意自殺致死者，保誠人壽仍負給付身故保險金或喪葬費用保險金之責任。 三、被保險人因犯罪處死或拒捕或越獄致死或致成保單條款附表一所列完全失能程度之一者。 因除外責任所致的保險事故，保誠人壽不負給付保險金的責任。完整之除外責任都載明於保單條款中，請問您清楚嗎？ 【請客戶回答：清楚/不清楚】 | AG64: 您所投保的保誠人壽傳富世代外幣終身壽險(109)的保單利益，包含： 一、祝壽保險金。 二、身故保險金或喪葬費用保險金、完全失能保險金。 三、保單紅利：包含「增額分紅保額」及「額外分紅保額」。 給付內容跟給付時間有載明在保單條款及「建議書摘要表」中，這些保險給付及保單紅利的相關內容， | AH64: 本商品除外責任，包括： 一、要保人故意致被保險人於死。 二、被保險人故意自殺或自成附表一所列完全失能程度之一者。但自契約訂立或復效之日起二年後故意自殺致死者，保誠人壽仍負給付身故保險金或喪葬費用保險金之責任。 三、被保險人因犯罪處死或拒捕或越獄致死或致成保單條款附表一所列完全失能程度之一者。 因除外責任所致的保險事故，保誠人壽不負給付保險金的責任。完整之除外責任都載明於保單條款中， | AI64: 本商品除外責任，包括： 一、要保人故意致被保險人於死。 二、被保險人故意自殺或自成附表一所列完全失能程度之一者。但自契約訂立或復效之日起二年後故意自殺致死者，保誠人壽仍負給付身故保險金或喪葬費用保險金之責任。 三、被保險人因犯罪處死或拒捕或越獄致死或致成保單條款附表一所列完全失能程度之一者。 因除外責任所致的保險事故，保誠人壽不負給付保險金的責任。完整之除外責任都載明於保單條款中，請問您清楚嗎？ 【請客戶回答：清楚/不清楚】
A65: 9334 | B65: 保誠人壽五五登峰增額終身壽險(109) | C65: 9999-12-31 | D65: BCIPLN3 | E65: BCIPLN3 | F65: NT$ | G65: 壽險-主約 | H65: M | I65: Y | J65: C | M65: =AA65&錄音序號_確認語_2&""&B1_解約金商品錄音話術table!AB65&錄音序號_確認語_2 ->  | R65: 元 | S65: 至被保險人保險年齡達100歲當年之保單週年日 | T65: I | U65: ■祝壽保險金( 給付後保險契約效力終止 ) 被保險人於保險年齡達100歲當年之保單週年日且仍生存時，以「當年度保險金額」、保單價值準備金及「應已繳總保費」，三者取其最大值，給付祝壽保險金。 ■身故保險金或喪葬費用保險金、完全失能保險金(給付後保險契約效力終止) 1.被保險人身故或完全失能時，以「當年度保險金額」、保單價值準備金乘以保單價值準備金比率及「應已繳總保費」，三者取其最大值，給付身故保險金或完全失能保險金，給付後，保險契約效力即行終止，若要保人選擇保險金分期給付，則保險契約效力改於「分期定期保險金給付期間」屆滿時終止。 2.若要保人選擇保險金分期給付，得事先約定欲分期給付之「指定保險金」及「分期定期保險金給付期間」。開始給付分期定期保險金後，保單不再享有紅利分配。 ※訂立保險契約時，以受監護宣告尚未撤銷者為被保險人，其身故保險金或完全失能保險金之計算，另依條款約定。 ※被保險人同時或先後致成保單條款附表一所列二項以上之完全失能程度者，保誠人壽僅給付一項完全失能保險金。 ■保單紅利( 非保證給付項目 ) 保誠人壽每年依分紅保險業務之實際經營狀況且考量未來長期之分紅績效，核定該年度之可分配盈餘，作為下列紅利給付之基礎： 1.年度紅利：自第二保單週年日起，依當時已宣告之年度紅利金額給付予要保人。要保人可選擇下列任一方式領取年度紅利：(1)現金給付。(2)抵繳應繳保險費。(3)儲存生息。 2.長青紅利/長青解約紅利： (1)長青紅利：自第六保單年度起，於被保險人身故、完全失能或保險年齡達100歲當年之保單週年日仍生存時，給付當時適用之長青紅利予要保人。 (2)長青解約紅利：自第六保單年度起，於要保人申請終止保險契約或減少「基本保險金額」時，依要保人終止或減少之「基本保險金額」比例計算，給付當時適用之長青解約紅利予要保人。 | W65: =AG65&錄音序號_確認語_2&B1_解約金商品錄音話術table!AH65&錄音序號_確認語_2 ->  | Y65: RL | AA65: 您所投保的保誠人壽五五登峰增額終身壽險(109)的給付項目，包含： 一、祝壽保險金。 二、身故保險金或喪葬費用保險金、完全失能保險金。 三、保單紅利：包含年度紅利、長青紅利及長青解約紅利。 以上給付條件載明在保單條款及「建議書摘要表」中， | AB65: 本商品除外責任，包括： 要、被保險人故意行為或被保險人犯罪行為致被保險人死亡或完全失能。 因除外責任所致的保險事故，保險公司將不予理賠。完整之除外責任都載明於保單條款中， | AC65: 本商品除外責任，包括： 要、被保險人故意行為或被保險人犯罪行為等除外責任所致的保險事故，保險公司將不予理賠。完整之除外責任都載明於保單條款中，請問您清楚嗎？ 【請客戶回答：清楚/不清楚】 | AD65: 您所投保的保誠人壽五五登峰增額終身壽險(109)的給付項目，包含： 一、祝壽保險金。 二、身故保險金或喪葬費用保險金、完全失能保險金。 三、保單紅利：包含年度紅利、長青紅利及長青解約紅利。 以上給付條件載明在保單條款及「建議書摘要表」中， | AE65: 本商品除外責任，包括： 一、要保人故意致被保險人於死。 二、被保險人故意自殺或自成附表一所列完全失能程度之一者。但自契約訂立或復效之日起二年後故意自殺致死者，保誠人壽仍負給付身故保險金或喪葬費用保險金之責任。 三、被保險人因犯罪處死或拒捕或越獄致死或致成保單條款附表一所列完全失能程度之一者。 因除外責任所致的保險事故，保誠人壽不負給付保險金的責任。完整之除外責任都載明於保單條款中， | AF65: 本商品除外責任，包括： 一、要保人故意致被保險人於死。 二、被保險人故意自殺或自成附表一所列完全失能程度之一者。但自契約訂立或復效之日起二年後故意自殺致死者，保誠人壽仍負給付身故保險金或喪葬費用保險金之責任。 三、被保險人因犯罪處死或拒捕或越獄致死或致成保單條款附表一所列完全失能程度之一者。 因除外責任所致的保險事故，保誠人壽不負給付保險金的責任。完整之除外責任都載明於保單條款中，請問您清楚嗎？ 【請客戶回答：清楚/不清楚】 | AG65: 您所投保的保誠人壽五五登峰增額終身壽險(109)的保單利益，包含： 一、祝壽保險金。 二、身故保險金或喪葬費用保險金、完全失能保險金。 三、保單紅利：包含年度紅利、長青紅利及長青解約紅利。 給付內容跟給付時間有載明在保單條款及「建議書摘要表」中，這些保險給付及保單紅利的相關內容， | AH65: 本商品除外責任，包括： 一、要保人故意致被保險人於死。 二、被保險人故意自殺或自成附表一所列完全失能程度之一者。但自契約訂立或復效之日起二年後故意自殺致死者，保誠人壽仍負給付身故保險金或喪葬費用保險金之責任。 三、被保險人因犯罪處死或拒捕或越獄致死或致成保單條款附表一所列完全失能程度之一者。 因除外責任所致的保險事故，保誠人壽不負給付保險金的責任。完整之除外責任都載明於保單條款中， | AI65: 本商品除外責任，包括： 一、要保人故意致被保險人於死。 二、被保險人故意自殺或自成附表一所列完全失能程度之一者。但自契約訂立或復效之日起二年後故意自殺致死者，保誠人壽仍負給付身故保險金或喪葬費用保險金之責任。 三、被保險人因犯罪處死或拒捕或越獄致死或致成保單條款附表一所列完全失能程度之一者。 因除外責任所致的保險事故，保誠人壽不負給付保險金的責任。完整之除外責任都載明於保單條款中，請問您清楚嗎？ 【請客戶回答：清楚/不清楚】
A66: 9R35 | B66: 保誠人壽鑫傳世代外幣終身壽險(109) | C66: 9999-12-31 | D66: BRDPLU2 | E66: BRDPLU2 | F66: USD | G66: 壽險-主約 | H66: M | I66: Y | J66: R | M66: =AA66&錄音序號_確認語_2&""&B1_解約金商品錄音話術table!AB66&錄音序號_確認語_2 ->  | R66: 元 | S66: 至被保險人保險年齡達100歲當年之保單週年日 | T66: I | U66: ■祝壽保險金 被保險人於保險年齡達100歲當年之保單週年日仍生存，以「當年度保險金額」、依「基本保險金額」所計算的保單價值準備金、及「應已繳總保費」，三者取其最大值，給付祝壽保險金，給付後，保險契約效力終止。 ■身故保險金或喪葬費用保險金、完全失能保險金 1.被保險人身故或致成條款約定完全失能程度之一時，以「當年度保險金額」、依「基本保險金額」所計算的保單價值準備金乘以保單價值準備金比率、及「應已繳總保費」，三者取其最大值，給付身故保險金或完全失能保險金，給付後，保險契約效力即行終止，若要保人選擇指定分期給付，則保險契約效力改於「分期定期保險金給付期間」屆滿時終止。 2.若要保人選擇指定分期給付，得事先約定欲分期給付之「指定保險金」及「分期定期保險金給付期間」(5、10、15、20、25年)。開始給付分期定期保險金後，保單不再享有紅利分配。 ※訂立保險契約時，以受監護宣告尚未撤銷者為被保險人，其身故給付之計算，另依條款約定。 ■保單紅利(非保證給付項目) 保誠人壽每年依據分紅保險業務之實際經營狀況且考量未來長期之分紅績效，核定該年度之分紅保額，作為下列紅利分配之基礎，並自屆滿第9保單週年之日開始分配： 1.「增額分紅保額」：每年分配一次。於下列時點一次給付之： (1)被保險人身故、完全失能或保險年齡達100歲當年之保單週年日仍生存，給付「累積已分配增額分紅保額」及當時有效之「長青額外分紅保額」。 (2)要保人終止契約時，給付「累積已分配增額分紅保額」的保單價值準備金與當時有效之「長青解約額外分紅保額」的保單價值準備金。 2.「額外分紅保額」：包含「長青額外分紅保額」與「長青解約額外分紅保額」，自宣告日起一年內有效，並不逐年累積，因此每年公佈之「額外分紅保額」可能較前一年度增加，亦可能減少。 (1)被保險人身故、完全失能或保險年齡達100歲當年之保單週年日仍生存，給付「長青額外分紅保額」。 (2)要保人終止契約時，給付「長青解約額外分紅保額」的保單價值準備金。 | W66: =AG66&錄音序號_確認語_2&B1_解約金商品錄音話術table!AH66&錄音序號_確認語_2 ->  | Y66: RF | AA66: 您所投保的保誠人壽鑫傳世代外幣終身壽險(109)的給付項目，包含： 一、祝壽保險金。 二、身故保險金或喪葬費用保險金、完全失能保險金。 三、保單紅利：包含「增額分紅保額」及「額外分紅保額」。 以上給付條件載明在保單條款及「建議書摘要表」中， | AB66: 本商品除外責任，包括： 要、被保險人故意行為或被保險人犯罪行為致被保險人死亡或完全失能。 因除外責任所致的保險事故，保險公司將不予理賠。完整之除外責任都載明於保單條款中， | AC66: 本商品除外責任，包括： 要、被保險人故意行為或被保險人犯罪行為等除外責任所致的保險事故，保險公司將不予理賠。完整之除外責任都載明於保單條款中，請問您清楚嗎？ 【請客戶回答：清楚/不清楚】 | AD66: 您所投保的保誠人壽鑫傳世代外幣終身壽險(109)的給付項目，包含： 一、祝壽保險金。 二、身故保險金或喪葬費用保險金、完全失能保險金。 三、保單紅利：包含「增額分紅保額」及「額外分紅保額」。 以上給付條件載明在保單條款及「建議書摘要表」中， | AE66: 本商品除外責任，包括： 一、要保人故意致被保險人於死。 二、被保險人故意自殺或自成附表一所列完全失能程度之一者。但自契約訂立或復效之日起二年後故意自殺致死者，保誠人壽仍負給付身故保險金或喪葬費用保險金之責任。 三、被保險人因犯罪處死或拒捕或越獄致死或致成保單條款附表一所列完全失能程度之一者。 因除外責任所致的保險事故，保誠人壽不負給付保險金的責任。完整之除外責任都載明於保單條款中， | AF66: 本商品除外責任，包括： 一、要保人故意致被保險人於死。 二、被保險人故意自殺或自成附表一所列完全失能程度之一者。但自契約訂立或復效之日起二年後故意自殺致死者，保誠人壽仍負給付身故保險金或喪葬費用保險金之責任。 三、被保險人因犯罪處死或拒捕或越獄致死或致成保單條款附表一所列完全失能程度之一者。 因除外責任所致的保險事故，保誠人壽不負給付保險金的責任。完整之除外責任都載明於保單條款中，請問您清楚嗎？ 【請客戶回答：清楚/不清楚】 | AG66: 您所投保的保誠人壽鑫傳世代外幣終身壽險(109)的保單利益，包含： 一、祝壽保險金。 二、身故保險金或喪葬費用保險金、完全失能保險金。 三、保單紅利：包含「增額分紅保額」及「額外分紅保額」。 給付內容跟給付時間有載明在保單條款及「建議書摘要表」中，這些保險給付及保單紅利的相關內容， | AH66: 本商品除外責任，包括： 一、要保人故意致被保險人於死。 二、被保險人故意自殺或自成附表一所列完全失能程度之一者。但自契約訂立或復效之日起二年後故意自殺致死者，保誠人壽仍負給付身故保險金或喪葬費用保險金之責任。 三、被保險人因犯罪處死或拒捕或越獄致死或致成保單條款附表一所列完全失能程度之一者。 因除外責任所致的保險事故，保誠人壽不負給付保險金的責任。完整之除外責任都載明於保單條款中， | AI66: 本商品除外責任，包括： 一、要保人故意致被保險人於死。 二、被保險人故意自殺或自成附表一所列完全失能程度之一者。但自契約訂立或復效之日起二年後故意自殺致死者，保誠人壽仍負給付身故保險金或喪葬費用保險金之責任。 三、被保險人因犯罪處死或拒捕或越獄致死或致成保單條款附表一所列完全失能程度之一者。 因除外責任所致的保險事故，保誠人壽不負給付保險金的責任。完整之除外責任都載明於保單條款中，請問您清楚嗎？ 【請客戶回答：清楚/不清楚】
A67: 2213 | B67: 保誠人壽薪享幸福定期健康保險 | C67: 9999-12-31 | D67: ADMNTB1 | F67: NT$ | G67: 健康險-主約 | H67: M | I67: Y | M67: =AA67&錄音序號_確認語_2&""&B1_解約金商品錄音話術table!AB67&錄音序號_確認語_2 ->  | Q67: 10年期: 20-55歲； 20年期: 20-45歲 | R67: 元 | S67: 至被保險人保險年齡達 66 歲當年之保單週年日 | U67: 【失能收入補償保險金的給付】 第十三條 被保險人於本契約有效期間內，第一次因疾病或傷害致成附表所列第一級至第四級失能程度之一者，且被保險人於失能診斷確定日及以後每月之相當日仍生存者(無相當日者為該月之末日)，本公司按本契約之「保險金額」給付失能收入補償保險金，惟不超過本契約保險期間屆滿日之前一日。 被保險人致成二項以上附表所列第一級至第四級失能程度之一者，本公司只給付一項失能收入補償保險金。 【身故保險金或喪葬費用保險金的給付】 第十四條 被保險人於本契約有效期間且繳費期間 內身故者，本公司 按 「表定年繳保險費」 乘以經過保單年度乘以 「 保 險金額 」 （以每萬元為單位）所計得之金額 給付「身故保險金」，被保險人於本契約有效期間 且繳費期滿後 身故者，本公司按「表定年繳保險費」乘以繳費年期乘以乘以繳費年期乘以「「保險金額保險金額」」（以每萬元為單位）所計得之金額（以每萬元為單位）所計得之金額給付給付「身故保險金」，給付後本契約之效力即行終止。「身故保險金」，給付後本契約之效力即行終止。 被保險人於本契約有效 被保險人於本契約有效且於繳費期間且於繳費期間內身故者，本契約當期已繳付之未到期保險費將不予退還，亦不併入「身內身故者，本契約當期已繳付之未到期保險費將不予退還，亦不併入「身故保險金」之給付。故保險金」之給付。 訂立本契約時，以 訂立本契約時，以受監護宣告尚未撤銷者受監護宣告尚未撤銷者為被保險人，其身故保險金變更為喪葬費用保險金。為被保險人，其身故保險金變更為喪葬費用保險金。 前項被保險人於民國九十九年二月三日（含）以後所投保之喪葬費用保險金額總和（不限本公司），不得超 前項被保險人於民國九十九年二月三日（含）以後所投保之喪葬費用保險金額總和（不限本公司），不得超過訂立本契約時遺產及贈與稅法第十七條有關遺產稅喪葬費扣除額之半數，其超過部分本公司不負給付責任，過訂立本契約時遺產及贈與稅法第十七條有關遺產稅喪葬費扣除額之半數，其超過部分本公司不負給付責任，本公司並應無息退還該超過部分之已繳保險費。本公司並應無息退還該超過部分之已繳保險費。 前項情形，如要保人向二家（含）以上保險公司投保，或向同一保險公司投保數個保險契（附）約，且其投 前項情形，如要保人向二家（含）以上保險公司投保，或向同一保險公司投保數個保險契（附）約，且其投保之喪葬費用保險金額合計超過前項所定之限額者，本公司於所承保之喪葬費用金額範圍內，依各要保書所保之喪葬費用保險金額合計超過前項所定之限額者，本公司於所承保之喪葬費用金額範圍內，依各要保書所載之要保時間先後，依約給付喪葬費用保險金至前項喪葬費用額度上限為止，如有二家以上保險公司之保險載之要保時間先後，依約給付喪葬費用保險金至前項喪葬費用額度上限為止，如有二家以上保險公司之保險契約要保時間相同或無法區分其要保時間之先後者，各該保險公司應依其喪葬費用保險金額與扣除要保時間契約要保時間相同或無法區分其要保時間之先後者，各該保險公司應依其喪葬費用保險金額與扣除要保時間在先之保險公司應理賠之金額後所餘之限額比例分擔其責任。在先之保險公司應理賠之金額後所餘之限額比例分擔其責任。 【 【保險費保險費的的豁免豁免】】 第十五條 第十五條 被保險人於本契約有效且在繳費期間內，第一次因疾病或傷害致成附表所列第一級至第四級失能程度之一者， 被保險人於本契約有效且在繳費期間內，第一次因疾病或傷害致成附表所列第一級至第四級失能程度之一者，本公司自失能診斷確定之翌日起，豁免本契約本公司自失能診斷確定之翌日起，豁免本契約(不含其他附約不含其他附約)以後各到期日應繳付之保險費，本契約繼續有以後各到期日應繳付之保險費，本契約繼續有效；但本契約當期已繳付之未到期保險費將不予退還。效；但本契約當期已繳付之未到期保險費將不予退還。 要保人若依前項之約定豁免保險費後，不得再依第二十二條辦理「減額繳清保險」。 要保人若依前項之約定豁免保險費後，不得再依第二十二條辦理「減額繳清保險」。 要保人若依第一項約定豁免保險費後， 要保人若依第一項約定豁免保險費後，非經被保險人同意非經被保險人同意，不得再依第十條辦理契約的終止或依第二十一條，不得再依第十條辦理契約的終止或依第二十一條辦理「保險金額」之減少。辦理「保險金額」之減少。 | W67: =AG67&錄音序號_確認語_2&B1_解約金商品錄音話術table!AH67&錄音序號_確認語_2 ->  | Y67: NL | AA67: 您所投保的保誠人壽薪享幸福定期健康保險的給付項目，包含： 一、失能收入補償保險金、 二、身故保險金或喪葬費用保險金、 三、豁免保險費 以上給付條件載明在保單條款中， | AB67: 本商品除外責任，包括： 要、被保險人故意行為或被保險人犯罪行為致被保險人死亡或完全失能。 因除外責任及不保事項所致的保險事故，保險公司將不予理賠。完整之除外責任及不保事項規定都載明於保單條款中， | AC67: 本商品除外責任，包括： 要、被保險人故意行為或被保險人犯罪行為致被保險人死亡或完全失能。 因除外責任及不保事項所致的保險事故，保險公司將不予理賠。完整之除外責任及不保事項規定都載明於保單條款中，請問您清楚嗎？ 【請客戶回答：清楚/不清楚】 | AD67: 您所投保的保誠人壽薪享幸福定期健康保險的給付項目，包含： 一、失能收入補償保險金、 二、身故保險金或喪葬費用保險金、 三、豁免保險費 以上給付條件載明在保單條款中， | AE67: 本商品除外責任，包括： 一、要、被保險人故意行為或被保險人犯罪行為致被保險人死亡或完全失能。 因除外責任及不保事項所致的保險事故，保險公司將不予理賠。完整之除外責任及不保事項規定都載明於保單條款中， | AF67: 本商品除外責任，包括： 一、要、被保險人故意行為或被保險人犯罪行為致被保險人死亡或完全失能。 因除外責任及不保事項所致的保險事故，保險公司將不予理賠。完整之除外責任及不保事項規定都載明於保單條款中，請問您清楚嗎？ 【請客戶回答：清楚/不清楚】 | AG67: 您所投保的保誠人壽薪享幸福定期健康保險的保單利益，包含： 一、失能收入補償保險金、 二、身故保險金或喪葬費用保險金、 三、豁免保險費 給付內容跟給付時間有載明在保單條款中，這些保險給付的相關內容， | AH67: 本商品除外責任，包括： 一、要、被保險人故意行為或被保險人犯罪行為致被保險人死亡或完全失能。 因除外責任及不保事項所致的保險事故，保險公司將不予理賠。完整之除外責任及不保事項規定都載明於保單條款中， | AI67: 本商品除外責任，包括： 一、要、被保險人故意行為或被保險人犯罪行為等除外責任所致的保險事故，保險公司將不予理賠。完整之除外責任都載明於保單條款中，請問您清楚嗎？ 【請客戶回答：清楚/不清楚】
A68: 9R63 | B68: 保誠人壽六六長紅外幣終身壽險 | C68: 9999-12-31 | D68: ARDPLU3 | E68: ARDPLU3 | F68: USD | G68: 壽險-主約 | H68: M | I68: Y | J68: R | M68: =AA68&錄音序號_確認語_2&""&B1_解約金商品錄音話術table!AB68&錄音序號_確認語_2 ->  | R68: 元 | S68: 至被保險人保險年齡達110歲當年之保單週年日 | T68: I | U68: ■祝壽保險金( 給付後保險契約效力終止) 被保險人於保險年齡達110 歲當年之保單週年日仍生存時，以「保險金額」、保單價值準備金及「應已繳總保費」，三者取其最大值，給付祝壽保險金。 ■身故保險金或喪葬費用保險金、完全失能保險金 1. 「繳費期間」內，按「保單價值準備金」、「當年度保險金額」，二者取其最大值，給付身故保險金或完全失能保險金；給付後，保險契約效力即行終止，若要保人選擇保險金分期給付，則保險契約效力改於「分期定期保險金給付期間」屆滿時終止。 2. 「繳費期滿」後，按「保單價值準備金」、「應已繳總保費」、「當年度保險金額」，三者取其最大值，給付身故保險金或完全失能保險金；給付後，保險契約效力即行終止，若要保人選擇保險金分期給付，則保險契約效力改於「分期定期保險金給付期間」屆滿時終止。 3. 若要保人選擇保險金分期給付，得事先約定欲分期給付之「指定保險金」及「分期定期保險金給付期間」。開始給付分期定期保險金後，保單不再享有紅利分配。 ※ 被保險人於保險年齡達 16 歲前身故或完全失能者，或訂立保險契約時，以受監護宣告尚未撤銷者為被保險人，其身故保險金或完全失能保險金之計算，另依條款約定。 ※ 被保險人同時或先後致成保單條款附表一所列二項以上之完全失能程度者，保誠人壽僅給付一項完全失能保險金。 ■保單紅利(非保證給付項目) 保誠人壽每年依據分紅保險業務之實際經營狀況且考量未來長期之分紅績效，核定該年度之分紅保額，作為下列紅利分配之基礎，「增額分紅保額」與「額外分紅保額」分別自屆滿第十一及第十二保單週年之日開始，於每一保單週年日（含第十一及第十二保單週年日）分配： 1.「增額分紅保額」：每年分配一次。於下列時點一次給付之： (1)被保險人身故、完全失能或保險年齡達110歲當年之保單週年日仍生存，給付「累積已分配增額分紅保額」。 (2)要保人終止契約時，給付「累積已分配增額分紅保額」所計算之保單價值準備金。 2.「額外分紅保額」：包含「長青額外分紅保額」與「長青解約額外分紅保額」，自宣告日起一年內有效，並不逐年累積，因此每年公佈之「額外分紅保額」可能較前一年度增加，亦可能減少。 (1)被保險人身故、完全失能或保險年齡達110歲當年之保單週年日仍生存時，給付「長青額外分紅保額」。 (2)要保人終止契約時，給付「長青解約額外分紅保額」所計算之保單價值準備金。 | W68: =AG68&錄音序號_確認語_2&B1_解約金商品錄音話術table!AH68&錄音序號_確認語_2 ->  | Y68: RF | AA68: 您所投保的保誠人壽保誠人壽六六長紅外幣終身壽險的給付項目，包含： 一、祝壽保險金。 二、身故保險金或喪葬費用保險金、完全失能保險金。 三、保單紅利：包含「增額分紅保額」及「額外分紅保額」。 以上給付條件載明在保單條款及「建議書摘要表」中， | AB68: 本商品除外責任，包括： 要、被保險人故意行為或被保險人犯罪行為致被保險人死亡或完全失能。 因除外責任所致的保險事故，保險公司將不予理賠。完整之除外責任都載明於保單條款中， | AC68: 本商品除外責任，包括： 要、被保險人故意行為或被保險人犯罪行為等除外責任所致的保險事故，保險公司將不予理賠。完整之除外責任都載明於保單條款中，請問您清楚嗎？ 【請客戶回答：清楚/不清楚】 | AD68: 您所投保的保誠人壽保誠人壽六六長紅外幣終身壽險的給付項目，包含： 一、祝壽保險金。 二、身故保險金或喪葬費用保險金、完全失能保險金。 三、保單紅利：包含「增額分紅保額」及「額外分紅保額」。 以上給付條件載明在保單條款及「建議書摘要表」中， | AE68: 本商品除外責任，包括： 一、要保人故意致被保險人於死。 二、被保險人故意自殺或自成附表一所列完全失能程度之一者。但自契約訂立或復效之日起二年後故意自殺致死者，保誠人壽仍負給付身故保險金或喪葬費用保險金之責任。 三、被保險人因犯罪處死或拒捕或越獄致死或致成保單條款附表一所列完全失能程度之一者。 因除外責任所致的保險事故，保誠人壽不負給付保險金的責任。完整之除外責任都載明於保單條款中， | AF68: 本商品除外責任，包括： 一、要保人故意致被保險人於死。 二、被保險人故意自殺或自成附表一所列完全失能程度之一者。但自契約訂立或復效之日起二年後故意自殺致死者，保誠人壽仍負給付身故保險金或喪葬費用保險金之責任。 三、被保險人因犯罪處死或拒捕或越獄致死或致成保單條款附表一所列完全失能程度之一者。 因除外責任所致的保險事故，保誠人壽不負給付保險金的責任。完整之除外責任都載明於保單條款中，請問您清楚嗎？ 【請客戶回答：清楚/不清楚】 | AG68: 您所投保的保誠人壽保誠人壽六六長紅外幣終身壽險的保單利益，包含： 一、祝壽保險金。 二、身故保險金或喪葬費用保險金、完全失能保險金。 三、保單紅利：包含「增額分紅保額」及「額外分紅保額」。 給付內容跟給付時間有載明在保單條款及「建議書摘要表」中，這些保險給付及保單紅利的相關內容， | AH68: 本商品除外責任，包括： 一、要保人故意致被保險人於死。 二、被保險人故意自殺或自成附表一所列完全失能程度之一者。但自契約訂立或復效之日起二年後故意自殺致死者，保誠人壽仍負給付身故保險金或喪葬費用保險金之責任。 三、被保險人因犯罪處死或拒捕或越獄致死或致成保單條款附表一所列完全失能程度之一者。 因除外責任所致的保險事故，保誠人壽不負給付保險金的責任。完整之除外責任都載明於保單條款中， | AI68: 本商品除外責任，包括： 一、要保人故意致被保險人於死。 二、被保險人故意自殺或自成附表一所列完全失能程度之一者。但自契約訂立或復效之日起二年後故意自殺致死者，保誠人壽仍負給付身故保險金或喪葬費用保險金之責任。 三、被保險人因犯罪處死或拒捕或越獄致死或致成保單條款附表一所列完全失能程度之一者。 因除外責任所致的保險事故，保誠人壽不負給付保險金的責任。完整之除外責任都載明於保單條款中，請問您清楚嗎？ 【請客戶回答：清楚/不清楚】
A69: 9C04 | B69: 保誠人壽五五民豐人民幣增額終身壽險(109) | C69: 9999-12-31 | D69: BCIPLR1 | F69: CNY | G69: 壽險-主約 | H69: M | I69: Y | J69: C | M69: =AA69&錄音序號_確認語_2&""&B1_解約金商品錄音話術table!AB69&錄音序號_確認語_2 ->  | Q69: 0歲∼75歲 | R69: 元 | S69: 至被保險人保險年齡達100歲當年之保單週年日 | T69: I | W69: =AG69&錄音序號_確認語_2&B1_解約金商品錄音話術table!AH69&錄音序號_確認語_2 ->  | Y69: RF | AA69: 您所投保的保誠人壽五五民豐人民幣增額終身壽險(109)的給付項目，包含： 一、祝壽保險金。 二、身故保險金或喪葬費用保險金。 三、完全失能保險金。 四、保單紅利：包含年度紅利、長青紅利及長青解約紅利。 以上給付條件載明在保單條款及「建議書摘要表」中， | AB69: 本商品除外責任，包括： 要、被保險人故意行為或被保險人犯罪行為致被保險人死亡或完全失能。 因除外責任所致的保險事故，保險公司將不予理賠。完整之除外責任都載明於保單條款中， | AC69: 本商品除外責任，包括： 要、被保險人故意行為或被保險人犯罪行為等除外責任所致的保險事故，保險公司將不予理賠。完整之除外責任都載明於保單條款中，請問您清楚嗎？ 【請客戶回答：清楚/不清楚】 | AD69: 您所投保的保誠人壽五五民豐人民幣增額終身壽險(109)的給付項目，包含： 一、祝壽保險金。 二、身故保險金或喪葬費用保險金。 三、完全失能保險金。 四、保單紅利：包含年度紅利、長青紅利及長青解約紅利。 以上給付條件載明在保單條款及「建議書摘要表」中， | AE69: 本商品除外責任，包括： 一、要、被保險人故意行為或被保險人犯罪行為致被保險人死亡或完全失能。 因除外責任所致的保險事故，保險公司將不予理賠。完整之除外責任都載明於保單條款中， | AF69: 本商品除外責任，包括： 一、要、被保險人故意行為或被保險人犯罪行為致被保險人死亡或完全失能。 因除外責任所致的保險事故，保險公司將不予理賠。完整之除外責任都載明於保單條款中，請問您清楚嗎？ 【請客戶回答：清楚/不清楚】 | AG69: 您所投保的保誠人壽五五民豐人民幣增額終身壽險(109)的保單利益，包含： 一、祝壽保險金。 二、身故保險金或喪葬費用保險金。 三、完全失能保險金。 四、保單紅利：包含年度紅利、長青紅利及長青解約紅利。 給付內容跟給付時間有載明在保單條款及「建議書摘要表」中，這些保險給付及保單紅利的相關內容， | AH69: 本商品除外責任，包括： 一、要、被保險人故意行為或被保險人犯罪行為致被保險人死亡或完全失能。 因除外責任所致的保險事故，保險公司將不予理賠。完整之除外責任都載明於保單條款中， | AI69: 本商品除外責任，包括： 一、要、被保險人故意行為或被保險人犯罪行為等除外責任所致的保險事故，保險公司將不予理賠。完整之除外責任都載明於保單條款中，請問您清楚嗎？ 【請客戶回答：清楚/不清楚】
A70: 9R54 | B70: 保誠人壽彩色人生外幣終身壽險(109) | C70: 9999-12-31 | D70: ARLPLU4 | F70: USD | G70: 壽險-主約 | H70: M | I70: Y | J70: R | M70: =AA70&錄音序號_確認語_2&""&B1_解約金商品錄音話術table!AB70&錄音序號_確認語_2 ->  | Q70: 20～60歲 | R70: 元 | S70: 至被保險人保險年齡達110歲當年之保單週年日 | T70: I | U70: ■祝壽保險金( 給付後保險契約效力終止) 被保險人於保險年齡達110 歲當年之保單週年日仍生存時，以「基本保險金額」及依「基本保險金額」所計算的保單價值準備金。兩者取其最大，給付祝壽保險金。 ■身故保險金或喪葬費用保險金、完全失能保險金 1. 被保險人身故或致成保單條款約定完全失能程度之一時，保誠人壽按下列方式給付保險金，給付後保險契約效力即行終止。 (1) 第1 保單年度至第20 保單年度：以「『保單價值準備金』乘以 『保單價值準備金比率』」及「應已繳總保費」，兩者取其大者。 (2) 第20 保單年度屆滿後：以「『保單價值準備金』乘以 『保單價值準備金比率』」及「『基本保險金額』乘以 0.66」，兩者取其大者。 2. 若要保人選擇分期定額給付，開始給付後，保單不再享有紅利分配。保險契約效力改於「分期定額保險金給付期間」屆滿時終止。 ※ 訂立保險契約時，以受監護宣告尚未撤銷者為被保險人，其身故保險金變更為喪葬費用保險金。 ※ 被保險人同時或先後致成保單條款附表一所列二項以上之完全失能程度者，保誠人壽僅給付一項完全失能保險金。 ■保單紅利(非保證給付項目) 保誠人壽每年依據分紅保險業務之實際經營狀況且考量未來長期之分紅績效，核定該年度之分紅保額，作為下列紅利分配之基礎，並自屆滿第11保單週年之日開始分配： 1.「增額分紅保額」：每年分配一次。於下列時點一次給付之： (1)被保險人身故、完全失能或保險年齡達110歲當年之保單週年日仍生存，給付「累積已分配增額分紅保額」。 (2)要保人終止契約時，給付「累積已分配增額分紅保額」所計算之保單價值準備金。 2.「額外分紅保額」：包含「長青額外分紅保額」與「長青解約額外分紅保額」，自宣告日起一年內有效，並不逐年累積，因此每年公佈之「額外分紅保額」可能較前一年度增加，亦可能減少。 (1)被保險人身故、完全失能或保險年齡達110歲當年之保單週年日仍生存時，給付「長青額外分紅保額」。 (2)要保人終止契約時，給付「長青解約額外分紅保額」所計算之保單價值準備金。 | W70: =AG70&錄音序號_確認語_2&B1_解約金商品錄音話術table!AH70&錄音序號_確認語_2 ->  | Y70: RF | AA70: 您所投保的保誠人壽彩色人生外幣終身壽險(109)的給付項目，包含： 一、祝壽保險金。 二、身故保險金或喪葬費用保險金、完全失能保險金。 三、保單紅利：包含「增額分紅保額」及「額外分紅保額」。 以上給付條件載明在保單條款及「建議書摘要表」中， | AB70: 本商品除外責任，包括： 要、被保險人故意行為或被保險人犯罪行為致被保險人死亡或完全失能。 因除外責任所致的保險事故，保險公司將不予理賠。完整之除外責任都載明於保單條款中， | AC70: 本商品除外責任，包括： 要、被保險人故意行為或被保險人犯罪行為等除外責任所致的保險事故，保險公司將不予理賠。完整之除外責任都載明於保單條款中，請問您清楚嗎？ 【請客戶回答：清楚/不清楚】 | AD70: 您所投保的保誠人壽彩色人生外幣終身壽險(109)的給付項目，包含： 一、祝壽保險金。 二、身故保險金或喪葬費用保險金、完全失能保險金。 三、保單紅利：包含「增額分紅保額」及「額外分紅保額」。 以上給付條件載明在保單條款及「建議書摘要表」中， | AE70: 本商品除外責任，包括： 一、要保人故意致被保險人於死。 二、被保險人故意自殺或自成附表一所列完全失能程度之一者。但自契約訂立或復效之日起二年後故意自殺致死者，保誠人壽仍負給付身故保險金或喪葬費用保險金之責任。 三、被保險人因犯罪處死或拒捕或越獄致死或致成保單條款附表一所列完全失能程度之一者。 因除外責任所致的保險事故，保誠人壽不負給付保險金的責任。完整之除外責任都載明於保單條款中， | AF70: 本商品除外責任，包括： 一、要保人故意致被保險人於死。 二、被保險人故意自殺或自成附表一所列完全失能程度之一者。但自契約訂立或復效之日起二年後故意自殺致死者，保誠人壽仍負給付身故保險金或喪葬費用保險金之責任。 三、被保險人因犯罪處死或拒捕或越獄致死或致成保單條款附表一所列完全失能程度之一者。 因除外責任所致的保險事故，保誠人壽不負給付保險金的責任。完整之除外責任都載明於保單條款中，請問您清楚嗎？ 【請客戶回答：清楚/不清楚】 | AG70: 您所投保的保誠人壽彩色人生外幣終身壽險(109)的保單利益，包含： 一、祝壽保險金。 二、身故保險金或喪葬費用保險金、完全失能保險金。 三、保單紅利：包含「增額分紅保額」及「額外分紅保額」。 給付內容跟給付時間有載明在保單條款及「建議書摘要表」中，這些保險給付及保單紅利的相關內容， | AH70: 本商品除外責任，包括： 一、要保人故意致被保險人於死。 二、被保險人故意自殺或自成附表一所列完全失能程度之一者。但自契約訂立或復效之日起二年後故意自殺致死者，保誠人壽仍負給付身故保險金或喪葬費用保險金之責任。 三、被保險人因犯罪處死或拒捕或越獄致死或致成保單條款附表一所列完全失能程度之一者。 因除外責任所致的保險事故，保誠人壽不負給付保險金的責任。完整之除外責任都載明於保單條款中， | AI70: 本商品除外責任，包括： 一、要保人故意致被保險人於死。 二、被保險人故意自殺或自成附表一所列完全失能程度之一者。但自契約訂立或復效之日起二年後故意自殺致死者，保誠人壽仍負給付身故保險金或喪葬費用保險金之責任。 三、被保險人因犯罪處死或拒捕或越獄致死或致成保單條款附表一所列完全失能程度之一者。 因除外責任所致的保險事故，保誠人壽不負給付保險金的責任。完整之除外責任都載明於保單條款中，請問您清楚嗎？ 【請客戶回答：清楚/不清楚】
A71: 9583 | B71: 保誠人壽三沛一生終身保險 | C71: 9999-12-31 | D71: ACLPEN6 | F71: NT$ | G71: 壽險-主約 | H71: M | I71: Y | J71: C | M71: =AA71&錄音序號_確認語_2&""&B1_解約金商品錄音話術table!AB71&錄音序號_確認語_2 ->  | Q71: 15歲~70歲 | R71: 元 | S71: 至被保險人保險年齡達110歲當年之保單週年日 | T71: I | U71: ■生存保險金 被保險人於本契約有效期間內，於第七保單週年日起至「保險年齡」達一百零九歲（含）止之每一保單週年日仍生存且未致成附表所列完全失能程度之一時，按「保險金額」的百分之零點六六給付「生存保險金」。 ■祝壽保險金( 給付後保險契約效力終止 ) 被保險人於保險年齡達110歲當年之保單週年日且仍生存時，以當時之「保險金額」，給付祝壽保險金。 ■身故保險金或喪葬費用保險金、完全失能保險金(給付後保險契約效力終止) 1.被保險人於本契約有效期間 且於第一 保單 年 度 至第 六 保單年度 內身故者或完全失能時，按當時之保單價值準備金 乘以保單價值準備金比率及「應已繳總保費」，二者取其最大者給付身故保險金或完全失能保險金。 2.被保險人於本契約有效期 間 且於第 六 保單年度屆滿後 身故者，按當時之保單價值準備金 乘以保單價值準備金比率 給付身故保險金或完全失能保險金 。 3.給付後，保險契約效力即行終止。若要保人選擇保險金分期給付，則保險契約效力改於「分期定期保險金給付期間」屆滿時終止。開始給付分期定期保險金後，保單不再享有紅利分配。 ※「應已繳總保費」，於繳費期間內，被保險人身故或完全失能診斷確定當時，按「保險金額」計算「標準體」之年繳保險費乘以保單年度數之金額；於繳費期滿後，按「保險金額」計算「標準體」之年繳保險費乘以繳費年期之金額。 ※訂立保險契約時，以受監護宣告尚未撤銷者為被保險人，其身故保險金或完全失能保險金之計算，另依條款約定。 ※被保險人同時或先後致成保單條款附表一所列二項以上之完全失能程度者，保誠人壽僅給付一項完全失能保險金。 ■保單紅利( 非保證給付項目 ) 保誠人壽每年依分紅保險業務之實際經營狀況且考量未來長期之分紅績效，核定該年度之可分配盈餘，作為下列紅利給付之基礎： 1.年度紅利：自第七保單週年日起，依當時已宣告之年度紅利金額給付予要保人。要保人可選擇下列任一方式領取年度紅利：(1)現金給付。(2)儲存生息。 2.長青紅利/長青解約紅利： (1)長青紅利：自第六保單年度起，於被保險人身故、完全失能或保險年齡達110歲當年之保單週年日仍生存時，給付當時適用之長青紅利予要保人。 (2)長青解約紅利：自第六保單年度起，於要保人申請終止保險契約或減少「保險金額」時，依要保人終止或減少之「保險金額」比例計算，給付當時適用之長青解約紅利予要保人。 | V71: =AD71&錄音序號_確認語_2&AE71&錄音序號_確認語_2 ->  | W71: =AG71&錄音序號_確認語_2&B1_解約金商品錄音話術table!AH71&錄音序號_確認語_2 ->  | Y71: RL | AA71: 您所投保的保誠人壽三沛一生終身保險的給付項目，包含： 一、生存保險金。 二、祝壽保險金。 三、身故保險金或喪葬費用保險金、完全失能保險金。 四、保單紅利：包含年度紅利、長青紅利及長青解約紅利。 以上給付條件載明在保單條款及「建議書摘要表」中， | AB71: 本商品除外責任，包括： 要、被保險人故意行為或被保險人犯罪行為致被保險人死亡或完全失能。 因除外責任所致的保險事故，保險公司將不予理賠。完整之除外責任都載明於保單條款中， | AC71: 本商品除外責任，包括： 要、被保險人故意行為或被保險人犯罪行為等除外責任所致的保險事故，保險公司將不予理賠。完整之除外責任都載明於保單條款中，請問您清楚嗎？ 【請客戶回答：清楚/不清楚】 | AD71: 您所投保的保誠人壽三沛一生終身保險的給付項目，包含： 一、生存保險金。 二、祝壽保險金。 三、身故保險金或喪葬費用保險金、完全失能保險金。 四、保單紅利：包含年度紅利、長青紅利及長青解約紅利。 以上給付條件載明在保單條款及「建議書摘要表」中， | AE71: 本商品除外責任，包括： 一、要保人故意致被保險人於死。 二、被保險人故意自殺或自成附表一所列完全失能程度之一者。但自契約訂立或復效之日起二年後故意自殺致死者，保誠人壽仍負給付身故保險金或喪葬費用保險金之責任。 三、被保險人因犯罪處死或拒捕或越獄致死或致成保單條款附表一所列完全失能程度之一者。 因除外責任所致的保險事故，保誠人壽不負給付保險金的責任。完整之除外責任都載明於保單條款中， | AF71: 本商品除外責任，包括： 一、要保人故意致被保險人於死。 二、被保險人故意自殺或自成附表一所列完全失能程度之一者。但自契約訂立或復效之日起二年後故意自殺致死者，保誠人壽仍負給付身故保險金或喪葬費用保險金之責任。 三、被保險人因犯罪處死或拒捕或越獄致死或致成保單條款附表一所列完全失能程度之一者。 因除外責任所致的保險事故，保誠人壽不負給付保險金的責任。完整之除外責任都載明於保單條款中，請問您清楚嗎？ 【請客戶回答：清楚/不清楚】 | AG71: 您所投保的保誠人壽三沛一生終身保險的保單利益，包含： 一、生存保險金。 二、祝壽保險金。 三、身故保險金或喪葬費用保險金、完全失能保險金。 四、保單紅利：包含年度紅利、長青紅利及長青解約紅利。 給付內容跟給付時間有載明在保單條款及「建議書摘要表」中，這些保險給付及保單紅利的相關內容， | AH71: 本商品除外責任，包括： 一、要、被保險人故意行為或被保險人犯罪行為致被保險人死亡或完全失能。 因除外責任所致的保險事故，保險公司將不予理賠。完整之除外責任都載明於保單條款中， | AI71: 本商品除外責任，包括： 一、要、被保險人故意行為或被保險人犯罪行為等除外責任所致的保險事故，保險公司將不予理賠。完整之除外責任都載明於保單條款中，請問您清楚嗎？ 【請客戶回答：清楚/不清楚】
A72: 9943 | B72: 保誠人壽富貴369終身壽險(109) | C72: 9999-12-31 | D72: ACLPLN7 | F72: NT$ | G72: 壽險-主約 | H72: M | I72: Y | J72: C | M72: =AA72&錄音序號_確認語_2&""&B1_解約金商品錄音話術table!AB72&錄音序號_確認語_2 ->  | R72: 元 | S72: 至被保險人保險年齡達100歲當年之保單週年日 | T72: I | W72: =AG72&錄音序號_確認語_2&B1_解約金商品錄音話術table!AH72&錄音序號_確認語_2 ->  | Y72: RL | AA72: 您所投保的保誠人壽富貴369終身壽險(109)的給付項目，包含： 一、祝壽保險金。 二、身故保險金或喪葬費用保險金、完全失能保險金。 三、保單紅利：包含年度紅利、長青紅利及長青解約紅利。 以上給付條件載明在保單條款及「建議書摘要表」中， | AB72: 本商品除外責任，包括： 要、被保險人故意行為或被保險人犯罪行為致被保險人死亡或完全失能。 因除外責任所致的保險事故，保險公司將不予理賠。完整之除外責任都載明於保單條款中， | AC72: 本商品除外責任，包括： 要、被保險人故意行為或被保險人犯罪行為等除外責任所致的保險事故，保險公司將不予理賠。完整之除外責任都載明於保單條款中，請問您清楚嗎？ 【請客戶回答：清楚/不清楚】 | AD72: 您所投保的保誠人壽富貴369終身壽險(109)的給付項目，包含： 一、祝壽保險金。 二、身故保險金或喪葬費用保險金、完全失能保險金。 三、保單紅利：包含年度紅利、長青紅利及長青解約紅利。 以上給付條件載明在保單條款及「建議書摘要表」中， | AE72: 本商品除外責任，包括： 一、要保人故意致被保險人於死。 二、被保險人故意自殺或自成附表一所列完全失能程度之一者。但自契約訂立或復效之日起二年後故意自殺致死者，保誠人壽仍負給付身故保險金或喪葬費用保險金之責任。 三、被保險人因犯罪處死或拒捕或越獄致死或致成保單條款附表一所列完全失能程度之一者。 因除外責任所致的保險事故，保誠人壽不負給付保險金的責任。完整之除外責任都載明於保單條款中， | AF72: 本商品除外責任，包括： 一、要保人故意致被保險人於死。 二、被保險人故意自殺或自成附表一所列完全失能程度之一者。但自契約訂立或復效之日起二年後故意自殺致死者，保誠人壽仍負給付身故保險金或喪葬費用保險金之責任。 三、被保險人因犯罪處死或拒捕或越獄致死或致成保單條款附表一所列完全失能程度之一者。 因除外責任所致的保險事故，保誠人壽不負給付保險金的責任。完整之除外責任都載明於保單條款中，請問您清楚嗎？ 【請客戶回答：清楚/不清楚】 | AG72: 您所投保的保誠人壽富貴369終身壽險(109)的保單利益，包含： 一、祝壽保險金。 二、身故保險金或喪葬費用保險金、完全失能保險金。 三、保單紅利：包含年度紅利、長青紅利及長青解約紅利。 給付內容跟給付時間有載明在保單條款及「建議書摘要表」中，這些保險給付及保單紅利的相關內容， | AH72: 本商品除外責任，包括： 一、要保人故意致被保險人於死。 二、被保險人故意自殺或自成附表一所列完全失能程度之一者。但自契約訂立或復效之日起二年後故意自殺致死者，保誠人壽仍負給付身故保險金或喪葬費用保險金之責任。 三、被保險人因犯罪處死或拒捕或越獄致死或致成保單條款附表一所列完全失能程度之一者。 因除外責任所致的保險事故，保誠人壽不負給付保險金的責任。完整之除外責任都載明於保單條款中， | AI72: 本商品除外責任，包括： 一、要保人故意致被保險人於死。 二、被保險人故意自殺或自成附表一所列完全失能程度之一者。但自契約訂立或復效之日起二年後故意自殺致死者，保誠人壽仍負給付身故保險金或喪葬費用保險金之責任。 三、被保險人因犯罪處死或拒捕或越獄致死或致成保單條款附表一所列完全失能程度之一者。 因除外責任所致的保險事故，保誠人壽不負給付保險金的責任。完整之除外責任都載明於保單條款中，請問您清楚嗎？ 【請客戶回答：清楚/不清楚】
A73: 9363 | B73: 保誠人壽五五登峰增額終身壽險(109A) | C73: 9999-12-31 | D73: ACIPLN6 | F73: NT$ | G73: 壽險-主約 | H73: M | I73: I | J73: C | M73: =AA73&錄音序號_確認語_2&""&B1_解約金商品錄音話術table!AB73&錄音序號_確認語_2 ->  | R73: 元 | S73: 至被保險人保險年齡達100歲當年之保單週年日 | T73: I | U73: ■祝壽保險金( 給付後保險契約效力終止 ) 被保險人於保險年齡達100歲當年之保單週年日且仍生存時，以「當年度保險金額」、保單價值準備金及「應已繳總保費」，三者取其最大值，給付祝壽保險金。 ■身故保險金或喪葬費用保險金、完全失能保險金(給付後保險契約效力終止) 1.被保險人身故或完全失能時，以「當年度保險金額」、保單價值準備金乘以保單價值準備金比率及「應已繳總保費」，三者取其最大值，給付身故保險金或完全失能保險金，給付後，保險契約效力即行終止，若要保人選擇保險金分期給付，則保險契約效力改於「分期定期保險金給付期間」屆滿時終止。 2.若要保人選擇保險金分期給付，得事先約定欲分期給付之「指定保險金」及「分期定期保險金給付期間」。開始給付分期定期保險金後，保單不再享有紅利分配。 ※訂立保險契約時，以受監護宣告尚未撤銷者為被保險人，其身故保險金或完全失能保險金之計算，另依條款約定。 ※被保險人同時或先後致成保單條款附表一所列二項以上之完全失能程度者，保誠人壽僅給付一項完全失能保險金。 ■保單紅利( 非保證給付項目 ) 保誠人壽每年依分紅保險業務之實際經營狀況且考量未來長期之分紅績效，核定該年度之可分配盈餘，作為下列紅利給付之基礎： 1.年度紅利：自第二保單週年日起，依當時已宣告之年度紅利金額給付予要保人。要保人可選擇下列任一方式領取年度紅利：(1)現金給付。(2)抵繳應繳保險費。(3)儲存生息。 2.長青紅利/長青解約紅利： (1)長青紅利：自第六保單年度起，於被保險人身故、完全失能或保險年齡達100歲當年之保單週年日仍生存時，給付當時適用之長青紅利予要保人。 (2)長青解約紅利：自第六保單年度起，於要保人申請終止保險契約或減少「基本保險金額」時，依要保人終止或減少之「基本保險金額」比例計算，給付當時適用之長青解約紅利予要保人。 | W73: =AG73&錄音序號_確認語_2&B1_解約金商品錄音話術table!AH73&錄音序號_確認語_2 ->  | Y73: RL | AA73: 您所投保的保誠人壽五五登峰增額終身壽險(109A)的給付項目，包含： 一、祝壽保險金。 二、身故保險金或喪葬費用保險金、完全失能保險金。 三、保單紅利：包含年度紅利、長青紅利及長青解約紅利。 以上給付條件載明在保單條款及「建議書摘要表」中， | AB73: 本商品除外責任，包括： 要、被保險人故意行為或被保險人犯罪行為致被保險人死亡或完全失能。 因除外責任所致的保險事故，保險公司將不予理賠。完整之除外責任都載明於保單條款中， | AC73: 本商品除外責任，包括： 要、被保險人故意行為或被保險人犯罪行為等除外責任所致的保險事故，保險公司將不予理賠。完整之除外責任都載明於保單條款中，請問您清楚嗎？ 【請客戶回答：清楚/不清楚】 | AD73: 您所投保的保誠人壽五五登峰增額終身壽險(109A)的給付項目，包含： 一、祝壽保險金。 二、身故保險金或喪葬費用保險金、完全失能保險金。 三、保單紅利：包含年度紅利、長青紅利及長青解約紅利。 以上給付條件載明在保單條款及「建議書摘要表」中， | AE73: 本商品除外責任，包括： 一、要保人故意致被保險人於死。 二、被保險人故意自殺或自成附表一所列完全失能程度之一者。但自契約訂立或復效之日起二年後故意自殺致死者，保誠人壽仍負給付身故保險金或喪葬費用保險金之責任。 三、被保險人因犯罪處死或拒捕或越獄致死或致成保單條款附表一所列完全失能程度之一者。 因除外責任所致的保險事故，保誠人壽不負給付保險金的責任。完整之除外責任都載明於保單條款中， | AF73: 本商品除外責任，包括： 一、要保人故意致被保險人於死。 二、被保險人故意自殺或自成附表一所列完全失能程度之一者。但自契約訂立或復效之日起二年後故意自殺致死者，保誠人壽仍負給付身故保險金或喪葬費用保險金之責任。 三、被保險人因犯罪處死或拒捕或越獄致死或致成保單條款附表一所列完全失能程度之一者。 因除外責任所致的保險事故，保誠人壽不負給付保險金的責任。完整之除外責任都載明於保單條款中，請問您清楚嗎？ 【請客戶回答：清楚/不清楚】 | AG73: 您所投保的保誠人壽五五登峰增額終身壽險(109A)的保單利益，包含： 一、祝壽保險金。 二、身故保險金或喪葬費用保險金、完全失能保險金。 三、保單紅利：包含年度紅利、長青紅利及長青解約紅利。 給付內容跟給付時間有載明在保單條款及「建議書摘要表」中，這些保險給付及保單紅利的相關內容， | AH73: 本商品除外責任，包括： 一、要保人故意致被保險人於死。 二、被保險人故意自殺或自成附表一所列完全失能程度之一者。但自契約訂立或復效之日起二年後故意自殺致死者，保誠人壽仍負給付身故保險金或喪葬費用保險金之責任。 三、被保險人因犯罪處死或拒捕或越獄致死或致成保單條款附表一所列完全失能程度之一者。 因除外責任所致的保險事故，保誠人壽不負給付保險金的責任。完整之除外責任都載明於保單條款中， | AI73: 本商品除外責任，包括： 一、要保人故意致被保險人於死。 二、被保險人故意自殺或自成附表一所列完全失能程度之一者。但自契約訂立或復效之日起二年後故意自殺致死者，保誠人壽仍負給付身故保險金或喪葬費用保險金之責任。 三、被保險人因犯罪處死或拒捕或越獄致死或致成保單條款附表一所列完全失能程度之一者。 因除外責任所致的保險事故，保誠人壽不負給付保險金的責任。完整之除外責任都載明於保單條款中，請問您清楚嗎？ 【請客戶回答：清楚/不清楚】
A74: 9FE3 | B74: 保誠人壽美利年年外幣終身保險 | C74: 9999-12-31 | D74: ACLPEU8 | F74: USD | G74: 壽險-主約 | H74: M | I74: Y | J74: C | M74: =AA74&錄音序號_確認語_2&""&B1_解約金商品錄音話術table!AB74&錄音序號_確認語_2 ->  | R74: 元 | S74: 至被保險人保險年齡達100歲當年之保單週年日 | T74: I | U74: ■生存保險金 被保險人於第一保單週年日起至保險年齡達99歲(含)止之每一保單週年日仍生存時， 按下列方式給付生存保險金： 1.第一保單週年日：保險金額的3.2%。 2.第二保單週年日：保險金額的6.4%。 3.第三保單週年日至第五保單週年日：保險金額的9.6%。 4.第六保單週年日(含)以後：保險金額的0.6%。 ■祝壽保險金( 給付後保險契約效力終止 ) 被保險人於保險年齡達100歲當年之保單週年日且仍生存時，按下列三款計算方式所得金額取其最大值，給付祝壽保險金：1.保險金額。2.保單價值準備金。3.應已繳總保費(註)。 註：「應已繳總保費」，於繳費期間內，被保險人身故或完全失能診斷確定當時，按「保險金額」計算「標準體」之年繳保險費乘以保單年度數之金額；於繳費期滿後，按「保險金額」計算「標準體」之年繳保險費乘以繳費年期之金額。※訂立保險契約時，以受監護宣告尚未撤銷者為被保險人，其身故保險金或完全失能保險金之計算，另依條款約定。 ■身故保險金或喪葬費用保險金、完全失能保險金(給付後保險契約效力終止) 1.被保險人身故或完全失能時，按下列三款計算方式所得金額取其最大值，給付身故保險金或完全失能保險金，給付後，保險契約效力即行終止，若要保人選擇保險金分期給付，則保險契約效力改於「分期定期保險金給付期間」屆滿時終止。 (1)保險金額(若在繳費期間，加計按日數比例計算之當期已繳但未到期保險費)。 (2)保單價值準備金乘以保單價值準備金比率(請參照P.4)。 (3)應已繳總保費。 2.若要保人選擇保險金分期給付，得事先約定欲分期給付之「指定保險金」及「分期定期保險金給付期間」。開始給付分期定期保險金後，保單不再享有紅利分配。「分期定期保險金給付期間」屆滿時，保險契約即行終止。 ※以未滿十五足歲之未成年人為被保險人，除喪葬費用之給付外，其餘死亡給付之約定於被保險人滿十五足歲之日起發生效力；被保險人滿十五足歲前死亡者，其身故保險金變更為喪葬費用保險金。 ※訂定保險契約時，以受監護宣告尚未撤銷者為被保險人，其身故給付之計算，另依條款約定。 ※被保險人同時或先後致成保單條款附表一所列二項以上之完全失能程度者，保誠人壽僅給付一項完全失能保險金。 ■保單紅利( 非保證給付項目 ) 保誠人壽每年依分紅保險業務之實際經營狀況且考量未來長期之分紅績效，核定該年度之可分配盈餘，作為下列紅利給付之基礎： 1.年度紅利：自第六保單週年日起，依當時已宣告之年度紅利金額給付予要保人。要保人可選擇下列任一方式領取年度紅利：(1)現金給付。(2)儲存生息。 2.長青紅利/長青解約紅利： (1)長青紅利：自第六保單年度起，於被保險人身故、完全失能或保險年齡達100歲當年之保單週年日仍生存時，給付當時適用之長青紅利予要保人。 (2)長青解約紅利：自第六保單年度起，於要保人申請終止保險契約或減少「保險金額」時，依要保人終止或減少之「保險金額」比例計算，給付當時適用之長青解約紅利予要保人。 ※給付身故保險金、喪葬費用保險金、完全失能保險金或祝壽保險金時，若仍有要保人未請求或保誠人壽應給付之保單紅利金額及其利息，將一併給付予該保險金受益人。 | W74: =AG74&錄音序號_確認語_2&B1_解約金商品錄音話術table!AH74&錄音序號_確認語_2 ->  | Y74: RF | AA74: 您所投保的保誠人壽美利年年外幣終身保險的給付項目，包含： 一、生存保險金。 二、祝壽保險金。 三、身故保險金或喪葬費用保險金。 四、完全失能保險金。 五、保單紅利：包含年度紅利、長青紅利及長青解約紅利。 以上給付條件載明在保單條款及「建議書摘要表」中， | AB74: 本商品除外責任，包括： 要、被保險人故意行為或被保險人犯罪行為致被保險人死亡或完全失能。 因除外責任所致的保險事故，保險公司將不予理賠。完整之除外責任都載明於保單條款中， | AC74: 本商品除外責任，包括： 要、被保險人故意行為或被保險人犯罪行為等除外責任所致的保險事故，保險公司將不予理賠。完整之除外責任都載明於保單條款中，請問您清楚嗎？ 【請客戶回答：清楚/不清楚】 | AD74: 您所投保的保誠人壽美利年年外幣終身保險的給付項目，包含： 一、生存保險金。 三、身故保險金或喪葬費用保險金。 四、完全失能保險金。 五、保單紅利：包含年度紅利、長青紅利及長青解約紅利。 以上給付條件載明在保單條款及「建議書摘要表」中， | AE74: 本商品除外責任，包括： 一、要保人故意致被保險人於死。 二、被保險人故意自殺或自成附表一所列完全失能程度之一者。但自契約訂立或復效之日起二年後故意自殺致死者，保誠人壽仍負給付身故保險金或喪葬費用保險金之責任。 三、被保險人因犯罪處死或拒捕或越獄致死或致成保單條款附表一所列完全失能程度之一者。 因除外責任所致的保險事故，保誠人壽不負給付保險金的責任。完整之除外責任都載明於保單條款中， | AF74: 本商品除外責任，包括： 一、要保人故意致被保險人於死。 二、被保險人故意自殺或自成附表一所列完全失能程度之一者。但自契約訂立或復效之日起二年後故意自殺致死者，保誠人壽仍負給付身故保險金或喪葬費用保險金之責任。 三、被保險人因犯罪處死或拒捕或越獄致死或致成保單條款附表一所列完全失能程度之一者。 因除外責任所致的保險事故，保誠人壽不負給付保險金的責任。完整之除外責任都載明於保單條款中，請問您清楚嗎？ 【請客戶回答：清楚/不清楚】 | AG74: 您所投保的保誠人壽美利年年外幣終身保險的保單利益，包含： 一、生存保險金。 三、身故保險金或喪葬費用保險金。 四、完全失能保險金。 五、保單紅利：包含年度紅利、長青紅利及長青解約紅利。 給付內容跟給付時間有載明在保單條款及「建議書摘要表」中，這些保險給付及保單紅利的相關內容， | AH74: 本商品除外責任，包括： 一、要保人故意致被保險人於死。 二、被保險人故意自殺或自成附表一所列完全失能程度之一者。但自契約訂立或復效之日起二年後故意自殺致死者，保誠人壽仍負給付身故保險金或喪葬費用保險金之責任。 三、被保險人因犯罪處死或拒捕或越獄致死或致成保單條款附表一所列完全失能程度之一者。 因除外責任所致的保險事故，保誠人壽不負給付保險金的責任。完整之除外責任都載明於保單條款中， | AI74: 本商品除外責任，包括： 一、要保人故意致被保險人於死。 二、被保險人故意自殺或自成附表一所列完全失能程度之一者。但自契約訂立或復效之日起二年後故意自殺致死者，保誠人壽仍負給付身故保險金或喪葬費用保險金之責任。 三、被保險人因犯罪處死或拒捕或越獄致死或致成保單條款附表一所列完全失能程度之一者。 因除外責任所致的保險事故，保誠人壽不負給付保險金的責任。完整之除外責任都載明於保單條款中，請問您清楚嗎？ 【請客戶回答：清楚/不清楚】
A75: 2223 | B75: 保誠人壽鑫幸福定期保險 | C75: 9999-12-31 | D75: ADMRTB1 | F75: NT$ | G75: 壽險-主約 | H75: M | I75: Y | M75: =AA75&錄音序號_確認語_2&""&B1_解約金商品錄音話術table!AB75&錄音序號_確認語_2 ->  | R75: 元 | S75: 至被保險人保險年齡達66歲當年之保單週年日 | W75: =AG75&錄音序號_確認語_2&B1_解約金商品錄音話術table!AH75&錄音序號_確認語_2 ->  | Y75: NL | AA75: 您所投保的保誠人壽鑫幸福定期保險的給付項目，包含： 一、滿期保險金。 二、失能收入補償保險金。 三、身故保險金或喪葬費用保險金。 四、豁免保險費。 以上給付條件載明在保單條款中， | AB75: 本商品除外責任，包括： 要、被保險人故意行為或被保險人犯罪行為致被保險人死亡或完全失能。 因除外責任所致的保險事故，保險公司將不予理賠。完整之除外責任都載明於保單條款中， | AC75: 本商品除外責任，包括： 要、被保險人故意行為或被保險人犯罪行為等除外責任所致的保險事故，保險公司將不予理賠。完整之除外責任都載明於保單條款中，請問您清楚嗎？ 【請客戶回答：清楚/不清楚】 | AD75: 您所投保的保誠人壽鑫幸福定期保險的給付項目，包含： 一、滿期保險金。被保險人於保險期間屆滿且契約有效時仍生存，按「保險金額」之十倍給付。 二、失能收入補償保險金。被保險人因疾病或傷害致成附表所列第一至四級失能程度之一者，於診斷確定日及以後每月，按「保險金額」給付。 三、身故保險金或喪葬費用保險金。 四、豁免保險費。 以上給付條件載明在保單條款中， | AE75: 本商品除外責任，包括： 一、要保人故意致被保險人於死。 二、被保險人故意自殺或自成附表一所列完全失能程度之一者。但自契約訂立或復效之日起二年後故意自殺致死者，保誠人壽仍負給付身故保險金或喪葬費用保險金之責任。 三、被保險人因犯罪處死或拒捕或越獄致死或致成保單條款附表一所列完全失能程度之一者。 因除外責任所致的保險事故，保誠人壽不負給付保險金的責任。完整之除外責任都載明於保單條款中， | AF75: 本商品除外責任，包括： 一、要保人故意致被保險人於死。 二、被保險人故意自殺或自成附表一所列完全失能程度之一者。但自契約訂立或復效之日起二年後故意自殺致死者，保誠人壽仍負給付身故保險金或喪葬費用保險金之責任。 三、被保險人因犯罪處死或拒捕或越獄致死或致成保單條款附表一所列完全失能程度之一者。 因除外責任所致的保險事故，保誠人壽不負給付保險金的責任。完整之除外責任都載明於保單條款中，請問您清楚嗎？ 【請客戶回答：清楚/不清楚】 | AG75: 您所投保的保誠人壽鑫幸福定期保險的保單利益，包含： 一、滿期保險金。 二、失能收入補償保險金。 三、身故保險金或喪葬費用保險金。 四、豁免保險費。 給付內容跟給付時間有載明在保單條款中，這些保險給付的相關內容， | AH75: 本商品除外責任，包括： 一、要保人故意致被保險人於死。 二、被保險人故意自殺或自成附表一所列完全失能程度之一者。但自契約訂立或復效之日起二年後故意自殺致死者，保誠人壽仍負給付身故保險金或喪葬費用保險金之責任。 三、被保險人因犯罪處死或拒捕或越獄致死或致成保單條款附表一所列完全失能程度之一者。 因除外責任所致的保險事故，保誠人壽不負給付保險金的責任。完整之除外責任都載明於保單條款中， | AI75: 本商品除外責任，包括： 一、要保人故意致被保險人於死。 二、被保險人故意自殺或自成附表一所列完全失能程度之一者。但自契約訂立或復效之日起二年後故意自殺致死者，保誠人壽仍負給付身故保險金或喪葬費用保險金之責任。 三、被保險人因犯罪處死或拒捕或越獄致死或致成保單條款附表一所列完全失能程度之一者。 因除外責任所致的保險事故，保誠人壽不負給付保險金的責任。完整之除外責任都載明於保單條款中，請問您清楚嗎？ 【請客戶回答：清楚/不清楚】
A76: 9FF3 | B76: 保誠人壽美利世代外幣終身壽險(109) | C76: 9999-12-31 | D76: ACLPLU4 | F76: USD | G76: 壽險-主約 | H76: M | I76: Y | J76: C | M76: =AA76&錄音序號_確認語_2&""&B1_解約金商品錄音話術table!AB76&錄音序號_確認語_2 ->  | R76: 元 | S76: 至被保險人保險年齡達100歲當年之保單週年日 | T76: I | U76: ■祝壽保險金( 給付後保險契約效力終止 ) 被保險人於保險年齡達100歲當年之保單週年日仍生存時，按「保險金額」給付祝壽保險金。 ■身故保險金或喪葬費用保險金、完全失能保險金(給付後保險契約效力終止) 1.被保險人身故或完全失能時，按「保險金額」給付身故保險金或完全失能保險金。給付後，保險契約效力即行終止，若要保人選擇保險金分期給付，則保險契約效力改於「分期定期保險金給付期間」屆滿時終止。 2.若要保人選擇保險金分期給付，得事先約定欲分期給付之「指定保險金」及「分期定期保險金給付期間」。開始給付分期定期保險金後，保單不再享有紅利分配。「分期定期保險金給付期間」屆滿時，保險契約即行終止。 ※以未滿十五足歲之未成年人為被保險人，除喪葬費用之給付外，其餘死亡給付之約定於被保險人滿十五足歲之日起發生效力；被保險人滿十五足歲前死亡者，其身故保險金變更為喪葬費用保險金。 ※訂立保險契約時，以受監護宣告尚未撤銷者為被保險人，其身故給付之計算，另依條款約定。 ※被保險人同時或先後致成保單條款附表所列二項以上之完全失能程度者，保誠人壽僅給付一項完全失能保險金。 ■保單紅利( 非保證給付項目 ) 保單紅利包括年度紅利、長青紅利及長青解約紅利。年度紅利由保誠人壽每年依分紅保險業務之實際經營狀況核定；長青紅利及長青解約紅利，由保誠人壽每年依分紅保險業務之實際經營狀況且考量長期之分紅績效核定，作為下列紅利給付之基礎： 1.年度紅利：自第二保單週年日起，依當時已宣告之年度紅利金額給付予要保人。要保人可選擇下列任一方式領取年度紅利：(1)現金給付(2)儲存生息。 2.長青紅利/長青解約紅利： (1)長青紅利：自第六保單年度起，於被保險人身故、完全失能或保險年齡達100歲當年之保單週年日仍生存時，給付當時適用之長青紅利予要保人。 (2)長青解約紅利：自第六保單年度起，於要保人申請終止保險契約或減少保險金額時，依要保人終止或減少之「保險金額」比例計算，給付當時適用之長青解約紅利予要保人。 | W76: =AG76&錄音序號_確認語_2&B1_解約金商品錄音話術table!AH76&錄音序號_確認語_2 ->  | Y76: RF | AA76: 您所投保的保誠人壽美利世代外幣終身壽險(109)的給付項目，包含： 一、祝壽保險金。 二、身故保險金或喪葬費用保險金。 三、完全失能保險金。 四、保單紅利：包含年度紅利、長青紅利及長青解約紅利。 以上給付條件載明在保單條款及「建議書摘要表」中， | AB76: 本商品除外責任，包括： 要、被保險人故意行為或被保險人犯罪行為致被保險人死亡或完全失能。 因除外責任所致的保險事故，保險公司將不予理賠。完整之除外責任都載明於保單條款中， | AC76: 本商品除外責任，包括： 要、被保險人故意行為或被保險人犯罪行為等除外責任所致的保險事故，保險公司將不予理賠。完整之除外責任都載明於保單條款中，請問您清楚嗎？ 【請客戶回答：清楚/不清楚】 | AD76: 您所投保的保誠人壽美利世代外幣終身壽險(109)的給付項目，包含： 一、祝壽保險金。 二、身故保險金或喪葬費用保險金。 三、完全失能保險金。 四、保單紅利：包含年度紅利、長青紅利及長青解約紅利。 以上給付條件載明在保單條款及「建議書摘要表」中， | AE76: 本商品除外責任，包括： 一、要保人故意致被保險人於死。 二、被保險人故意自殺或自成附表一所列完全失能程度之一者。但自契約訂立或復效之日起二年後故意自殺致死者，保誠人壽仍負給付身故保險金或喪葬費用保險金之責任。 三、被保險人因犯罪處死或拒捕或越獄致死或致成保單條款附表一所列完全失能程度之一者。 因除外責任所致的保險事故，保誠人壽不負給付保險金的責任。完整之除外責任都載明於保單條款中， | AF76: 本商品除外責任，包括： 一、要保人故意致被保險人於死。 二、被保險人故意自殺或自成附表一所列完全失能程度之一者。但自契約訂立或復效之日起二年後故意自殺致死者，保誠人壽仍負給付身故保險金或喪葬費用保險金之責任。 三、被保險人因犯罪處死或拒捕或越獄致死或致成保單條款附表一所列完全失能程度之一者。 因除外責任所致的保險事故，保誠人壽不負給付保險金的責任。完整之除外責任都載明於保單條款中，請問您清楚嗎？ 【請客戶回答：清楚/不清楚】 | AG76: 您所投保的保誠人壽美利世代外幣終身壽險(109)的保單利益，包含： 一、祝壽保險金。 二、身故保險金或喪葬費用保險金。 三、完全失能保險金。 四、保單紅利：包含年度紅利、長青紅利及長青解約紅利。 給付內容跟給付時間有載明在保單條款及「建議書摘要表」中，這些保險給付及保單紅利的相關內容， | AH76: 本商品除外責任，包括： 一、要保人故意致被保險人於死。 二、被保險人故意自殺或自成附表一所列完全失能程度之一者。但自契約訂立或復效之日起二年後故意自殺致死者，保誠人壽仍負給付身故保險金或喪葬費用保險金之責任。 三、被保險人因犯罪處死或拒捕或越獄致死或致成保單條款附表一所列完全失能程度之一者。 因除外責任所致的保險事故，保誠人壽不負給付保險金的責任。完整之除外責任都載明於保單條款中， | AI76: 本商品除外責任，包括： 一、要保人故意致被保險人於死。 二、被保險人故意自殺或自成附表一所列完全失能程度之一者。但自契約訂立或復效之日起二年後故意自殺致死者，保誠人壽仍負給付身故保險金或喪葬費用保險金之責任。 三、被保險人因犯罪處死或拒捕或越獄致死或致成保單條款附表一所列完全失能程度之一者。 因除外責任所致的保險事故，保誠人壽不負給付保險金的責任。完整之除外責任都載明於保單條款中，請問您清楚嗎？ 【請客戶回答：清楚/不清楚】
A77: 9953 | B77: 保誠人壽實利充沛終身保險 | C77: 9999-12-31 | D77: ACLPEN7 | F77: NT$ | G77: 壽險-主約 | H77: M | I77: Y | J77: C | M77: =AA77&錄音序號_確認語_2&""&B1_解約金商品錄音話術table!AB77&錄音序號_確認語_2 ->  | R77: 元 | S77: 至被保險人保險年齡達110歲當年之保單週年日 | W77: =AG77&錄音序號_確認語_2&B1_解約金商品錄音話術table!AH77&錄音序號_確認語_2 ->  | Y77: RL | AA77: 您所投保的保誠人壽實利充沛終身保險的給付項目，包含： 一、生存保險金。 二、祝壽保險金。 三、身故保險金或喪葬費用保險金。 四、完全失能保險金。 五、保單紅利：包含年度紅利、長青紅利及長青解約紅利。 以上給付條件載明在保單條款及「建議書摘要表」中， | AB77: 本商品除外責任，包括： 要、被保險人故意行為或被保險人犯罪行為致被保險人死亡或完全失能。 因除外責任所致的保險事故，保險公司將不予理賠。完整之除外責任都載明於保單條款中， | AC77: 本商品除外責任，包括： 要、被保險人故意行為或被保險人犯罪行為等除外責任所致的保險事故，保險公司將不予理賠。完整之除外責任都載明於保單條款中，請問您清楚嗎？ 【請客戶回答：清楚/不清楚】 | AD77: 您所投保的保誠人壽實利充沛終身保險的給付項目，包含： 一、生存保險金。 二、祝壽保險金。 三、身故保險金或喪葬費用保險金。 四、完全失能保險金。 五、保單紅利：包含年度紅利、長青紅利及長青解約紅利。 以上給付條件載明在保單條款及「建議書摘要表」中， | AE77: 本商品除外責任，包括： 一、要保人故意致被保險人於死。 二、被保險人故意自殺或自成附表一所列完全失能程度之一者。但自契約訂立或復效之日起二年後故意自殺致死者，保誠人壽仍負給付身故保險金或喪葬費用保險金之責任。 三、被保險人因犯罪處死或拒捕或越獄致死或致成保單條款附表一所列完全失能程度之一者。 因除外責任所致的保險事故，保誠人壽不負給付保險金的責任。完整之除外責任都載明於保單條款中， | AF77: 本商品除外責任，包括： 一、要保人故意致被保險人於死。 二、被保險人故意自殺或自成附表一所列完全失能程度之一者。但自契約訂立或復效之日起二年後故意自殺致死者，保誠人壽仍負給付身故保險金或喪葬費用保險金之責任。 三、被保險人因犯罪處死或拒捕或越獄致死或致成保單條款附表一所列完全失能程度之一者。 因除外責任所致的保險事故，保誠人壽不負給付保險金的責任。完整之除外責任都載明於保單條款中，請問您清楚嗎？ 【請客戶回答：清楚/不清楚】 | AG77: 您所投保的保誠人壽實利充沛終身保險的保單利益，包含： 一、生存保險金。 二、祝壽保險金。 三、身故保險金或喪葬費用保險金。 四、完全失能保險金。 五、保單紅利：包含年度紅利、長青紅利及長青解約紅利。 給付內容跟給付時間有載明在保單條款及「建議書摘要表」中，這些保險給付及保單紅利的相關內容， | AH77: 本商品除外責任，包括： 一、要保人故意致被保險人於死。 二、被保險人故意自殺或自成附表一所列完全失能程度之一者。但自契約訂立或復效之日起二年後故意自殺致死者，保誠人壽仍負給付身故保險金或喪葬費用保險金之責任。 三、被保險人因犯罪處死或拒捕或越獄致死或致成保單條款附表一所列完全失能程度之一者。 因除外責任所致的保險事故，保誠人壽不負給付保險金的責任。完整之除外責任都載明於保單條款中， | AI77: 本商品除外責任，包括： 一、要保人故意致被保險人於死。 二、被保險人故意自殺或自成附表一所列完全失能程度之一者。但自契約訂立或復效之日起二年後故意自殺致死者，保誠人壽仍負給付身故保險金或喪葬費用保險金之責任。 三、被保險人因犯罪處死或拒捕或越獄致死或致成保單條款附表一所列完全失能程度之一者。 因除外責任所致的保險事故，保誠人壽不負給付保險金的責任。完整之除外責任都載明於保單條款中，請問您清楚嗎？ 【請客戶回答：清楚/不清楚】
A78: 9285 | B78: 保誠人壽鑫傳三代終身壽險 | C78: 9999-12-31 | D78: ARDPLN1 | E78: 終身壽險英式分紅 | F78: NT$ | G78: 壽險-主約 | H78: M | I78: Y | J78: R | M78: =AA78&錄音序號_確認語_2&""&B1_解約金商品錄音話術table!AB78&錄音序號_確認語_2 ->  | R78: 元 | S78: 至被保險人保險年齡達100歲當年之保單週年日 | T78: I | U78: ■祝壽保險金 被保險人於保險年齡達100歲當年之保單週年日仍生存，以「當年度保險金額」，給付祝壽保險金，給付後，保險契約效力終止。 ■身故保險金或喪葬費用保險金、完全失能保險金 1.被保險人身故或致成條款約定完全失能程度之一時，以「當年度保險金額」給付身故保險金或完全失能保險金，給付後，保險契約效力即行終止，若要保人選擇指定分期給付，則保險契約效力改於「分期定期保險金給付期間」屆滿時終止。 2.若要保人選擇指定分期給付，得事先約定欲分期給付之「指定保險金」及「分期定期保險金給付期間」(5、10、15、20、25年)。開始給付分期定期保險金後，保單不再享有紅利分配。 ※訂立保險契約時，以受監護宣告尚未撤銷者為被保險人，其身故給付之計算，另依條款約定。 ■保單紅利(非保證給付項目) 保誠人壽每年依據分紅保險業務之實際經營狀況且考量未來長期之分紅績效，核定該年度之分紅保額，作為下列紅利分配之基礎，於本契約有效期間內且自屆滿第十保單週年之日開始，於每一保單週年日（含第十保單週年日）分配： 1.「增額分紅保額」：每年分配一次。於下列時點一次給付之： (1)被保險人身故、完全失能或保險年齡達100歲當年之保單週年日仍生存，給付「累積已分配增額分紅保額」及當時有效之「長青額外分紅保額」。 (2)要保人終止契約時，給付「累積已分配增額分紅保額」的保單價值準備金與當時有效之「長青解約額外分紅保額」的保單價值準備金。 2.「額外分紅保額」：包含「長青額外分紅保額」與「長青解約額外分紅保額」，自宣告日起一年內有效，並不逐年累積，因此每年公佈之「額外分紅保額」可能較前一年度增加，亦可能減少。 (1)被保險人身故、完全失能或保險年齡達100歲當年之保單週年日仍生存，給付「長青額外分紅保額」。 (2)要保人終止契約時，給付「長青解約額外分紅保額」的保單價值準備金。 | W78: =AG78&錄音序號_確認語_2&B1_解約金商品錄音話術table!AH78&錄音序號_確認語_2 ->  | Y78: RL | AA78: 您所投保的保誠人壽鑫傳三代終身壽險的給付項目，包含： 一、祝壽保險金。 二、身故保險金或喪葬費用保險金、完全失能保險金。 三、保單紅利：包含「增額分紅保額」及「額外分紅保額」。 以上給付條件載明在保單條款及「建議書摘要表」中， | AB78: 本商品除外責任，包括： 要、被保險人故意行為或被保險人犯罪行為致被保險人死亡或完全失能。 因除外責任所致的保險事故，保險公司將不予理賠。完整之除外責任都載明於保單條款中， | AC78: 本商品除外責任，包括： 要、被保險人故意行為或被保險人犯罪行為等除外責任所致的保險事故，保險公司將不予理賠。完整之除外責任都載明於保單條款中，請問您清楚嗎？ 【請客戶回答：清楚/不清楚】 | AD78: 您所投保的保誠人壽鑫傳三代終身壽險的給付項目，包含： 一、祝壽保險金。 二、身故保險金或喪葬費用保險金、完全失能保險金。 三、保單紅利：包含「增額分紅保額」及「額外分紅保額」。 以上給付條件載明在保單條款及「建議書摘要表」中， | AE78: 本商品除外責任，包括： 一、要保人故意致被保險人於死。 二、被保險人故意自殺或自成附表一所列完全失能程度之一者。但自契約訂立或復效之日起二年後故意自殺致死者，保誠人壽仍負給付身故保險金或喪葬費用保險金之責任。 三、被保險人因犯罪處死或拒捕或越獄致死或致成保單條款附表一所列完全失能程度之一者。 因除外責任所致的保險事故，保誠人壽不負給付保險金的責任。完整之除外責任都載明於保單條款中， | AF78: 本商品除外責任，包括： 一、要保人故意致被保險人於死。 二、被保險人故意自殺或自成附表一所列完全失能程度之一者。但自契約訂立或復效之日起二年後故意自殺致死者，保誠人壽仍負給付身故保險金或喪葬費用保險金之責任。 三、被保險人因犯罪處死或拒捕或越獄致死或致成保單條款附表一所列完全失能程度之一者。 因除外責任所致的保險事故，保誠人壽不負給付保險金的責任。完整之除外責任都載明於保單條款中，請問您清楚嗎？ 【請客戶回答：清楚/不清楚】 | AG78: 您所投保的保誠人壽鑫傳三代終身壽險的保單利益，包含： 一、祝壽保險金。 二、身故保險金或喪葬費用保險金、完全失能保險金。 三、保單紅利：包含「增額分紅保額」及「額外分紅保額」。 給付內容跟給付時間有載明在保單條款及「建議書摘要表」中，這些保險給付及保單紅利的相關內容， | AH78: 本商品除外責任，包括： 一、要保人故意致被保險人於死。 二、被保險人故意自殺或自成附表一所列完全失能程度之一者。但自契約訂立或復效之日起二年後故意自殺致死者，保誠人壽仍負給付身故保險金或喪葬費用保險金之責任。 三、被保險人因犯罪處死或拒捕或越獄致死或致成保單條款附表一所列完全失能程度之一者。 因除外責任所致的保險事故，保誠人壽不負給付保險金的責任。完整之除外責任都載明於保單條款中， | AI78: 本商品除外責任，包括： 一、要保人故意致被保險人於死。 二、被保險人故意自殺或自成附表一所列完全失能程度之一者。但自契約訂立或復效之日起二年後故意自殺致死者，保誠人壽仍負給付身故保險金或喪葬費用保險金之責任。 三、被保險人因犯罪處死或拒捕或越獄致死或致成保單條款附表一所列完全失能程度之一者。 因除外責任所致的保險事故，保誠人壽不負給付保險金的責任。完整之除外責任都載明於保單條款中，請問您清楚嗎？ 【請客戶回答：清楚/不清楚】
A79: 9R73 | B79: 保誠人壽萬事利達外幣終身壽險(6) | C79: 9999-12-31 | D79: ARLPLU5 | E79: 終身壽險英式分紅 | F79: USD | G79: 壽險-主約 | H79: M | I79: Y | J79: R | M79: =AA79&錄音序號_確認語_2&""&B1_解約金商品錄音話術table!AB79&錄音序號_確認語_2 ->  | R79: 元 | S79: 至被保險人保險年齡達110歲當年之保單週年日 | T79: I | U79: ■祝壽保險金 被保險人於保險年齡達110歲當年之保單週年日且仍生存時，按「基本保險金額」、保單價值準備金、應已繳總保費取其最大值，給付祝壽保險金。 ■身故保險金或喪葬費用保險金、完全失能保險金 1.被保險人身故或完全失能時，按下列二款計算方式所得金額取其最大值，給付身故保險金或完全失能保險金，給付後，保險契約效力即行終止，若要保人選擇保險金分期給付，則保險契約效力改於「分期定額保險金給付期間」屆滿時終止。 (1)「基本保險金額」的保單價值準備金乘以保單價值準備金比率。 (2)應已繳總保費。 2.若要保人選擇保險金分期給付，得事先約定欲分期給付之「指定保險金」及「分期定額保險金給付期間」。開始給付分期定額保險金後，保單不再享有紅利分配。※訂立保險契約時，以受監護宣告尚未撤銷者為被保險人，其身故給付之計算，另依條款約定。 ■保單紅利(非保證給付項目) 保誠人壽每年依據分紅保險業務之實際經營狀況且考量未來長期之分紅績效，核定該年度之分紅保額，作為下列紅利分配之基礎： 1.「增額分紅保額」：自屆滿第六保單週年之日起每年分配一次。於下列時點一次給付之： (1)被保險人身故、完全失能或保險年齡達110歲當年之保單週年日仍生存者，給付「累積已分配增額分紅保額」。 (2)要保人終止契約時，給付「累積已分配增額分紅保額」的保單價值準備金。 2.「額外分紅保額」：自屆滿第九保單週年之日起，宣告日一年內有效，並不逐年累積，因此每年公佈之「額外分紅保額」可能較前一年度增加，亦可能減少。 (1)被保險人身故、完全失能或保險年齡達110歲當年之保單週年日仍生存者，給付「額外分紅保額」。 (2)要保人終止契約時，給付「額外分紅保額」的保單價值準備金。 | W79: =AG79&錄音序號_確認語_2&B1_解約金商品錄音話術table!AH79&錄音序號_確認語_2 ->  | Y79: RF | AA79: 您所投保的保誠人壽萬事利達外幣終身壽險(6)的給付項目，包含： 一、祝壽保險金。 二、身故保險金或喪葬費用保險金、完全失能保險金。 三、保單紅利：包含「增額分紅保額」及「額外分紅保額」。 以上給付條件載明在保單條款及「建議書摘要表」中， | AB79: 本商品除外責任，包括： 要、被保險人故意行為或被保險人犯罪行為致被保險人死亡或完全失能。 因除外責任所致的保險事故，保險公司將不予理賠。完整之除外責任都載明於保單條款中， | AC79: 本商品除外責任，包括： 要、被保險人故意行為或被保險人犯罪行為等除外責任所致的保險事故，保險公司將不予理賠。完整之除外責任都載明於保單條款中，請問您清楚嗎？ 【請客戶回答：清楚/不清楚】 | AD79: 您所投保的保誠人壽萬事利達外幣終身壽險(6)的給付項目，包含： 一、祝壽保險金。 二、身故保險金或喪葬費用保險金、完全失能保險金。 三、保單紅利：包含「增額分紅保額」及「額外分紅保額」。 以上給付條件載明在保單條款及「建議書摘要表」中， | AE79: 本商品除外責任，包括： 一、要保人故意致被保險人於死。 二、被保險人故意自殺或自成附表一所列完全失能程度之一者。但自契約訂立或復效之日起二年後故意自殺致死者，保誠人壽仍負給付身故保險金或喪葬費用保險金之責任。 三、被保險人因犯罪處死或拒捕或越獄致死或致成保單條款附表一所列完全失能程度之一者。 因除外責任所致的保險事故，保誠人壽不負給付保險金的責任。完整之除外責任都載明於保單條款中， | AF79: 本商品除外責任，包括： 一、要保人故意致被保險人於死。 二、被保險人故意自殺或自成附表一所列完全失能程度之一者。但自契約訂立或復效之日起二年後故意自殺致死者，保誠人壽仍負給付身故保險金或喪葬費用保險金之責任。 三、被保險人因犯罪處死或拒捕或越獄致死或致成保單條款附表一所列完全失能程度之一者。 因除外責任所致的保險事故，保誠人壽不負給付保險金的責任。完整之除外責任都載明於保單條款中，請問您清楚嗎？ 【請客戶回答：清楚/不清楚】 | AG79: 您所投保的保誠人壽萬事利達外幣終身壽險(6)的保單利益，包含： 一、祝壽保險金。 二、身故保險金或喪葬費用保險金、完全失能保險金。 三、保單紅利：包含「增額分紅保額」及「額外分紅保額」。 給付內容跟給付時間有載明在保單條款及「建議書摘要表」中，這些保險給付及保單紅利的相關內容， | AH79: 本商品除外責任，包括： 一、要保人故意致被保險人於死。 二、被保險人故意自殺或自成附表一所列完全失能程度之一者。但自契約訂立或復效之日起二年後故意自殺致死者，保誠人壽仍負給付身故保險金或喪葬費用保險金之責任。 三、被保險人因犯罪處死或拒捕或越獄致死或致成保單條款附表一所列完全失能程度之一者。 因除外責任所致的保險事故，保誠人壽不負給付保險金的責任。完整之除外責任都載明於保單條款中， | AI79: 本商品除外責任，包括： 一、要保人故意致被保險人於死。 二、被保險人故意自殺或自成附表一所列完全失能程度之一者。但自契約訂立或復效之日起二年後故意自殺致死者，保誠人壽仍負給付身故保險金或喪葬費用保險金之責任。 三、被保險人因犯罪處死或拒捕或越獄致死或致成保單條款附表一所列完全失能程度之一者。 因除外責任所致的保險事故，保誠人壽不負給付保險金的責任。完整之除外責任都載明於保單條款中，請問您清楚嗎？ 【請客戶回答：清楚/不清楚】
A80: 9R93 | B80: 保誠人壽一路長紅外幣終身壽險 | C80: 9999-12-31 | D80: ARLPLU7 | E80: 終身壽險英式分紅 | F80: USD | G80: 壽險-主約 | H80: M | I80: Y | J80: R | M80: =AA80&錄音序號_確認語_2&""&B1_解約金商品錄音話術table!AB80&錄音序號_確認語_2 ->  | R80: 元 | S80: 至被保險人保險年齡達110歲當年之保單週年日 | U80: ■祝壽保險金 被保險人於保險年齡達110歲當年之保單週年日且仍生存時，按「基本保險金額」、保單價值準備金、應已繳總保費取其最大值，給付祝壽保險金。 ■身故保險金或喪葬費用保險金、完全失能保險金 1.被保險人身故或完全失能時，按下列二款計算方式所得金額取其最大值，給付身故保險金或完全失能保險金，給付後，保險契約效力即行終止，若要保人選擇保險金分期給付，則保險契約效力改於「分期定額保險金給付期間」屆滿時終止。 (1)「基本保險金額」的保單價值準備金乘以保單價值準備金比率。 (2)應已繳總保費。 2.若要保人選擇保險金分期給付，得事先約定欲分期給付之「指定保險金」及「分期定額保險金給付期間」。開始給付分期定額保險金後，保單不再享有紅利分配。※訂立保險契約時，以受監護宣告尚未撤銷者為被保險人，其身故給付之計算，另依條款約定。 ■保單紅利(非保證給付項目) 保誠人壽每年依據分紅保險業務之實際經營狀況且考量未來長期之分紅績效，核定該年度之分紅保額，作為下列紅利分配之基礎： 1.「增額分紅保額」：自屆滿第六保單週年之日起每年分配一次。於下列時點一次給付之： (1)被保險人身故、完全失能或保險年齡達110歲當年之保單週年日仍生存者，給付「累積已分配增額分紅保額」。 (2)要保人終止契約時，給付「累積已分配增額分紅保額」的保單價值準備金。 2.「額外分紅保額」：自屆滿第九保單週年之日起，宣告日一年內有效，並不逐年累積，因此每年公佈之「額外分紅保額」可能較前一年度增加，亦可能減少。 (1)被保險人身故、完全失能或保險年齡達110歲當年之保單週年日仍生存者，給付「額外分紅保額」。 (2)要保人終止契約時，給付「額外分紅保額」的保單價值準備金。 | W80: =AG80&錄音序號_確認語_2&B1_解約金商品錄音話術table!AH80&錄音序號_確認語_2 ->  | Y80: RF | AA80: 您所投保的保誠人壽一路長紅外幣終身壽險的給付項目，包含： 一、祝壽保險金。 二、身故保險金或喪葬費用保險金、完全失能保險金。 三、保單紅利：包含「增額分紅保額」及「額外分紅保額」。 以上給付條件載明在保單條款及「建議書摘要表」中， | AB80: 本商品除外責任，包括： 要、被保險人故意行為或被保險人犯罪行為致被保險人死亡或完全失能。 因除外責任所致的保險事故，保險公司將不予理賠。完整之除外責任都載明於保單條款中， | AC80: 本商品除外責任，包括： 要、被保險人故意行為或被保險人犯罪行為等除外責任所致的保險事故，保險公司將不予理賠。完整之除外責任都載明於保單條款中，請問您清楚嗎？ 【請客戶回答：清楚/不清楚】
A81: 9R83 | B81: 保誠人壽萬事利達外幣終身壽險(10) | C81: 9999-12-31 | D81: ARLPLU6 | E81: 終身壽險英式分紅 | F81: USD | G81: 壽險-主約 | H81: M | I81: Y | J81: R | M81: =AA81&錄音序號_確認語_2&""&B1_解約金商品錄音話術table!AB81&錄音序號_確認語_2 ->  | R81: 元 | S81: 至被保險人保險年齡達110歲當年之保單週年日 | U81: ■祝壽保險金 被保險人於保險年齡達110歲當年之保單週年日且仍生存時，按「基本保險金額」、保單價值準備金、應已繳總保費取其最大值，給付祝壽保險金。 ■身故保險金或喪葬費用保險金、完全失能保險金 1.被保險人身故或完全失能時，按下列二款計算方式所得金額取其最大值，給付身故保險金或完全失能保險金，給付後，保險契約效力即行終止，若要保人選擇保險金分期給付，則保險契約效力改於「分期定額保險金給付期間」屆滿時終止。 (1)「基本保險金額」的保單價值準備金乘以保單價值準備金比率。 (2)應已繳總保費。 2.若要保人選擇保險金分期給付，得事先約定欲分期給付之「指定保險金」及「分期定額保險金給付期間」。開始給付分期定額保險金後，保單不再享有紅利分配。※訂立保險契約時，以受監護宣告尚未撤銷者為被保險人，其身故給付之計算，另依條款約定。 ■保單紅利(非保證給付項目) 保誠人壽每年依據分紅保險業務之實際經營狀況且考量未來長期之分紅績效，核定該年度之分紅保額，作為下列紅利分配之基礎： 1.「增額分紅保額」：自屆滿第六保單週年之日起每年分配一次。於下列時點一次給付之： (1)被保險人身故、完全失能或保險年齡達110歲當年之保單週年日仍生存者，給付「累積已分配增額分紅保額」。 (2)要保人終止契約時，給付「累積已分配增額分紅保額」的保單價值準備金。 2.「額外分紅保額」：自屆滿第九保單週年之日起，宣告日一年內有效，並不逐年累積，因此每年公佈之「額外分紅保額」可能較前一年度增加，亦可能減少。 (1)被保險人身故、完全失能或保險年齡達110歲當年之保單週年日仍生存者，給付「額外分紅保額」。 (2)要保人終止契約時，給付「額外分紅保額」的保單價值準備金。 | W81: =AG81&錄音序號_確認語_2&B1_解約金商品錄音話術table!AH81&錄音序號_確認語_2 ->  | Y81: RF | AA81: 您所投保的保誠人壽萬事利達外幣終身壽險(10)的給付項目，包含： 一、祝壽保險金。 二、身故保險金或喪葬費用保險金、完全失能保險金。 三、保單紅利：包含「增額分紅保額」及「額外分紅保額」。 以上給付條件載明在保單條款及「建議書摘要表」中， | AB81: 本商品除外責任，包括： 要、被保險人故意行為或被保險人犯罪行為致被保險人死亡或完全失能。 因除外責任所致的保險事故，保險公司將不予理賠。完整之除外責任都載明於保單條款中， | AC81: 本商品除外責任，包括： 要、被保險人故意行為或被保險人犯罪行為等除外責任所致的保險事故，保險公司將不予理賠。完整之除外責任都載明於保單條款中，請問您清楚嗎？ 【請客戶回答：清楚/不清楚】 | AD81: 您所投保的保誠人壽萬事利達外幣終身壽險(10)的給付項目，包含： 一、祝壽保險金。 二、身故保險金或喪葬費用保險金、完全失能保險金。 三、保單紅利：包含「增額分紅保額」及「額外分紅保額」。 以上給付條件載明在保單條款及「建議書摘要表」中， | AE81: 本商品除外責任，包括： 一、要保人故意致被保險人於死。 二、被保險人故意自殺或自成附表一所列完全失能程度之一者。但自契約訂立或復效之日起二年後故意自殺致死者，保誠人壽仍負給付身故保險金或喪葬費用保險金之責任。 三、被保險人因犯罪處死或拒捕或越獄致死或致成保單條款附表一所列完全失能程度之一者。 因除外責任所致的保險事故，保誠人壽不負給付保險金的責任。完整之除外責任都載明於保單條款中， | AF81: 本商品除外責任，包括： 一、要保人故意致被保險人於死。 二、被保險人故意自殺或自成附表一所列完全失能程度之一者。但自契約訂立或復效之日起二年後故意自殺致死者，保誠人壽仍負給付身故保險金或喪葬費用保險金之責任。 三、被保險人因犯罪處死或拒捕或越獄致死或致成保單條款附表一所列完全失能程度之一者。 因除外責任所致的保險事故，保誠人壽不負給付保險金的責任。完整之除外責任都載明於保單條款中，請問您清楚嗎？ 【請客戶回答：清楚/不清楚】 | AG81: 您所投保的保誠人壽萬事利達外幣終身壽險(10)的保單利益，包含： 一、祝壽保險金。 二、身故保險金或喪葬費用保險金、完全失能保險金。 三、保單紅利：包含「增額分紅保額」及「額外分紅保額」。 給付內容跟給付時間有載明在保單條款及「建議書摘要表」中，這些保險給付及保單紅利的相關內容， | AH81: 本商品除外責任，包括： 一、要保人故意致被保險人於死。 二、被保險人故意自殺或自成附表一所列完全失能程度之一者。但自契約訂立或復效之日起二年後故意自殺致死者，保誠人壽仍負給付身故保險金或喪葬費用保險金之責任。 三、被保險人因犯罪處死或拒捕或越獄致死或致成保單條款附表一所列完全失能程度之一者。 因除外責任所致的保險事故，保誠人壽不負給付保險金的責任。完整之除外責任都載明於保單條款中， | AI81: 本商品除外責任，包括： 一、要保人故意致被保險人於死。 二、被保險人故意自殺或自成附表一所列完全失能程度之一者。但自契約訂立或復效之日起二年後故意自殺致死者，保誠人壽仍負給付身故保險金或喪葬費用保險金之責任。 三、被保險人因犯罪處死或拒捕或越獄致死或致成保單條款附表一所列完全失能程度之一者。 因除外責任所致的保險事故，保誠人壽不負給付保險金的責任。完整之除外責任都載明於保單條款中，請問您清楚嗎？ 【請客戶回答：清楚/不清楚】
A82: 9963 | B82: 保誠人壽雙喜臨門終身壽險 | C82: 9999-12-31 | D82: ACLPLN9 | E82: 終身壽險美式分紅 | F82: NT$ | G82: 壽險-主約 | H82: M | I82: Y | J82: C | M82: =AA82&錄音序號_確認語_2&""&B1_解約金商品錄音話術table!AB82&錄音序號_確認語_2 ->  | Q82: 0~78 歲 | R82: 元 | S82: 至被保險人保險年齡達100歲當年之保單週年日 | U82: ■祝壽保險金( 給付後保險契約效力終止 ) 被保險人於保險年齡達100歲當年之保單週年日且仍生存時，以「保險金額」、保單價值準備金及「應已繳總保費」，三者取其最大值，給付祝壽保險金。 ■身故保險金或喪葬費用保險金、完全失能保險金(給付後保險契約效力終止) 1.被保險人身故或完全失能時，以「保險金額」、保單價值準備金乘以保單價值準備金比率及「應已繳總保費」，三者取其最大，給付身故保險金或完全失能保險金，給付後，保險契約效力即行終止，若要保人選擇保險金分期給付，則保險契約效力改於「分期定期保險金給付期間」屆滿時終止。 2.若要保人選擇保險金分期給付，得事先約定欲分期給付之「指定保險金」及「分期定期保險金給付期間」。開始給付分期定期保險金後，保單不再享有紅利分配。 ※「應已繳總保費」，於繳費期間內，被保險人身故或完全失能診斷確定當時，按「保險金額」計算「標準體」之年繳保險費乘以保單年度數之金額；於繳費期滿後，按「保險金額」計算「標準體」之年繳保險費乘以繳費年期之金額。 ※訂立保險契約時，以受監護宣告尚未撤銷者為被保險人，其身故保險金或完全失能保險金之計算，另依條款約定。 ※被保險人同時或先後致成保單條款附表一所列二項以上之完全失能程度者，保誠人壽僅給付一項完全失能保險金。 ■保單紅利( 非保證給付項目 ) 保誠人壽每年依分紅保險業務之實際經營狀況且考量未來長期之分紅績效，核定該年度之可分配盈餘，作為下列紅利給付之基礎： 1.年度紅利：自第二保單週年日起，依當時已宣告之年度紅利金額給付予要保人。要保人可選擇下列任一方式領取年度紅利：(1)現金給付。(2)儲存生息。 2.長青紅利/長青解約紅利： (1)長青紅利：自第六保單年度起，於被保險人身故、完全失能或保險年齡達100歲當年之保單週年日仍生存時，給付當時適用之長青紅利予要保人。 (2)長青解約紅利：自第六保單年度起，於要保人申請終止保險契約或減少「保險金額」時，依要保人終止或減少之「保險金額」比例計算，給付當時適用之長青解約紅利予要保人。 | W82: =AG82&錄音序號_確認語_2&B1_解約金商品錄音話術table!AH82&錄音序號_確認語_2 ->  | Y82: RL | AA82: 您所投保的保誠人壽雙喜臨門終身壽險的給付項目，包含： 一、祝壽保險金。 二、身故保險金或喪葬費用保險金、完全失能保險金。 三、保單紅利：包含年度紅利、長青紅利及長青解約紅利。 以上給付條件載明在保單條款及「建議書摘要表」中， | AB82: 本商品除外責任，包括： 要保人故意致被保險人於死、被保險人故意自殺或自成完全失能、或被保險人因犯罪致死或完全失能者，保誠人壽不負 給付保險金之責任。完整之除外責任都載明於保單條款中， | AC82: 本商品除外責任，包括： 要保人故意致被保險人於死、被保險人故意自殺或自成完全失能、或被保險人因犯罪致死或完全失能者，保誠人壽不負 給付保險金之責任。完整之除外責任都載明於保單條款中，請問您清楚嗎？ 【請客戶回答：清楚/不清楚】
A83: 2233 | B83: 保誠人壽鑫滿意足定期保險 | C83: 9999-12-31 | D83: ADMRTB2 | E83: 不分紅定期失能險 | F83: NT$ | G83: 壽險-主約 | H83: M | I83: Y | M83: =AA83&錄音序號_確認語_2&""&B1_解約金商品錄音話術table!AB83&錄音序號_確認語_2 ->  | R83: 元 | S83: 至被保險人保險年齡達66歲當年之保單週年日 | W83: =AG83&錄音序號_確認語_2&B1_解約金商品錄音話術table!AH83&錄音序號_確認語_2 ->  | Y83: NL | AA83: 您所投保的保誠人壽鑫滿意足定期保險的給付項目，包含： 一、滿期保險金。 二、失能收入補償保險金。 三、身故保險金或喪葬費用保險金。 四、豁免保險費。 以上給付條件載明在保單條款中， | AB83: 本商品除外責任，包括： 要、被保險人故意行為或被保險人犯罪行為、或非法施用毒品致死或致成保單條款附表所列失能程度之一者。 因除外責任所致的保險事故，保險公司將不予理賠。完整之除外責任都載明於保單條款中， | AC83: 本商品除外責任，包括： 要、被保險人故意行為或被保險人犯罪行為、或非法施用毒品致死或致成保單條款附表所列失能程度之一者。 因除外責任所致的保險事故，保險公司將不予理賠。完整之除外責任都載明於保單條款中，請問您清楚嗎？ 【請客戶回答：清楚/不清楚】
A84: 9593 | B84: 保誠人壽三享樂活終身保險 | C84: 9999-12-31 | D84: ACLPEN9 | E84: 終身生死合險美式分紅 | F84: NT$ | G84: 生死合險險-主約 | H84: M | I84: Y | J84: H | M84: =AA84&錄音序號_確認語_2&""&B1_解約金商品錄音話術table!AB84&錄音序號_確認語_2 ->  | R84: 元 | S84: 至被保險人保險年齡達110歲當年之保單週年日 | W84: =AG84&錄音序號_確認語_2&B1_解約金商品錄音話術table!AH84&錄音序號_確認語_2 ->  | Y84: RL | AA84: 您所投保的保誠人壽三享樂活終身保險的給付項目，包含： 一、生存保險金。 二、祝壽保險金。 三、身故保險金或喪葬費用保險金、完全失能保險金。 四、法定傳染病保險金。 五、保單紅利：包含年度紅利、長青紅利及長青解約紅利。 以上給付條件載明在保單條款及「建議書摘要表」中， | AB84: 本商品除外責任，包括： 要、被保險人故意行為或被保險人犯罪行為致被保險人死亡或完全失能。 因除外責任所致的保險事故，保險公司將不予理賠。完整之除外責任都載明於保單條款中， | AC84: 本商品除外責任，包括： 要、被保險人故意行為或被保險人犯罪行為等除外責任所致的保險事故，保險公司將不予理賠。完整之除外責任都載明於保單條款中，請問您清楚嗎？ 【請客戶回答：清楚/不清楚】 | AD84: 您所投保的保誠人壽三享樂活終身保險的給付項目，包含： 一、生存保險金。 二、祝壽保險金。 三、身故保險金或喪葬費用保險金、完全失能保險金。 四、法定傳染病保險金。 五、保單紅利：包含年度紅利、長青紅利及長青解約紅利。 以上給付條件載明在保單條款及「建議書摘要表」中， | AE84: 本商品除外責任，包括： 一、要保人故意致被保險人於死。 二、被保險人故意自殺或自成附表一所列完全失能程度之一者。但自契約訂立或復效之日起二年後故意自殺致死者，保誠人壽仍負給付身故保險金或喪葬費用保險金之責任。 三、被保險人因犯罪處死或拒捕或越獄致死或致成保單條款附表一所列完全失能程度之一者。 因除外責任所致的保險事故，保誠人壽不負給付保險金的責任。完整之除外責任都載明於保單條款中， | AF84: 本商品除外責任，包括： 一、要保人故意致被保險人於死。 二、被保險人故意自殺或自成附表一所列完全失能程度之一者。但自契約訂立或復效之日起二年後故意自殺致死者，保誠人壽仍負給付身故保險金或喪葬費用保險金之責任。 三、被保險人因犯罪處死或拒捕或越獄致死或致成保單條款附表一所列完全失能程度之一者。 因除外責任所致的保險事故，保誠人壽不負給付保險金的責任。完整之除外責任都載明於保單條款中，請問您清楚嗎？ 【請客戶回答：清楚/不清楚】 | AG84: 您所投保的保誠人壽三享樂活終身保險的保單利益，包含： 一、生存保險金。 二、祝壽保險金。 三、身故保險金或喪葬費用保險金、完全失能保險金。 四、法定傳染病保險金。 五、保單紅利：包含年度紅利、長青紅利及長青解約紅利。 給付內容跟給付時間有載明在保單條款及「建議書摘要表」中，這些保險給付及保單紅利的相關內容， | AH84: 本商品除外責任，包括： 一、要、被保險人故意行為或被保險人犯罪行為致被保險人死亡或完全失能。 因除外責任所致的保險事故，保險公司將不予理賠。完整之除外責任都載明於保單條款中， | AI84: 本商品除外責任，包括： 一、要、被保險人故意行為或被保險人犯罪行為等除外責任所致的保險事故，保險公司將不予理賠。完整之除外責任都載明於保單條款中，請問您清楚嗎？ 【請客戶回答：清楚/不清楚】
A85: 92AA | B85: 保誠人壽萬事如意終身壽險 | C85: 9999-12-31 | D85: ARDPLN2 | E85: 終身壽險英式分紅 | F85: NT$ | G85: 生死合險險-主約 | H85: M | I85: Y | J85: I | M85: =AA85&錄音序號_確認語_2&""&B1_解約金商品錄音話術table!AB85&錄音序號_確認語_2 ->  | R85: 元 | S85: 至被保險人保險年齡達110歲當年之保單週年日 | W85: =AG85&錄音序號_確認語_2&B1_解約金商品錄音話術table!AH85&錄音序號_確認語_2 ->  | Y85: RL | AA85: 您所投保的保誠人壽萬事如意終身壽險的給付項目，包含： 一、祝壽保險金。 二、身故保險金或喪葬費用保險金、完全失能保險金。 三、大眾運輸意外傷害身故保險金或喪葬費用保險金、失能保險金。 四、保單紅利：包含「增額分紅保額」與「額外分紅保額」。 以上給付條件載明在保單條款及「建議書摘要表」中， | AB85: 本商品除外責任，包括： 要、被保險人故意行為或被保險人犯罪行為致被保險人死亡或完全失能。 因除外責任所致的保險事故，保險公司將不予理賠。完整之除外責任都載明於保單條款中， | AC85: 本商品除外責任，包括： 要、被保險人故意行為或被保險人犯罪行為等除外責任所致的保險事故，保險公司將不予理賠。完整之除外責任都載明於保單條款中，請問您清楚嗎？ 【請客戶回答：清楚/不清楚】 | AG85: 您所投保的保誠人壽萬事如意終身壽險的保單利益，包含： 一、祝壽保險金。 二、身故保險金或喪葬費用保險金、完全失能保險金。 三、大眾運輸意外傷害身故保險金或喪葬費用保險金、失能保險金。 四、保單紅利：包含「增額分紅保額」與「額外分紅保額」。 給付內容跟給付時間有載明在保單條款及「建議書摘要表」中，這些保險給付及保單紅利的相關內容， | AH85: 本商品除外責任，包括： 一、要、被保險人故意行為或被保險人犯罪行為致被保險人死亡或完全失能。 因除外責任所致的保險事故，保險公司將不予理賠。完整之除外責任都載明於保單條款中， | AI85: 本商品除外責任，包括： 一、要、被保險人故意行為或被保險人犯罪行為等除外責任所致的保險事故，保險公司將不予理賠。完整之除外責任都載明於保單條款中，請問您清楚嗎？ 【請客戶回答：清楚/不清楚】
A86: 9FGA | B86: 保誠人壽福企滿滿外幣終身保險 | C86: 9999-12-31 | D86: ACLPEU9 | E86: 終身生死合險美式分紅 | F86: USD | G86: 壽險-主約 | H86: M | I86: Y | J86: H | M86: =AA86&錄音序號_確認語_2&""&B1_解約金商品錄音話術table!AB86&錄音序號_確認語_2 ->  | R86: 元 | S86: 至被保險人保險年齡達110歲當年之保單週年日 | U86: ■生存保險金 被保險人於本契約有效期間內，於第七保單週年日起至「保險年齡」達一百零九歲（含）止之每一保單週年日仍生存且未致成附表所列完全失能程度之一時，按「應已繳總保費」的百分之一點五給付「生存保險金」。 ■祝壽保險金( 給付後保險契約效力終止 ) 被保險人於保險年齡達110歲當年之保單週年日且仍生存時，以當時之「保險金額」，給付祝壽保險金。 ■身故保險金或喪葬費用保險金、完全失能保險金(給付後保險契約效力終止) 1.被保險人於本契約有效期間 且於第一 保單 年 度 至第 六 保單年度 內身故者或完全失能時，按當時之保單價值準備金 乘以保單價值準備金比率及「應已繳總保費」，二者取其最大者給付身故保險金或完全失能保險金。 2.被保險人於本契約有效期 間 且於第 六 保單年度屆滿後 身故者，按當時之保單價值準備金 乘以保單價值準備金比率 給付身故保險金或完全失能保險金 。 3.給付後，保險契約效力即行終止。若要保人選擇保險金分期給付，則保險契約效力改於「分期定期保險金給付期間」屆滿時終止。開始給付分期定期保險金後，保單不再享有紅利分配。 ※「應已繳總保費」，於繳費期間內，被保險人身故或完全失能診斷確定當時，按「保險金額」計算「標準體」之年繳保險費乘以保單年度數之金額；於繳費期滿後，按「保險金額」計算「標準體」之年繳保險費乘以繳費年期之金額。 ※訂立保險契約時，以受監護宣告尚未撤銷者為被保險人，其身故保險金或完全失能保險金之計算，另依條款約定。 ※被保險人同時或先後致成保單條款附表一所列二項以上之完全失能程度者，保誠人壽僅給付一項完全失能保險金。 ■特定傷病保險金 被保險人於本契約有效期間內，經醫師診斷確定致成本商品約定之特定傷病，按「保險金額」的百分之十給付「特定傷病保險金」，給付以一次為限。 ■保單紅利( 非保證給付項目 ) 保誠人壽每年依分紅保險業務之實際經營狀況且考量未來長期之分紅績效，核定該年度之可分配盈餘，作為下列紅利給付之基礎： 1.年度紅利：自第二保單週年日起，依當時已宣告之年度紅利金額給付予要保人。要保人可選擇下列任一方式領取年度紅利：(1)現金給付。(2)儲存生息。 2.長青紅利/長青解約紅利： (1)長青紅利：自第六保單年度起，於被保險人身故、完全失能或保險年齡達110歲當年之保單週年日仍生存時，給付當時適用之長青紅利予要保人。 (2)長青解約紅利：自第六保單年度起，於要保人申請終止保險契約或減少「保險金額」時，依要保人終止或減少之「保險金額」比例計算，給付當時適用之長青解約紅利予要保人。 | W86: =AG86&錄音序號_確認語_2&B1_解約金商品錄音話術table!AH86&錄音序號_確認語_2 ->  | X86: =SUBSTITUTE(M86,"建議書摘要表","建議書") ->  | Y86: RF | AA86: 您所投保的保誠人壽福企滿滿外幣終身保險的給付項目，包含： 一、生存保險金。 二、祝壽保險金。 三、身故保險金或喪葬費用保險金、完全失能保險金。 四、特定傷病保險金。 五、保單紅利：包含年度紅利、長青紅利及長青解約紅利。 以上給付條件載明在保單條款及「建議書摘要表」中， | AB86: 本商品除外責任，包括： 要、被保險人故意行為或被保險人犯罪行為。 因除外責任所致的保險事故，保險公司將不予理賠。完整之除外責任都載明於保單條款中， | AC86: 本商品除外責任，包括： 要、被保險人故意行為或被保險人犯罪行為等除外責任所致的保險事故，保險公司將不予理賠。完整之除外責任都載明於保單條款中，請問您清楚嗎？ 【請客戶回答：清楚/不清楚】 | AD86: 您所投保的保誠人壽福企滿滿外幣終身保險的給付項目，包含： 一、生存保險金。 二、祝壽保險金。 三、身故保險金或喪葬費用保險金、完全失能保險金。 四、特定傷病保險金。 五、保單紅利:包含年度紅利、長青紅利及長青解約紅利。 以上給付條件載明在保單條款及「建議書摘要表」中， | AE86: 本商品除外責任，包括： 一、要保人故意致被保險人於死。 二、被保險人故意自殺或自成附表一所列完全失能程度之一者。但自契約訂立或復效之日起二年後故意自殺致死者，保誠人壽仍負給付身故保險金或喪葬費用保險金之責任。 三、被保險人因犯罪處死或拒捕或越獄致死或致成保單條款附表一所列完全失能程度之一者。 因除外責任所致的保險事故，保誠人壽不負給付保險金的責任。完整之除外責任都載明於保單條款中， | AF86: 本商品除外責任，包括： 一、要保人故意致被保險人於死。 二、被保險人故意自殺或自成附表一所列完全失能程度之一者。但自契約訂立或復效之日起二年後故意自殺致死者，保誠人壽仍負給付身故保險金或喪葬費用保險金之責任。 三、被保險人因犯罪處死或拒捕或越獄致死或致成保單條款附表一所列完全失能程度之一者。 因除外責任所致的保險事故，保誠人壽不負給付保險金的責任。完整之除外責任都載明於保單條款中，請問您清楚嗎？ 【請客戶回答：清楚/不清楚】 | AG86: 您所投保的保誠人壽福企滿滿外幣終身保險的保單利益，包含： 一、生存保險金。 二、祝壽保險金。 三、身故保險金或喪葬費用保險金、完全失能保險金。 四、特定傷病保險金。 五、保單紅利。 給付內容跟給付時間有載明在保單條款及「建議書摘要表」中，這些保險給付及保單紅利的相關內容， | AH86: 本商品除外責任，包括： 一、要、被保險人故意行為或被保險人犯罪行為致被保險人死亡或完全失能。 因除外責任所致的保險事故，保險公司將不予理賠。完整之除外責任都載明於保單條款中， | AI86: 本商品除外責任，包括： 一、要、被保險人故意行為或被保險人犯罪行為等除外責任所致的保險事故，保險公司將不予理賠。完整之除外責任都載明於保單條款中，請問您清楚嗎？ 【請客戶回答：清楚/不清楚】
A87: 9FHA | B87: 保誠人壽創富御守外幣終身保險 | C87: 9999-12-31 | D87: ACLPEU10 | E87: 終身壽險美式分紅 | F87: USD | G87: 生死合險險-主約 | H87: M | I87: Y | J87: H | M87: =AA87&錄音序號_確認語_2&""&B1_解約金商品錄音話術table!AB87&錄音序號_確認語_2 ->  | R87: 元 | S87: 至被保險人保險年齡達110歲當年之保單週年日 | U87: ■生存保險金 被保險人於本契約有效期間內，於第七保單週年日起至「保險年齡」達一百零九歲（含）止之每一保單週年日仍生存且未致成附表所列完全失能程度之一時，按「應已繳總保費」的百分之一點五給付「生存保險金」。 ■祝壽保險金( 給付後保險契約效力終止 ) 被保險人於保險年齡達110歲當年之保單週年日且仍生存時，以當時之「保險金額」，給付祝壽保險金。 ■身故保險金或喪葬費用保險金、完全失能保險金(給付後保險契約效力終止) 1.被保險人於本契約有效期間 且於第一 保單 年 度 至第 六 保單年度 內身故者或完全失能時，按當時之保單價值準備金 乘以保單價值準備金比率及「應已繳總保費」，二者取其最大者給付身故保險金或完全失能保險金。 2.被保險人於本契約有效期 間 且於第 六 保單年度屆滿後 身故者，按當時之保單價值準備金 乘以保單價值準備金比率 給付身故保險金或完全失能保險金 。 3.給付後，保險契約效力即行終止。若要保人選擇保險金分期給付，則保險契約效力改於「分期定期保險金給付期間」屆滿時終止。開始給付分期定期保險金後，保單不再享有紅利分配。 ※「應已繳總保費」，於繳費期間內，被保險人身故或完全失能診斷確定當時，按「保險金額」計算「標準體」之年繳保險費乘以保單年度數之金額；於繳費期滿後，按「保險金額」計算「標準體」之年繳保險費乘以繳費年期之金額。 ※訂立保險契約時，以受監護宣告尚未撤銷者為被保險人，其身故保險金或完全失能保險金之計算，另依條款約定。 ※被保險人同時或先後致成保單條款附表一所列二項以上之完全失能程度者，保誠人壽僅給付一項完全失能保險金。 ■特定傷病保險金 被保險人於本契約有效期間內，經醫師診斷確定致成本商品約定之特定傷病，按「保險金額」的百分之十給付「特定傷病保險金」，給付以一次為限。 ■保單紅利( 非保證給付項目 ) 保誠人壽每年依分紅保險業務之實際經營狀況且考量未來長期之分紅績效，核定該年度之可分配盈餘，作為下列紅利給付之基礎： 1.年度紅利：自第二保單週年日起，依當時已宣告之年度紅利金額給付予要保人。要保人可選擇下列任一方式領取年度紅利：(1)現金給付。(2)儲存生息。 2.長青紅利/長青解約紅利： (1)長青紅利：自第六保單年度起，於被保險人身故、完全失能或保險年齡達110歲當年之保單週年日仍生存時，給付當時適用之長青紅利予要保人。 (2)長青解約紅利：自第六保單年度起，於要保人申請終止保險契約或減少「保險金額」時，依要保人終止或減少之「保險金額」比例計算，給付當時適用之長青解約紅利予要保人。 | W87: =AG87&錄音序號_確認語_2&B1_解約金商品錄音話術table!AH87&錄音序號_確認語_2 ->  | X87: =SUBSTITUTE(M87,"建議書摘要表","建議書") ->  | Y87: RF | AA87: 您所投保的保誠人壽創富御守外幣終身保險的給付項目，包含： 一、生存保險金。 二、祝壽保險金。 三、身故保險金或喪葬費用保險金、完全失能保險金。 四、特定傷病保險金。 五、保單紅利：包含年度紅利、長青紅利及長青解約紅利。 以上給付條件載明在保單條款及「建議書摘要表」中， | AB87: 本商品除外責任，包括： 要、被保險人故意行為或被保險人犯罪行為致被保險人死亡或完全失能。 因除外責任所致的保險事故，保險公司將不予理賠。完整之除外責任都載明於保單條款中， | AC87: 本商品除外責任，包括： 要、被保險人故意行為或被保險人犯罪行為等除外責任所致的保險事故，保險公司將不予理賠。完整之除外責任都載明於保單條款中，請問您清楚嗎？ 【請客戶回答：清楚/不清楚】 | AD87: 您所投保的保誠人壽創富御守外幣終身保險的給付項目，包含： 一、生存保險金。 二、祝壽保險金。 三、身故保險金或喪葬費用保險金、完全失能保險金。 四、特定傷病保險金。 五、保單紅利：包含年度紅利、長青紅利及長青解約紅利。 以上給付條件載明在保單條款及「建議書摘要表」中， | AE87: 本商品除外責任，包括： 一、要保人故意致被保險人於死。 二、被保險人故意自殺或自成附表一所列完全失能程度之一者。但自契約訂立或復效之日起二年後故意自殺致死者，保誠人壽仍負給付身故保險金或喪葬費用保險金之責任。 三、被保險人因犯罪處死或拒捕或越獄致死或致成保單條款附表一所列完全失能程度之一者。 因除外責任所致的保險事故，保誠人壽不負給付保險金的責任。完整之除外責任都載明於保單條款中， | AF87: 本商品除外責任，包括： 一、要保人故意致被保險人於死。 二、被保險人故意自殺或自成附表一所列完全失能程度之一者。但自契約訂立或復效之日起二年後故意自殺致死者，保誠人壽仍負給付身故保險金或喪葬費用保險金之責任。 三、被保險人因犯罪處死或拒捕或越獄致死或致成保單條款附表一所列完全失能程度之一者。 因除外責任所致的保險事故，保誠人壽不負給付保險金的責任。完整之除外責任都載明於保單條款中，請問您清楚嗎？ 【請客戶回答：清楚/不清楚】 | AG87: 您所投保的保誠人壽創富御守外幣終身保險的保單利益，包含： 一、生存保險金。 二、祝壽保險金。 三、身故保險金或喪葬費用保險金、完全失能保險金。 四、特定傷病保險金。 五、保單紅利：包含年度紅利、長青紅利及長青解約紅利。 給付內容跟給付時間有載明在保單條款及「建議書摘要表」中，這些保險給付及保單紅利的相關內容， | AH87: 本商品除外責任，包括： 一、要、被保險人故意行為或被保險人犯罪行為致被保險人死亡或完全失能。 因除外責任所致的保險事故，保險公司將不予理賠。完整之除外責任都載明於保單條款中， | AI87: 本商品除外責任，包括： 一、要、被保險人故意行為或被保險人犯罪行為等除外責任所致的保險事故，保險公司將不予理賠。完整之除外責任都載明於保單條款中，請問您清楚嗎？ 【請客戶回答：清楚/不清楚】
A88: 9RAA | B88: 保誠人壽橘享樂外幣終身壽險 | C88: 9999-12-31 | D88: ARLPLU8 | F88: USD | G88: 生死合險險-主約 | H88: M | I88: Y | J88: H | M88: =AA88&錄音序號_確認語_2&""&B1_解約金商品錄音話術table!AB88&錄音序號_確認語_2 ->  | R88: 元 | S88: 至被保險人保險年齡達110歲當年之保單週年日 | U88: ■祝壽保險金 被保險人於保險年齡達110歲當年之保單週年日且仍生存時，按下列三款計算方式所得金額取其最大值，給付祝壽保險金： 1.「基本保險金額」。 2.「基本保險金額」的保單價值準備金。 3.應已繳總保費。 ■身故保險金或喪葬費用保險金、完全失能保險金 1.被保險人身故或完全失能時，按下列二款計算方式所得金額取其最大值，給付身故保險金或完全失能保險金，給付後，保險契約效力即行終止，若要保人選擇保險金分期給付，則保險契約效力改於「分期定額保險金給付期間」屆滿時終止。 (1)「基本保險金額」的保單價值準備金乘以保單價值準備金比率。若已罹患「認知功能障礙」者，仍以未罹患狀態計算其身故或完全失能當時之「基本保險金額」的保單價值準備金。 (2)應已繳總保費。 2.若要保人選擇保險金分期給付，得事先約定欲分期給付之「指定保險金」及「分期定額保險金給付期間」。開始給付分期定額保險金後，保單不再享有紅利分配。 ■認知功能障礙保險金 被保險人經醫師診斷確診「認知功能障礙」時，按「基本保險金額」的10%給付(給付以一次為限，給付後保單解約金將因此有所變動)。 ■保單紅利(非保證給付項目) 保誠人壽依據分紅保險業務之實際經營狀況且考量未來長期之分紅績效，核定該年度之分紅保額，作為下列紅利分配之基礎，並於每一保單週年日(含第三及第五保單週年日)分配： 1.「增額分紅保額」：自屆滿第三保單週年之日起每年分配一次。於下列時點一次給付之： (1)被保險人身故、完全失能或保險年齡達110歲當年之保單週年日仍生存者，給付「累積已分配增額分紅保額」。 (2)要保人終止契約時，給付「累積已分配增額分紅保額」的保單價值準備金。 2.「額外分紅保額」：包含「長青額外分紅保額」與「長青解約額外分紅保額」，自屆滿第五保單週年之日開始，宣告日一年內有效，並不逐年累積，因此每年公佈之「額外分紅保額」可能較前一年度增加，亦可能減少。 (1)被保險人身故、完全失能或保險年齡達110歲當年之保單週年日仍生存者，給付「長青額外分紅保額」。 (2)要保人終止契約時，給付「長青解約額外分紅保額」的保單價值準備金。 | W88: =AG88&錄音序號_確認語_2&B1_解約金商品錄音話術table!AH88&錄音序號_確認語_2 ->  | X88: =SUBSTITUTE(M88,"建議書摘要表","建議書") ->  | Y88: RF | AA88: 您所投保的保誠人壽橘享樂外幣終身壽險的給付項目，包含： 一、祝壽保險金。 二、身故保險金或喪葬費用保險金、完全失能保險金。 三、認知功能障礙保險金。 四、保單紅利：包含增額分紅保額及額外分紅保額。 以上給付條件載明在保單條款及「建議書摘要表」中， | AB88: 本商品除外責任，包括： 要、被保險人故意行為或被保險人犯罪行為致被保險人死亡或完全失能。 因除外責任所致的保險事故，保險公司將不予理賠。完整之除外責任都載明於保單條款中， | AC88: 本商品除外責任，包括： 要、被保險人故意行為或被保險人犯罪行為等除外責任所致的保險事故，保險公司將不予理賠。完整之除外責任都載明於保單條款中，請問您清楚嗎？ 【請客戶回答：清楚/不清楚】 | AD88: 您所投保的保誠人壽橘享樂外幣終身壽險的給付項目，包含： 一、祝壽保險金。 二、身故保險金或喪葬費用保險金、完全失能保險金。 三、認知功能障礙保險金。 四、保單紅利：包含增額分紅保額及額外分紅保額。 以上給付條件載明在保單條款及「建議書摘要表」中， | AE88: 本商品除外責任，包括： 一、要保人故意致被保險人於死。 二、被保險人故意自殺或自成保單條款附表一所列完全失能程度之一者。但自契約訂立或復效之日起二年後故意自殺致死者，保誠人壽仍負給付身故保險金或喪葬費用保險金之責任。 三、被保險人因犯罪處死或拒捕或越獄致死或致成保單條款附表一所列完全失能程度之一者。 四、被保險人非法施用防制毒品相關法令所稱之毒品而罹患「認知功能障礙」，本公司不負給付認知功能障礙保險金保險金的責任。 因除外責任所致的保險事故，保誠人壽不負給付保險金的責任。完整之除外責任都載明於保單條款中， | AF88: 本商品除外責任，包括： 一、要保人故意致被保險人於死。 二、被保險人故意自殺或自成保單條款附表一所列完全失能程度之一者。但自契約訂立或復效之日起二年後故意自殺致死者，保誠人壽仍負給付身故保險金或喪葬費用保險金之責任。 三、被保險人因犯罪處死或拒捕或越獄致死或致成保單條款附表一所列完全失能程度之一者。 四、被保險人非法施用防制毒品相關法令所稱之毒品而罹患「認知功能障礙」，本公司不負給付認知功能障礙保險金保險金的責任。 因除外責任所致的保險事故，保誠人壽不負給付保險金的責任。完整之除外責任都載明於保單條款中，請問您清楚嗎？ 【請客戶回答：清楚/不清楚】 | AG88: 您所投保的保誠人壽橘享樂外幣終身壽險的保單利益，包含： 一、祝壽保險金。 二、身故保險金或喪葬費用保險金、完全失能保險金。 三、認知功能障礙保險金。 四、保單紅利：包含增額分紅保額及額外分紅保額。 給付內容跟給付時間有載明在保單條款及「建議書摘要表」中，這些保險給付及保單紅利的相關內容， | AH88: 本商品除外責任，包括： 一、要、被保險人故意行為或被保險人犯罪行為致被保險人死亡或完全失能。 因除外責任所致的保險事故，保險公司將不予理賠。完整之除外責任都載明於保單條款中， | AI88: 本商品除外責任，包括： 一、要、被保險人故意行為或被保險人犯罪行為等除外責任所致的保險事故，保險公司將不予理賠。完整之除外責任都載明於保單條款中，請問您清楚嗎？ 【請客戶回答：清楚/不清楚】
A89: 9RBA | B89: 保誠人壽十分美滿外幣終身壽險 | C89: 9999-12-31 | D89: ARLPLU9 | E89: 終身壽險英式分紅 | F89: USD | G89: 死亡險 | H89: M | I89: Y | J89: H | M89: =AA89&錄音序號_確認語_2&""&B1_解約金商品錄音話術table!AB89&錄音序號_確認語_2 ->  | R89: 元 | S89: 至被保險人保險年齡達110歲當年之保單週年日 | W89: =AG89&錄音序號_確認語_2&B1_解約金商品錄音話術table!AH89&錄音序號_確認語_2 ->  | X89: =SUBSTITUTE(M89,"建議書摘要表","建議書") ->  | Y89: RF | AA89: 您所投保的保誠人壽十分美滿外幣終身壽險的給付項目，包含： 一、祝壽保險金。 二、身故保險金或喪葬費用保險金、完全失能保險金。 三、二至六級失能豁免保險費。 四、保單紅利：包含增額分紅保額及額外分紅保額。 以上給付條件載明在保單條款及「建議書摘要表」中， | AB89: 本商品除外責任，包括： 要、被保險人故意行為或被保險人犯罪行為等除外責任所致的保險事故，保險公司將不予理賠。 完整之除外責任都載明於保單條款中， | AC89: 本商品除外責任，包括： 要、被保險人故意行為或被保險人犯罪行為等除外責任所致的保險事故，保險公司將不予理賠。 完整之除外責任都載明於保單條款中，請問您清楚嗎？ 【請客戶回答：清楚/不清楚】
A90: 9TEM | B90: 保誠人壽美利守護外幣終身壽險 | C90: 9999-12-31 | D90: ARLPLU10 | F90: USD | G90: 生死合險險-主約 | H90: M | I90: Y | J90: H | M90: =AA90&錄音序號_確認語_2&""&B1_解約金商品錄音話術table!AB90&錄音序號_確認語_2 ->  | R90: 元 | S90: 至被保險人保險年齡達100歲當年之保單週年日 | W90: =AG90&錄音序號_確認語_2&B1_解約金商品錄音話術table!AH90&錄音序號_確認語_2 ->  | Y90: RF | AA90: 您所投保的保誠人壽美利守護外幣終身壽險的給付項目，包含： 一、祝壽保險金。 二、身故保險金或喪葬費用保險金、完全失能保險金。 三、癌症（重度）保險金、特定癌症保險金。 四、豁免保險費。 五、保單紅利：包含增額分紅保額及額外分紅保額。 以上給付條件載明在保單條款及「建議書摘要表」中， | AB90: 本商品除外責任，包括： 要、被保險人故意行為或被保險人犯罪行為等除外責任所致的保險事故，保險公司將不予理賠。 完整之除外責任都載明於保單條款中， | AC90: 本商品除外責任，包括： 要、被保險人故意行為或被保險人犯罪行為等除外責任所致的保險事故，保險公司將不予理賠。 完整之除外責任都載明於保單條款中，請問您清楚嗎？ 【請客戶回答：清楚/不清楚】
A91: 9RD3 | B91: 保誠人壽傳世享富外幣終身壽險 | C91: 9999-12-31 | D91: ARDPLU4 | E91: 英式分紅 | F91: USD | G91: 壽險-主約 | H91: M | I91: Y | J91: C | M91: =AA91&錄音序號_確認語_2&""&B1_解約金商品錄音話術table!AB91&錄音序號_確認語_2 ->  | R91: 元 | S91: 至被保險人保險年齡達100歲當年之保單週年日 | W91: =AG91&錄音序號_確認語_2&B1_解約金商品錄音話術table!AH91&錄音序號_確認語_2 ->  | Y91: NF | AA91: 您所投保的保誠人壽傳世享富外幣終身壽險的給付項目，包含： 一、祝壽保險金。 二、身故保險金或喪葬費用保險金、完全失能保險金。 三、保單紅利：包含「增額分紅保額」及「額外分紅保額」。 給付內容跟給付時間有載明在保單條款及保誠人壽提供之試算表中，這些保險給付及保單紅利的相關內容， | AB91: 本商品除外責任，包括： 要、被保險人故意行為或被保險人犯罪行為等除外責任所致的保險事故，保險公司將不予理賠。 完整之除外責任都載明於保單條款中， | AC91: 本商品除外責任，包括： 要、被保險人故意行為或被保險人犯罪行為等除外責任所致的保險事故，保險公司將不予理賠。 完整之除外責任都載明於保單條款中，請問您清楚嗎？ 【請客戶回答：清楚/不清楚】
A92: 9RE3 | B92: 保誠人壽滿福雙享外幣終身壽險(定期給付型) | C92: 9999-12-31 | D92: ARLPLU11 | E92: 英式分紅 | F92: USD | G92: 死亡險-主約 | H92: M | I92: Y | J92: C | M92: =AA92&錄音序號_確認語_2&""&B1_解約金商品錄音話術table!AB92&錄音序號_確認語_2 ->  | R92: 元 | S92: 至被保險人保險年齡達110歲當年之保單週年日 | U92: ■祝壽保險金 被保險人於保險年齡達110歲當年之保單週年日且仍生存時，按下列三款計算方式所得金額取其最大值，給付祝壽保險金： 1.「基本保險金額」。 2.「基本保險金額」的保單價值準備金。 3. 應已繳總保費。 ■身故保險金或喪葬費用保險金、完全失能保險金 1.被保險人身故或完全失能時，按下列二款計算方式所得金額取其最大值，給付身故保險金或完全失能保險金，給付後，保險契約效力即行終止，若要保人選擇保險金分期給付，則保險契約效力改於「分期定額保險金給付期間」屆滿時終止。 (1)「基本保險金額」的保單價值準備金乘以保單價值準備金比率。 (2)應已繳總保費。 2.若要保人選擇保險金分期給付，得事先約定欲分期給付之「指定保險金」及「分期定額保險金給付期間」。開始給付分期定額保險金後，保單不再享有紅利分配。 若被保險人滿十五足歲前死亡者或以受監護宣告尚未撤銷者為被保險人，其身故給付之計算另依條款約定。 ■保單紅利(非保證給付項目) 保誠人壽依據分紅保險業務之實際經營狀況且考量未來長期之分紅績效，核定該年度之分紅保額，作為下列紅利分配之基礎，並於每一保單週年日(含第三及第五保單週年日)分配： 1.「增額分紅保額」：自屆滿第三保單週年之日起每年分配一次。於下列時點一次給付之： (1)被保險人身故、完全失能或保險年齡達110歲當年之保單週年日仍生存者，給付「累積已分配增額分紅保額」。 (2)要保人終止契約時，給付「累積已分配增額分紅保額」的保單價值準備金。 2.「額外分紅保額」：包含「長青額外分紅保額」與「長青解約額外分紅保額」，自屆滿第五保單週年之日開始，宣告日一年內有效，並不逐年累積，因此每年公佈之「額外分紅保額」可能較前一年度增加，亦可能減少。 (1)被保險人身故、完全失能或保險年齡達110歲當年之保單週年日仍生存者，給付「長青額外分紅保額」。 (2)要保人終止契約時，給付「長青解約額外分紅保額」的保單價值準備金。 | W92: =AG92&錄音序號_確認語_2&B1_解約金商品錄音話術table!AH92&錄音序號_確認語_2 ->  | Y92: RF | AA92: 您所投保的保誠人壽滿福雙享外幣終身壽險(定期給付型)的給付項目，包含： 一、祝壽保險金。 二、身故保險金或喪葬費用保險金、完全失能保險金。 三、保單紅利：包含增額分紅保額及額外分紅保額。 以上給付條件載明在保單條款及「建議書摘要表」中， | AB92: 本商品除外責任，包括： 要、被保險人故意行為或被保險人犯罪行為等除外責任所致的保險事故，保險公司將不予理賠。 完整之除外責任都載明於保單條款中， | AC92: 本商品除外責任，包括： 要、被保險人故意行為或被保險人犯罪行為等除外責任所致的保險事故，保險公司將不予理賠。 完整之除外責任都載明於保單條款中，請問您清楚嗎？ 【請客戶回答：清楚/不清楚】 | AD92: 您所投保的保誠人壽滿福雙享外幣終身壽險(定期給付型)的給付項目，包含： 一、祝壽保險金。 二、身故保險金或喪葬費用保險金、完全失能保險金。 三、保單紅利：包含增額分紅保額及額外分紅保額。 以上給付條件載明在保單條款及「建議書摘要表」中， | AE92: 本商品除外責任，包括： 一、要保人故意致被保險人於死。 二、被保險人故意自殺或自成保單條款附表一所列完全失能程度之一者。但自契約訂立或復效之日起二年後故意自殺致死者，保誠人壽仍負給付身故保險金或喪葬費用保險金之責任。 三、被保險人因犯罪處死或拒捕或越獄致死或致成保單條款附表一所列完全失能程度之一者。 因除外責任所致的保險事故，保誠人壽不負給付保險金的責任。完整之除外責任都載明於保單條款中， | AF92: 本商品除外責任，包括： 一、要保人故意致被保險人於死。 二、被保險人故意自殺或自成保單條款附表一所列完全失能程度之一者。但自契約訂立或復效之日起二年後故意自殺致死者，保誠人壽仍負給付身故保險金或喪葬費用保險金之責任。 三、被保險人因犯罪處死或拒捕或越獄致死或致成保單條款附表一所列完全失能程度之一者。 因除外責任所致的保險事故，保誠人壽不負給付保險金的責任。完整之除外責任都載明於保單條款中，請問您清楚嗎？ 【請客戶回答：清楚/不清楚】 | AG92: 您所投保的保誠人壽滿福雙享外幣終身壽險(定期給付型)的保單利益，包含： 一、祝壽保險金。 二、身故保險金或喪葬費用保險金、完全失能保險金。 三、保單紅利：包含增額分紅保額及額外分紅保額。 給付內容跟給付時間有載明在保單條款及「建議書摘要表」中，這些保險給付及保單紅利的相關內容， | AH92: 本商品除外責任，包括： 要、被保險人故意行為或被保險人犯罪行為等除外責任所致的保險事故，保險公司將不予理賠。 完整之除外責任都載明於保單條款中， | AI92: 本商品除外責任，包括： 要、被保險人故意行為或被保險人犯罪行為等除外責任所致的保險事故，保險公司將不予理賠。 完整之除外責任都載明於保單條款中，請問您清楚嗎？ 【請客戶回答：清楚/不清楚】
A93: 550C | B93: 保誠人壽喜悅定期壽險(111) | C93: 9999-12-31 | D93: INTL | E93: INTL | F93: NT$ | G93: 壽險-主約 | H93: M | I93: Y | M93: =AA93&錄音序號_確認語_2&""&B1_解約金商品錄音話術table!AB93&錄音序號_確認語_2 ->  | R93: 元 | T93: I | U93: ■身故保險金或喪葬費用保險金、完全失能保險金 被保險人身故或完全失能時，按「基本保險金額」給付身故保險金或完全失能保險金，給付後，保險契約效力即行終止。 | W93: =AG93&錄音序號_確認語_2&B1_解約金商品錄音話術table!AH93&錄音序號_確認語_2 ->  | Y93: NL | AA93: 您所投保的保誠人壽喜悅定期壽險(111) 的給付項目，包含： 一、身故保險金或喪葬費用保險金 二、完全失能保險金 以上給付條件載明在保單條款中， | AB93: 本商品除外責任，包括： 要、被保險人故意行為或被保險人犯罪行為等除外責任所致的保險事故，保險公司將不予理賠。 完整之除外責任都載明於保單條款中， | AC93: 本商品除外責任，包括： 要、被保險人故意行為或被保險人犯罪行為等除外責任所致的保險事故，保險公司將不予理賠。 完整之除外責任都載明於保單條款中，請問您清楚嗎？ 【請客戶回答：清楚/不清楚】 | AD93: 您所投保的保誠人壽喜悅定期壽險(111) 的給付項目，包含： 一、身故保險金或喪葬費用保險金 二、完全失能保險金 以上給付條件載明在保單條款中， | AE93: 本商品除外責任，包括： 一、要保人故意致被保險人於死。 二、被保險人故意自殺或自成失能。但自契約訂立或復效之日起二年後故意自殺致死者，保誠人壽仍負給付身故保險金或喪葬費用保險金之責任。 三、被保險人因犯罪處死或拒捕或越獄致死或失能。 因除外責任所致的保險事故，保誠人壽不負給付保險金的責任。完整之除外責任都載明於保單條款中， | AF93: 本商品除外責任，包括： 一、要保人故意致被保險人於死。 二、被保險人故意自殺或自成失能。但自契約訂立或復效之日起二年後故意自殺致死者，保誠人壽仍負給付身故保險金或喪葬費用保險金之責任。 三、被保險人因犯罪處死或拒捕或越獄致死或失能。 因除外責任所致的保險事故，保誠人壽不負給付保險金的責任。完整之除外責任都載明於保單條款中，請問您清楚嗎？ 【請客戶回答：清楚/不清楚】 | AG93: 您所投保的保誠人壽喜悅定期壽險(111) 的保單利益，包含： 一、身故保險金或喪葬費用保險金 二、完全失能保險金 給付內容跟給付時間有載明在保單條款中，這些保險給付的相關內容， | AH93: 本商品除外責任，包括： 要、被保險人故意行為或被保險人犯罪行為等除外責任所致的保險事故，保險公司將不予理賠。 完整之除外責任都載明於保單條款中， | AI93: 本商品除外責任，包括： 要、被保險人故意行為或被保險人犯罪行為等除外責任所致的保險事故，保險公司將不予理賠。 完整之除外責任都載明於保單條款中，請問您清楚嗎？ 【請客戶回答：清楚/不清楚】
A94: 9FIA | B94: 保誠人壽一路發外幣終身保險(定期給付型) | C94: 9999-12-31 | D94: ACLPEU11 | E94: 生死合險-主約 | F94: USD | G94: 生死合險-主約 | H94: M | I94: Y | J94: H | M94: =AA94&錄音序號_確認語_2&""&B1_解約金商品錄音話術table!AB94&錄音序號_確認語_2 ->  | R94: 元 | S94: 至被保險人保險年齡達110歲當年之保單週年日 | T94: I | W94: =AG94&錄音序號_確認語_2&B1_解約金商品錄音話術table!AH94&錄音序號_確認語_2 ->  | Y94: RF | AA94: 您所投保的保誠人壽一路發外幣終身保險(定期給付型) 的給付項目，包含： 一、身故保險金或喪葬費用保險金。 二、完全失能保險金。 三、生存保險金。 四、祝壽保險金。 五、豁免保險費。 六、保單紅利：包含年度紅利、長青紅利及長青解約紅利。 以上給付條件載明在保單條款及「建議書摘要表」中， | AB94: 本商品除外責任，包括： 要、被保險人故意行為或被保險人犯罪行為等除外責任所致的保險事故，保險公司將不予理賠。 完整之除外責任都載明於保單條款中， | AC94: 本商品除外責任，包括： 要、被保險人故意行為或被保險人犯罪行為等除外責任所致的保險事故，保險公司將不予理賠。 完整之除外責任都載明於保單條款中，請問您清楚嗎？ 【請客戶回答：清楚/不清楚】
A95: 95BA | B95: 保誠人壽三享安康終身保險(定期給付型) | C95: 9999-12-31 | D95: ACLPEN11 | E95: 生死合險-主約 | F95: NT$ | G95: 生死合險-主約 | H95: M | I95: Y | J95: I | M95: =AA95&錄音序號_確認語_2&""&B1_解約金商品錄音話術table!AB95&錄音序號_確認語_2 ->  | R95: 元 | S95: 至被保險人保險年齡達110歲當年之保單週年日 | T95: I | W95: =AG95&錄音序號_確認語_2&B1_解約金商品錄音話術table!AH95&錄音序號_確認語_2 ->  | Y95: RL | AA95: 您所投保的保誠人壽三享安康終身保險(定期給付型)的給付項目，包含： 一、生存保險金。 二、祝壽保險金。 三、身故保險金或喪葬費用保險金、完全失能保險金。 四、意外傷害身故保險金或喪葬費用保險金。 五、大眾運輸意外傷害身故保險金或喪葬費用保險金。 六、保單紅利：包含年度紅利、長青紅利及長青解約紅利。 以上給付條件載明在保單條款及「建議書摘要表」中， | AB95: 本商品除外責任，包括： 要、被保險人故意行為或被保險人犯罪行為等除外責任所致的保險事故，保險公司將不予理賠。 完整之除外責任都載明於保單條款中， | AC95: 本商品除外責任，包括： 要、被保險人故意行為或被保險人犯罪行為等除外責任所致的保險事故，保險公司將不予理賠。 完整之除外責任都載明於保單條款中，請問您清楚嗎？ 【請客戶回答：清楚/不清楚】 | AG95: 您所投保的保誠人壽三享安康終身保險(定期給付型)的保單利益，包含： 一、生存保險金。 二、祝壽保險金。 三、身故保險金或喪葬費用保險金、完全失能保險金。 四、意外傷害身故保險金或喪葬費用保險金。 五、大眾運輸意外傷害身故保險金或喪葬費用保險金。 六、保單紅利：包含年度紅利、長青紅利及長青解約紅利。 給付內容跟給付時間有載明在保單條款及「建議書摘要表」中，這些保險給付及保單紅利的相關內容， | AH95: 本商品除外責任，包括： 要、被保險人故意行為或被保險人犯罪行為等除外責任所致的保險事故，保險公司將不予理賠。 完整之除外責任都載明於保單條款中， | AI95: 本商品除外責任，包括： 要、被保險人故意行為或被保險人犯罪行為等除外責任所致的保險事故，保險公司將不予理賠。 完整之除外責任都載明於保單條款中，請問您清楚嗎？ 【請客戶回答：清楚/不清楚】
A96: 95A3 | B96: 保誠人壽享富樂活終身保險(定期給付型) | C96: 9999-12-31 | D96: ACLPEN10 | E96: 生死合險-主約 | F96: NT$ | G96: 生死合險-主約 | H96: M | I96: Y | J96: C | M96: =AA96&錄音序號_確認語_2&""&B1_解約金商品錄音話術table!AB96&錄音序號_確認語_2 ->  | R96: 元 | S96: 至被保險人保險年齡達110歲當年之保單週年日 | T96: I | W96: =AG96&錄音序號_確認語_2&B1_解約金商品錄音話術table!AH96&錄音序號_確認語_2 ->  | Y96: RL | AA96: 您所投保的保誠人壽享富樂活終身保險(定期給付型)的給付項目，包含： 一、生存保險金。 二、祝壽保險金。 三、身故保險金或喪葬費用保險金、完全失能保險金。 四、保單紅利：包含年度紅利、長青紅利及長青解約紅利。 以上給付條件載明在保單條款及「建議書摘要表」中， | AB96: 本商品除外責任，包括： 要、被保險人故意行為或被保險人犯罪行為等除外責任所致的保險事故，保險公司將不予理賠。 完整之除外責任都載明於保單條款中， | AC96: 本商品除外責任，包括： 要、被保險人故意行為或被保險人犯罪行為等除外責任所致的保險事故，保險公司將不予理賠。 完整之除外責任都載明於保單條款中，請問您清楚嗎？ 【請客戶回答：清楚/不清楚】 | AG96: 您所投保的保誠人壽享富樂活終身保險(定期給付型)的保單利益，包含： 一、生存保險金。 二、祝壽保險金。 三、身故保險金或喪葬費用保險金、完全失能保險金。 四、保單紅利：包含年度紅利、長青紅利及長青解約紅利。 給付內容跟給付時間有載明在保單條款及「建議書摘要表」中，這些保險給付及保單紅利的相關內容， | AH96: 本商品除外責任，包括： 要、被保險人故意行為或被保險人犯罪行為等除外責任所致的保險事故，保險公司將不予理賠。 完整之除外責任都載明於保單條款中， | AI96: 本商品除外責任，包括： 要、被保險人故意行為或被保險人犯罪行為等除外責任所致的保險事故，保險公司將不予理賠。 完整之除外責任都載明於保單條款中，請問您清楚嗎？ 【請客戶回答：清楚/不清楚】
A97: 9RGA | B97: 保誠人壽美利29外幣終身壽險(定期給付型) | C97: 9999-12-31 | D97: ARLPLU12 | E97: ARLPLU12 | F97: USD | G97: 壽險-主約 | H97: M | I97: Y | J97: R | M97: =AA97&錄音序號_確認語_2&""&B1_解約金商品錄音話術table!AB97&錄音序號_確認語_2 ->  | R97: 元 | S97: 至被保險人保險年齡達100歲當年之保單週年日 | W97: =AG97&錄音序號_確認語_2&B1_解約金商品錄音話術table!AH97&錄音序號_確認語_2 ->  | Y97: RF | AA97: 本商品除外責任，包括： 要、被保險人故意行為或被保險人犯罪行為等除外責任所致的保險事故，保險公司將不予理賠。 完整之除外責任都載明於保單條款中， | AB97: 本商品除外責任，包括： 要、被保險人故意行為或被保險人犯罪行為等除外責任所致的保險事故，保險公司將不予理賠。 完整之除外責任都載明於保單條款中，請問您清楚嗎？ 【提示:請等待客戶回答】 | AC97: 本商品除外責任，包括： 要、被保險人故意行為或被保險人犯罪行為等除外責任所致的保險事故，保險公司將不予理賠。 完整之除外責任都載明於保單條款中，請問您清楚嗎？ 【請客戶回答：清楚/不清楚】
A98: 92DA | B98: 保誠人壽福康滿利終身壽險(定期給付型) | C98: 9999-12-31 | D98: ARLPLN6 | E98: ARLPLN6 | F98: NT$ | G98: 壽險-主約 | H98: M | I98: Y | J98: H | M98: =AA98&錄音序號_確認語_2&""&B1_解約金商品錄音話術table!AB98&錄音序號_確認語_2 ->  | R98: 元 | S98: 至被保險人保險年齡達110歲當年之保單週年日 | U98: ■祝壽保險金 被保險人於保險年齡達110 歲當年之保單週年日仍生存者，按下列三款計算方式所得金額之最大者給付「祝壽保險金」： 1.「基本保險金額」。 2.「基本保險金額」的保單價值準備金。 3.「應已繳總保費」。 ■身故保險金或喪葬費用保險金、完全失能保險金 1. 被保險人身故或完全失能時，按下列兩款計算方式所得金額之最大者給付身故保險金或完全失能保險金，給付後保險契約效力即行終止: (1) 「基本保險金額」的保單價值準備金乘以保單價值準備金比率。 (2) 「應已繳總保費」。 2. 若要保人選擇保險金分期給付，得事先約定欲分期給付之「指定保險金」及「分期定期保險金給付期間」。開始給付分期定期保險金後，成為不分紅保單，不享有紅利分配。「分期定期保險金給付期間」屆滿時，分期定期給付之約定即行終止。 若被保險人滿十五足歲前死亡者或以受監護宣告尚未撤銷者為被保險人，其身故給付之計算另依條款約定。 ■特定癌症照護保險金 被保險人經醫師診斷確診「特定癌症」時，按「基本保險金額」的10% 給付。 ■保單紅利(非保證給付項目) 保誠人壽依據分紅保險業務之實際經營狀況且考量未來長期之分紅績效，核定該年度之分紅保額，作為下列紅利分配之基礎，並自屆滿第五保單週年之日開始分配： 1. 「增額分紅保額」：每年分配一次。於下列時點一次給付： (1) 被保險人身故、完全失能或保險年齡達110 歲當年之保單週年日仍生存者，給付「累積已分配增額分紅保額」。 (2) 要保人終止契約時，給付「累積已分配增額分紅保額」的保單價值準備金。 2. 「額外分紅保額」：包含「長青額外分紅保額」與「長青解約額外分紅保額」，自宣告日一年內有效，並不逐年累積，因此每年公佈之「額外分紅保額」可能較前一年度增加，亦可能減少。 (1) 被保險人身故、完全失能或保險年齡達110 歲當年之保單週年日仍生存者，給付「長青額外分紅保額」。 (2) 要保人終止契約時，給付「長青解約額外分紅保額」的保單價值準備金。 | W98: =AG98&錄音序號_確認語_2&B1_解約金商品錄音話術table!AH98&錄音序號_確認語_2 ->  | Y98: RL | AA98: 您所投保的保誠人壽福康滿利終身壽險(定期給付型)的給付項目，包含： 一、身故保險金或喪葬費用保險金。 二、完全失能保險金。 三、祝壽保險金。 四、特定癌症照護保險金，特定癌症指胃惡性腫瘤。 五、保單紅利：包含增額分紅保額及額外分紅保額。 以上給付條件載明在保單條款及「建議書摘要表」中， | AB98: 本商品除外責任，包括： 要、被保險人故意行為或被保險人犯罪行為致被保險人死亡或完全失能。 因除外責任所致的保險事故，保險公司將不予理賠。完整之除外責任都載明於保單條款中， | AC98: 本商品除外責任，包括： 要、被保險人故意行為或被保險人犯罪行為等除外責任所致的保險事故，保險公司將不予理賠。 完整之除外責任都載明於保單條款中，請問您清楚嗎？ 【請客戶回答：清楚/不清楚】 | AD98: 您所投保的保誠人壽福康滿利終身壽險(定期給付型)的給付項目，包含： 一、身故保險金或喪葬費用保險金。 二、完全失能保險金。 三、祝壽保險金。 四、特定癌症照護保險金，特定癌症指胃惡性腫瘤。 五、保單紅利：包含增額分紅保額及額外分紅保額。 以上給付條件載明在保單條款及「建議書摘要表」中， | AE98: 本商品除外責任，包括： 一、要保人故意致被保險人於死。 二、被保險人故意自殺或自成附表一所列完全失能程度之一者。但自契約訂立或復效之日起二年後故意自殺致死者，保誠人壽仍負給付身故保險金或喪葬費用保險金之責任。 三、被保險人因犯罪處死或拒捕或越獄致死或致成保單條款附表一所列完全失能程度之一者。 因除外責任所致的保險事故，保誠人壽不負給付保險金的責任。完整之除外責任都載明於保單條款中， | AF98: 本商品除外責任，包括： 一、要保人故意致被保險人於死。 二、被保險人故意自殺或自成附表一所列完全失能程度之一者。但自契約訂立或復效之日起二年後故意自殺致死者，保誠人壽仍負給付身故保險金或喪葬費用保險金之責任。 三、被保險人因犯罪處死或拒捕或越獄致死或致成保單條款附表一所列完全失能程度之一者。 因除外責任所致的保險事故，保誠人壽不負給付保險金的責任。完整之除外責任都載明於保單條款中，請問您清楚嗎？ 【請客戶回答：清楚/不清楚】 | AG98: 您所投保的保誠人壽福康滿利終身壽險(定期給付型)的保單利益，包含： 一、身故保險金或喪葬費用保險金。 二、完全失能保險金。 三、祝壽保險金。 四、特定癌症照護保險金，特定癌症指胃惡性腫瘤。 五、保單紅利：包含增額分紅保額及額外分紅保額。 給付內容跟給付時間有載明在保單條款及「建議書摘要表」中，這些保險給付及保單紅利的相關內容， | AH98: 本商品除外責任，包括： 要、被保險人故意行為或被保險人犯罪行為致被保險人死亡或完全失能。 因除外責任所致的保險事故，保險公司將不予理賠。完整之除外責任都載明於保單條款中， | AI98: 本商品除外責任，包括： 要、被保險人故意行為或被保險人犯罪行為等除外責任所致的保險事故，保險公司將不予理賠。 完整之除外責任都載明於保單條款中，請問您清楚嗎？ 【請客戶回答：清楚/不清楚】
A99: 92D5 | B99: 保誠人壽福安滿利終身壽險(定期給付型) | C99: 9999-12-31 | D99: BRLPLN6 | E99: BRLPLN6 | F99: NT$ | G99: 壽險-主約 | H99: M | I99: Y | J99: R | M99: =AA99&錄音序號_確認語_2&""&B1_解約金商品錄音話術table!AB99&錄音序號_確認語_2 ->  | R99: 元 | S99: 至被保險人保險年齡達110歲當年之保單週年日 | U99: ■身故保險金或喪葬費用保險金、完全失能保險金 1.被保險人身故或完全失能時，按身故或完全失能診斷確定當時下列二款計算方式給付身故保險金或完全失能保險金： (1)「基本保險金額」的保單價值準備金乘以保單條款所列保單價值準備金比率。 (2)「應已繳總保費」。 除依上述給付外，另將「累積已分配增額分紅保額」及當時有效之「長青額外分紅保額」合併給付。 2.若要保人選擇保險金分期給付，得事先約定欲分期給付之「指定保險金」及「分期定期保險金給付期間」。開始給付分期定期保險金後，成為不分紅保單，不享有紅利分配。「分期定期保險金給付期間」屆滿時，分期定期給付之約定即行終止。 ※被保險人滿十五足歲前死亡者，其身故保險金變更為喪葬費用保險金；喪葬費用保險金以遺產稅喪葬費用扣除額之一半為限，其超過部分保誠人壽無息退還該超過部分之已繳保險費，且不適用分期定期保險金給付之約定。 ※訂立保險契約時，以受監護宣告尚未撤銷者為被保險人，其身故保險金變更為喪葬費用保險金，且不適用分期定期保險金給付之約定。 ※被保險人同時或先後致成保單條款所列二項以上之完全失能程度者，保誠人壽僅給付一項完全失能保險金。 ■祝壽保險金 被保險人於保險年齡達110 歲仍生存時，按保險期間屆滿日當時下列三款計算方式所得金額之最大者，給付祝壽保險金： 1.「基本保險金額」。 2.「基本保險金額」的保單價值準備金。 3.「應已繳總保費」。 除依上述給付外，另將「累積已分配增額分紅保額」及當時有效之「長青額外分紅保額」合併給付。 ■保單紅利(非保證給付項目) 保誠人壽每年依據分紅保險業務會計年度結算之實際累積營運結果及各該保險單依條款附件「保單紅利計算與分配說明」所載之方式計算下列分紅保額。於本契約有效期間內，「增額分紅保額」於第五保單週年日(含)起之各保單週年日分配，「額外分紅保額」於第五保單週年日(含)起適用。 1.「增額分紅保額」：每年分配一次。於下列時點一次給付： (1) 被保險人身故、完全失能或保險年齡達110 歲仍生存者，給付「累積已分配增額分紅保額」。 (2) 要保人終止契約時，給付「累積已分配增額分紅保額」的保單價值準備金。 2.「額外分紅保額」：包含「長青額外分紅保額」與「長青解約額外分紅保額」， 自宣告日一年內有效，並不逐年累積，因此每年公佈之「額外分紅保額」可能較前一年度增加，亦可能減少。 (1)被保險人身故、完全失能或保險年齡達110 歲仍生存者，給付「長青額外分紅保額」。 (2)要保人終止契約或契約失效時，依約定方式給付「長青解約額外分紅保額」的保單價值準備金。 | W99: =AG99&錄音序號_確認語_2&B1_解約金商品錄音話術table!AH99&錄音序號_確認語_2 ->  | Y99: RL | AA99: 本保單之主要給付項目包含： 一、身故保險金或喪葬費用保險金。 二、完全失能保險金。 三、祝壽保險金。 四、保單紅利：包含增額分紅保額及額外分紅保額。 以上給付條件載明在保單條款及「建議書摘要表」中， | AB99: 本商品除外責任，包括： 要、被保險人故意行為或被保險人犯罪行為等除外責任所致的保險事故，保險公司將不予理賠。完整之除外責任都載明於保單條款中， | AC99: 本商品除外責任，包括： 要、被保險人故意行為或被保險人犯罪行為等除外責任所致的保險事故，保險公司將不予理賠。完整之除外責任都載明於保單條款中，請問您清楚嗎？ 【請客戶回答：清楚/不清楚】 | AD99: 本保單之主要給付項目包含： 一、身故保險金或喪葬費用保險金。 二、完全失能保險金。 三、祝壽保險金。 四、保單紅利：包含增額分紅保額及額外分紅保額。 | AE99: 本商品除外責任，包括： 一、要保人故意致被保險人於死。 二、被保險人故意自殺或自成保單條款所列完全失能程度之一者。但自契約訂立或復效之日起二年後故意自殺致死者，保誠人壽仍負給付身故保險金或喪葬費用保險金之責任。 三、被保險人因犯罪處死或拒捕或越獄致死或致成保單條款所列完全失能程度之一者。 因除外責任所致的保險事故，保誠人壽不負給付保險金的責任。 完整之除外責任都載明於保單條款中， | AF99: 本商品除外責任，包括： 一、要保人故意致被保險人於死。 二、被保險人故意自殺或自成保單條款所列完全失能程度之一者。但自契約訂立或復效之日起二年後故意自殺致死者，保誠人壽仍負給付身故保險金或喪葬費用保險金之責任。 三、被保險人因犯罪處死或拒捕或越獄致死或致成保單條款所列完全失能程度之一者。 因除外責任所致的保險事故，保誠人壽不負給付保險金的責任。 完整之除外責任都載明於保單條款中，請問您清楚嗎？ 【請客戶回答：清楚/不清楚】 | AG99: 本保單之主要給付項目包含： 一、身故保險金或喪葬費用保險金。 二、完全失能保險金。 三、祝壽保險金。 四、保單紅利：包含增額分紅保額及額外分紅保額。 以上給付條件載明在保單條款及「建議書摘要表」中， | AH99: 本商品除外責任，包括： 要、被保險人故意行為或被保險人犯罪行為等除外責任所致的保險事故，保險公司將不予理賠。完整之除外責任都載明於保單條款中， | AI99: 本商品除外責任，包括： 要、被保險人故意行為或被保險人犯罪行為等除外責任所致的保險事故，保險公司將不予理賠。完整之除外責任都載明於保單條款中，請問您清楚嗎？ 【請客戶回答：清楚/不清楚】
A100: 9SB3 | B100: 保誠人壽美滿傳家外幣終身壽險(定期給付型) | C100: 9999-12-31 | D100: ARLPLU30 | E100: ARLPLU30 | F100: USD | G100: 壽險-主約 | H100: M | I100: Y | J100: R1 | M100: =AA100&錄音序號_確認語_2&""&B1_解約金商品錄音話術table!AB100&錄音序號_確認語_2 ->  | R100: 元 | S100: 至被保險人保險年齡達110歲當年之保單週年日 | T100: ■保單紅利(非保證給付項目) 保誠人壽依據分紅保險業務之實際經營狀況且考量未來長期之分紅績效，核定該年度之分紅保額，作為下列紅利分配之基礎，於保險契約有效期間內自屆滿第五保單週年之日起分配： 1.「增額分紅保額」：每年分配一次。於下列時點一次給付： (1)被保險人身故、完全失能或保險年齡達110 歲仍生存者，給付「累積已分配增額分紅保額」。 (2)要保人終止契約時，給付「累積已分配增額分紅保額」的保單價值準備金。 2.「額外分紅保額」：包含「長青額外分紅保額」與「長青解約額外分紅保額」，自宣告日一年內有效，並不逐年累積，因此每年公佈之「額外分紅保額」可能較前一年度增加，亦可能減少。 (1)被保險人身故、完全失能或保險年齡達110 歲仍生存者，給付「長青額外分紅保額」。 (2)要保人終止契約或契約失效時，依約定方式給付「長青解約額外分紅保額」的保單價值準備金。 | U100: ■身故保險金或喪葬費用保險金、完全失能保險金 1.被保險人身故或完全失能時，按身故或完全失能診斷確定當時下列三款計算方式所得金額之最大者給付身故保險金或完全失能保險金： (1)「基本保險金額」乘以當年度保險金額比率。 (2)「基本保險金額」的保單價值準備金乘以保單價值準備金比率。 (3)「應已繳總保費」。 除依上述給付外，另將「累積已分配增額分紅保額」及當時有效之「長青額外分紅保額」合併給付。 2. 若要保人選擇保險金分期給付，得事先約定欲分期給付之「指定保險金」及「分期定期保險金給付期間」。開始給付分期定期保險金後，成為不分紅保單，不享有紅利分配。「分期定期保險金給付期間」屆滿時，分期定期給付之約定即行終止。 ※ 被保險人滿十五足歲前死亡者，其身故保險金變更為喪葬費用保險金；喪葬費用保險金以遺產稅喪葬費用扣除額之一半為限，其超過部分保誠人壽無息退還該超過部分之已繳保險費，且不適用分期定期保險金給付之約定。 ※ 訂立保險契約時，以受監護宣告尚未撤銷者為被保險人，其身故保險金變更為喪葬費用保險金，且不適用分期定期保險金給付之約定。 ■祝壽保險金 被保險人於保險年齡達110 歲仍生存時，按保險期間屆滿日當時下列三款計算方式所得金額之最大者，給付祝壽保險金： 1.「基本保險金額」乘以當年度保險金額比率。 2.「基本保險金額」的保單價值準備金。 3.「應已繳總保費」。 除依上述給付外，另將「累積已分配增額分紅保額」及當時有效之「長青額外分紅保額」合併給付。 | V100: =AD100&錄音序號_確認語_2&AE100&錄音序號_確認語_2 ->  | W100: =AG100&錄音序號_確認語_2&B1_解約金商品錄音話術table!AH100&錄音序號_確認語_2 ->  | X100: =SUBSTITUTE(M100,"建議書摘要表","建議書") ->  | Y100: RF1 | AA100: 本保單之主要給付項目包含： 一、身故保險金或喪葬費用保險金 二、完全失能保險金 三、祝壽保險金 以上給付條件載明在保單條款及「建議書」中， 我將再說明非保證給付的保單紅利項目： 1.增額分紅保額：依保單條款約定，若該年度有分配保單紅利，將於保單週年日分配，每年分配一次。依下列條件給付： (1)被保險人身故、完全失能或保險期間屆滿日仍生存者，給付「累積已分配增額分紅保額」。 (2)要保人終止契約時，給付「累積已分配增額分紅保額」的保單價值準備金。 2.額外分紅保額：依保單條款約定，若該年度有分配保單紅利，自宣告後一年有效，每年公佈的額外分紅保額可能較前一年度增加，亦可能減少。依下列條件給付： (1)被保險人身故、完全失能或保險期間屆滿日仍生存者，給付「長青額外分紅保額」。 (2)要保人終止契約或契約失效時，依約定方式給付「長青解約額外分紅保額」的保單價值準備金。 | AB100: 本商品除外責任，包括： 要、被保險人故意行為或被保險人犯罪行為等除外責任所致的保險事故，保險公司將不予理賠。完整之除外責任都載明於保單條款中， | AC100: 本商品除外責任，包括： 要、被保險人故意行為或被保險人犯罪行為等除外責任所致的保險事故，保險公司將不予理賠。 完整之除外責任都載明於保單條款中，請問您清楚嗎？ 【請客戶回答：清楚/不清楚】 | AD100: 本保單之主要給付項目包含： 一、身故保險金或喪葬費用保險金 二、完全失能保險金 三、祝壽保險金 ■保單紅利(非保證給付項目) 保誠人壽依據分紅保險業務之實際經營狀況且考量未來長期之分紅績效，核定該年度之分紅保額，作為下列紅利分配之基礎，於保險契約有效期間內自屆滿第五保單週年之日起分配： 1.「增額分紅保額」：每年分配一次。於下列時點一次給付： (1)被保險人身故、完全失能或保險年齡達110 歲仍生存者，給付「累積已分配增額分紅保額」。 (2)要保人終止契約時，給付「累積已分配增額分紅保額」的保單價值準備金。 2.「額外分紅保額」：包含「長青額外分紅保額」與「長青解約額外分紅保額」，自宣告日一年內有效，並不逐年累積，因此每年公佈之「額外分紅保額」可能較前一年度增加，亦可能減少。 (1)被保險人身故、完全失能或保險年齡達110 歲仍生存者，給付「長青額外分紅保額」。 (2)要保人終止契約或契約失效時，依約定方式給付「長青解約額外分紅保額」的保單價值準備金。 | AE100: 本商品除外責任，包括： 一、要保人故意致被保險人於死。 二、被保險人故意自殺或自成保單條款所列完全失能程度之一者。但自契約訂立或復效之日起二年後故意自殺致死者，保誠人壽仍負給付身故保險金或喪葬費用保險金之責任。 三、被保險人因犯罪處死或拒捕或越獄致死或致成保單條款所列完全失能程度之一者。 因除外責任所致的保險事故，保誠人壽不負給付保險金的責任。 完整之除外責任都載明於保單條款中， | AF100: 本商品除外責任，包括： 一、要保人故意致被保險人於死。 二、被保險人故意自殺或自成保單條款所列完全失能程度之一者。但自契約訂立或復效之日起二年後故意自殺致死者，保誠人壽仍負給付身故保險金或喪葬費用保險金之責任。 三、被保險人因犯罪處死或拒捕或越獄致死或致成保單條款所列完全失能程度之一者。 因除外責任所致的保險事故，保誠人壽不負給付保險金的責任。 完整之除外責任都載明於保單條款中，請問您清楚嗎？ 【請客戶回答：清楚/不清楚】 | AG100: 本保單之主要給付項目包含： 一、身故保險金或喪葬費用保險金 二、完全失能保險金 三、祝壽保險金 以上給付條件載明在保單條款及「建議書」中， 我將再說明非保證給付的保單紅利項目： 1.增額分紅保額：依保單條款約定，若該年度有分配保單紅利，將於保單週年日分配，每年分配一次。依下列條件給付： (1)被保險人身故、完全失能或保險期間屆滿日仍生存者，給付「累積已分配增額分紅保額」。 (2)要保人終止契約時，給付「累積已分配增額分紅保額」的保單價值準備金。 2.額外分紅保額：依保單條款約定，若該年度有分配保單紅利，自宣告後一年有效，每年公佈的額外分紅保額可能較前一年度增加，亦可能減少。依下列條件給付： (1)被保險人身故、完全失能或保險期間屆滿日仍生存者，給付「長青額外分紅保額」。 (2)要保人終止契約或契約失效時，依約定方式給付「長青解約額外分紅保額」的保單價值準備金。 | AH100: 本商品除外責任，包括： 要、被保險人故意行為或被保險人犯罪行為等除外責任所致的保險事故，保險公司將不予理賠。完整之除外責任都載明於保單條款中， | AI100: 本商品除外責任，包括： 要、被保險人故意行為或被保險人犯罪行為等除外責任所致的保險事故，保險公司將不予理賠。 完整之除外責任都載明於保單條款中，請問您清楚嗎？ 【請客戶回答：清楚/不清楚】
A101: 9SG3 | B101: 保誠人壽美滿相傳外幣終身壽險(113)(定期給付型) | C101: 9999-12-31 | D101: ARLPLU42 | E101: ARLPLU42 | F101: USD | G101: 壽險-主約 | H101: M | I101: Y | J101: R1 | M101: =AA101&錄音序號_確認語_2&""&B1_解約金商品錄音話術table!AB101&錄音序號_確認語_2 ->  | R101: 元 | S101: 至被保險人保險年齡達110歲當年之保單週年日 | T101: ■保單紅利(非保證給付項目) 保誠人壽每年依據分紅保險業務會計年度結算之實際累積營運結果及各該保險單依 條款附件「保單紅利計算與分配說明」所載之方式計算下列分紅保額。於本契約有效期間內，「增額分紅保額」於屆滿第五保單年度起之各保單週年日分配，「額外分紅保額」於屆滿第五保單年度起適用。 1.「增額分紅保額」：每年分配一次。於下列時點一次給付： (1)被保險人身故、完全失能或保險年齡達110歲當年之保單週年日仍生存者，給付「累積已分配增額分紅保額」。 (2)要保人終止契約時，給付「累積已分配增額分紅保額」的保單價值準備金。 2.「額外分紅保額」：包含「長青額外分紅保額」與「長青解約額外分紅保額」，自宣告日一年內有效，並不逐年累積，因此每年公佈之「額外分紅保額」可能較前一年度增加，亦可能減少。 (1)被保險人身故、完全失能或保險年齡達110歲當年之保單週年日仍生存者，給付「長青額外分紅保額」。 (2)要保人終止契約或契約失效時，依約定方式給付「長青解約額外分紅保額」的保單價值準備金。 | U101: ■身故保險金或喪葬費用保險金、完全失能保險金 1.被保險人身故或完全失能時，按身故或完全失能診斷確定當時下列三款計算方式 所得金額之最大者給付身故保險金或完全失能保險金： (1)「基本保險金額」乘以當年度保險金額比率。 (2)「基本保險金額」的保單價值準備金乘以保單價值準備金比率。 (3)「應已繳總保費」。 除依上述給付外，另將「累積已分配增額分紅保額」及當時有效之「長青額外分紅保額」合併給付。 2.若要保人選擇保險金分期給付，得事先約定欲分期給付之「指定保險金」及「分期定期保險金給付期間」。開始給付分期定期保險金後，成為不分紅保單，不享有紅利分配。「分期定期保險金給付期間」屆滿時，分期定期給付之約定即行終止。 ※被保險人滿十五足歲前死亡者，其身故保險金變更為喪葬費用保險金；喪葬費用保險金以遺產稅喪葬費用扣除額之一半為限，其超過部分保誠人壽無息退還該超過部分之已繳保險費，且不適用分期定期保險金給付之約定。 ※訂立保險契約時，以受監護宣告尚未撤銷者為被保險人，其身故保險金變更為喪葬費用保險金，且不適用分期定期保險金給付之約定。 ※被保險人同時或先後致成保單條款附表一所列二項以上之完全失能程度者，保誠人壽僅給付一項完全失能保險金。 ■祝壽保險金 被保險人於保險年齡達110歲當年之保單週年日仍生存時，按保險期間屆滿日當時下列三款計算方式所得金額之最大者，給付祝壽保險金：1.「基本保險金額」。2.「基本保險金額」的保單價值準備金。3.「應已繳總保費」。 除依上述給付外，另將「累積已分配增額分紅保額」及當時有效之「長青額外分紅保額」合併給付。 | V101: =AD101&錄音序號_確認語_2&AE101&錄音序號_確認語_2 ->  | W101: =AG101&錄音序號_確認語_2&B1_解約金商品錄音話術table!AH101&錄音序號_確認語_2 ->  | X101: =SUBSTITUTE(M101,"建議書摘要表","建議書") ->  | Y101: RF1 | AA101: 本保單之主要給付項目包含： 一、身故保險金或喪葬費用保險金 二、完全失能保險金 三、祝壽保險金 以上給付條件載明在保單條款及「建議書」中， 我將再說明非保證給付的保單紅利項目： 1.增額分紅保額：依保單條款約定，若該年度有分配保單紅利，將於保單週年日分配，每年分配一次。依下列條件給付： (1)被保險人身故、完全失能或保險期間屆滿日仍生存者，給付「累積已分配增額分紅保額」。 (2)要保人終止契約時，給付「累積已分配增額分紅保額」的保單價值準備金。 2.額外分紅保額：依保單條款約定，若該年度有分配保單紅利，自宣告後一年有效，每年公佈的額外分紅保額可能較前一年度增加，亦可能減少。依下列條件給付： (1)被保險人身故、完全失能或保險期間屆滿日仍生存者，給付「長青額外分紅保額」。 (2)要保人終止契約或契約失效時，依約定方式給付「長青解約額外分紅保額」的保單價值準備金。 | AB101: 本商品除外責任，包括： 要、被保險人故意行為或被保險人犯罪行為等除外責任所致的保險事故，保險公司將不予理賠。完整之除外責任都載明於保單條款中， | AC101: 本商品除外責任，包括： 要、被保險人故意行為或被保險人犯罪行為等除外責任所致的保險事故，保險公司將不予理賠。 完整之除外責任都載明於保單條款中，請問您清楚嗎？ 【請客戶回答：清楚/不清楚】 | AD101: 本保單之主要給付項目包含： 一、身故保險金或喪葬費用保險金 二、完全失能保險金 三、祝壽保險金 ■保單紅利(非保證給付項目) 保誠人壽每年依據分紅保險業務會計年度結算之實際累積營運結果及各該保險單依條款附件「保單紅利計算與分配說明」所載之方式計算下列分紅保額。於本契約有效期間內，「增額分紅保額」於屆滿第五保單年度起之各保單週年日分配，「額外分紅保額」於屆滿第五保單年度起適用。 1.「增額分紅保額」：每年分配一次。於下列時點一次給付： (1)被保險人身故、完全失能或保險年齡達110歲當年之保單週年日仍生存者，給付「累積已分配增額分紅保額」。 (2)要保人終止契約時，給付「累積已分配增額分紅保額」的保單價值準備金。 2.「額外分紅保額」：包含「長青額外分紅保額」與「長青解約額外分紅保額」，自宣告日一年內有效，並不逐年累積，因此每年公佈之「額外分紅保額」可能較前一年度增加，亦可能減少。 (1)被保險人身故、完全失能或保險年齡達110歲當年之保單週年日仍生存者，給付「長青額外分紅保額」。 (2)要保人終止契約或契約失效時，依約定方式給付「長青解約額外分紅保額」的保單價值準備金。 | AE101: 本商品除外責任，包括： 一、要保人故意致被保險人於死。 二、被保險人故意自殺或自成保單條款所列完全失能程度之一者。但自契約訂立或復效之日起二年後故意自殺致死者，保誠人壽仍負給付身故保險金或喪葬費用保險金之責任。 三、被保險人因犯罪處死或拒捕或越獄致死或致成保單條款所列完全失能程度之一者。 因除外責任所致的保險事故，保誠人壽不負給付保險金的責任。 完整之除外責任都載明於保單條款中， | AF101: 本商品除外責任，包括： 一、要保人故意致被保險人於死。 二、被保險人故意自殺或自成保單條款所列完全失能程度之一者。但自契約訂立或復效之日起二年後故意自殺致死者，保誠人壽仍負給付身故保險金或喪葬費用保險金之責任。 三、被保險人因犯罪處死或拒捕或越獄致死或致成保單條款所列完全失能程度之一者。 因除外責任所致的保險事故，保誠人壽不負給付保險金的責任。 完整之除外責任都載明於保單條款中，請問您清楚嗎？ 【請客戶回答：清楚/不清楚】 | AG101: 本保單之主要給付項目包含： 一、身故保險金或喪葬費用保險金 二、完全失能保險金 三、祝壽保險金 以上給付條件載明在保單條款及「建議書」中， 我將再說明非保證給付的保單紅利項目： 1.增額分紅保額：依保單條款約定，若該年度有分配保單紅利，將於保單週年日分配，每年分配一次。依下列條件給付： (1)被保險人身故、完全失能或保險期間屆滿日仍生存者，給付「累積已分配增額分紅保額」。 (2)要保人終止契約時，給付「累積已分配增額分紅保額」的保單價值準備金。 2.額外分紅保額：依保單條款約定，若該年度有分配保單紅利，自宣告後一年有效，每年公佈的額外分紅保額可能較前一年度增加，亦可能減少。依下列條件給付： (1)被保險人身故、完全失能或保險期間屆滿日仍生存者，給付「長青額外分紅保額」。 (2)要保人終止契約或契約失效時，依約定方式給付「長青解約額外分紅保額」的保單價值準備金。 | AH101: 本商品除外責任，包括： 要、被保險人故意行為或被保險人犯罪行為等除外責任所致的保險事故，保險公司將不予理賠。完整之除外責任都載明於保單條款中， | AI101: 本商品除外責任，包括： 要、被保險人故意行為或被保險人犯罪行為等除外責任所致的保險事故，保險公司將不予理賠。 完整之除外責任都載明於保單條款中，請問您清楚嗎？ 【請客戶回答：清楚/不清楚】

Sheet B2_錄音程序&共同文字 (hidden)
A1: item | B1: 開頭語 | C1: 結尾語 | D1: 開頭語_農金版 | E1: 內文一_農金版 | F1: 內文二_農金版 | G1: 開頭語_臺企版 | H1: 開頭語_兆豐版 | I1: 開頭語_花旗版 | J1: 開頭語_一銀版 | K1: 開頭語_台新版 | L1: 確認語1 | M1: 確認語2 | N1: 確認語3 | O1: 組合版(公式過長用) | P1: 開頭語-繳款人 | Q1: 結尾語_繳款人 | R1: 開頭語_農金版 | S1: 內文一_農金版 | T1: 內文二_農金版 | U1: 開頭語_臺企版 | V1: 開頭語_兆豐版 | W1: 開頭語_花旗版 | X1: 開頭語_一銀版 | Y1: 開頭語_台新版 | Z1: 確認語1 | AA1: 確認語2 | AB1: 確認語3 | AD1: 確認語設定 | AE1: 確認語1 | AF1: 確認語2 | AG1: 確認語3 | AH1: 確認語4 | AI1: 確認語5 | AJ1: 確認語6 | AQ1: 瘖啞人士注意事項 | AR1: 瘖啞人士注意事項_繳款人
A2: 錄音程序一 | B2: 準備錄音話術 | AD2: 1 | AE2: =要保人&" 先生/女士、"&被保人&" 先生/女士，" -> 貴保戶 先生/女士、貴保戶 先生/女士， | AF2: =" "&要保人&" 先生/女士，請問您是否同意?【請客戶回答：同意/不同意】"&" "&被保人&" 先生/女士，請問您是否同意?【請客戶回答：同意/不同意】 " -> 貴保戶 先生/女士，請問您是否同意?【請客戶回答：同意/不同意】 貴保戶 先生/女士，請問您是否同意?【請客戶回答：同意/不同意】 | AG2: =" "&要保人&" 先生/女士，請您唸出身分證字號為【提示:請等待客戶念出身分證字號"&要保人身分證字號&"，並進行核對】"&" "&被保人&" 先生/女士，請您唸出身分證字號為【提示:請等待客戶念出身分證字號"&被保險人身分證字號&"，並進行核對】" -> 貴保戶 先生/女士，請您唸出身分證字號為【提示:請等待客戶念出身分證字號，並進行核對】 貴保戶 先生/女士，請您唸出身分證字號為【提示:請等待客戶念出身分證字號，並進行核對】 | AH2: =" "&要保人&" 先生/女士，請問是否正確?【請客戶回答：正確/不正確】"&" "&被保人&" 先生/女士，請問是否正確?【請客戶回答：正確/不正確】 " -> 貴保戶 先生/女士，請問是否正確?【請客戶回答：正確/不正確】 貴保戶 先生/女士，請問是否正確?【請客戶回答：正確/不正確】 | AI2: =" "&要保人&" 先生/女士，請問您清楚嗎? 【請客戶回答：清楚/不清楚】"&" "&被保人&" 先生/女士，請問您清楚嗎? 【請客戶回答：清楚/不清楚】 " -> 貴保戶 先生/女士，請問您清楚嗎? 【請客戶回答：清楚/不清楚】 貴保戶 先生/女士，請問您清楚嗎? 【請客戶回答：清楚/不清楚】 | AJ2: =要保人&"先生/女士，請進行聲明。 【要保人】： 我，"&要保人& "已充分了解本保單且確認符合本人需求，投保時應簽署之所有文件均以本人親自簽名方式投保。 "&"【銷售人員】： "& 被保人&"先生/女士，請進行聲明。 【被保險人】： 我，"&被保人& "已充分了解本保單且確認符合本人需求，投保時應簽署之所有文件均以本人親自簽名方式投保。"&" ※以下僅供聽力或語言表達能力不便客戶簽署聲明、姓名與日期欄位： 客戶聲明：___________________________________________________________ 客戶姓名：________簽署日期：_________錄影年份日期與時分：_________" -> 貴保戶先生/女士，請進行聲明。 【要保人】： 我，貴保戶已充分了解本保單且確認符合本人需求，投保時應簽署之所有文件均以本人親自簽名方式投保。 【銷售人員】： 貴保戶先生/女士，請進行聲明。 【被保險人】： 我，貴保戶已充分了解本保單且確認符合本人需求，投保時應簽署之所有文件均以本人親自簽名方式投保。 ※以下僅供聽力或語言表達能力不便客戶簽署聲明、姓名與日期欄位： 客戶聲明：___________________________________________________________ 客戶姓名：________簽署日期：_________錄影年份日期與時分：_________ | AQ2: ※倘要保人/被保人之聽力或語言表達能力不便，須改採以全程銷售錄影方式並經客戶同意，銷售錄影注意事項可洽詢保誠業務單位窗口，請該名客戶本人於銷售錄音範本之最後問項欄位簽署下列客戶親簽文字。 《客戶親簽文字》 「對於上述銷售人員逐項劃線說明之內容皆清楚並同意。***(客戶姓名)已充分了解本保單且確認符合本人需求，投保時應簽署之所有文件均由本人親自簽名投保。」之聲明文字，並且請客戶親簽姓名與簽署日期，以及註明啟動錄影時間的年份日期與時分。 | AR2: ※倘繳款人之聽力或語言表達能力不便，須改採以全程銷售錄影方式並經客戶同意，銷售錄影注意事項可洽詢保誠業務單位窗口，請該名客戶本人於銷售錄音範本之最後問項欄位簽署下列客戶親簽文字。 《客戶親簽文字》 「對於上述銷售人員逐項劃線說明之內容皆清楚並同意。***(客戶姓名)已充分了解本保單及相關風險，且已確認可負擔保費。」之聲明文字，並且請客戶親簽姓名與簽署日期，以及註明啟動錄影時間的年份日期與時分。
A3: 錄音程序二 | B3: 撥打錄音專線0809-070-898 | AD3: 2 | AE3: =要保人姓名&"先生/女士，" -> 貴保戶先生/女士， | AF3: ="請問您是否同意?【請客戶回答：同意/不同意】 " -> 請問您是否同意?【請客戶回答：同意/不同意】 | AG3: ="請您唸出身分證字號為【提示:請等待客戶念出身分證字號"&要保人身分證字號&"，並進行核對】" -> 請您唸出身分證字號為【提示:請等待客戶念出身分證字號，並進行核對】 | AH3: ="請問是否正確?【請客戶回答：正確/不正確】 " -> 請問是否正確?【請客戶回答：正確/不正確】 | AI3: ="請問您清楚嗎? 【請客戶回答：清楚/不清楚】 " -> 請問您清楚嗎? 【請客戶回答：清楚/不清楚】 | AJ3: ="【要保人】： 我，"&要保人姓名&" 已充分了解本保單且確認符合本人需求，投保時應簽署之所有文件均以本人親自簽名方式投保。"&" ※以下僅供聽力或語言表達能力不便客戶簽署聲明、姓名與日期欄位： 客戶聲明：___________________________________________________________ 客戶姓名：________簽署日期：_________錄影年份日期與時分：_________" -> 【要保人】： 我，貴保戶 已充分了解本保單且確認符合本人需求，投保時應簽署之所有文件均以本人親自簽名方式投保。 ※以下僅供聽力或語言表達能力不便客戶簽署聲明、姓名與日期欄位： 客戶聲明：___________________________________________________________ 客戶姓名：________簽署日期：_________錄影年份日期與時分：_________
A4: 錄音程序三 | B4: 輸入要保人或錄音客戶ID後9碼或居留證後8碼加「#」 | AD4: 3 | AE4: =被保人&" 先生/女士，" -> 貴保戶 先生/女士， | AF4: ="請問您是否同意?【請客戶回答：同意/不同意】 " -> 請問您是否同意?【請客戶回答：同意/不同意】 | AG4: ="請您唸出身分證字號為【提示:請等待客戶念出身分證字號"&被保險人身分證字號&"，並進行核對】" -> 請您唸出身分證字號為【提示:請等待客戶念出身分證字號，並進行核對】 | AH4: ="請問是否正確?【請客戶回答：正確/不正確】 " -> 請問是否正確?【請客戶回答：正確/不正確】 | AI4: ="請問您清楚嗎? 【請客戶回答：清楚/不清楚】 " -> 請問您清楚嗎? 【請客戶回答：清楚/不清楚】 | AJ4: ="【被保險人】： 我，"&被保人&" 已充分了解本保單且確認符合本人需求，投保時應簽署之所有文件均以本人親自簽名方式投保。"&" ※以下僅供聽力或語言表達能力不便客戶簽署聲明、姓名與日期欄位： 客戶聲明：___________________________________________________________ 客戶姓名：________簽署日期：_________錄影年份日期與時分：_________" -> 【被保險人】： 我，貴保戶 已充分了解本保單且確認符合本人需求，投保時應簽署之所有文件均以本人親自簽名方式投保。 ※以下僅供聽力或語言表達能力不便客戶簽署聲明、姓名與日期欄位： 客戶聲明：___________________________________________________________ 客戶姓名：________簽署日期：_________錄影年份日期與時分：_________
A5: 錄音程序四 | B5: 嘟一聲後，開始宣讀錄音內容
A6: 錄音程序五 | B6: 錄音完成，按#字鍵
A7: 錄音程序六 | B7: 重聽留言按1，結束按3。 | C7: 重聽留言按1，聽錄音序號按2，結束按3。
A8: 錄音前作業提醒 | B8: ="重要提醒： ※銷售錄音或錄影紀錄作業時，可口語化說明向當事人進行相關內容解說，不得僅依範本逐字宣讀，如客戶有不清楚的地方，請詳加說明。 "&"※銷售錄音專線：0809-070-898，接著輸入要保人或錄音客戶身分證字號後9碼或居留證號後8碼加「#」，開始錄音。"&" "&D1_高齡錄音資料檢核!D14 ->  | C8: ※銷售錄音專線：0809-070-898，接著輸入要保人或錄音客戶身分證字號後9碼或居留證號後8碼加「#」，開始錄音。 | H8: ="重要提醒： ※銷售錄音或錄影紀錄作業時，可口語化說明向當事人進行相關內容解說，依錄音範本逐字唸完，保單利益請參考「錄音補充話術」，至少選擇二項向客戶說明並口語化解說一項，如客戶有不清楚的地方，請詳加說明。 "&"※銷售錄音專線：0809-070-898，接著輸入要保人或錄音客戶身分證字號後9碼或居留證號後8碼加「#」，開始錄音。"&D1_高齡錄音資料檢核!D14 ->  | P8: ="重要提醒： ※銷售錄音或錄影紀錄作業時，可口語化說明向當事人進行相關內容解說，不得僅依範本逐字宣讀，如客戶有不清楚的地方，請詳加說明。 "&"※銷售錄音專線：0809-070-898，接著輸入要保人或錄音客戶身分證字號後9碼或居留證號後8碼加「#」，開始錄音。"&" "&D1_高齡錄音資料檢核!D15 ->  | V8: 重要提醒： ※銷售錄音或錄影紀錄作業時，可口語化說明向當事人進行相關內容解說，依錄音範本逐字唸完，保單利益請參考「錄音補充話術」選擇二項向客戶說明並口語化解說一項，如客戶有不清楚的地方，請詳加說明。 ※銷售錄音專線：0809-070-898，接著輸入要保人或錄音客戶身分證字號後9碼或居留證號後8碼加「#」，開始錄音。※本保單要保人、被保險人、繳款人保險年齡達65歲(含)以上，故需對要保人、被保險人、繳款人共三人進行錄音。 ※要/被保險人錄音話術稿請至「要保人/被保險人高齡錄音話術範本」。
A9: 錄音後作業提醒 | B9: ※請續進行下表繳款人錄音。 | C9: =IF(_xlfn.IFNA(VLOOKUP(服務公司,錄音序號適用通路,1,FALSE)<>"",FALSE),"※錄音結束請按「#」鍵。回聽錄音按1，聽錄音序號按2，結束錄音按3。","※錄音結束請按「#」鍵。回聽錄音按1，結束錄音按3。")&" ※完成錄音，請將開始錄音之日期及時間註記於業務員報告書。" -> ※錄音結束請按「#」鍵。回聽錄音按1，結束錄音按3。 ※完成錄音，請將開始錄音之日期及時間註記於業務員報告書。 | D9: ※錄音結束請按「#」鍵。回聽錄音按1，聽錄音序號按2，結束錄音按3。 ※完成錄音，請將錄音序號註記於業務員報告書。
A10: 錄音序號1_錄音取得要保人同意錄音及說明係購買保險商品 | B10: ="【銷售人員】： "&錄音序號1_確認語_1&" 您好！我是服務於"&IF(服務單位檢核,服務單位&" ，登錄於欣台保險經紀人 ",服務公司&保經保代&" ")&"的"&業務員_1&" ，業務員登錄證字號是" &登錄字號_1&" 。"& IF(雙招選項="是"," 【第二招攬業務員】：您好！我是服務於"&IF(服務單位檢核,服務單位&" ，登錄於欣台保險經紀人 ",服務公司&保經保代&" ")&"的"&業務員_2&" ，業務員登錄字號是"&登錄字號_2&"。","")&" 根據法令規定，我將錄音記錄本次銷售過程，"&錄音序號1_確認語_2& "因本錄音內容與您投保資料有關，先向您確認本人身分，"&錄音序號1_確認語_3 ->  | C10: ="您所購買的主約是保誠人壽保險公司發行的保險商品- "&商品名稱&IFERROR(IF(FIND("兆豐",服務公司)," 。此保單是透『"&服務公司&"』代理銷售，且已獲『兆豐銀行保代處』授權招攬。"),"。此保單是透過本公司為行銷通路並代理銷售。")&"以下我將說明本商品內容及重要事項，請您聽完後逐一回答。" -> 您所購買的主約是保誠人壽保險公司發行的保險商品- 保誠人壽美滿相傳外幣終身壽險(113)(定期給付型)。此保單是透過本公司為行銷通路並代理銷售。以下我將說明本商品內容及重要事項，請您聽完後逐一回答。 | D10: ="【銷售人員】： "&錄音序號1_確認語_1&" 您好！我是服務於"&服務公司&IF(OR(服務公司="花蓮一信",服務公司="高雄三信",服務公司="基隆二信",服務公司="淡水一信",服務公司="彰化一信",服務公司="彰化五信",服務公司="臺中二信",服務公司="臺南三信",服務公司="鹿港信用合作社"),"，登錄於欣台保險經紀人的"&業務員_1," 的"&業務員_1)&" ，業務員登錄證字號是" &登錄字號_1&"。"& IF(雙招=1," 【第二招攬業務員】：您好！我是服務於"&服務公司&" "&"的"&業務員_2&" ，業務員登錄字號是"&登錄字號_2&"。","")& " 根據法令規定，我將錄音記錄本次銷售過程，"&錄音序號1_確認語_2 ->  | E10: ="因本錄音內容與您投保資料有關，先向您確認本人身分，"&錄音序號1_確認語_3 ->  | L10: =VLOOKUP(要被保人話術稿判斷,'B2_錄音程序&共同文字'!$AD$1:$AI$4,2,FALSE) ->  | M10: =VLOOKUP(要被保人話術稿判斷,'B2_錄音程序&共同文字'!$AD$1:$AI$4,3,FALSE) ->  | N10: =VLOOKUP(要被保人話術稿判斷,'B2_錄音程序&共同文字'!$AD$1:$AI$4,4,FALSE) ->  | P10: ="【銷售人員】： "&繳款人&" 先生/女士，您好！我是服務於"&IF(服務單位檢核,服務單位&" ，登錄於欣台保險經紀人 ",服務公司&保經保代&" ")&"的"&業務員_1&" ，業務員登錄證字號是" &登錄字號_1&" 。"& IF(雙招選項="是"," 【第二招攬業務員】：您好！我是服務於"&IF(服務單位檢核,服務單位&" ，登錄於欣台保險經紀人 ",服務公司&保經保代&" ")&"的"&業務員_2&" ，業務員登錄字號是"&登錄字號_2&"。","")&" 根據法令規定，我將錄音記錄本次銷售過程，請問您是否同意?【請客戶回答：同意/不同意】"& " 因本錄音內容與您代為繳費的投保資料有關，先向您確認本人身分，請您唸出身分證字號為【提示:請等待客戶念出身分證字號"&繳款人身分證字號&"，並進行核對】" -> 【銷售人員】： 貴保戶 先生/女士，您好！我是服務於 的 ，業務員登錄證字號是 。 根據法令規定，我將錄音記錄本次銷售過程，請問您是否同意?【請客戶回答：同意/不同意】 因本錄音內容與您代為繳費的投保資料有關，先向您確認本人身分，請您唸出身分證字號為【提示:請等待客戶念出身分證字號，並進行核對】 | Q10: ="您代為繳交保費的主約是保誠人壽保險公司發行的保險商品- "&商品名稱&IFERROR(IF(FIND("兆豐銀行",服務公司)," 。此保單是透『"&服務公司&"』代理銷售，且已獲『兆豐銀行保代處』授權招攬。"),"。此保單是透過本公司為行銷通路並代理銷售。")&"以下我將說明本保單內容及重要事項，請您聽完後逐一回答。" -> 您代為繳交保費的主約是保誠人壽保險公司發行的保險商品- 保誠人壽美滿相傳外幣終身壽險(113)(定期給付型)。此保單是透過本公司為行銷通路並代理銷售。以下我將說明本保單內容及重要事項，請您聽完後逐一回答。 | R10: ="【銷售人員】： "&繳款人&" 先生/女士，您好！我是服務於"&服務公司&IF(OR(服務公司="花蓮一信",服務公司="高雄三信",服務公司="基隆二信",服務公司="淡水一信",服務公司="彰化一信",服務公司="彰化五信",服務公司="臺中二信",服務公司="臺南三信",服務公司="鹿港信用合作社"),"，登錄於欣台保險經紀人的"&業務員_1," 的"&業務員_1)&" ，業務員登錄證字號是" &登錄字號_1&"。"& IF(雙招=1," 【第二招攬業務員】：您好！我是服務於"&服務公司&" "&"的"&業務員_2&" ，業務員登錄字號是"&登錄字號_2&"。","")& " 根據法令規定，我將錄音記錄本次銷售過程。請問您是否同意?【請客戶回答：同意/不同意】）" -> 【銷售人員】： 貴保戶 先生/女士，您好！我是服務於 的 ，業務員登錄證字號是。 根據法令規定，我將錄音記錄本次銷售過程。請問您是否同意?【請客戶回答：同意/不同意】） | S10: ="因本錄音內容與您投保資料有關，先向您確認本人身分，請您唸出身分證字號為"&繳款人身分證字號&"。（請等待客戶念完身分證字號）" -> 因本錄音內容與您投保資料有關，先向您確認本人身分，請您唸出身分證字號為。（請等待客戶念完身分證字號）
A11: 錄音序號2_告知繳費年期與繳費金額 | B11: ="【銷售人員】： 您投保本保單的目的及需求為 "&投保目的及需求&"【提示:請與業務員報告書一致】，您於投保時應簽署之所有文件均會由本人親自簽名投保，並確認本保單商品符合您的需求，"&錄音序號_確認語_1&" 您選擇投保主約保額為 "&IF(VLOOKUP(商品名稱,B1_解約金商品錄音話術table!B:V,17,0)="元",幣別&TEXT(主約保險金額,"#,###")&"元",VLOOKUP(商品名稱,B1_解約金商品錄音話術table!B:V,17,0)&TEXT(保額,"#,###")) &"，繳費年期為 "&繳費年期&"年，保障年期 "&IF(VLOOKUP(商品名稱,B1_解約金商品錄音話術table!B:V,18,0)="",保障年期&"年",VLOOKUP(商品名稱, B1_解約金商品錄音話術table!B:V,18,0))&"，"&錄音序號_確認語_2 ->  | C11: ="您選擇的繳別為"&繳別& "，本期繳交保費為" &幣別 &TEXT(折扣後保費*IF(繳別="月繳",2,1)," #,###")&" 元，"&IF(OR(繳別="躉繳",繳別="年繳"),"您已確認可負擔此保費，"&錄音序號_確認語_1,"每年需繳交保費之保費總計為"&幣別 &TEXT(折扣後保費*繳費頻率," #,###")& " 元，您已確認可負擔此保費，"&錄音序號_確認語_1) ->  | D11: ="【銷售人員】： 您投保本保單的目的及需求為 "&投保目的及需求&"【提示:請與業務員報告書一致】，您於投保時應簽署之所有文件均會由本人親自簽名投保，並確認本保單商品符合您的需求，"&錄音序號_確認語_1 ->  | E11: ="您選擇投保主約保額為 "&IF(VLOOKUP(商品名稱,B1_解約金商品錄音話術table!B:V,17,0)="元",幣別&TEXT(主約保險金額,"#,###")&"元",VLOOKUP(商品名稱,B1_解約金商品錄音話術table!B:V,17,0)&TEXT(保額,"#,###")) &"，繳費年期為 "&繳費年期&"年，保障年期 "&IF(VLOOKUP(商品名稱,B1_解約金商品錄音話術table!B:V,18,0)="",保障年期&"年",VLOOKUP(商品名稱, B1_解約金商品錄音話術table!B:V,18,0))&"，"&錄音序號_確認語_2 ->  | I11: ="【銷售人員】： 您投保本保單的目的及需求為 "&投保目的及需求&" (請與業務員報告書一致)，各項投保相關文件都是經您親自簽名，並確認本保單商品滿足您的需求，且符合您的財力及風險承擔能力，沒有受任何誘導以貸款、解約、保單借款買保險的情形，"&錄音序號_確認語_1&" 您選擇投保主約保額為 "&IF(VLOOKUP(商品名稱,B1_解約金商品錄音話術table!$B:$V,17,0)="元",幣別&TEXT(保額,"#,###")&"元",VLOOKUP(商品名稱,B1_解約金商品錄音話術table!$B:$V,17,0)&TEXT(保額,"#,###")) &"，繳費年期為 "&繳費年期&"年，保障年期 "&IF(VLOOKUP(商品名稱,B1_解約金商品錄音話術table!$B:$V,18,0)="",保障年期&"年",VLOOKUP(商品名稱, B1_解約金商品錄音話術table!$B:$V,18,0))&"，"&錄音序號_確認語_2 ->  | K11: 您已確實了解此次投保之保險產品繳費年期為___年，每年繳費金額為台幣/美元_______元，請問正確或不正確？(2年繳以上產品適用) | L11: =VLOOKUP(要被保人話術稿判斷,'B2_錄音程序&共同文字'!$AD$1:$AI$4,5,FALSE) ->  | M11: =VLOOKUP(要被保人話術稿判斷,'B2_錄音程序&共同文字'!$AD$1:$AI$4,6,FALSE) ->  | O11: =IF(D1_高齡錄音資料檢核!C16=4,D1_高齡錄音資料檢核!D16,IFERROR(IF(FIND("企",服務公司)*FIND("銀",服務公司),錄音序號3_開頭語_臺企版&VLOOKUP(商品名稱,B1_解約金商品錄音話術table!B:N,12,0)),IFERROR(IF(FIND("兆豐",服務公司),錄音序號3_開頭語_兆豐版&VLOOKUP(商品名稱,B1_解約金商品錄音話術table!B:W,21,0)),IFERROR(IF(FIND("第一",服務公司),錄音序號3_開頭語&VLOOKUP(商品名稱,B1_解約金商品錄音話術table!B:X,22,0)),IFERROR(IF(FIND("花旗",服務公司),錄音序號3_開頭語&VLOOKUP(商品名稱,B1_解約金商品錄音話術table!B:AC,23,0)),IFERROR(IF(FIND("星展",服務公司),錄音序號3_開頭語&VLOOKUP(商品名稱,B1_解約金商品錄音話術table!B:AC,23,0)),錄音序號3_開頭語&VLOOKUP(商品名稱,B1_解約金商品錄音話術table!B:N,12,0))))))) -> ※本保單要保人、被保險人不需錄音。 | P11: ="【銷售人員】： 本保單主約保額為 "&IF(VLOOKUP(商品名稱,B1_解約金商品錄音話術table!B:V,17,0)="元",幣別&TEXT(主約保險金額,"#,###")&"元",VLOOKUP(商品名稱,B1_解約金商品錄音話術table!B:V,17,0)&TEXT(保額,"#,###")) &"，繳費年期為 "&繳費年期&"年，保障年期 "&IF(VLOOKUP(商品名稱,B1_解約金商品錄音話術table!B:V,18,0)="",保障年期&"年",VLOOKUP(商品名稱, B1_解約金商品錄音話術table!B:V,18,0))&"，請問您清楚嗎?【請客戶回答：清楚/不清楚】" -> 【銷售人員】： 本保單主約保額為 美元100,000元，繳費年期為 6年，保障年期 至被保險人保險年齡達110歲當年之保單週年日，請問您清楚嗎?【請客戶回答：清楚/不清楚】 | Q11: ="本保單保險費為"&繳別& "，本期繳交保費為" &幣別 &TEXT(折扣後保費*IF(繳別="月繳",2,1)," #,###")&" 元，"&IF(OR(繳別="躉繳",繳別="年繳"),"您已確認可負擔此保費，請問是否正確?【請客戶回答：正確/不正確】","每年需繳交保費之保費總計為"&幣別 &TEXT(折扣後保費*繳費頻率," #,###")& " 元，您已確認可負擔此保費，請問是否正確?【請客戶回答：正確/不正確】") -> 本保單保險費為年繳，本期繳交保費為美元 10,038 元，您已確認可負擔此保費，請問是否正確?【請客戶回答：正確/不正確】 | R11: ="【銷售人員】： 您投保本保單的目的及需求為 "&投保目的及需求&" ，您於投保時應簽署之所有文件均會由本人親自簽名投保，並確認本保單商品滿足您的需求，請問是否正確?【請客戶回答：正確/不正確】 " -> 【銷售人員】： 您投保本保單的目的及需求為 ，您於投保時應簽署之所有文件均會由本人親自簽名投保，並確認本保單商品滿足您的需求，請問是否正確?【請客戶回答：正確/不正確】 | S11: ="您選擇投保主約保額為 "&幣別&TEXT(主約保險金額,"#,###")&"元，"&"繳費年期為 "&繳費年期&"年"&"，保障年期 "&VLOOKUP(商品名稱,B1_解約金商品錄音話術table!B:V,18,0)&"，請問您清楚嗎？【請客戶回答：清楚/不清楚】" -> 您選擇投保主約保額為 美元100,000元，繳費年期為 6年，保障年期 至被保險人保險年齡達110歲當年之保單週年日，請問您清楚嗎？【請客戶回答：清楚/不清楚】 | W11: ="【銷售人員】： 此次代為繳交保費之本保單符合您的財力及風險承擔能力，沒有受任何誘導以貸款、解約、保單借款買保險的情形，請問是否正確?【請客戶回答：正確/不正確】"&" 您選擇投保主約保額為 "&IF(VLOOKUP(商品名稱,B1_解約金商品錄音話術table!B:V,17,0)="元",幣別&TEXT(保額,"#,###")&"元",VLOOKUP(商品名稱,B1_解約金商品錄音話術table!B:V,17,0)&TEXT(保額,"#,###")) &"，繳費年期為 "&繳費年期&"年，保障年期 "&IF(VLOOKUP(商品名稱,B1_解約金商品錄音話術table!B:V,18,0)="",保障年期&"年",VLOOKUP(商品名稱, B1_解約金商品錄音話術table!B:V,18,0)) -> 【銷售人員】： 此次代為繳交保費之本保單符合您的財力及風險承擔能力，沒有受任何誘導以貸款、解約、保單借款買保險的情形，請問是否正確?【請客戶回答：正確/不正確】 您選擇投保主約保額為 美元100,000元，繳費年期為 6年，保障年期 至被保險人保險年齡達110歲當年之保單週年日 | AL11: =" 您此次投保的保費來源為*****【提示：請參考業務員報告書勾選內容念出】， 請問是否正確？【請客戶回答：正確/不正確】"&" 【※提示：若「保費來源」來自於「保單解約金」加問下列兩題】 1. 以保單解約金投保本商品，是出自於您本人的意思，並非其他人請您這樣做，請問是否正確？【請客戶回答：正確/不正確】"&" 2. 原保單解約可能會有損失及費用，領回的解約金可能低於您過去所繳的保費、保障內容也會中斷，如果再重新投保，會依投保時的年齡、身體狀況及商品條件重新計算保費，請問您清楚嗎？【請客戶回答：清楚/不清楚】"&" 【※提示：若「保費來源」來自於「定存解約」加問下列兩題】 1. 以定存解約投保本商品，是出自於您本人的意思，並非其他人請您這樣做，請問是否正確？【請客戶回答：正確/不正確】"&" 2. 因您本次投保的保費來源為定存解約，定存中途解約利息會打折，領到的利息可能會減少，請問您清楚嗎？【請客戶回答：清楚/不清楚】" -> 您此次投保的保費來源為*****【提示：請參考業務員報告書勾選內容念出】， 請問是否正確？【請客戶回答：正確/不正確】 【※提示：若「保費來源」來自於「保單解約金」加問下列兩題】 1. 以保單解約金投保本商品，是出自於您本人的意思，並非其他人請您這樣做，請問是否正確？【請客戶回答：正確/不正確】 2. 原保單解約可能會有損失及費用，領回的解約金可能低於您過去所繳的保費、保障內容也會中斷，如果再重新投保，會依投保時的年齡、身體狀況及商品條件重新計算保費，請問您清楚嗎？【請客戶回答：清楚/不清楚】 【※提示：若「保費來源」來自於「定存解約」加問下列兩題】 1. 以定存解約投保本商品，是出自於您本人的意思，並非其他人請您這樣做，請問是否正確？【請客戶回答：正確/不正確】 2. 因您本次投保的保費來源為定存解約，定存中途解約利息會打折，領到的利息可能會減少，請問您清楚嗎？【請客戶回答：清楚/不清楚】
A12: 錄音序號3_說明商品重要條款、除外責任、商品說明書內容 | B12: 【銷售人員】： 如銷售過程中說明， | C12: =IF(繳別="躉繳",'B4_解約型-重要條款'!B3&錄音序號_確認語_2,'B4_解約型-重要條款'!B2&錄音序號_確認語_2) ->  | G12: 【銷售人員】： 本商品之保險單條款樣張已事先交付給您，您已審閱本商品契約重要內容，並已瞭解契約各項給付條件。 如銷售過程中說明， | H12: 【銷售人員】： 如銷售過程中說明， (保單利益，請參考"錄音補充話術"，選擇二項向客戶說明) | J12: ="就保單條款中重要條款內容（例如契約效力的停止、恢復及終止事由、告知義務與本契約解除等事項），"&錄音序號_確認語_2&"試算表中所說明本契約保障內容及各項保險金給付等內容，"&錄音序號_確認語_2 ->  | O12: =IF(D1_高齡錄音資料檢核!C17=2,D1_高齡錄音資料檢核!D18,IFERROR(IF(FIND("企",服務公司)*FIND("銀",服務公司),錄音序號3_開頭語_臺企版_繳款人&VLOOKUP(商品名稱,B1_解約金商品錄音話術table!$B:$AF,31,0)),IFERROR(IF(FIND("兆豐",服務公司),錄音序號3_開頭語_兆豐版_繳款人&VLOOKUP(商品名稱,B1_解約金商品錄音話術table!$B:$AI,31,0)),IFERROR(IF(FIND("第一",服務公司),錄音序號3_開頭語_繳款人&VLOOKUP(商品名稱,B1_解約金商品錄音話術table!$B:$AL,34,0)),IFERROR(IF(FIND("花旗",服務公司),錄音序號3_開頭語_繳款人&VLOOKUP(商品名稱,B1_解約金商品錄音話術table!B:AC,23,0)),IFERROR(IF(FIND("星展",服務公司),錄音序號3_開頭語_繳款人&VLOOKUP(商品名稱,B1_解約金商品錄音話術table!B:AC,23,0)),錄音序號3_開頭語_繳款人&VLOOKUP(商品名稱,B1_解約金商品錄音話術table!B:AF,28,0))))))) -> ※本保單繳款人不需錄音。 | P12: 【銷售人員】： 如銷售過程中說明， | Q12: =IF(繳別="躉繳",'B4_解約型-重要條款'!C3,'B4_解約型-重要條款'!C2) -> 本保單如果沒有依契約約定繳交第二期以後保費，或償還保單借款本息，契約將停止效力。契約停止效力後，要保人可以在停效日起二年內申請復效。但如果保險期間屆滿後就不能提出申請復效，請問您清楚嗎？【請客戶回答：清楚/不清楚】 其他重要條款內容，如:保險期間、影響契約效力事由、告知義務與契約解除、保險事故之通知與義務、保險單變更及借款、請求權消滅時效等已向您清楚說明，請問您清楚嗎？【請客戶回答：清楚/不清楚】 | U12: 【銷售人員】： 本商品之保險單條款樣張已事先交付給您，您已審閱本商品契約重要內容，並已瞭解契約各項給付條件。 如銷售過程中說明， | V12: 【銷售人員】： 如銷售過程中說明， 【保單利益，請參考"錄音補充話術"，選擇二項向客戶說明】 | X12: 就保單條款中重要條款內容（例如契約效力的停止、恢復及終止事由、告知義務與本契約解除等事項），請問您清楚嗎？【請客戶回答：清楚/不清楚】 試算表中所說明本契約保障內容及各項保險金給付等內容，請問您清楚嗎？【請客戶回答：清楚/不清楚】
A13: 錄音序號4_說明保單相關風險 | B13: =IFERROR(VLOOKUP(商品名稱,'B2_錄音程序&共同文字'!$A$23:$B$33,2,FALSE),'B2_錄音程序&共同文字'!B22) ->  | C13: =IF(通路別="BD","本保單為保險商品，不是定存的替代品，"&錄音序號_確認語_2,"本保單為保險商品，不是定存的替代品，也不受存款保險的保障，"&錄音序號_確認語_2)&"人壽保險的死亡給付於被保險人死亡後給付於指定受益人者，依保險法相關規定不能作為被保險人遺產，若有涉及規避遺產稅等稅捐時，稽徵機關可以依據有關稅法或實質課稅原則相關規定辦理。"&錄音序號_確認語_2 ->  | I13: =IFERROR(VLOOKUP(商品名稱,'B2_錄音程序&共同文字'!$A$23:$J$33,9,FALSE),'B2_錄音程序&共同文字'!I22)&"人壽保險的死亡給付於被保險人死亡後給付於指定受益人者，依保險法相關規定不能作為被保險人遺產，若有涉及規避遺產稅等稅捐時，稽徵機關可以依據有關稅法或實質課稅原則相關規定辦理。"&錄音序號_確認語_2 ->  | J13: =IFERROR(VLOOKUP(商品名稱,'B2_錄音程序&共同文字'!$A$23:$J$33,10,FALSE),'B2_錄音程序&共同文字'!J22)&"人壽保險的死亡給付於被保險人死亡後給付於指定受益人者，依保險法相關規定不能作為被保險人遺產，若有涉及規避遺產稅等稅捐時，稽徵機關可以依據有關稅法或實質課稅原則相關規定辦理。"&錄音序號_確認語_2 ->  | K13: =IFERROR(VLOOKUP(商品名稱,'B2_錄音程序&共同文字'!$A$23:$K$33,11,FALSE),'B2_錄音程序&共同文字'!K22)&"人壽保險的死亡給付於被保險人死亡後給付於指定受益人者，依保險法相關規定不能作為被保險人遺產，若有涉及規避遺產稅等稅捐時，稽徵機關可以依據有關稅法或實質課稅原則相關規定辦理。"&錄音序號_確認語_2 ->  | P13: =IFERROR(VLOOKUP(商品名稱,'B2_錄音程序&共同文字'!$A$23:$C$33,3,FALSE),C22) -> 【銷售人員】： 投保後解約或不繼續繳費，解約金可能會少於已繳交之保險費且可能不利消費者，請問您清楚嗎? 【請客戶回答：清楚/不清楚】 | Q13: =IF(通路別="BD","本保單為保險商品，不是定存的替代品，請問您清楚嗎？【請客戶回答：清楚/不清楚】","本保單為保險商品，不是定存的替代品，也不受存款保險的保障，請問您清楚嗎？ 【請客戶回答：清楚/不清楚】")&" 人壽保險的死亡給付於被保險人死亡後給付於指定受益人者，依保險法相關規定不能作為被保險人遺產，若有涉及規避遺產稅等稅捐時，稽徵機關可以依據有關稅法或實質課稅原則相關規定辦理，請問您清楚嗎？ 【請客戶回答：清楚/不清楚】" -> 本保單為保險商品，不是定存的替代品，也不受存款保險的保障，請問您清楚嗎？ 【請客戶回答：清楚/不清楚】 人壽保險的死亡給付於被保險人死亡後給付於指定受益人者，依保險法相關規定不能作為被保險人遺產，若有涉及規避遺產稅等稅捐時，稽徵機關可以依據有關稅法或實質課稅原則相關規定辦理，請問您清楚嗎？ 【請客戶回答：清楚/不清楚】 | W13: =IFERROR(VLOOKUP(商品名稱,'B2_錄音程序&共同文字'!$A$23:$Y$100,23,FALSE),'B2_錄音程序&共同文字'!W22)&" 人壽保險的死亡給付於被保險人死亡後給付於指定受益人者，依保險法相關規定不能作為被保險人遺產，若有涉及規避遺產稅等稅捐時，稽徵機關可以依據有關稅法或實質課稅原則相關規定辦理，請問您清楚嗎？ 【提示:請等待客戶回答】" -> 【銷售人員】： 本保單為保險商品，非屬存款，也不受存款保險的保障，請問您清楚嗎? 【請客戶回答：清楚/不清楚】 投保後解約或不繼續繳費，解約金可能會少於已繳交之保險費，請問您清楚嗎? 【請客戶回答：清楚/不清楚】 人壽保險的死亡給付於被保險人死亡後給付於指定受益人者，依保險法相關規定不能作為被保險人遺產，若有涉及規避遺產稅等稅捐時，稽徵機關可以依據有關稅法或實質課稅原則相關規定辦理，請問您清楚嗎？ 【提示:請等待客戶回答】 | X13: =IFERROR(VLOOKUP(商品名稱,'B2_錄音程序&共同文字'!$A$23:$Y$33,24,FALSE),'B2_錄音程序&共同文字'!X22)&" 人壽保險的死亡給付於被保險人死亡後給付於指定受益人者，依保險法相關規定不能作為被保險人遺產，若有涉及規避遺產稅等稅捐時，稽徵機關可以依據有關稅法或實質課稅原則相關規定辦理，請問您清楚嗎？ 【請客戶回答：清楚/不清楚】" -> 【銷售人員】： 本商品為保險商品，受人身保險安定基金保障，並非存款項目，故不受存款保險之保障。請問您清楚嗎？【請客戶回答：清楚/不清楚】 投保後解約或不繼續繳費，解約金可能會少於已繳交之保險費且可能不利消費者，請問您清楚嗎？【請客戶回答：清楚/不清楚】 人壽保險的死亡給付於被保險人死亡後給付於指定受益人者，依保險法相關規定不能作為被保險人遺產，若有涉及規避遺產稅等稅捐時，稽徵機關可以依據有關稅法或實質課稅原則相關規定辦理，請問您清楚嗎？ 【請客戶回答：清楚/不清楚】
A14: 錄音序號5_契撤期說明 | B14: ="【銷售人員】： 自簽收保單隔日起算，要保人有10日撤銷契約的權益，"&錄音序號_確認語_2 ->  | P14: ="【銷售人員】： 自簽收保單隔日起算，要保人有10日撤銷契約的權益，請問您清楚嗎？【請客戶回答：清楚/不清楚】" -> 【銷售人員】： 自簽收保單隔日起算，要保人有10日撤銷契約的權益，請問您清楚嗎？【請客戶回答：清楚/不清楚】 | W14: =IFERROR(VLOOKUP(商品名稱,'B2_錄音程序&共同文字'!$A$23:$Y$100,23,FALSE),'B2_錄音程序&共同文字'!W22)&" 人壽保險的死亡給付於被保險人死亡後給付於指定受益人者，依保險法相關規定不能作為被保險人遺產，若有涉及規避遺產稅等稅捐時，稽徵機關可以依據有關稅法或實質課稅原則相關規定辦理，請問您清楚嗎？ 【請客戶回答：清楚/不清楚】" -> 【銷售人員】： 本保單為保險商品，非屬存款，也不受存款保險的保障，請問您清楚嗎? 【請客戶回答：清楚/不清楚】 投保後解約或不繼續繳費，解約金可能會少於已繳交之保險費，請問您清楚嗎? 【請客戶回答：清楚/不清楚】 人壽保險的死亡給付於被保險人死亡後給付於指定受益人者，依保險法相關規定不能作為被保險人遺產，若有涉及規避遺產稅等稅捐時，稽徵機關可以依據有關稅法或實質課稅原則相關規定辦理，請問您清楚嗎？ 【請客戶回答：清楚/不清楚】 | X14: =IFERROR(VLOOKUP(商品名稱,'B2_錄音程序&共同文字'!$A$23:$Y$100,23,FALSE),'B2_錄音程序&共同文字'!W22)&" 人壽保險的死亡給付於被保險人死亡後給付於指定受益人者，依保險法相關規定不能作為被保險人遺產，若有涉及規避遺產稅等稅捐時，稽徵機關可以依據有關稅法或實質課稅原則相關規定辦理，請問您清楚嗎？ 【請客戶回答：清楚/不清楚】" -> 【銷售人員】： 本保單為保險商品，非屬存款，也不受存款保險的保障，請問您清楚嗎? 【請客戶回答：清楚/不清楚】 投保後解約或不繼續繳費，解約金可能會少於已繳交之保險費，請問您清楚嗎? 【請客戶回答：清楚/不清楚】 人壽保險的死亡給付於被保險人死亡後給付於指定受益人者，依保險法相關規定不能作為被保險人遺產，若有涉及規避遺產稅等稅捐時，稽徵機關可以依據有關稅法或實質課稅原則相關規定辦理，請問您清楚嗎？ 【請客戶回答：清楚/不清楚】 | Y14: =IFERROR(VLOOKUP(商品名稱,'B2_錄音程序&共同文字'!$A$23:$Y$100,25,FALSE),'B2_錄音程序&共同文字'!Y22)&" 人壽保險的死亡給付於被保險人死亡後給付於指定受益人者，依保險法相關規定不能作為被保險人遺產，若有涉及規避遺產稅等稅捐時，稽徵機關可以依據有關稅法或實質課稅原則相關規定辦理，請問您清楚嗎？ 【請客戶回答：清楚/不清楚】" -> 【銷售人員】： 您是否清楚本次繳交之保險費用係用以購買保險商品，非辦理定存？【請客戶回答：清楚/不清楚】 本保險商品具有解約金，若中途解約或不繼續繳費，解約金可能低於已繳保費，您是否清楚？【請客戶回答：清楚/不清楚】 此次投保之保險產品繳費年期為6年，每年繳費金額為美元 10,038元，您是否知悉？【請客戶回答：清楚/不清楚】 人壽保險的死亡給付於被保險人死亡後給付於指定受益人者，依保險法相關規定不能作為被保險人遺產，若有涉及規避遺產稅等稅捐時，稽徵機關可以依據有關稅法或實質課稅原則相關規定辦理，請問您清楚嗎？ 【請客戶回答：清楚/不清楚】
A15: 錄音序號6_要保人聲明 | B15: =IFERROR(IF(FIND("花旗",服務公司),VLOOKUP(商品類別,B3_解約金商品相關風險話術table!G:J,4,FALSE)),IFERROR(IF(FIND("星展",服務公司),VLOOKUP(商品類別,B3_解約金商品相關風險話術table!G:J,4,FALSE)),VLOOKUP(商品類別,B3_解約金商品相關風險話術table!G:I,3,FALSE))) -> 【銷售人員】： 最後請您念出以下聲明文字以確認您瞭解本商品並願意承擔相關風險與確認投保意願，並確認所有文件如要保書、建議書、匯率風險說明書、客戶適合度調查評估表等均會以本人親自簽名方式投保。 | C15: =VLOOKUP(要被保人話術稿判斷,'B2_錄音程序&共同文字'!$AD$1:$AJ$4,7,FALSE) ->  | P15: 【銷售人員】： 最後請您念出以下聲明文字以確認您瞭解本商品並願意承擔相關風險與確認繳費意願。 | Q15: ="【繳款人】： 我，"&繳款人&" 已充分了解本保單及相關風險，且已確認可負擔保費。"&" ※以下僅供聽力或語言表達能力不便客戶簽署聲明、姓名與日期欄位： 客戶聲明：______________________________________________________________ 客戶姓名：__________簽署日期：___________錄影年份日期與時分：___________" -> 【繳款人】： 我，貴保戶 已充分了解本保單及相關風險，且已確認可負擔保費。 ※以下僅供聽力或語言表達能力不便客戶簽署聲明、姓名與日期欄位： 客戶聲明：______________________________________________________________ 客戶姓名：__________簽署日期：___________錄影年份日期與時分：___________
B21: 要被保險人 | C21: 繳款人
B22: ="【銷售人員】： 投保後解約或不繼續繳費，解約金可能會少於已繳交之保險費且可能不利消費者，"&錄音序號_確認語_2 ->  | C22: ="【銷售人員】： 投保後解約或不繼續繳費，解約金可能會少於已繳交之保險費且可能不利消費者，請問您清楚嗎? 【請客戶回答：清楚/不清楚】" -> 【銷售人員】： 投保後解約或不繼續繳費，解約金可能會少於已繳交之保險費且可能不利消費者，請問您清楚嗎? 【請客戶回答：清楚/不清楚】 | I22: ="【銷售人員】： 本保單為保險商品，非屬存款，也不受存款保險的保障，"&錄音序號_確認語_2&" 投保後解約或不繼續繳費，解約金可能會少於已繳交之保險費，"&錄音序號_確認語_2 ->  | J22: ="【銷售人員】： 本商品為保險商品，受人身保險安定基金保障，並非存款項目，故不受存款保險之保障。"&錄音序號_確認語_2&" 投保後解約或不繼續繳費，解約金可能會少於已繳交之保險費且可能不利消費者，"&錄音序號_確認語_2 ->  | K22: ="【銷售人員】： 您是否清楚本次繳交之保險費用係用以購買保險商品，非辦理定存，"&錄音序號_確認語_2&" 本保險商品具有解約金，若中途解約或不繼續繳費，解約金可能低於已繳保費，"&錄音序號_確認語_2&" 此次投保之保險產品繳費年期為"&繳費年期&"年，每年繳費金額為"&幣別&TEXT(Premium*繳費頻率," #,###")&"元，" &錄音序號_確認語_2 ->  | W22: 【銷售人員】： 本保單為保險商品，非屬存款，也不受存款保險的保障，請問您清楚嗎? 【請客戶回答：清楚/不清楚】 投保後解約或不繼續繳費，解約金可能會少於已繳交之保險費，請問您清楚嗎? 【請客戶回答：清楚/不清楚】 | X22: 【銷售人員】： 本商品為保險商品，受人身保險安定基金保障，並非存款項目，故不受存款保險之保障。請問您清楚嗎？【請客戶回答：清楚/不清楚】 投保後解約或不繼續繳費，解約金可能會少於已繳交之保險費且可能不利消費者，請問您清楚嗎？【請客戶回答：清楚/不清楚】 | Y22: ="【銷售人員】： 您是否清楚本次繳交之保險費用係用以購買保險商品，非辦理定存？【請客戶回答：清楚/不清楚】 本保險商品具有解約金，若中途解約或不繼續繳費，解約金可能低於已繳保費，您是否清楚？【請客戶回答：清楚/不清楚】 此次投保之保險產品繳費年期為"&繳費年期&"年，每年繳費金額為"&幣別&TEXT(Premium*繳費頻率," #,###")&"元，您是否知悉？【請客戶回答：清楚/不清楚】" -> 【銷售人員】： 您是否清楚本次繳交之保險費用係用以購買保險商品，非辦理定存？【請客戶回答：清楚/不清楚】 本保險商品具有解約金，若中途解約或不繼續繳費，解約金可能低於已繳保費，您是否清楚？【請客戶回答：清楚/不清楚】 此次投保之保險產品繳費年期為6年，每年繳費金額為美元 10,038元，您是否知悉？【請客戶回答：清楚/不清楚】
A23: 保誠人壽福企滿滿外幣終身保險 | B23: ="【銷售人員】： 投保後解約或不繼續繳費，解約金可能會少於已繳交之保險費且可能不利消費者，"&錄音序號_確認語_2 ->  | C23: ="【銷售人員】： 投保後解約或不繼續繳費，解約金可能會少於已繳交之保險費且可能不利消費者，請問您清楚嗎? 【請客戶回答：清楚/不清楚】" -> 【銷售人員】： 投保後解約或不繼續繳費，解約金可能會少於已繳交之保險費且可能不利消費者，請問您清楚嗎? 【請客戶回答：清楚/不清楚】 | I23: ="【銷售人員】： 本保單為保險商品，非屬存款，也不受存款保險的保障，"&錄音序號_確認語_2&" 投保後解約或不繼續繳費，解約金可能會少於已繳交之保險費，"&錄音序號_確認語_2 ->  | J23: ="【銷售人員】： 本商品為保險商品，受人身保險安定基金保障，並非存款項目，故不受存款保險之保障。"&錄音序號_確認語_2&" 投保後解約或不繼續繳費，解約金可能會少於已繳交之保險費且可能不利消費者，"&錄音序號_確認語_2 ->  | K23: ="【銷售人員】： 您是否清楚本次繳交之保險費用係用以購買保險商品，非辦理定存，"&錄音序號_確認語_2&" 本保險商品具有解約金，若中途解約或不繼續繳費，解約金可能低於已繳保費，"&錄音序號_確認語_2&" 此次投保之保險產品繳費年期為"&繳費年期&"年，每年繳費金額為"&幣別&TEXT(Premium*繳費頻率," #,###")&"元，" &錄音序號_確認語_2 ->  | W23: 【銷售人員】： 本保單為保險商品，非屬存款，也不受存款保險的保障，請問您清楚嗎? 【請客戶回答：清楚/不清楚】 投保後解約或不繼續繳費，解約金可能會少於已繳交之保險費，請問您清楚嗎? 【請客戶回答：清楚/不清楚】 | X23: 【銷售人員】： 本商品為保險商品，受人身保險安定基金保障，並非存款項目，故不受存款保險之保障。請問您清楚嗎？【請客戶回答：清楚/不清楚】 投保後解約或不繼續繳費，解約金可能會少於已繳交之保險費且可能不利消費者，請問您清楚嗎？【請客戶回答：清楚/不清楚】 | Y23: ="【銷售人員】： 您是否清楚本次繳交之保險費用係用以購買保險商品，非辦理定存？【請客戶回答：清楚/不清楚】 本保險商品具有解約金，若中途解約或不繼續繳費，解約金可能低於已繳保費，您是否清楚？【請客戶回答：清楚/不清楚】 此次投保之保險產品繳費年期為"&繳費年期&"年，每年繳費金額為"&幣別&TEXT(Premium*繳費頻率," #,###")&"元，您是否知悉？【請客戶回答：清楚/不清楚】" -> 【銷售人員】： 您是否清楚本次繳交之保險費用係用以購買保險商品，非辦理定存？【請客戶回答：清楚/不清楚】 本保險商品具有解約金，若中途解約或不繼續繳費，解約金可能低於已繳保費，您是否清楚？【請客戶回答：清楚/不清楚】 此次投保之保險產品繳費年期為6年，每年繳費金額為美元 10,038元，您是否知悉？【請客戶回答：清楚/不清楚】
A24: 保誠人壽創富御守外幣終身保險 | B24: ="【銷售人員】： 投保後解約或不繼續繳費，解約金可能會少於已繳交之保險費且可能不利消費者;給付「特定傷病保險金」後，保單解約金將有所變動，"&錄音序號_確認語_2 ->  | C24: ="【銷售人員】： 投保後解約或不繼續繳費，解約金可能會少於已繳交之保險費且可能不利消費者;給付「特定傷病保險金」後，保單解約金將有所變動，請問您清楚嗎? 【請客戶回答：清楚/不清楚】" -> 【銷售人員】： 投保後解約或不繼續繳費，解約金可能會少於已繳交之保險費且可能不利消費者;給付「特定傷病保險金」後，保單解約金將有所變動，請問您清楚嗎? 【請客戶回答：清楚/不清楚】 | I24: ="【銷售人員】： 本保單為保險商品，非屬存款，也不受存款保險的保障，"&錄音序號_確認語_2&" 投保後解約或不繼續繳費，解約金可能會少於已繳交之保險費;給付「特定傷病保險金」後，保單解約金將有所變動，"&錄音序號_確認語_2 ->  | J24: ="【銷售人員】： 本商品為保險商品，受人身保險安定基金保障，並非存款項目，故不受存款保險之保障。"&錄音序號_確認語_2&" 投保後解約或不繼續繳費，解約金可能會少於已繳交之保險費且可能不利消費者;給付「特定傷病保險金」後，保單解約金將有所變動，"&錄音序號_確認語_2 ->  | K24: ="【銷售人員】： 您是否清楚本次繳交之保險費用係用以購買保險商品，非辦理定存，"&錄音序號_確認語_2&" 本保險商品具有解約金，若中途解約或不繼續繳費，解約金可能低於已繳保費；給付「特定傷病保險金」後，保單解約金將有所變動，"&錄音序號_確認語_2&" 此次投保之保險產品繳費年期為"&繳費年期&"年，每年繳費金額為"&幣別&TEXT(Premium*繳費頻率," #,###")&"元，" &錄音序號_確認語_2 ->  | W24: 【銷售人員】： 本保單為保險商品，非屬存款，也不受存款保險的保障，請問您清楚嗎? 【請客戶回答：清楚/不清楚】 投保後解約或不繼續繳費，解約金可能會少於已繳交之保險費;給付「特定傷病保險金」後，保單解約金將有所變動，請問您清楚嗎? 【請客戶回答：清楚/不清楚】 | X24: 【銷售人員】： 本商品為保險商品，受人身保險安定基金保障，並非存款項目，故不受存款保險之保障。請問您清楚嗎? 【請客戶回答：清楚/不清楚】 投保後解約或不繼續繳費，解約金可能會少於已繳交之保險費且可能不利消費者;給付「特定傷病保險金」後，保單解約金將有所變動，請問您清楚嗎? 【請客戶回答：清楚/不清楚】 | Y24: ="【銷售人員】： 您是否清楚本次繳交之保險費用係用以購買保險商品，非辦理定存？【請客戶回答：清楚/不清楚】 本保險商品具有解約金，若中途解約或不繼續繳費，解約金可能低於已繳保費;給付「特定傷病保險金」後，保單解約金將有所變動，您是否清楚？【請客戶回答：清楚/不清楚】 此次投保之保險產品繳費年期為"&繳費年期&"年，每年繳費金額為"&幣別&TEXT(Premium*繳費頻率," #,###")&"元，您是否知悉？【請客戶回答：清楚/不清楚】" -> 【銷售人員】： 您是否清楚本次繳交之保險費用係用以購買保險商品，非辦理定存？【請客戶回答：清楚/不清楚】 本保險商品具有解約金，若中途解約或不繼續繳費，解約金可能低於已繳保費;給付「特定傷病保險金」後，保單解約金將有所變動，您是否清楚？【請客戶回答：清楚/不清楚】 此次投保之保險產品繳費年期為6年，每年繳費金額為美元 10,038元，您是否知悉？【請客戶回答：清楚/不清楚】
A25: 保誠人壽橘享樂外幣終身壽險 | B25: ="【銷售人員】： 投保後解約或不繼續繳費，解約金可能會少於已繳交之保險費且可能不利消費者;給付「認知功能障礙保險金」後，保單解約金將有所變動，"&錄音序號_確認語_2 ->  | C25: ="【銷售人員】： 投保後解約或不繼續繳費，解約金可能會少於已繳交之保險費且可能不利消費者;給付「認知功能障礙保險金」後，保單解約金將有所變動，請問您清楚嗎? 【請客戶回答：清楚/不清楚】" -> 【銷售人員】： 投保後解約或不繼續繳費，解約金可能會少於已繳交之保險費且可能不利消費者;給付「認知功能障礙保險金」後，保單解約金將有所變動，請問您清楚嗎? 【請客戶回答：清楚/不清楚】 | I25: ="【銷售人員】： 本保單為保險商品，非屬存款，也不受存款保險的保障，"&錄音序號_確認語_2&" 投保後解約或不繼續繳費，解約金可能會少於已繳交之保險費;給付「認知功能障礙保險金」後，保單解約金將有所變動，"&錄音序號_確認語_2 ->  | J25: ="【銷售人員】： 本商品為保險商品，受人身保險安定基金保障，並非存款項目，故不受存款保險之保障。"&錄音序號_確認語_2&" 投保後解約或不繼續繳費，解約金可能會少於已繳交之保險費且可能不利消費者;給付「認知功能障礙保險金」後，保單解約金將有所變動，"&錄音序號_確認語_2 ->  | K25: ="【銷售人員】： 您是否清楚本次繳交之保險費用係用以購買保險商品，非辦理定存，"&錄音序號_確認語_2&" 本保險商品具有解約金，若中途解約或不繼續繳費，解約金可能低於已繳保費;給付「認知功能障礙保險金」後，保單解約金將有所變動，"&錄音序號_確認語_2&" 此次投保之保險產品繳費年期為"&繳費年期&"年，每年繳費金額為"&幣別&TEXT(Premium*繳費頻率," #,###")&"元，"&錄音序號_確認語_2 ->  | W25: 【銷售人員】： 本保單為保險商品，非屬存款，也不受存款保險的保障，請問您清楚嗎? 【請客戶回答：清楚/不清楚】 投保後解約或不繼續繳費，解約金可能會少於已繳交之保險費;給付「認知功能障礙保險金」後，保單解約金將有所變動，請問您清楚嗎? 【請客戶回答：清楚/不清楚】 | X25: 【銷售人員】： 本商品為保險商品，受人身保險安定基金保障，並非存款項目，故不受存款保險之保障。請問您清楚嗎? 【請客戶回答：清楚/不清楚】 投保後解約或不繼續繳費，解約金可能會少於已繳交之保險費且可能不利消費者;給付「認知功能障礙保險金」後，保單解約金將有所變動，請問您清楚嗎? 【請客戶回答：清楚/不清楚】 | Y25: ="【銷售人員】： 您是否清楚本次繳交之保險費用係用以購買保險商品，非辦理定存？【請客戶回答：清楚/不清楚】 本保險商品具有解約金，若中途解約或不繼續繳費，解約金可能低於已繳保費;給付「認知功能障礙保險金」後，保單解約金將有所變動，您是否清楚？【請客戶回答：清楚/不清楚】 此次投保之保險產品繳費年期為"&繳費年期&"年，每年繳費金額為"&幣別&TEXT(Premium*繳費頻率," #,###")&"元，您是否知悉？【請客戶回答：清楚/不清楚】" -> 【銷售人員】： 您是否清楚本次繳交之保險費用係用以購買保險商品，非辦理定存？【請客戶回答：清楚/不清楚】 本保險商品具有解約金，若中途解約或不繼續繳費，解約金可能低於已繳保費;給付「認知功能障礙保險金」後，保單解約金將有所變動，您是否清楚？【請客戶回答：清楚/不清楚】 此次投保之保險產品繳費年期為6年，每年繳費金額為美元 10,038元，您是否知悉？【請客戶回答：清楚/不清楚】

Sheet B3_解約金商品相關風險話術table (hidden)
A1: 判斷值 | B1: 風險項目 | C1: 風險話術 | D1: 風險話術-ePOS | E1: 風險話術-繳款人 | F1: =VLOOKUP(商品名稱,B1_解約金商品錄音話術table!$B:$Y,24,FALSE) -> RF1 | G1: 判斷值 | H1: 保單類型 | I1: 風險話術 | J1: 風險話術（星展／花旗）
A2: #分紅類型#="R" or ""C" | B2: 分紅風險 | C2: ="本保單為分紅商品，保單紅利是預估值，紅利給付的金額不保證也不固定，是依實際宣告分紅金額為準，"&錄音序號_確認語_2 ->  | D2: ="【銷售人員】： 本保單為分紅商品，保單紅利是預估值，紅利給付的金額不保證也不固定，是依實際宣告分紅金額為準，"&錄音序號_確認語_2 ->  | E2: 本保單為分紅商品，保單紅利是預估值，紅利給付的金額不保證也不固定，是依實際宣告分紅金額為準，請問您清楚嗎? 【請客戶回答：清楚/不清楚】 | G2: RL | H2: 分紅-台幣 | I2: 【銷售人員】： 最後請您念出以下聲明文字以確認您瞭解本商品並願意承擔相關風險與確認投保意願，並確認所有文件如要保書、建議書摘要表等均會以本人親自簽名方式投保。 | J2: 【銷售人員】： 最後請您念出以下聲明文字以確認您瞭解本商品並願意承擔相關風險與確認投保意願，並確認所有文件如要保書、建議書等均會以本人親自簽名方式投保。
A3: #商品幣別#<>"NT$" | B3: 匯率風險 | C3: ="本保單收取保險費及支付各項保險金均以"&幣別&"計價，若您自行換回新台幣，須承擔匯率風險。"&錄音序號_確認語_2 ->  | D3: ="【銷售人員】： 本保單收取保險費及支付各項保險金均以"&幣別&"計價，若您自行換回新台幣，須承擔匯率風險。"&錄音序號_確認語_2 ->  | E3: ="本保單收取保險費及支付各項保險金均以"&幣別&"計價，若您自行換回新台幣，須承擔匯率風險，請問您清楚嗎? 【請客戶回答：清楚/不清楚】" -> 本保單收取保險費及支付各項保險金均以美元計價，若您自行換回新台幣，須承擔匯率風險，請問您清楚嗎? 【請客戶回答：清楚/不清楚】 | G3: RF | H3: 分紅-外幣 | I3: 【銷售人員】： 最後請您念出以下聲明文字以確認您瞭解本商品並願意承擔相關風險與確認投保意願，並確認所有文件如要保書、建議書摘要表、匯率風險說明書、客戶適合度調查評估表等均會以本人親自簽名方式投保。 | J3: 【銷售人員】： 最後請您念出以下聲明文字以確認您瞭解本商品並願意承擔相關風險與確認投保意願，並確認所有文件如要保書、建議書、匯率風險說明書、客戶適合度調查評估表均會以本人親自簽名方式投保。
A4: #分紅類型#="H" | B4: 綜合險分紅 | C4: ="本保險人壽保險部分為分紅保險，保單紅利是預估值，紅利給付的金額不保證也不固定，是依實際宣告分紅金額為準；本保險健康保險部分為不分紅保險，不參加紅利分配，並無紅利給付項目，"&錄音序號_確認語_2 ->  | D4: ="【銷售人員】： 本保險人壽保險部分為分紅保險，保單紅利是預估值，紅利給付的金額不保證也不固定，是依實際宣告分紅金額為準；本保險健康保險部分為不分紅保險，不參加紅利分配，並無紅利給付項目，"&錄音序號_確認語_2 ->  | E4: 本保險人壽保險部分為分紅保險，保單紅利是預估值，紅利給付的金額不保證也不固定，是依實際宣告分紅金額為準；本保險健康保險部分為不分紅保險，不參加紅利分配，並無紅利給付項目，請問您清楚嗎? 【請客戶回答：清楚/不清楚】 | G4: NL | H4: 非分紅-台幣 | I4: 【銷售人員】： 最後請您念出以下聲明文字以確認您瞭解本商品並願意承擔相關風險與確認投保意願，並確認所有文件如要保書等均會以本人親自簽名方式投保。 | J4: 【銷售人員】： 最後請您念出以下聲明文字以確認您瞭解本商品並願意承擔相關風險與確認投保意願，並確認所有文件如要保書等均會以本人親自簽名方式投保。
A5: #分紅類型#="I" | B5: 綜合險分紅_傷害 | C5: ="本保險人壽保險部分為分紅保險，保單紅利是預估值，紅利給付的金額不保證也不固定，是依實際宣告分紅金額為準；本保險傷害保險部分為不分紅保險，不參加紅利分配，並無紅利給付項目，"&錄音序號_確認語_2 ->  | D5: ="【銷售人員】： 本保險人壽保險部分為分紅保險，保單紅利是預估值，紅利給付的金額不保證也不固定，是依實際宣告分紅金額為準；本保險傷害保險部分為不分紅保險，不參加紅利分配，並無紅利給付項目，"&錄音序號_確認語_2 ->  | E5: 本保險人壽保險部分為分紅保險，保單紅利是預估值，紅利給付的金額不保證也不固定，是依實際宣告分紅金額為準；本保險傷害保險部分為不分紅保險，不參加紅利分配，並無紅利給付項目，請問您清楚嗎? 【請客戶回答：清楚/不清楚】 | G5: NF | H5: 非分紅-外幣 | I5: 【銷售人員】： 最後請您念出以下聲明文字以確認您瞭解本商品並願意承擔相關風險與確認投保意願,並確認所有文件如要保書、匯率風險說明書、客戶適合度調查評估表等均會以本人親自簽名方式投保。 | J5: 【銷售人員】： 最後請您念出以下聲明文字以確認您瞭解本商品並願意承擔相關風險與確認投保意願,並確認所有文件如要保書、匯率風險說明書、客戶適合度調查評估表等均會以本人親自簽名方式投保。
A6: #分紅類型#="HI" | B6: 綜合險分紅_健康與傷害 | C6: ="本保險人壽保險部分為分紅保險，保單紅利是預估值，紅利給付的金額不保證也不固定，是依實際宣告分紅金額為準；本保險健康保險及傷害保險部分為不分紅保險，不參加紅利分配，並無紅利給付項目，"&錄音序號_確認語_2 ->  | D6: ="【銷售人員】： 本保險人壽保險部分為分紅保險，保單紅利是預估值，紅利給付的金額不保證也不固定，是依實際宣告分紅金額為準；本保險健康保險及傷害保險部分為不分紅保險，不參加紅利分配，並無紅利給付項目，"&錄音序號_確認語_2 ->  | E6: 本保險人壽保險部分為分紅保險，保單紅利是預估值，紅利給付的金額不保證也不固定，是依實際宣告分紅金額為準；本保險健康保險及傷害保險部分為不分紅保險，不參加紅利分配，並無紅利給付項目，請問您清楚嗎? 【請客戶回答：清楚/不清楚】 | G6: IL | H6: 投資型-台幣 | I6: 【銷售人員】： 最後請您念出以下聲明文字以確認您瞭解本商品並願意承擔相關風險與確認投保意願,並確認所有文件如要保書、建議書、投資取向分析問卷及基金風險預告書等均會以本人親自簽名方式投保。 | J6: 【銷售人員】： 最後請您念出以下聲明文字以確認您瞭解本商品並願意承擔相關風險與確認投保意願,並確認所有文件如要保書、建議書、投資取向分析問卷及基金風險預告書等均會以本人親自簽名方式投保。
A7: #分紅類型#="R1" or ""C1" | B7: 分紅風險1 | C7: ="本保險為分紅保險，保單紅利是預估值，紅利給付的金額不保證也不固定，是依實際宣告分紅金額為準，在最極端的情況下，紅利可能為零，"&錄音序號_確認語_2 ->  | D7: ="【銷售人員】： 本保險為分紅保險，保單紅利是預估值，紅利給付的金額不保證也不固定，是依實際宣告分紅金額為準，在最極端的情況下，紅利可能為零，"&錄音序號_確認語_2 ->  | E7: 本保險為分紅保險，保單紅利是預估值，紅利給付的金額不保證也不固定，是依實際宣告分紅金額為準，在最極端的情況下，紅利可能為零，請問您清楚嗎? 【請客戶回答：清楚/不清楚】 | G7: IF | H7: 投資型-外幣 | I7: 【銷售人員】： 最後請您念出以下聲明文字以確認您瞭解本商品並願意承擔相關風險與確認投保意願,並確認所有文件如要保書、建議書、投資取向分析問卷及基金風險預告書等均會以本人親自簽名方式投保。 | J7: 【銷售人員】： 最後請您念出以下聲明文字以確認您瞭解本商品並願意承擔相關風險與確認投保意願,並確認所有文件如要保書、建議書、投資取向分析問卷及基金風險預告書等均會以本人親自簽名方式投保。
G8: O | H8: 鑫想事成 | I8: 【銷售人員】： 最後請您念出以下聲明文字以確認您瞭解本商品並願意承擔相關風險與確認投保意願,並確認所有文件如要保書、建議書、投資取向分析問卷及基金風險預告書等均會以本人親自簽名方式投保。
G9: T | H9: 福企滿滿 | I9: 【銷售人員】： 最後請您念出以下聲明文字以確認您瞭解本商品並願意承擔相關風險與確認投保意願，並確認所有文件如要保書、建議書摘要表、匯率風險說明書、客戶適合度調查評估表等均會以本人親自簽名方式投保。
G10: RL1 | H10: 分紅-台幣1 | I10: 【銷售人員】： 最後請您念出以下聲明文字以確認您瞭解本商品並願意承擔相關風險與確認投保意願，並確認所有文件如要保書、建議書等均會以本人親自簽名方式投保。 | J10: 【銷售人員】： 最後請您念出以下聲明文字以確認您瞭解本商品並願意承擔相關風險與確認投保意願，並確認所有文件如要保書、建議書等均會以本人親自簽名方式投保。
G11: RF1 | H11: 分紅-外幣1 | I11: 【銷售人員】： 最後請您念出以下聲明文字以確認您瞭解本商品並願意承擔相關風險與確認投保意願，並確認所有文件如要保書、建議書、匯率風險說明書、客戶適合度調查評估表等均會以本人親自簽名方式投保。 | J11: 【銷售人員】： 最後請您念出以下聲明文字以確認您瞭解本商品並願意承擔相關風險與確認投保意願，並確認所有文件如要保書、建議書、匯率風險說明書、客戶適合度調查評估表均會以本人親自簽名方式投保。

Sheet B4_解約型-重要條款 (hidden)
B1: 錄音序號3_說明商品重要條款、除外責任、商品說明書內容 | C1: 錄音序號3_說明商品重要條款、除外責任、商品說明書內容
A2: 期繳 | B2: ="本保單如果沒有依契約約定繳交第二期以後保費，或償還保單借款本息，契約將停止效力。契約停止效力後，要保人可以在停效日起二年內申請復效。但如果保險期間屆滿後就不能提出申請復效。"&錄音序號_確認語_2&" 其他重要條款內容，如:保險期間、影響契約效力事由、告知義務與契約解除、保險事故之通知與義務、保險單變更及借款、請求權消滅時效等已向您清楚說明，" ->  | C2: 本保單如果沒有依契約約定繳交第二期以後保費，或償還保單借款本息，契約將停止效力。契約停止效力後，要保人可以在停效日起二年內申請復效。但如果保險期間屆滿後就不能提出申請復效，請問您清楚嗎？【請客戶回答：清楚/不清楚】 其他重要條款內容，如:保險期間、影響契約效力事由、告知義務與契約解除、保險事故之通知與義務、保險單變更及借款、請求權消滅時效等已向您清楚說明，請問您清楚嗎？【請客戶回答：清楚/不清楚】
A3: 躉繳 | B3: ="本保單如果沒有依契約約定償還保單借款本息，契約將停止效力。契約停止效力後，要保人可以在停效日起二年內申請復效。但保險期間屆滿後就不能提出申請復效。"&錄音序號_確認語_2&" 其他重要條款內容，如:保險期間、影響契約效力事由、告知義務與契約解除、保險事故之通知與義務、保險單變更及借款、請求權消滅時效等已向您清楚說明，" ->  | C3: 本保單如果沒有依契約約定償還保單借款本息，契約將停止效力。契約停止效力後，要保人可以在停效日起二年內申請復效。但保險期間屆滿後就不能提出申請復效，請問您清楚嗎？【請客戶回答：清楚/不清楚】 其他重要條款內容，如:保險期間、影響契約效力事由、告知義務與契約解除、保險事故之通知與義務、保險單變更及借款、請求權消滅時效等已向您清楚說明，請問您清楚嗎？【請客戶回答：清楚/不清楚】

Sheet B6_解約金附約ePOS調整 (hidden)
B2: 附約對照 | C2: 條款說明 | D2: 序號
B3: 壽險_附約 | C3: 說明商品重要條款內容、除外責任(壽險附約) | D3: 8
B4: 健康險_附約 | C4: 說明商品重要條款內容、除外責任(健康險附約) | D4: 7
B5: 特定傷害險_附約 | C5: 說明商品重要條款內容、除外責任(特定傷病險附約) | D5: 6
B6: 癌症險_附約 | C6: 說明商品重要條款內容、除外責任(癌症險附約) | D6: 5
B7: 失能險_附約 | C7: 說明商品重要條款內容、除外責任(失能險附約) | D7: 4
B8: 長照險_附約 | C8: 說明商品重要條款內容、除外責任(長照險附約) | D8: 3
B9: 傷害險_附約 | C9: 說明商品重要條款內容、除外責任(傷害險附約) | D9: 2
B10: 豁免_附約 | C10: 說明商品重要條款內容、除外責任(豁免險附約) | D10: 1
A15: 序號 | B15: No | C15: 名稱 | D15: 類別 | E15: 項目名稱 | F15: 話術 | G15: 話術 | I15: 序號 | J15: No | K15: 名稱 | L15: 類別 | M15: 項目名稱 | N15: 話術 | O15: 話術
A16: =VALUE(IF(G16="N",0,_xlfn.IFNA(VLOOKUP(D16,$B$3:$D$10,3,FALSE)&7,0))) -> 0 | B16: 附約1 | C16: =IF(VALUE(資料輸入!L32)>0,資料輸入!D32,"") ->  | D16: =IFERROR(VLOOKUP(C16,B1_解約金商品錄音話術table!B:Z,25,0),"") ->  | E16: =IF(G16="N","",_xlfn.IFNA(VLOOKUP(D16,$B$3:$D$10,2,FALSE),"")) ->  | F16: =IF(E16="","","【銷售人員】："& IF(附約一名稱<>"",IFERROR(VLOOKUP(C16,B1_解約金商品錄音話術table!B:M,12,0),""),"")) ->  | G16: =IF(IFERROR(VLOOKUP(C16,B1_解約金商品錄音話術table!B:N,12,0),"")="","N","Y") -> N | I16: =VALUE(IF(O16="N",0,_xlfn.IFNA(VLOOKUP(L16,$B$3:$D$10,3,FALSE)&7,0))) -> 0 | J16: 附約1 | K16: =C16 ->  | L16: =IFERROR(VLOOKUP(K16,B1_解約金商品錄音話術table!B:Z,25,0),"") ->  | M16: =IF(O16="N","",_xlfn.IFNA(VLOOKUP(L16,$B$3:$D$10,2,FALSE),"")) ->  | N16: =IF(M16="","","【銷售人員】： "& IF(附約一名稱<>"",IFERROR(VLOOKUP(K16,B1_解約金商品錄音話術table!B:AC,28,0),""),"")) ->  | O16: =IF(IFERROR(VLOOKUP(K16,B1_解約金商品錄音話術table!B:AC,28,0),"")="","N","Y") -> N | Q16: =RANK(A16,$A$16:$A$18,-1) -> 1 | R16: =A16 -> 0 | T16: =RANK(I16,$I$16:$I$18,-1) -> 1 | U16: =I16 -> 0
A17: =VALUE(IF(G17="N",0,_xlfn.IFNA(VLOOKUP(D17,$B$3:$D$10,3,FALSE)&5,0))) -> 0 | B17: 附約2 | C17: =IF(VALUE(資料輸入!L36)>0,資料輸入!D36,"") ->  | D17: =IFERROR(VLOOKUP(C17,B1_解約金商品錄音話術table!B:Z,25,0),"") ->  | E17: =IF(G17="N","",_xlfn.IFNA(VLOOKUP(D17,$B$3:$D$10,2,FALSE),"")) ->  | F17: =IF(E17="","","【銷售人員】："& IF(附約一名稱<>"",IFERROR(VLOOKUP(C17,B1_解約金商品錄音話術table!B:M,12,0),""),"")) ->  | G17: =IF(IFERROR(VLOOKUP(C17,B1_解約金商品錄音話術table!B:N,12,0),"")="","N","Y") -> N | I17: =VALUE(IF(O17="N",0,_xlfn.IFNA(VLOOKUP(L17,$B$3:$D$10,3,FALSE)&5,0))) -> 0 | J17: 附約2 | K17: =C17 ->  | L17: =IFERROR(VLOOKUP(K17,B1_解約金商品錄音話術table!B:Z,25,0),"") ->  | M17: =IF(O17="N","",_xlfn.IFNA(VLOOKUP(L17,$B$3:$D$10,2,FALSE),"")) ->  | N17: =IF(M17="","","【銷售人員】： "& IF(附約一名稱<>"",IFERROR(VLOOKUP(K17,B1_解約金商品錄音話術table!B:AC,28,0),""),"")) ->  | O17: =IF(IFERROR(VLOOKUP(K17,B1_解約金商品錄音話術table!B:AC,28,0),"")="","N","Y") -> N | Q17: =RANK(A17,$A$16:$A$18,-1) -> 1 | R17: =A17 -> 0 | T17: =RANK(I17,$I$16:$I$18,-1) -> 1 | U17: =I17 -> 0
A18: =VALUE(IF(G18="N",0,_xlfn.IFNA(VLOOKUP(D18,$B$3:$D$10,3,FALSE)&3,0))) -> 0 | B18: 附約3 | C18: =IF(VALUE(資料輸入!L38)>0,資料輸入!D38,"") ->  | D18: =IFERROR(VLOOKUP(C18,B1_解約金商品錄音話術table!B:Z,25,0),"") ->  | E18: =IF(G18="N","",_xlfn.IFNA(VLOOKUP(D18,$B$3:$D$10,2,FALSE),"")) ->  | F18: =IF(E18="","","【銷售人員】："& IF(附約一名稱<>"",IFERROR(VLOOKUP(C18,B1_解約金商品錄音話術table!B:M,12,0),""),"")) ->  | G18: =IF(IFERROR(VLOOKUP(C18,B1_解約金商品錄音話術table!B:N,12,0),"")="","N","Y") -> N | I18: =VALUE(IF(O18="N",0,_xlfn.IFNA(VLOOKUP(L18,$B$3:$D$10,3,FALSE)&3,0))) -> 0 | J18: 附約3 | K18: =C18 ->  | L18: =IFERROR(VLOOKUP(K18,B1_解約金商品錄音話術table!B:Z,25,0),"") ->  | M18: =IF(O18="N","",_xlfn.IFNA(VLOOKUP(L18,$B$3:$D$10,2,FALSE),"")) ->  | N18: =IF(M18="","","【銷售人員】： "& IF(附約一名稱<>"",IFERROR(VLOOKUP(K18,B1_解約金商品錄音話術table!B:AC,28,0),""),"")) ->  | O18: =IF(IFERROR(VLOOKUP(K18,B1_解約金商品錄音話術table!B:AC,28,0),"")="","N","Y") -> N | Q18: =RANK(A18,$A$16:$A$18,-1) -> 1 | R18: =A18 -> 0 | T18: =RANK(I18,$I$16:$I$18,-1) -> 1 | U18: =I18 -> 0
A22: =IFERROR(VLOOKUP(3,$Q$16:$R$18,2,0),0) -> 0 | B22: =VLOOKUP(A22,$A$16:$F$19,5,FALSE) ->  | C22: =VLOOKUP(A22,$A$16:$F$19,6,FALSE) ->  | I22: =IFERROR(VLOOKUP(3,$T$16:$U$18,2,0),0) -> 0 | J22: =VLOOKUP(I22,$I$16:$N$19,5,FALSE) ->  | K22: =VLOOKUP(I22,$I$16:$N$19,6,FALSE) -> 
A23: =IFERROR(VLOOKUP(2,$Q$16:$R$18,2,0),0) -> 0 | B23: =VLOOKUP(A23,$A$16:$F$19,5,FALSE) ->  | C23: =VLOOKUP(A23,$A$16:$F$19,6,FALSE) ->  | I23: =IFERROR(VLOOKUP(2,$T$16:$U$18,2,0),0) -> 0 | J23: =VLOOKUP(I23,$I$16:$N$19,5,FALSE) ->  | K23: =VLOOKUP(I23,$I$16:$N$19,6,FALSE) -> 
A24: =IFERROR(VLOOKUP(1,$Q$16:$R$18,2,0),0) -> 0 | B24: =VLOOKUP(A24,$A$16:$F$19,5,FALSE) ->  | C24: =VLOOKUP(A24,$A$16:$F$19,6,FALSE) ->  | I24: =IFERROR(VLOOKUP(1,$T$16:$U$18,2,0),0) -> 0 | J24: =VLOOKUP(I24,$I$16:$N$19,5,FALSE) ->  | K24: =VLOOKUP(I24,$I$16:$N$19,6,FALSE) -> 
B25: =VLOOKUP(A25,$A$16:$F$19,5,FALSE) ->  | C25: =VLOOKUP(A25,$A$16:$F$19,6,FALSE) ->  | J25: =VLOOKUP(I25,$I$16:$N$19,5,FALSE) ->  | K25: =VLOOKUP(I25,$I$16:$N$19,6,FALSE) -> 

Sheet D1_高齡錄音資料檢核 (hidden)
B1: 【高齡錄音話術】相關檢核 | H1: 高齡對象判斷角色重疊判斷 (高齡對象判斷代碼 & ID檢核代碼 | I1: 應錄音對象判斷 | J1: 要被保人話術稿判斷 | K1: 繳款人話術稿判斷 | O1: 高齡對象判斷 | P1: 提醒文字1 | Q1: 提醒文字2 | R1: 提醒文字3 | S1: 提醒文字4 | T1: 提醒文字5
B2: 啟動年齡 | C2: 65 | H2: 11 | I2: 5 | J2: 2 | K2: 2 | M2: Note. 由於生日可能在人員相同時不填，就假設 例如 1. 說明高齡對象判斷4寫到本保單被保人、繳款人保險年齡達65歲(含)以上 2. ID檢核說 3.繳款人=要保人，就要假設要保人其實也65歲，所以就要錄要保人、被保人 | O2: 1 | P2: =IF(擴大錄音對象="N","本保單要保人、被保險人、繳款人保險年齡達65歲(含)以上，","要保人、被保險人、繳款人其一達65歲，") -> 本保單要保人、被保險人、繳款人保險年齡達65歲(含)以上， | Q2: 其中，要、被保險人及繳款人為同一人， | R2: 故需對要保人、被保險人、繳款人共三人進行錄音。 | S2: ※繳款人錄音話術稿請至「繳款人高齡錄音話術範本」。 | T2: ※要/被保險人錄音話術稿請至「要保人/被保險人高齡錄音話術範本」。
B3: ▲ 要保人判斷 | C3: =IF(擴大錄音對象="N",IFERROR(AND(要保人保險年齡>=高齡錄音年齡,被保人保險年齡<=被保人最大投保年齡),FALSE),IFERROR(AND(MAX(要保人保險年齡,被保人保險年齡,繳款人保險年齡)>=高齡錄音年齡,被保人保險年齡<=被保人最大投保年齡),FALSE)) -> FALSE | D3: =IF(擴大錄音對象="N","◆要保人達"&高齡錄音年齡&"歲，請填寫錄音話術補充資訊，依錄音話術表進行錄音。 ","◆要保人需進行錄音，請填寫錄音話術補充資訊，依錄音話術表進行錄音。 ") -> ◆要保人達65歲，請填寫錄音話術補充資訊，依錄音話術表進行錄音。 | E3: =IF(要保人保險年齡<>"",IF(ISERROR(AND(要保人保險年齡>=高齡錄音年齡,被保人保險年齡<=被保人最大投保年齡)),FALSE,IF(AND(要保人保險年齡>=高齡錄音年齡,被保人保險年齡<=被保人最大投保年齡),TRUE,FALSE)),FALSE) | H3: 12 | I3: 3 | J3: 2 | K3: 1 | O3: 2 | P3: =IF(擴大錄音對象="N","本保單要保人、被保險人保險年齡達65歲(含)以上，","要保人、被保險人、繳款人其一達65歲，") -> 本保單要保人、被保險人保險年齡達65歲(含)以上， | Q3: 其中，要、被保險人為同一人， | R3: 故需對要保人、被保險人共二人進行錄音。
B4: ▲ 被保人判斷 | C4: =IF(擴大錄音對象="N",IF(被保人生日6碼="",FALSE,IFERROR(AND(被保人保險年齡>=高齡錄音年齡,被保人保險年齡<=被保人最大投保年齡),FALSE)),IF(被保人生日6碼="",FALSE,IFERROR(AND(MAX(要保人保險年齡,被保人保險年齡,繳款人保險年齡)>=高齡錄音年齡,被保人保險年齡<=被保人最大投保年齡),FALSE))) -> FALSE | H4: 13 | I4: 2 | J4: 1 | K4: 2 | O4: 3 | P4: =IF(擴大錄音對象="N","本保單要保人、繳款人保險年齡達65歲(含)以上，","要保人、被保險人、繳款人其一達65歲，") -> 本保單要保人、繳款人保險年齡達65歲(含)以上， | Q4: 其中，要保人、繳款人為同一人， | R4: 故需對要保人、繳款人共二人進行錄音。
B5: ▲ 繳款人判斷 | C5: =IF(擴大錄音對象="N",IFERROR(AND(繳款人保險年齡>=高齡錄音年齡,被保人保險年齡<=被保人最大投保年齡),FALSE),IFERROR(AND(MAX(要保人保險年齡,被保人保險年齡,繳款人保險年齡)>=高齡錄音年齡,被保人保險年齡<=被保人最大投保年齡),FALSE)) -> FALSE | E5: =IF(繳款人保險年齡<>"",IF(ISERROR(AND(繳款人保險年齡>=高齡錄音年齡,被保人保險年齡<=被保人最大投保年齡)),FALSE,IF(AND(繳款人保險年齡>=高齡錄音年齡,被保人保險年齡<=被保人最大投保年齡),TRUE,FALSE)),FALSE) | H5: 14 | I5: 2 | J5: 1 | K5: 2 | O5: 4 | P5: =IF(擴大錄音對象="N","本保單被保人、繳款人保險年齡達65歲(含)以上，","要保人、被保險人、繳款人其一達65歲，") -> 本保單被保人、繳款人保險年齡達65歲(含)以上， | Q5: 其中，被保險人、繳款人為同一人， | R5: 故需對被保人、繳款人共二人進行錄音。
B6: 顯示高齡錄音視窗 | C6: =OR(要保人高齡錄音判斷,被保人高齡錄音判斷,繳款人高齡錄音判斷) -> FALSE | H6: 15 | I6: 1 | J6: 1 | K6: 1 | O6: 5 | P6: =IF(擴大錄音對象="N","本保單要保人保險年齡達65歲(含)以上，","要保人、被保險人、繳款人其一達65歲，") -> 本保單要保人保險年齡達65歲(含)以上， | R6: 故需對要保人共一人進行錄音。
H7: 21 | I7: 5 | J7: 4 | K7: 2 | O7: 6 | P7: =IF(擴大錄音對象="N","本保單被保險人保險年齡達65歲(含)以上，","要保人、被保險人、繳款人其一達65歲，") -> 本保單被保險人保險年齡達65歲(含)以上， | R7: 故需對被保險人共一人進行錄音。
H8: 22 | I8: 5 | J8: 2 | K8: 2 | O8: 7 | P8: =IF(擴大錄音對象="N","本保單繳款人保險年齡達65歲(含)以上，","要保人、被保險人、繳款人其一達65歲，") -> 本保單繳款人保險年齡達65歲(含)以上， | R8: 故需對繳款人共一人進行錄音。
B9: 角色重疊檢核 | H9: 23 | I9: 2 | J9: 1 | K9: 2
B10: ▲ ID檢核 | C10: =IF(AND(被保人同一人檢核,繳款人同一人檢核),1,IF(AND(被保人同一人檢核,繳款人同一人檢核=FALSE),2,IF(AND(被保人同一人檢核=FALSE,繳款人身分="與要保人為「同一人」"),3,IF(AND(被保人同一人檢核=FALSE,繳款人身分="與被保險人為「同一人」"),4,5)))) -> 4 | D10: Note. 此處借用使用者填入的是否同一人資訊來判斷，而不去判斷姓名或ID，若非高齡錄音場合不適用 | H10: 24 | I10: 2 | J10: 1 | K10: 2
B11: ▲ 姓名 | C11: =IF(AND(被保人同一人檢核,繳款人同一人檢核),1,IF(AND(被保人同一人檢核,繳款人同一人檢核=FALSE),2,IF(AND(被保人同一人檢核=FALSE,繳款人身分="與要保人為「同一人」"),3,IF(AND(被保人同一人檢核=FALSE,繳款人身分="與被保險人為「同一人」"),4,5)))) -> 4 | H11: 25 | I11: 2 | J11: 1 | K11: 2
H12: 31 | I12: 5 | J12: 2 | K12: 2
H13: 32 | I13: 3 | J13: 2 | K13: 1 | O13: ID檢核-代碼 | P13: 說明
B14: 應錄音對象判斷 | C14: =VLOOKUP(C15&ID檢核,$H$1:$K$41,2,FALSE) -> 8 | D14: ="※"&VLOOKUP(C15,$O$2:$R$8,2,FALSE)&VLOOKUP(C10,$O$2:$R$8,3,FALSE)&VLOOKUP(C14,$O$2:$R$8,4,FALSE)&VLOOKUP(繳款人話術稿判斷,O1:S8,5,FALSE) ->  | H14: 33 | I14: 5 | J14: 2 | K14: 2 | O14: 1 | P14: 要保人=被保險人=繳款人
B15: ▲ 高齡對象判斷 | C15: =IF(AND(要保人高齡錄音判斷,被保人高齡錄音判斷,繳款人高齡錄音判斷),1,IF(AND(要保人高齡錄音判斷,被保人高齡錄音判斷),2,IF(AND(要保人高齡錄音判斷,繳款人高齡錄音判斷),3,IF(AND(被保人高齡錄音判斷,繳款人高齡錄音判斷),4,IF(AND(要保人高齡錄音判斷),5,IF(AND(被保人高齡錄音判斷),6,IF(AND(繳款人高齡錄音判斷),7,8))))))) -> 8 | D15: ="※"&VLOOKUP(C15,$O$2:$R$8,2,FALSE)&VLOOKUP(C10,$O$2:$R$8,3,FALSE)&VLOOKUP(C14,$O$2:$R$8,4,FALSE)&VLOOKUP(繳款人話術稿判斷,O1:T8,6,FALSE) ->  | H15: 34 | I15: 2 | J15: 2 | K15: 2 | O15: 2 | P15: 要保人=被保險人<>繳款人
B16: ▲ 要被保人話術稿判斷 | C16: =VLOOKUP(C15&ID檢核,$H$1:$K$41,3,FALSE) -> 4 | D16: ※本保單要保人、被保險人不需錄音。 | H16: 35 | I16: 3 | J16: 2 | K16: 1 | O16: 3 | P16: 要保人=繳款人<>被保險人
B17: ▲ 繳款人話術稿判斷 | C17: =VLOOKUP(C15&ID檢核,$H$1:$K$41,4,FALSE) -> 2 | D17: =IF(VLOOKUP(繳款人話術稿判斷,O1:S3,5,FALSE)=0,"",VLOOKUP(繳款人話術稿判斷,O1:S3,5,FALSE)) ->  | H17: 41 | I17: 5 | J17: 2 | K17: 2 | O17: 4 | P17: 要保人<>被保險人=繳款人
D18: ※本保單繳款人不需錄音。 | H18: 42 | I18: 3 | J18: 2 | K18: 1 | O18: 5 | P18: 要保人<>被保險人<>繳款人
H19: 43 | I19: 2 | J19: 1 | K19: 2
B20: 通路別 | C20: BR | H20: 44 | I20: 6 | J20: 3 | K20: 2 | O20: 高齡對象判斷-代碼 | P20: 說明
B21: 商品類別 | C21: =VLOOKUP(商品名稱,B1_解約金商品錄音話術table!B:Y,24,FALSE) -> RF1 | H21: 45 | I21: 4 | J21: 3 | K21: 1 | O21: 1 | P21: 本保單要保人、被保險人、繳款人保險年齡達65歲(含)以上，
B22: 服務單位名稱 | H22: 51 | I22: 5 | J22: 2 | K22: 2 | O22: 2 | P22: 本保單要保人、被保險人保險年齡達65歲(含)以上，
B23: 雙招選項名稱 | C23: =IF(AND(業務員_2<>"",登錄字號_2<>""),1,2) -> 2 | H23: 52 | I23: 5 | J23: 2 | K23: 2 | O23: 3 | P23: 本保單要保人、繳款人保險年齡達65歲(含)以上，
B24: 雙招攬判斷 | C24: =IF(高齡話術檢核,IF(資料輸入!X4="是",TRUE,FALSE),FALSE) -> FALSE | H24: 53 | I24: 5 | J24: 2 | K24: 2 | O24: 4 | P24: 本保單被保人、繳款人保險年齡達65歲(含)以上，
H25: 54 | I25: 5 | J25: 2 | K25: 2 | O25: 5 | P25: 本保單要保人保險年齡達65歲(含)以上，
H26: 55 | I26: 5 | J26: 2 | K26: 2 | O26: 6 | P26: 本保單被保險人保險年齡達65歲(含)以上，
B27: 保障期間年 | C27: =IF(高齡錄音填寫資訊檢核=1,TRUE,FALSE) -> FALSE | H27: 61 | I27: 5 | J27: 2 | K27: 2 | O27: 7 | P27: 本保單繳人保險年齡達65歲(含)以上，
B28: 高齡錄音資訊 | C28: =MAX(C29:C37,C42:C43) -> 5 | D28: ="◆錄音話術補充資訊填寫不完整，請補全內容。 " -> ◆錄音話術補充資訊填寫不完整，請補全內容。 | H28: 62 | I28: 5 | J28: 2 | K28: 2 | O28: 8 | P28: 無人達65歲以上
B29: ▲ 服務公司檢核 | C29: =IF(高齡錄音檢核,IF(服務公司<>"",1,2),1) -> 1 | H29: 63 | I29: 6 | J29: 3 | K29: 2
B30: ▲ 服務專員檢核 | C30: =IF(高齡錄音檢核,IF(業務員_1<>"",1,3),1) -> 1 | H30: 64 | I30: 6 | J30: 3 | K30: 2
B31: ▲ 登錄字號檢核 | C31: =IF(高齡錄音檢核,IF(登錄字號_1<>"",1,4),1) -> 1 | H31: 65 | I31: 6 | J31: 3 | K31: 2
B32: ▲ 身分證檢核-要保 | C32: =IF(要保人高齡錄音判斷,IF(要保人身分證字號<>"",1,5),1) -> 1 | D32: Note. 若達65歲時必填 | H32: 71 | I32: 5 | J32: 2 | K32: 2
B33: ▲ 身分證檢核-被保 | C33: =IF(被保人高齡錄音判斷,IF(AND(被保險人身分證字號="",被保人同一人檢核=FALSE),5,1),1) -> 1 | D33: Note. 若達65歲且與要保人不同人時必填 | H33: 72 | I33: 7 | J33: 4 | K33: 1
B34: ▲ 身分證檢核-繳款 | C34: =IF(繳款人高齡錄音判斷,IF(AND(繳款人身分證字號="",繳款人同一人檢核=FALSE),5,1),1) -> 1 | D34: Note. 若達65歲且與要、被保人不同人時必填 | H34: 73 | I34: 5 | J34: 2 | K34: 2
B35: ▲ 投保目的檢核 | C35: =IF(高齡錄音檢核,IF(OR(投保目的及需求="",投保目的其他文字檢核=1),6,1),1) -> 1 | H35: 74 | I35: 6 | J35: 3 | K35: 2
B36: ▲ 第二招攬 | C36: =IF(雙招選項="",5,1) -> 5 | H36: 75 | I36: 7 | J36: 4 | K36: 1
B37: ▲ 雙招 | C37: =IF(雙招選項="是", IF(COUNTBLANK(業務員_2)+COUNTBLANK(登錄字號_2)>0,9,1),1) -> 1 | H37: 81 | I37: 8 | J37: 4 | K37: 2
B38: ▲ 要被保人同一人檢核 | C38: =IF(高齡錄音檢核,IF(要保人身分="與被保險人為「同一人」",TRUE,FALSE),FALSE) -> FALSE | D38: =IF(擴大錄音對象="N","◆被保險人達"&高齡錄音年齡&"歲，請填寫錄音話術補充資訊，依錄音話術表進行錄音。 ","◆被保險人需進行錄音，請填寫錄音話術補充資訊，依錄音話術表進行錄音。 ") -> ◆被保險人達65歲，請填寫錄音話術補充資訊，依錄音話術表進行錄音。 | H38: 82 | I38: 8 | J38: 4 | K38: 2
B39: ▲ 繳款人同一人檢核 | C39: =IF(高齡錄音檢核,IF(OR(繳款人身分="與要保人為「同一人」",繳款人身分="與被保險人為「同一人」"),TRUE, FALSE),FALSE) -> FALSE | D39: =IF(擴大錄音對象="N","◆繳款人達"&高齡錄音年齡&"歲，請填寫錄音話術補充資訊，依錄音話術表進行錄音。 ","◆繳款人需進行錄音，請填寫錄音話術補充資訊，依錄音話術表進行錄音。 ") -> ◆繳款人達65歲，請填寫錄音話術補充資訊，依錄音話術表進行錄音。 | H39: 83 | I39: 8 | J39: 4 | K39: 2
H40: 84 | I40: 8 | J40: 4 | K40: 2
B41: 錄音填寫與錄音對象提示訊息 | D41: =IFERROR(IF(C28>1,D28,"")& IF(要保人高齡錄音判斷,D3,"")& IF(AND(被保人同一人檢核=FALSE,被保人高齡錄音判斷=TRUE),D38,"")& IF(AND(繳款人同一人檢核=FALSE,繳款人高齡錄音判斷=TRUE),D39,""),"")& IF(AND(要保人身分="與被保險人為「不同一人」",AND(要保人=被保人,要保人性別=被保人性別,要保人生日6碼=被保人生日6碼),OR(被保人保險年齡>=高齡錄音年齡,要保人保險年齡>=高齡錄音年齡)),"◆請確認要、被保人是否為「同一人」！","") -> ◆錄音話術補充資訊填寫不完整，請補全內容。 | H41: 85 | I41: 8 | J41: 4 | K41: 2
B42: 通路名稱檢核 | C42: =IF(服務單位檢核,IF(服務單位="",5,1),1) -> 1
B43: 保經代檢核 | C43: =IF(保經保代="",5,1) -> 5
B46: 錄音序號適用通路
B47: 第一商業銀行股份有限公司
B48: 彰化商業銀行股份有限公司
B49: 台新商業銀行股份有限公司
B50: 中國信託商業銀行股份有限公司
B53: 繳費頻率 | C53: =IFERROR(VLOOKUP(繳別,B54:C57,2,0),1) -> 1
B54: 年繳 | C54: 1
B55: 半年繳 | C55: 2
B56: 季繳 | C56: 4
B57: 月繳 | C57: 12
B59: 服務公司
B60: ▲ 服務單位檢核(欣台) | C60: =IF(ISERROR(FIND("欣台",服務公司,1)),FALSE,TRUE) -> FALSE
B61: ▲ 服務公司檢核 | C61: =IF(服務單位檢核=TRUE,AND(服務公司<>"",保經保代<>"",服務單位<>""),AND(服務公司<>"",保經保代<>"")) -> FALSE
B63: 投保目的檢核 | C63: =OR(C65,C66) -> FALSE | D63: =IF(AND(COUNTIF(資料輸入!O35:O35,"V")=1,投保目的保障項次="V"),投保目的保障文字,IF(投保目的保障項次="V",投保目的保障文字&"、",""))&IF(AND(COUNTIF(資料輸入!O35:O35,"V")=1,投保目的子女="V"),投保目的子女文字,IF(投保目的子女="V",投保目的子女文字&"、",""))&IF(AND(COUNTIF(資料輸入!O34:O35,"V")=1,投保目的退休="V"),投保目的退休文字,IF(投保目的退休="V",投保目的退休文字&"、",""))&IF(AND(COUNTIF(資料輸入!O34:O38,"V")=1,投保目的房貸="V"),投保目的房貸文字,IF(投保目的房貸="V",投保目的房貸文字&"、",""))&IF(投保目的其他="V",投保目的其他文字,"") -> 
B64: 投保目的勾選檢核 | C64: =OR(C65,C67) -> FALSE
B65: ▲ 投保目的 | C65: =OR(投保目的保障項次="V",投保目的子女="V",投保目的退休="V",投保目的房貸="V") -> FALSE
B66: ▲ 投保目的其他 | C66: =AND(投保目的其他="V",投保目的其他文字<>"") -> FALSE
B67: ▲ 投保目的其他勾選 | C67: =AND(投保目的其他="V") -> FALSE
B68: ▲ 投保目的其他文字 | C68: =IF(投保目的其他="V",IF(投保目的其他文字="",1,2),3) -> 3

Sheet 壽險保障與解約金 (hidden)
C2: 非保證給付項目
A3: 年 | B3: 年 | C3: 高分紅 | H3: 低分紅
A4: 度 | B4: 齡 | C4: 當年度末壽險保障及 | D4: 當年度末可能領取 | F4: 當年度末壽險保障及 | G4: 當年度末可能領取 | H4: 當年度末壽險保障及 | I4: 當年度末可能領取
C5: 假設紅利分配後壽險保障 | D5: 解約金總和 | F5: 假設紅利分配後壽險保障 | G5: 解約金總和 | H5: 假設紅利分配後壽險保障 | I5: 解約金總和
A7: 1 | B7: =age+A7-1 -> 40 | C7: =試算表!O7 -> 100000 | D7: =試算表!P7 -> 3340 | F7: =試算表!S7 -> 100000 | G7: =試算表!T7 -> 3340 | H7: =試算表!W7 -> 100000 | I7: =試算表!X7 -> 3340
A8: 2 | B8: 41 | C8: =試算表!O8 -> 100000 | D8: =試算表!P8 -> 8890 | F8: =試算表!S8 -> 100000 | G8: =試算表!T8 -> 8890 | H8: =試算表!W8 -> 100000 | I8: =試算表!X8 -> 8890
A9: 3 | B9: 42 | C9: =試算表!O9 -> 100000 | D9: =試算表!P9 -> 14580 | F9: =試算表!S9 -> 100000 | G9: =試算表!T9 -> 14580 | H9: =試算表!W9 -> 100000 | I9: =試算表!X9 -> 14580
A10: 4 | B10: 43 | C10: =試算表!O10 -> 125000 | D10: =試算表!P10 -> 21740 | F10: =試算表!S10 -> 125000 | G10: =試算表!T10 -> 21740 | H10: =試算表!W10 -> 125000 | I10: =試算表!X10 -> 21740
A11: 5 | B11: 44 | C11: =試算表!O11 -> 150000 | D11: =試算表!P11 -> 31540 | F11: =試算表!S11 -> 150000 | G11: =試算表!T11 -> 31540 | H11: =試算表!W11 -> 150000 | I11: =試算表!X11 -> 31540
A12: 6 | B12: 45 | C12: =試算表!O12 -> 145000 | D12: =試算表!P12 -> 43110 | F12: =試算表!S12 -> 245500 | G12: =試算表!T12 -> 62004 | H12: =試算表!W12 -> 155028 | I12: =試算表!X12 -> 44996
A13: 7 | B13: 46 | C13: =試算表!O13 -> 140000 | D13: =試算表!P13 -> 43930 | F13: =試算表!S13 -> 246027 | G13: =試算表!T13 -> 63825 | H13: =試算表!W13 -> 150555 | I13: =試算表!X13 -> 45911
A14: 8 | B14: 47 | C14: =試算表!O14 -> 135000 | D14: =試算表!P14 -> 44770 | F14: =試算表!S14 -> 246579 | G14: =試算表!T14 -> 65698 | H14: =試算表!W14 -> 146083 | I14: =試算表!X14 -> 46849
A15: 9 | B15: 48 | C15: =試算表!O15 -> 130000 | D15: =試算表!P15 -> 45630 | F15: =試算表!S15 -> 247158 | G15: =試算表!T15 -> 67627 | H15: =試算表!W15 -> 141612 | I15: =試算表!X15 -> 47810
A16: 10 | B16: 49 | C16: =試算表!O16 -> 125000 | D16: =試算表!P16 -> 46510 | F16: =試算表!S16 -> 247764 | G16: =試算表!T16 -> 69612 | H16: =試算表!W16 -> 137140 | I16: =試算表!X16 -> 48795
A17: 11 | B17: 50 | C17: =試算表!O17 -> 120000 | D17: =試算表!P17 -> 47420 | F17: =試算表!S17 -> 253471 | G17: =試算表!T17 -> 71664 | H17: =試算表!W17 -> 133170 | I17: =試算表!X17 -> 49812
A18: 12 | B18: 51 | C18: =試算表!O18 -> 115000 | D18: =試算表!P18 -> 48350 | F18: =試算表!S18 -> 254143 | G18: =試算表!T18 -> 73772 | H18: =試算表!W18 -> 128699 | I18: =試算表!X18 -> 50854
A19: 13 | B19: 52 | C19: =試算表!O19 -> 110000 | D19: =試算表!P19 -> 49310 | F19: =試算表!S19 -> 254843 | G19: =試算表!T19 -> 75951 | H19: =試算表!W19 -> 124228 | I19: =試算表!X19 -> 51928
A20: 14 | B20: 53 | C20: =試算表!O20 -> 105000 | D20: =試算表!P20 -> 50310 | F20: =試算表!S20 -> 255568 | G20: =試算表!T20 -> 78207 | H20: =試算表!W20 -> 119758 | I20: =試算表!X20 -> 53045
A21: 15 | B21: 54 | C21: =試算表!O21 -> 100000 | D21: =試算表!P21 -> 51340 | F21: =試算表!S21 -> 261447 | G21: =試算表!T21 -> 80533 | H21: =試算表!W21 -> 115789 | I21: =試算表!X21 -> 54196
A22: 16 | B22: 55 | C22: =試算表!O22 -> 100000 | D22: =試算表!P22 -> 52370 | F22: =試算表!S22 -> 263129 | G22: =試算表!T22 -> 82896 | H22: =試算表!W22 -> 115918 | I22: =試算表!X22 -> 55350
A23: 17 | B23: 56 | C23: =試算表!O23 -> 100000 | D23: =試算表!P23 -> 53420 | F23: =試算表!S23 -> 264817 | G23: =試算表!T23 -> 85320 | H23: =試算表!W23 -> 116047 | I23: =試算表!X23 -> 56527
A24: 18 | B24: 57 | C24: =試算表!O24 -> 100000 | D24: =試算表!P24 -> 54490 | F24: =試算表!S24 -> 266512 | G24: =試算表!T24 -> 87807 | H24: =試算表!W24 -> 116176 | I24: =試算表!X24 -> 57728
A25: 19 | B25: 58 | C25: =試算表!O25 -> 100000 | D25: =試算表!P25 -> 55560 | F25: =試算表!S25 -> 268213 | G25: =試算表!T25 -> 90335 | H25: =試算表!W25 -> 116307 | I25: =試算表!X25 -> 58933
A26: 20 | B26: 59 | C26: =試算表!O26 -> 100000 | D26: =試算表!P26 -> 56650 | F26: =試算表!S26 -> 269922 | G26: =試算表!T26 -> 92926 | H26: =試算表!W26 -> 116436 | I26: =試算表!X26 -> 60161
A27: 21 | B27: 60 | C27: =試算表!O27 -> 100000 | D27: =試算表!P27 -> 57750 | F27: =試算表!S27 -> 275801 | G27: =試算表!T27 -> 95563 | H27: =試算表!W27 -> 116967 | I27: =試算表!X27 -> 61402
A28: 22 | B28: 61 | C28: =試算表!O28 -> 100000 | D28: =試算表!P28 -> 58850 | F28: =試算表!S28 -> 277534 | G28: =試算表!T28 -> 98244 | H28: =試算表!W28 -> 117097 | I28: =試算表!X28 -> 62647
A29: 23 | B29: 62 | C29: =試算表!O29 -> 100000 | D29: =試算表!P29 -> 59970 | F29: =試算表!S29 -> 279274 | G29: =試算表!T29 -> 100988 | H29: =試算表!W29 -> 117226 | I29: =試算表!X29 -> 63914
A30: 24 | B30: 63 | C30: =試算表!O30 -> 100000 | D30: =試算表!P30 -> 61090 | F30: =試算表!S30 -> 281020 | G30: =試算表!T30 -> 103776 | H30: =試算表!W30 -> 117356 | I30: =試算表!X30 -> 65187
A31: 25 | B31: 64 | C31: =試算表!O31 -> 100000 | D31: =試算表!P31 -> 62230 | F31: =試算表!S31 -> 282775 | G31: =試算表!T31 -> 106628 | H31: =試算表!W31 -> 117486 | I31: =試算表!X31 -> 66482
A32: 26 | B32: 65 | C32: =試算表!O32 -> 100000 | D32: =試算表!P32 -> 63360 | F32: =試算表!S32 -> 284535 | G32: =試算表!T32 -> 109503 | H32: =試算表!W32 -> 117615 | I32: =試算表!X32 -> 67769
A33: 27 | B33: 66 | C33: =試算表!O33 -> 100000 | D33: =試算表!P33 -> 64490 | F33: =試算表!S33 -> 286303 | G33: =試算表!T33 -> 112419 | H33: =試算表!W33 -> 117745 | I33: =試算表!X33 -> 69061
A34: 28 | B34: 67 | C34: =試算表!O34 -> 100000 | D34: =試算表!P34 -> 65630 | F34: =試算表!S34 -> 288078 | G34: =試算表!T34 -> 115417 | H34: =試算表!W34 -> 117876 | I34: =試算表!X34 -> 70368
A35: 29 | B35: 68 | C35: =試算表!O35 -> 100000 | D35: =試算表!P35 -> 66770 | F35: =試算表!S35 -> 289860 | G35: =試算表!T35 -> 119098 | H35: =試算表!W35 -> 118006 | I35: =試算表!X35 -> 71739
A36: 30 | B36: 69 | C36: =試算表!O36 -> 100000 | D36: =試算表!P36 -> 67900 | F36: =試算表!S36 -> 291649 | G36: =試算表!T36 -> 122866 | H36: =試算表!W36 -> 118136 | I36: =試算表!X36 -> 73109
A37: 31 | B37: 70 | C37: =試算表!O37 -> 100000 | D37: =試算表!P37 -> 69000 | F37: =試算表!S37 -> 293445 | G37: =試算表!T37 -> 126642 | H37: =試算表!W37 -> 118266 | I37: =試算表!X37 -> 74451
A38: 32 | B38: 71 | C38: =試算表!O38 -> 100000 | D38: =試算表!P38 -> 70100 | F38: =試算表!S38 -> 304876 | G38: =試算表!T38 -> 130478 | H38: =試算表!W38 -> 119302 | I38: =試算表!X38 -> 75797
A39: 33 | B39: =age+A39-1 -> 72 | C39: =試算表!O39 -> 100000 | D39: =試算表!P39 -> 71180 | F39: =試算表!S39 -> 306710 | G39: =試算表!T39 -> 134353 | H39: =試算表!W39 -> 119433 | I39: =試算表!X39 -> 77128
A40: 34 | B40: 73 | C40: =試算表!O40 -> 100000 | D40: =試算表!P40 -> 72260 | F40: =試算表!S40 -> 308553 | G40: =試算表!T40 -> 138286 | H40: =試算表!W40 -> 119564 | I40: =試算表!X40 -> 78464
A41: 35 | B41: 74 | C41: =試算表!O41 -> 100000 | D41: =試算表!P41 -> 73330 | F41: =試算表!S41 -> 310401 | G41: =試算表!T41 -> 142264 | H41: =試算表!W41 -> 119695 | I41: =試算表!X41 -> 79793
A42: 36 | B42: 75 | C42: =試算表!O42 -> 100000 | D42: =試算表!P42 -> 74400 | F42: =試算表!S42 -> 312258 | G42: =試算表!T42 -> 146302 | H42: =試算表!W42 -> 119825 | I42: =試算表!X42 -> 81127
A43: 37 | B43: 76 | C43: =試算表!O43 -> 100000 | D43: =試算表!P43 -> 75450 | F43: =試算表!S43 -> 314122 | G43: =試算表!T43 -> 150373 | H43: =試算表!W43 -> 119956 | I43: =試算表!X43 -> 82444
A44: 38 | B44: 77 | C44: =試算表!O44 -> 100000 | D44: =試算表!P44 -> 76480 | F44: =試算表!S44 -> 318165 | G44: =試算表!T44 -> 154472 | H44: =試算表!W44 -> 120288 | I44: =試算表!X44 -> 83745
A45: 39 | B45: 78 | C45: =試算表!O45 -> 100000 | D45: =試算表!P45 -> 77500 | F45: =試算表!S45 -> 322226 | G45: =試算表!T45 -> 158790 | H45: =試算表!W45 -> 120621 | I45: =試算表!X45 -> 85056
A46: 40 | B46: 79 | C46: =試算表!O46 -> 100000 | D46: =試算表!P46 -> 78500 | F46: =試算表!S46 -> 326305 | G46: =試算表!T46 -> 163214 | H46: =試算表!W46 -> 120954 | I46: =試算表!X46 -> 86358
A47: 41 | B47: 80 | C47: =試算表!O47 -> 100000 | D47: =試算表!P47 -> 79480 | F47: =試算表!S47 -> 330403 | G47: =試算表!T47 -> 167747 | H47: =試算表!W47 -> 121287 | I47: =試算表!X47 -> 87649
A48: 42 | B48: 81 | C48: =試算表!O48 -> 100000 | D48: =試算表!P48 -> 80440 | F48: =試算表!S48 -> 334520 | G48: =試算表!T48 -> 172492 | H48: =試算表!W48 -> 121619 | I48: =試算表!X48 -> 88941
A49: 43 | B49: 82 | C49: =試算表!O49 -> 100000 | D49: =試算表!P49 -> 81370 | F49: =試算表!S49 -> 338655 | G49: =試算表!T49 -> 177246 | H49: =試算表!W49 -> 121953 | I49: =試算表!X49 -> 90206
A50: 44 | B50: 83 | C50: =試算表!O50 -> 100000 | D50: =試算表!P50 -> 82290 | F50: =試算表!S50 -> 342809 | G50: =試算表!T50 -> 182230 | H50: =試算表!W50 -> 122287 | I50: =試算表!X50 -> 91480
A51: 45 | B51: 84 | C51: =試算表!O51 -> 100000 | D51: =試算表!P51 -> 83190 | F51: =試算表!S51 -> 346980 | G51: =試算表!T51 -> 187340 | H51: =試算表!W51 -> 122620 | I51: =試算表!X51 -> 92747
A52: 46 | B52: 85 | C52: =試算表!O52 -> 100000 | D52: =試算表!P52 -> 84070 | F52: =試算表!S52 -> 351172 | G52: =試算表!T52 -> 192581 | H52: =試算表!W52 -> 122954 | I52: =試算表!X52 -> 94006
A53: 47 | B53: 86 | C53: =試算表!O53 -> 100000 | D53: =試算表!P53 -> 84920 | F53: =試算表!S53 -> 355381 | G53: =試算表!T53 -> 198045 | H53: =試算表!W53 -> 123287 | I53: =試算表!X53 -> 95255
A54: 48 | B54: 87 | C54: =試算表!O54 -> 100000 | D54: =試算表!P54 -> 85740 | F54: =試算表!S54 -> 359609 | G54: =試算表!T54 -> 205235 | H54: =試算表!W54 -> 123622 | I54: =試算表!X54 -> 96634
A55: 49 | B55: 88 | C55: =試算表!O55 -> 100000 | D55: =試算表!P55 -> 86540 | F55: =試算表!S55 -> 363856 | G55: =試算表!T55 -> 212494 | H55: =試算表!W55 -> 123956 | I55: =試算表!X55 -> 97996
A56: 50 | B56: 89 | C56: =試算表!O56 -> 100000 | D56: =試算表!P56 -> 87310 | F56: =試算表!S56 -> 368124 | G56: =試算表!T56 -> 219816 | H56: =試算表!W56 -> 124290 | I56: =試算表!X56 -> 99336
A57: 51 | B57: 90 | C57: =試算表!O57 -> 100000 | D57: =試算表!P57 -> 88060 | F57: =試算表!S57 -> 372408 | G57: =試算表!T57 -> 227195 | H57: =試算表!W57 -> 124624 | I57: =試算表!X57 -> 100659
A58: 52 | B58: 91 | C58: =試算表!O58 -> 100000 | D58: =試算表!P58 -> 88770 | F58: =試算表!S58 -> 376713 | G58: =試算表!T58 -> 234594 | H58: =試算表!W58 -> 124960 | I58: =試算表!X58 -> 101945
A59: 53 | B59: 92 | C59: =試算表!O59 -> 100000 | D59: =試算表!P59 -> 89460 | F59: =試算表!S59 -> 381037 | G59: =試算表!T59 -> 242045 | H59: =試算表!W59 -> 125294 | I59: =試算表!X59 -> 103216
A60: 54 | B60: 93 | C60: =試算表!O60 -> 100000 | D60: =試算表!P60 -> 90120 | F60: =試算表!S60 -> 385380 | G60: =試算表!T60 -> 249533 | H60: =試算表!W60 -> 125629 | I60: =試算表!X60 -> 104460
A61: 55 | B61: 94 | C61: =試算表!O61 -> 100000 | D61: =試算表!P61 -> 90760 | F61: =試算表!S61 -> 389742 | G61: =試算表!T61 -> 257066 | H61: =試算表!W61 -> 125965 | I61: =試算表!X61 -> 105686
A62: 56 | B62: 95 | C62: =試算表!O62 -> 100000 | D62: =試算表!P62 -> 91370 | F62: =試算表!S62 -> 394124 | G62: =試算表!T62 -> 269815 | H62: =試算表!W62 -> 126300 | I62: =試算表!X62 -> 107348
A63: 57 | B63: 96 | C63: =試算表!O63 -> 100000 | D63: =試算表!P63 -> 91950 | F63: =試算表!S63 -> 398525 | G63: =試算表!T63 -> 282681 | H63: =試算表!W63 -> 126635 | I63: =試算表!X63 -> 108989
A64: 58 | B64: 97 | C64: =試算表!O64 -> 100000 | D64: =試算表!P64 -> 92500 | F64: =試算表!S64 -> 405229 | G64: =試算表!T64 -> 295654 | H64: =試算表!W64 -> 127174 | I64: =試算表!X64 -> 110607
A65: 59 | B65: 98 | C65: =試算表!O65 -> 100000 | D65: =試算表!P65 -> 93030 | F65: =試算表!S65 -> 411963 | G65: =試算表!T65 -> 308736 | H65: =試算表!W65 -> 127712 | I65: =試算表!X65 -> 112210
A66: 60 | B66: 99 | C66: =試算表!O66 -> 100000 | D66: =試算表!P66 -> 93530 | F66: =試算表!S66 -> 418729 | G66: =試算表!T66 -> 321904 | H66: =試算表!W66 -> 128251 | I66: =試算表!X66 -> 113791
A67: 61 | B67: 100 | C67: =試算表!O67 -> 100000 | D67: =試算表!P67 -> 94010 | F67: =試算表!S67 -> 425527 | G67: =試算表!T67 -> 335158 | H67: =試算表!W67 -> 128791 | I67: =試算表!X67 -> 115355
A68: 62 | B68: 101 | C68: =試算表!O68 -> 100000 | D68: =試算表!P68 -> 94450 | F68: =試算表!S68 -> 432356 | G68: =試算表!T68 -> 348477 | H68: =試算表!W68 -> 129330 | I68: =試算表!X68 -> 116883
A69: 63 | B69: 102 | C69: =試算表!O69 -> 100000 | D69: =試算表!P69 -> 94890 | F69: =試算表!S69 -> 439216 | G69: =試算表!T69 -> 361925 | H69: =試算表!W69 -> 129869 | I69: =試算表!X69 -> 118419
A70: 64 | B70: 103 | C70: =試算表!O70 -> 100000 | D70: =試算表!P70 -> 95320 | F70: =試算表!S70 -> 446107 | G70: =試算表!T70 -> 375514 | H70: =試算表!W70 -> 130409 | I70: =試算表!X70 -> 119952
A71: 65 | B71: =age+A71-1 -> 104 | C71: =試算表!O71 -> 100000 | D71: =試算表!P71 -> 95760 | F71: =試算表!S71 -> 453031 | G71: =試算表!T71 -> 389319 | H71: =試算表!W71 -> 130949 | I71: =試算表!X71 -> 121508
A72: 66 | B72: 105 | C72: =試算表!O72 -> 100000 | D72: =試算表!P72 -> 96240 | F72: =試算表!S72 -> 459986 | G72: =試算表!T72 -> 403481 | H72: =試算表!W72 -> 131489 | I72: =試算表!X72 -> 123127
A73: 67 | B73: 106 | C73: =試算表!O73 -> 100000 | D73: =試算表!P73 -> 96750 | F73: =試算表!S73 -> 466973 | G73: =試算表!T73 -> 417916 | H73: =試算表!W73 -> 132031 | I73: =試算表!X73 -> 124792
A74: 68 | B74: 107 | C74: =試算表!O74 -> 100000 | D74: =試算表!P74 -> 97340 | F74: =試算表!S74 -> 473992 | G74: =試算表!T74 -> 432919 | H74: =試算表!W74 -> 132571 | I74: =試算表!X74 -> 126574
A75: 69 | B75: 108 | C75: =試算表!O75 -> 100000 | D75: =試算表!P75 -> 98240 | F75: =試算表!S75 -> 481044 | G75: =試算表!T75 -> 461044 | H75: =試算表!W75 -> 133113 | I75: =試算表!X75 -> 129771
A76: 70 | B76: 109 | C76: =試算表!O76 -> 100000 | D76: =試算表!P76 -> 100000 | F76: =試算表!S76 -> 490282 | G76: =試算表!T76 -> 488128 | H76: =試算表!W76 -> 133840 | I76: =試算表!X76 -> 133654
A77: 71 | B77: 110 | C77: =試算表!O77 -> 100000 | D77: =試算表!P77 -> 100000 | F77: =試算表!S77 -> 491508 | G77: =試算表!T77 -> 491508 | H77: =試算表!W77 -> 133873 | I77: =試算表!X77 -> 133873
A78: 72 | B78: 111 | C78: =試算表!O78 ->  | D78: =試算表!P78 ->  | F78: =試算表!S78 ->  | G78: =試算表!T78 ->  | H78: =試算表!W78 ->  | I78: =試算表!X78 -> 
A79: 73 | B79: 112 | C79: =試算表!O79 ->  | D79: =試算表!P79 ->  | F79: =試算表!S79 ->  | G79: =試算表!T79 ->  | H79: =試算表!W79 ->  | I79: =試算表!X79 -> 
A80: 74 | B80: 113 | C80: =試算表!O80 ->  | D80: =試算表!P80 ->  | F80: =試算表!S80 ->  | G80: =試算表!T80 ->  | H80: =試算表!W80 ->  | I80: =試算表!X80 -> 
A81: 75 | B81: 114 | C81: =試算表!O81 ->  | D81: =試算表!P81 ->  | F81: =試算表!S81 ->  | G81: =試算表!T81 ->  | H81: =試算表!W81 ->  | I81: =試算表!X81 -> 
A82: 76 | B82: 115 | C82: =試算表!O82 ->  | D82: =試算表!P82 ->  | F82: =試算表!S82 ->  | G82: =試算表!T82 ->  | H82: =試算表!W82 ->  | I82: =試算表!X82 -> 
A83: 77 | B83: 116 | C83: =試算表!O83 ->  | D83: =試算表!P83 ->  | F83: =試算表!S83 ->  | G83: =試算表!T83 ->  | H83: =試算表!W83 ->  | I83: =試算表!X83 -> 
A84: 78 | B84: 117 | C84: =試算表!O84 ->  | D84: =試算表!P84 ->  | F84: =試算表!S84 ->  | G84: =試算表!T84 ->  | H84: =試算表!W84 ->  | I84: =試算表!X84 -> 
A85: 79 | B85: 118 | C85: =試算表!O85 ->  | D85: =試算表!P85 ->  | F85: =試算表!S85 ->  | G85: =試算表!T85 ->  | H85: =試算表!W85 ->  | I85: =試算表!X85 -> 
A86: 80 | B86: 119 | C86: =試算表!O86 ->  | D86: =試算表!P86 ->  | F86: =試算表!S86 ->  | G86: =試算表!T86 ->  | H86: =試算表!W86 ->  | I86: =試算表!X86 -> 
A87: 81 | B87: 120 | C87: =試算表!O87 ->  | D87: =試算表!P87 ->  | F87: =試算表!S87 ->  | G87: =試算表!T87 ->  | H87: =試算表!W87 ->  | I87: =試算表!X87 -> 
A88: 82 | B88: 121 | C88: =試算表!O88 ->  | D88: =試算表!P88 ->  | F88: =試算表!S88 ->  | G88: =試算表!T88 ->  | H88: =試算表!W88 ->  | I88: =試算表!X88 -> 
A89: 83 | B89: 122 | C89: =試算表!O89 ->  | D89: =試算表!P89 ->  | F89: =試算表!S89 ->  | G89: =試算表!T89 ->  | H89: =試算表!W89 ->  | I89: =試算表!X89 -> 
A90: 84 | B90: 123 | C90: =試算表!O90 ->  | D90: =試算表!P90 ->  | F90: =試算表!S90 ->  | G90: =試算表!T90 ->  | H90: =試算表!W90 ->  | I90: =試算表!X90 -> 
A91: 85 | B91: 124 | C91: =試算表!O91 ->  | D91: =試算表!P91 ->  | F91: =試算表!S91 ->  | G91: =試算表!T91 ->  | H91: =試算表!W91 ->  | I91: =試算表!X91 -> 
A92: 86 | B92: 125 | C92: =試算表!O92 ->  | D92: =試算表!P92 ->  | F92: =試算表!S92 ->  | G92: =試算表!T92 ->  | H92: =試算表!W92 ->  | I92: =試算表!X92 -> 
A93: 87 | B93: 126 | C93: =試算表!O93 ->  | D93: =試算表!P93 ->  | F93: =試算表!S93 ->  | G93: =試算表!T93 ->  | H93: =試算表!W93 ->  | I93: =試算表!X93 -> 
A94: 88 | B94: 127 | C94: =試算表!O94 ->  | D94: =試算表!P94 ->  | F94: =試算表!S94 ->  | G94: =試算表!T94 ->  | H94: =試算表!W94 ->  | I94: =試算表!X94 -> 
A95: 89 | B95: 128 | C95: =試算表!O95 ->  | D95: =試算表!P95 ->  | F95: =試算表!S95 ->  | G95: =試算表!T95 ->  | H95: =試算表!W95 ->  | I95: =試算表!X95 -> 
A96: 90 | B96: 129 | C96: =試算表!O96 ->  | D96: =試算表!P96 ->  | F96: =試算表!S96 ->  | G96: =試算表!T96 ->  | H96: =試算表!W96 ->  | I96: =試算表!X96 -> 
A97: 91 | B97: 130 | C97: =試算表!O97 ->  | D97: =試算表!P97 ->  | F97: =試算表!S97 ->  | G97: =試算表!T97 ->  | H97: =試算表!W97 ->  | I97: =試算表!X97 -> 
A98: 92 | B98: 131 | C98: =試算表!O98 ->  | D98: =試算表!P98 ->  | F98: =試算表!S98 ->  | G98: =試算表!T98 ->  | H98: =試算表!W98 ->  | I98: =試算表!X98 -> 
A99: 93 | B99: 132 | C99: =試算表!O99 ->  | D99: =試算表!P99 ->  | F99: =試算表!S99 ->  | G99: =試算表!T99 ->  | H99: =試算表!W99 ->  | I99: =試算表!X99 -> 
A100: 94 | B100: 133 | C100: =試算表!O100 ->  | D100: =試算表!P100 ->  | F100: =試算表!S100 ->  | G100: =試算表!T100 ->  | H100: =試算表!W100 ->  | I100: =試算表!X100 -> 
A101: 95 | B101: 134 | C101: =試算表!O101 ->  | D101: =試算表!P101 ->  | F101: =試算表!S101 ->  | G101: =試算表!T101 ->  | H101: =試算表!W101 ->  | I101: =試算表!X101 -> 
A102: 96 | B102: 135 | C102: =試算表!O102 ->  | D102: =試算表!P102 ->  | F102: =試算表!S102 ->  | G102: =試算表!T102 ->  | H102: =試算表!W102 ->  | I102: =試算表!X102 -> 
A103: 97 | B103: =age+A103-1 -> 136 | C103: =試算表!O103 ->  | D103: =試算表!P103 ->  | F103: =試算表!S103 ->  | G103: =試算表!T103 ->  | H103: =試算表!W103 ->  | I103: =試算表!X103 -> 
A104: 98 | B104: 137 | C104: =試算表!O104 ->  | D104: =試算表!P104 ->  | F104: =試算表!S104 ->  | G104: =試算表!T104 ->  | H104: =試算表!W104 ->  | I104: =試算表!X104 -> 
A105: 99 | B105: 138 | C105: =試算表!O105 ->  | D105: =試算表!P105 ->  | F105: =試算表!S105 ->  | G105: =試算表!T105 ->  | H105: =試算表!W105 ->  | I105: =試算表!X105 -> 
A106: 100 | B106: 139 | C106: =試算表!O106 ->  | D106: =試算表!P106 ->  | F106: =試算表!S106 ->  | G106: =試算表!T106 ->  | H106: =試算表!W106 ->  | I106: =試算表!X106 -> 
A107: 101 | B107: 140 | C107: =試算表!O107 ->  | D107: =試算表!P107 ->  | F107: =試算表!S107 ->  | G107: =試算表!T107 ->  | H107: =試算表!W107 ->  | I107: =試算表!X107 -> 
A108: 102 | B108: 141 | C108: =試算表!O108 ->  | D108: =試算表!P108 ->  | F108: =試算表!S108 ->  | G108: =試算表!T108 ->  | H108: =試算表!W108 ->  | I108: =試算表!X108 -> 
A109: 103 | B109: 142 | C109: =試算表!O109 ->  | D109: =試算表!P109 ->  | F109: =試算表!S109 ->  | G109: =試算表!T109 ->  | H109: =試算表!W109 ->  | I109: =試算表!X109 -> 
A110: 104 | B110: 143 | C110: =試算表!O110 ->  | D110: =試算表!P110 ->  | F110: =試算表!S110 ->  | G110: =試算表!T110 ->  | H110: =試算表!W110 ->  | I110: =試算表!X110 -> 
A111: 105 | B111: 144 | C111: =試算表!O111 ->  | D111: =試算表!P111 ->  | F111: =試算表!S111 ->  | G111: =試算表!T111 ->  | H111: =試算表!W111 ->  | I111: =試算表!X111 -> 
A112: 106 | B112: 145 | C112: =試算表!O112 ->  | D112: =試算表!P112 ->  | F112: =試算表!S112 ->  | G112: =試算表!T112 ->  | H112: =試算表!W112 ->  | I112: =試算表!X112 -> 
A113: 107 | B113: 146 | C113: =試算表!O113 ->  | D113: =試算表!P113 ->  | F113: =試算表!S113 ->  | G113: =試算表!T113 ->  | H113: =試算表!W113 ->  | I113: =試算表!X113 -> 
A114: 108 | B114: 147 | C114: =試算表!O114 ->  | D114: =試算表!P114 ->  | F114: =試算表!S114 ->  | G114: =試算表!T114 ->  | H114: =試算表!W114 ->  | I114: =試算表!X114 -> 
A115: 109 | B115: 148 | C115: =試算表!O115 ->  | D115: =試算表!P115 ->  | F115: =試算表!S115 ->  | G115: =試算表!T115 ->  | H115: =試算表!W115 ->  | I115: =試算表!X115 -> 
A116: 110 | B116: 149 | C116: =試算表!O116 ->  | D116: =試算表!P116 ->  | F116: =試算表!S116 ->  | G116: =試算表!T116 ->  | H116: =試算表!W116 ->  | I116: =試算表!X116 -> 

Sheet 保費明細表
A1: 保費明細表 | K1: ="列印日期："&YEAR(TODAY())-1911&"/"&RIGHT("0"&MONTH(TODAY()),2)&"/"&RIGHT("0"&DAY(TODAY()),2) -> 列印日期：114/06/26
B4: 姓名 | D4: 關係 | F4: 性別 | H4: 出生年月日 | J4: 起保年齡 | M4: 回資料輸入
B5: =IF(總檢核,要保人姓名,"") -> 貴保戶 | D5: =IF(總檢核,"要保人","") -> 要保人 | F5: =IF(總檢核,IF(要保人身分="與被保險人為「同一人」",被保人性別,要保人性別),"") -> 男 | H5: =IF(總檢核,IF(要保人身分="與被保險人為「同一人」",H6,IF(AND(ISNUMBER(要保人保險年齡),要保人日月檢核),LEFT(要保人生日6碼,LEN(要保人生日6碼)-4) & "/" & MID(要保人生日6碼,LEN(LEFT(要保人生日6碼,LEN(要保人生日6碼)-4))+1,2) & "/" & RIGHT(要保人生日6碼,2),"")),"") -> 74/07/01 | J5: =IF(總檢核,IF(要保人身分="與被保險人為「同一人」",J6,IF(AND(ISNUMBER(要保人保險年齡),要保人日月檢核),要保人保險年齡,"")),"") -> 40
B6: =IF(總檢核,被保人,"") -> 貴保戶 | D6: =IF(總檢核,"被保險人","") -> 被保險人 | F6: =IF(總檢核,被保人性別,"") -> 男 | H6: =IF(總檢核,IF(ISERROR(被保人保險年齡),"",IF(被保人日月檢核,LEFT(被保人生日6碼,LEN(被保人生日6碼)-4) & "/" & MID(被保人生日6碼,LEN(LEFT(被保人生日6碼,LEN(被保人生日6碼)-4))+1,2) & "/" & RIGHT(被保人生日6碼,2),"")),"") -> 74/07/01 | J6: =IF(總檢核,IF(ISERROR(被保人保險年齡),"",IF(被保人日月檢核,被保人保險年齡,"")),"") -> 40
K8: ="(單位："&幣別&"/元)" -> (單位：美元/元)
A9: 險種名稱(代號) | C9: 關係 | D9: 姓名 | E9: 保額(計劃) | G9: 繳別 | I9: 原始保費
A10: =IF(總檢核,REPT("0",2-LEN(payterm))&payterm&商品代碼,"") -> 06ARLPLU42 | C10: =IF(總檢核,"被保險人","") -> 被保險人 | D10: =IF(總檢核,被保人,"") -> 貴保戶 | E10: =IF(總檢核,TEXT(主約保險金額,"#,##0")&"元","") -> 100,000元 | G10: =IF(總檢核,繳別,"") -> 年繳 | I10: =IF(總檢核,ROUND(首期表定保費,0),"") -> 10190
A11: =IF(總檢核,商品名稱,"") -> 保誠人壽美滿相傳外幣終身壽險(113)(定期給付型)
A13: =IF(AND(總檢核,ADDNTR2檢核),IF(ADDNTR2附約保額<>"",ADDNTR2商品代碼,""),"") ->  | C13: =IF(AND(總檢核,ADDNTR2檢核),IF(ADDNTR2附約保額<>"","被保險人",""),"") ->  | D13: =IF(AND(總檢核,ADDNTR2檢核),IF(ADDNTR2附約保額<>"",被保人,""),"") ->  | E13: =IF(AND(總檢核,ADDNTR2檢核),IF(ADDNTR2附約保額,TEXT(ADDNTR2附約保額,"#,##0")&"元",""),"") ->  | G13: =IF(AND(總檢核,ADDNTR2檢核),IF(ADDNTR2附約保額<>"",繳別,""),"") ->  | I13: =IF(AND(總檢核,ADDNTR2檢核),IF(ADDNTR2附約保額<>"",ROUND(ADDNTR2_首期表定保費,0),""),"") -> 
A14: =IF(AND(總檢核,ADDNTR2檢核),IF(ADDNTR2附約保額<>"",ADDNTR2商品名稱,""),"") -> 
A15: =IF(AND(總檢核,BNLTRU1檢核),IF(AND(BNLTRU1附約年期<>"",BNLTRU1附約保額<>""),TEXT(BNLTRU1附約年期,"00")&BNLTRU1商品代碼,""),"") ->  | C15: =IF(AND(總檢核,BNLTRU1檢核),IF(AND(BNLTRU1附約年期<>"",BNLTRU1附約保額<>""),"被保險人",""),"") ->  | D15: =IF(AND(總檢核,BNLTRU1檢核),IF(AND(BNLTRU1附約年期<>"",BNLTRU1附約保額<>""),被保人,""),"") ->  | E15: =IF(AND(總檢核,BNLTRU1檢核),IF(AND(BNLTRU1附約年期<>"",BNLTRU1附約保額<>""),TEXT(BNLTRU1附約保額,"#,##0")&"元",""),"") ->  | G15: =IF(AND(總檢核,BNLTRU1檢核),IF(AND(BNLTRU1附約年期<>"",BNLTRU1附約保額<>""),繳別,""),"") ->  | I15: =IF(AND(總檢核,BNLTRU1檢核),IF(AND(BNLTRU1附約年期<>"",BNLTRU1附約保額<>""),ROUND(BNLTRU1_首期表定保費,0),""),"") -> 
A16: =IF(AND(總檢核,BNLTRU1檢核),IF(AND(BNLTRU1附約年期<>"",BNLTRU1附約保額<>""),BNLTRU1商品名稱,""),"") -> 
A18: =IF(AND(總檢核,豁免附約檢核),IF(AND(豁免附約一是否附加="附加",豁免附約一=BWPNTR1商品名稱),TEXT(BWPNTR1年期,"00")&BWPNTR1商品代碼,IF(AND(豁免附約一是否附加="附加",豁免附約一=BWPNTR2商品名稱),TEXT(BWPNTR2年期,"00")&BWPNTR2商品代碼,IF(AND(豁免附約二是否附加="附加",豁免附約二=BWPNTR3商品名稱),TEXT(BWPNTR3年期,"00")&BWPNTR3商品代碼,IF(AND(豁免附約二是否附加="附加",豁免附約二=BWPNTR4商品名稱),TEXT(BWPNTR4年期,"00")&BWPNTR4商品代碼,"")))),"") ->  | C18: =IF(AND(總檢核,豁免附約檢核),IF(AND(豁免附約一是否附加="附加",豁免附約一=BWPNTR1商品名稱),"要保人",IF(AND(豁免附約一是否附加="附加",豁免附約一=BWPNTR2商品名稱),"要保人",IF(AND(豁免附約二是否附加="附加",豁免附約二=BWPNTR3商品名稱),"要保人",IF(AND(豁免附約二是否附加="附加",豁免附約二=BWPNTR4商品名稱),"要保人","")))),"") ->  | D18: =IF(AND(總檢核,豁免附約檢核),IF(AND(豁免附約一是否附加="附加",豁免附約一=BWPNTR1商品名稱),要保人姓名,IF(AND(豁免附約一是否附加="附加",豁免附約一=BWPNTR2商品名稱),要保人姓名,IF(AND(豁免附約二是否附加="附加",豁免附約二=BWPNTR3商品名稱),要保人姓名,IF(AND(豁免附約二是否附加="附加",豁免附約二=BWPNTR4商品名稱),要保人姓名,"")))),"") ->  | E18: =IF(AND(總檢核,豁免附約檢核),IF(AND(豁免附約一是否附加="附加",豁免附約一=BWPNTR1商品名稱),"**",IF(AND(豁免附約一是否附加="附加",豁免附約一=BWPNTR2商品名稱),"**",IF(AND(豁免附約二是否附加="附加",豁免附約二=BWPNTR3商品名稱),"**",IF(AND(豁免附約二是否附加="附加",豁免附約二=BWPNTR4商品名稱),"**","")))),"") ->  | G18: =IF(AND(總檢核,豁免附約檢核),IF(AND(豁免附約一是否附加="附加",豁免附約一=BWPNTR1商品名稱),繳別,IF(AND(豁免附約一是否附加="附加",豁免附約一=BWPNTR2商品名稱),繳別,IF(AND(豁免附約二是否附加="附加",豁免附約二=BWPNTR3商品名稱),繳別,IF(AND(豁免附約二是否附加="附加",豁免附約二=BWPNTR4商品名稱),繳別,"")))),"") ->  | I18: =IF(AND(總檢核,豁免附約檢核),IF(AND(豁免附約一是否附加="附加",豁免附約一=BWPNTR1商品名稱),BWPNTR1_首期表定保費,IF(AND(豁免附約一是否附加="附加",豁免附約一=BWPNTR2商品名稱),BWPNTR2_首期表定保費,IF(AND(豁免附約二是否附加="附加",豁免附約二=BWPNTR3商品名稱),BWPNTR3_首期表定保費,IF(AND(豁免附約二是否附加="附加",豁免附約二=BWPNTR4商品名稱),BWPNTR4_首期表定保費,"")))),"") -> 
A19: =IF(AND(總檢核,豁免附約檢核),IF(AND(豁免附約一是否附加="附加",豁免附約一=BWPNTR1商品名稱),BWPNTR1商品名稱,IF(AND(豁免附約一是否附加="附加",豁免附約一=BWPNTR2商品名稱),BWPNTR2商品名稱,IF(AND(豁免附約二是否附加="附加",豁免附約二=BWPNTR3商品名稱),BWPNTR3商品名稱,IF(AND(豁免附約二是否附加="附加",豁免附約二=BWPNTR4商品名稱),BWPNTR4商品名稱,"")))),"") -> 
A21: ="合計："&COUNTIF($G9:$H20,"*繳")&"筆" -> 合計：1筆 | H21: 上列主契約及附約每期原始保險費合計 | I21: =SUM(I10:K20) -> 10190
H22: 上列主契約及附約每期折扣後保險費合計 | I22: =IF(總檢核,(高保費折扣後保費_主約使用+SUM(I11:K20))*(1-首期繳費折扣),0) -> 10037.61
A24: ※ | B24: 「主契約及附約每期折扣後保險費」已考量高保費、繳費折扣及集體彙繳折扣條件(若有)試算得出，為四捨五入至整數後之數值，僅供參考，實際金額以公司核保結果及客戶實際繳費方式為準。
A25: ※ | B25: 主約繳費期滿後，附約如欲持續有效，仍需繳交附約保險費。若保險期間另有約定者不適用。
A26: ** | B26: 如有附加豁免保險費附約，其保額為上述主契約(已考量高保費折扣)及附加於主契約之其他附約之保費，但不含豁免保險費附約之保費。

Sheet 建議書
AN1: ="列印日期："&YEAR(TODAY())-1911&"/"&RIGHT("0"&MONTH(TODAY()),2)&"/"&RIGHT("0"&DAY(TODAY()),2) -> 列印日期：114/06/26
A3: 商品備查文號：民國113年05月13日保誠總字第1130546號
A4: 商品備查文號：民國114年01月01日保誠總字第1140017號
A5: =商品名稱&"建議書" -> 保誠人壽美滿相傳外幣終身壽險(113)(定期給付型)建議書
A7: =IF(總檢核,IF(BNLTRU1_原始保費=0,"","●"),"") ->  | B7: =IF(總檢核,IF(BNLTRU1_原始保費=0,"","主約："&商品名稱),"") ->  | AP7: 回資料輸入
B8: =IF(總檢核,IF(BNLTRU1_原始保費=0,"要保人："&要保人_顯示,"保額："&保額_顯示),"要保人：") -> 要保人：貴保戶 君 | J8: =IF(總檢核,IF(BNLTRU1_原始保費=0,"被保險人："&被保人_顯示,"每期原始保費："&每期原始保費_顯示),"被保險人：") -> 被保險人：貴保戶 君 | S8: =IF(總檢核,IF(BNLTRU1_原始保費=0,"被保險人性別/年齡："&被保人性別年齡_顯示,"每期折扣後保費："&每期折扣後保費_顯示),"被保險人性別/年齡：") -> 被保險人性別/年齡：男/40歲 | AB8: =IF(總檢核,"保障期間："&保障年期_顯示,"保障期間：") -> 保障期間：達110歲之保單週年日 | AL8: =IF(總檢核,"年期："&繳費年期_顯示,"年期：") -> 年期：6年
A9: =IF(總檢核,IF(BNLTRU1_原始保費=0,"","●"),"") ->  | B9: =IF(總檢核,IF(BNLTRU1_原始保費=0,"",IF(BNLTRU1_SA=0,"","附約："&BNLTRU1商品名稱)),"") -> 
B10: =IF(總檢核,IF(BNLTRU1_SA=0,"保額："&保額_顯示,"保額："&TEXT(BNLTRU1_SA*10,"#,##0")&"仟元"&"("&幣別&")"),"保額：") -> 保額：100,000元(美元) | J10: =IF(總檢核,IF(BNLTRU1_SA=0,"每期原始保費："&每期原始保費_顯示,"每期原始保費："&TEXT(BNLTRU1_首期表定保費,"#,##0")&"元"),"每期原始保費：") -> 每期原始保費：10,190元 | S10: =IF(總檢核,IF(BNLTRU1_原始保費=0,"每期折扣後保費："&每期折扣後保費_顯示,"每期折扣後保費："&TEXT(BNLTRU1_首期折扣後保費,"#,##0")&"元"),"每期折扣後保費：") -> 每期折扣後保費：10,038元 | AB10: =IF(總檢核,IF(BNLTRU1_SA=0,"","保障期間："&BNLTRU1年期&"年"),"") ->  | AL10: =IF(總檢核,IF(BNLTRU1_原始保費=0,"","年期："&BNLTRU1年期&"年"),"") -> 
B11: =IF(總檢核,IF(BNLTRU1_SA=0,"","要保人："&要保人_顯示),"") ->  | J11: =IF(總檢核,IF(BNLTRU1_原始保費=0,"","被保險人："&被保人_顯示),"") ->  | S11: =IF(總檢核,IF(BNLTRU1_SA=0,"","被保險人性別/年齡："&被保人性別年齡_顯示),"") -> 
B12: =IF(總檢核,"繳別："&繳別_顯示,"繳別：") -> 繳別：年繳 | J12: =IF(總檢核,IF(BNLTRU1_SA=0,"高保費折扣："&高保費折扣_顯示,IF(高保費折扣率=0,"","主約高保費折扣："&高保費折扣_顯示)),"高保費折扣：") -> 高保費折扣：0.5% | S12: =IF(總檢核,"首期/續期繳費折扣："&繳費折扣_顯示,"首期/續期繳費折扣：") -> 首期/續期繳費折扣：1%
A14: * | B14: 本保險為英式分紅保險單，保單紅利為「增額分紅保額」及「額外分紅保額」– 保單紅利部分非本保險單之保證給付項目，保誠人壽不保證其給付金額(保額)。
A15: * | B15: 本建議書係銷售人員於銷售過程提供予要保人參考，當建議書所列投保資料與要保書填寫不同時，試算金額也會隨之異動，詳細金額仍須以要保書/保單首頁填寫內容為準。
A16: ="商品利益說明_以假設"&$AS$16&"分紅為例" -> 商品利益說明_以假設中分紅為例 | AN16: ="(單位："&幣別&"/元)" -> (單位：美元/元) | AR16: 選擇分紅 | AS16: 中
Q18: ="非保證給付項目"&"(假設"&$AS$16&"分紅)" -> 非保證給付項目(假設中分紅)
A19: 年度 | C19: 年齡 | E19: 折扣後 當年度 所繳保險費 | H19: 折扣後 累計 所繳保險費 | K19: 當年度末 壽險保障 | N19: 當年度末 解約金 /祝壽保險金 | Q19: 假設紅利 | AI19: 當年度末 壽險保障 及假設紅利_ 分紅保額 | AL19: 當年度末 可能領取 解約金總和 | AO19: (A+D+E)/ 折扣後累計 所繳保險費 (單位：%) | AP19: (B+G+H)/ 折扣後累計 所繳保險費 (單位：%)
Q20: 分紅保額 | Z20: 分紅保額解約金
Q21: 當年度末 增額 分紅保額 | T21: 累積 已分配增額 分紅保額 | W21: 長青額外 分紅保額 | Z21: 當年度末 增額 分紅保額 | AC21: 累積 已分配增額 分紅保額 | AF21: 長青解約額外 分紅保額
Q22: (預估值) | T22: (預估值) | W22: (預估值) | Z22: (預估值) | AC22: (預估值) | AF22: (預估值) | AI22: (預估值) | AL22: (預估值)
K23: A | N23: B | Q23: C | T23: D | W23: E | Z23: F | AC23: G | AF23: H | AI23: A + D + E | AL23: B + G + H
A24: 1 | C24: =IF(總檢核,IF(age+A24-1>=被保人最大保險年齡,"",age+A24-1), "") -> 40 | E24: =IF(總檢核,IF(age+A24-1=被保人最大保險年齡,"***以下空白***",IF(age+A24-1>被保人最大保險年齡,"",試算表!D7+IF(美滿定期附約!C3<>"",美滿定期附約!C3,0))), "") -> 10038 | H24: =IF(總檢核,IF(age+A24-1=被保人最大保險年齡,"",IF(age+A24-1>被保人最大保險年齡,"",試算表!E7+IF(美滿定期附約!D3<>"",美滿定期附約!D3,0))), "") -> 10038 | K24: =IF(總檢核,IF(age+A24-1>=被保人最大保險年齡,"",VLOOKUP($A24,試算表!$B$7:$AP$116,6,FALSE)+IF(美滿定期附約!E3<>"",美滿定期附約!E3,0)),"") -> 100000 | N24: =IF(總檢核,IF(age+A24-1>=被保人最大保險年齡,"",試算表!I7+IF(美滿定期附約!F3<>"",美滿定期附約!F3,0)), "") -> 3340 | Q24: =IF(AND(總檢核,BNLTRU1檢核),IF(age+A24-1>=被保人最大保險年齡,"",IF(C24>喪葬費用檢核年齡, IF($AS$16="無",試算表!Y7, IF($AS$16="中",試算表!Z7,試算表!AA7)), IF(被保人足歲年齡>=喪葬費用檢核年齡,IF($AS$16="無",試算表!Y7,IF($AS$16="中",試算表!Z7,試算表!AA7)),"*****"))),"") -> 0 | T24: =IF(AND(總檢核,BNLTRU1檢核),IF(age+A24-1>=被保人最大保險年齡,"",IF(C24>喪葬費用檢核年齡, IF($AS$16="無",試算表!AB7, IF($AS$16="中",試算表!AC7,試算表!AD7)), IF(被保人足歲年齡>=喪葬費用檢核年齡,IF($AS$16="無",試算表!AB7,IF($AS$16="中",試算表!AC7,試算表!AD7)),"*****"))),"") -> 0 | W24: =IF(AND(總檢核,BNLTRU1檢核),IF(age+A24-1>=被保人最大保險年齡,"",IF(C24>喪葬費用檢核年齡, IF($AS$16="無",試算表!AE7, IF($AS$16="中",試算表!AF7,試算表!AG7)), IF(被保人足歲年齡>=喪葬費用檢核年齡,IF($AS$16="無",試算表!AE7,IF($AS$16="中",試算表!AF7,試算表!AG7)),"*****"))),"") -> 0 | Z24: =IF(總檢核,IF(age+A24-1>=被保人最大保險年齡,"", IF($AS$16="無",試算表!AH7, IF($AS$16="中",試算表!AI7,試算表!AJ7))), "") -> 0 | AC24: =IF(總檢核,IF(age+A24-1>=被保人最大保險年齡,"", IF($AS$16="無",試算表!AK7, IF($AS$16="中",試算表!AL7,試算表!AM7))), "") -> 0 | AF24: =IF(總檢核,IF(age+A24-1>=被保人最大保險年齡,"", IF($AS$16="無",試算表!AN7, IF($AS$16="中",試算表!AO7,試算表!AP7))), "") -> 0 | AI24: =IF(AND(總檢核,BNLTRU1檢核),IF(age+A24-1>=被保人最大保險年齡,"",IF(C24>喪葬費用檢核年齡, IF($AS$16="無",試算表!O7, IF($AS$16="中",試算表!S7, IF($AS$16="",試算表!S7,試算表!W7)))+IF(美滿定期附約!E3<>"",美滿定期附約!E3,0),IF(被保人足歲年齡>=喪葬費用檢核年齡, IF($AS$16="無",試算表!O7, IF($AS$16="中",試算表!S7, IF($AS$16="",試算表!S7,試算表!W7)))+IF(美滿定期附約!E3<>"",美滿定期附約!E3,0),"*****"))),"") -> 100000 | AL24: =IF(總檢核,IF(age+A24-1>=被保人最大保險年齡,"", IF($AS$16="無",試算表!P7, IF($AS$16="中",試算表!T7, IF($AS$16="",試算表!T7,試算表!X7)))+IF(美滿定期附約!F3<>"",美滿定期附約!F3,0)), "") -> 3340 | AO24: =IF(總檢核,IF(age+$A24-1>=被保人最大保險年齡,"",IF(OR($AI24="",$AI24=0),"",IF($C24>喪葬費用檢核年齡,ROUND($AI24/$H24,4),IF(被保人足歲年齡>=喪葬費用檢核年齡,ROUND($AI24/$H24,4),"*****")))),"") -> 9.9621 | AP24: =IF(總檢核,IF(age+$A24-1>=被保人最大保險年齡,"",IF(OR($AL24="",$AL24=0),"",ROUND($AL24/$H24,4))),"") -> 0.3327
A25: 2 | C25: 41 | E25: =IF(總檢核,IF(age+A25-1=被保人最大保險年齡,"***以下空白***",IF(age+A25-1>被保人最大保險年齡,"",試算表!D8+IF(美滿定期附約!C4<>"",美滿定期附約!C4,0))), "") -> 10038 | H25: =IF(總檢核,IF(age+A25-1=被保人最大保險年齡,"",IF(age+A25-1>被保人最大保險年齡,"",試算表!E8+IF(美滿定期附約!D4<>"",美滿定期附約!D4,0))), "") -> 20076 | K25: =IF(總檢核,IF(age+A25-1>=被保人最大保險年齡,"",VLOOKUP($A25,試算表!$B$7:$AP$116,6,FALSE)+IF(美滿定期附約!E4<>"",美滿定期附約!E4,0)),"") -> 100000 | N25: =IF(總檢核,IF(age+A25-1>=被保人最大保險年齡,"",試算表!I8+IF(美滿定期附約!F4<>"",美滿定期附約!F4,0)), "") -> 8890 | Q25: =IF(AND(總檢核,BNLTRU1檢核),IF(age+A25-1>=被保人最大保險年齡,"",IF(C25>喪葬費用檢核年齡, IF($AS$16="無",試算表!Y8, IF($AS$16="中",試算表!Z8,試算表!AA8)), IF(被保人足歲年齡>=喪葬費用檢核年齡,IF($AS$16="無",試算表!Y8,IF($AS$16="中",試算表!Z8,試算表!AA8)),"*****"))),"") -> 0 | T25: =IF(AND(總檢核,BNLTRU1檢核),IF(age+A25-1>=被保人最大保險年齡,"",IF(C25>喪葬費用檢核年齡, IF($AS$16="無",試算表!AB8, IF($AS$16="中",試算表!AC8,試算表!AD8)), IF(被保人足歲年齡>=喪葬費用檢核年齡,IF($AS$16="無",試算表!AB8,IF($AS$16="中",試算表!AC8,試算表!AD8)),"*****"))),"") -> 0 | W25: =IF(AND(總檢核,BNLTRU1檢核),IF(age+A25-1>=被保人最大保險年齡,"",IF(C25>喪葬費用檢核年齡, IF($AS$16="無",試算表!AE8, IF($AS$16="中",試算表!AF8,試算表!AG8)), IF(被保人足歲年齡>=喪葬費用檢核年齡,IF($AS$16="無",試算表!AE8,IF($AS$16="中",試算表!AF8,試算表!AG8)),"*****"))),"") -> 0 | Z25: =IF(總檢核,IF(age+A25-1>=被保人最大保險年齡,"", IF($AS$16="無",試算表!AH8, IF($AS$16="中",試算表!AI8,試算表!AJ8))), "") -> 0 | AC25: =IF(總檢核,IF(age+A25-1>=被保人最大保險年齡,"", IF($AS$16="無",試算表!AK8, IF($AS$16="中",試算表!AL8,試算表!AM8))), "") -> 0 | AF25: =IF(總檢核,IF(age+A25-1>=被保人最大保險年齡,"", IF($AS$16="無",試算表!AN8, IF($AS$16="中",試算表!AO8,試算表!AP8))), "") -> 0 | AI25: =IF(AND(總檢核,BNLTRU1檢核),IF(age+A25-1>=被保人最大保險年齡,"",IF(C25>喪葬費用檢核年齡, IF($AS$16="無",試算表!O8, IF($AS$16="中",試算表!S8, IF($AS$16="",試算表!S8,試算表!W8)))+IF(美滿定期附約!E4<>"",美滿定期附約!E4,0),IF(被保人足歲年齡>=喪葬費用檢核年齡, IF($AS$16="無",試算表!O8, IF($AS$16="中",試算表!S8, IF($AS$16="",試算表!S8,試算表!W8)))+IF(美滿定期附約!E4<>"",美滿定期附約!E4,0),"*****"))),"") -> 100000 | AL25: =IF(總檢核,IF(age+A25-1>=被保人最大保險年齡,"", IF($AS$16="無",試算表!P8, IF($AS$16="中",試算表!T8, IF($AS$16="",試算表!T8,試算表!X8)))+IF(美滿定期附約!F4<>"",美滿定期附約!F4,0)), "") -> 8890 | AO25: 4.9811 | AP25: 0.4428
A26: 3 | C26: 42 | E26: =IF(總檢核,IF(age+A26-1=被保人最大保險年齡,"***以下空白***",IF(age+A26-1>被保人最大保險年齡,"",試算表!D9+IF(美滿定期附約!C5<>"",美滿定期附約!C5,0))), "") -> 10038 | H26: =IF(總檢核,IF(age+A26-1=被保人最大保險年齡,"",IF(age+A26-1>被保人最大保險年齡,"",試算表!E9+IF(美滿定期附約!D5<>"",美滿定期附約!D5,0))), "") -> 30114 | K26: =IF(總檢核,IF(age+A26-1>=被保人最大保險年齡,"",VLOOKUP($A26,試算表!$B$7:$AP$116,6,FALSE)+IF(美滿定期附約!E5<>"",美滿定期附約!E5,0)),"") -> 100000 | N26: =IF(總檢核,IF(age+A26-1>=被保人最大保險年齡,"",試算表!I9+IF(美滿定期附約!F5<>"",美滿定期附約!F5,0)), "") -> 14580 | Q26: =IF(AND(總檢核,BNLTRU1檢核),IF(age+A26-1>=被保人最大保險年齡,"",IF(C26>喪葬費用檢核年齡, IF($AS$16="無",試算表!Y9, IF($AS$16="中",試算表!Z9,試算表!AA9)), IF(被保人足歲年齡>=喪葬費用檢核年齡,IF($AS$16="無",試算表!Y9,IF($AS$16="中",試算表!Z9,試算表!AA9)),"*****"))),"") -> 0 | T26: =IF(AND(總檢核,BNLTRU1檢核),IF(age+A26-1>=被保人最大保險年齡,"",IF(C26>喪葬費用檢核年齡, IF($AS$16="無",試算表!AB9, IF($AS$16="中",試算表!AC9,試算表!AD9)), IF(被保人足歲年齡>=喪葬費用檢核年齡,IF($AS$16="無",試算表!AB9,IF($AS$16="中",試算表!AC9,試算表!AD9)),"*****"))),"") -> 0 | W26: =IF(AND(總檢核,BNLTRU1檢核),IF(age+A26-1>=被保人最大保險年齡,"",IF(C26>喪葬費用檢核年齡, IF($AS$16="無",試算表!AE9, IF($AS$16="中",試算表!AF9,試算表!AG9)), IF(被保人足歲年齡>=喪葬費用檢核年齡,IF($AS$16="無",試算表!AE9,IF($AS$16="中",試算表!AF9,試算表!AG9)),"*****"))),"") -> 0 | Z26: =IF(總檢核,IF(age+A26-1>=被保人最大保險年齡,"", IF($AS$16="無",試算表!AH9, IF($AS$16="中",試算表!AI9,試算表!AJ9))), "") -> 0 | AC26: =IF(總檢核,IF(age+A26-1>=被保人最大保險年齡,"", IF($AS$16="無",試算表!AK9, IF($AS$16="中",試算表!AL9,試算表!AM9))), "") -> 0 | AF26: =IF(總檢核,IF(age+A26-1>=被保人最大保險年齡,"", IF($AS$16="無",試算表!AN9, IF($AS$16="中",試算表!AO9,試算表!AP9))), "") -> 0 | AI26: =IF(AND(總檢核,BNLTRU1檢核),IF(age+A26-1>=被保人最大保險年齡,"",IF(C26>喪葬費用檢核年齡, IF($AS$16="無",試算表!O9, IF($AS$16="中",試算表!S9, IF($AS$16="",試算表!S9,試算表!W9)))+IF(美滿定期附約!E5<>"",美滿定期附約!E5,0),IF(被保人足歲年齡>=喪葬費用檢核年齡, IF($AS$16="無",試算表!O9, IF($AS$16="中",試算表!S9, IF($AS$16="",試算表!S9,試算表!W9)))+IF(美滿定期附約!E5<>"",美滿定期附約!E5,0),"*****"))),"") -> 100000 | AL26: =IF(總檢核,IF(age+A26-1>=被保人最大保險年齡,"", IF($AS$16="無",試算表!P9, IF($AS$16="中",試算表!T9, IF($AS$16="",試算表!T9,試算表!X9)))+IF(美滿定期附約!F5<>"",美滿定期附約!F5,0)), "") -> 14580 | AO26: 3.3207 | AP26: 0.4842
A27: 4 | C27: 43 | E27: =IF(總檢核,IF(age+A27-1=被保人最大保險年齡,"***以下空白***",IF(age+A27-1>被保人最大保險年齡,"",試算表!D10+IF(美滿定期附約!C6<>"",美滿定期附約!C6,0))), "") -> 10038 | H27: =IF(總檢核,IF(age+A27-1=被保人最大保險年齡,"",IF(age+A27-1>被保人最大保險年齡,"",試算表!E10+IF(美滿定期附約!D6<>"",美滿定期附約!D6,0))), "") -> 40152 | K27: =IF(總檢核,IF(age+A27-1>=被保人最大保險年齡,"",VLOOKUP($A27,試算表!$B$7:$AP$116,6,FALSE)+IF(美滿定期附約!E6<>"",美滿定期附約!E6,0)),"") -> 125000 | N27: =IF(總檢核,IF(age+A27-1>=被保人最大保險年齡,"",試算表!I10+IF(美滿定期附約!F6<>"",美滿定期附約!F6,0)), "") -> 21740 | Q27: =IF(AND(總檢核,BNLTRU1檢核),IF(age+A27-1>=被保人最大保險年齡,"",IF(C27>喪葬費用檢核年齡, IF($AS$16="無",試算表!Y10, IF($AS$16="中",試算表!Z10,試算表!AA10)), IF(被保人足歲年齡>=喪葬費用檢核年齡,IF($AS$16="無",試算表!Y10,IF($AS$16="中",試算表!Z10,試算表!AA10)),"*****"))),"") -> 0 | T27: =IF(AND(總檢核,BNLTRU1檢核),IF(age+A27-1>=被保人最大保險年齡,"",IF(C27>喪葬費用檢核年齡, IF($AS$16="無",試算表!AB10, IF($AS$16="中",試算表!AC10,試算表!AD10)), IF(被保人足歲年齡>=喪葬費用檢核年齡,IF($AS$16="無",試算表!AB10,IF($AS$16="中",試算表!AC10,試算表!AD10)),"*****"))),"") -> 0 | W27: =IF(AND(總檢核,BNLTRU1檢核),IF(age+A27-1>=被保人最大保險年齡,"",IF(C27>喪葬費用檢核年齡, IF($AS$16="無",試算表!AE10, IF($AS$16="中",試算表!AF10,試算表!AG10)), IF(被保人足歲年齡>=喪葬費用檢核年齡,IF($AS$16="無",試算表!AE10,IF($AS$16="中",試算表!AF10,試算表!AG10)),"*****"))),"") -> 0 | Z27: =IF(總檢核,IF(age+A27-1>=被保人最大保險年齡,"", IF($AS$16="無",試算表!AH10, IF($AS$16="中",試算表!AI10,試算表!AJ10))), "") -> 0 | AC27: =IF(總檢核,IF(age+A27-1>=被保人最大保險年齡,"", IF($AS$16="無",試算表!AK10, IF($AS$16="中",試算表!AL10,試算表!AM10))), "") -> 0 | AF27: =IF(總檢核,IF(age+A27-1>=被保人最大保險年齡,"", IF($AS$16="無",試算表!AN10, IF($AS$16="中",試算表!AO10,試算表!AP10))), "") -> 0 | AI27: =IF(AND(總檢核,BNLTRU1檢核),IF(age+A27-1>=被保人最大保險年齡,"",IF(C27>喪葬費用檢核年齡, IF($AS$16="無",試算表!O10, IF($AS$16="中",試算表!S10, IF($AS$16="",試算表!S10,試算表!W10)))+IF(美滿定期附約!E6<>"",美滿定期附約!E6,0),IF(被保人足歲年齡>=喪葬費用檢核年齡, IF($AS$16="無",試算表!O10, IF($AS$16="中",試算表!S10, IF($AS$16="",試算表!S10,試算表!W10)))+IF(美滿定期附約!E6<>"",美滿定期附約!E6,0),"*****"))),"") -> 125000 | AL27: =IF(總檢核,IF(age+A27-1>=被保人最大保險年齡,"", IF($AS$16="無",試算表!P10, IF($AS$16="中",試算表!T10, IF($AS$16="",試算表!T10,試算表!X10)))+IF(美滿定期附約!F6<>"",美滿定期附約!F6,0)), "") -> 21740 | AO27: 3.1132 | AP27: 0.5414
A28: 5 | C28: 44 | E28: =IF(總檢核,IF(age+A28-1=被保人最大保險年齡,"***以下空白***",IF(age+A28-1>被保人最大保險年齡,"",試算表!D11+IF(美滿定期附約!C7<>"",美滿定期附約!C7,0))), "") -> 10038 | H28: =IF(總檢核,IF(age+A28-1=被保人最大保險年齡,"",IF(age+A28-1>被保人最大保險年齡,"",試算表!E11+IF(美滿定期附約!D7<>"",美滿定期附約!D7,0))), "") -> 50190 | K28: =IF(總檢核,IF(age+A28-1>=被保人最大保險年齡,"",VLOOKUP($A28,試算表!$B$7:$AP$116,6,FALSE)+IF(美滿定期附約!E7<>"",美滿定期附約!E7,0)),"") -> 150000 | N28: =IF(總檢核,IF(age+A28-1>=被保人最大保險年齡,"",試算表!I11+IF(美滿定期附約!F7<>"",美滿定期附約!F7,0)), "") -> 31540 | Q28: =IF(AND(總檢核,BNLTRU1檢核),IF(age+A28-1>=被保人最大保險年齡,"",IF(C28>喪葬費用檢核年齡, IF($AS$16="無",試算表!Y11, IF($AS$16="中",試算表!Z11,試算表!AA11)), IF(被保人足歲年齡>=喪葬費用檢核年齡,IF($AS$16="無",試算表!Y11,IF($AS$16="中",試算表!Z11,試算表!AA11)),"*****"))),"") -> 0 | T28: =IF(AND(總檢核,BNLTRU1檢核),IF(age+A28-1>=被保人最大保險年齡,"",IF(C28>喪葬費用檢核年齡, IF($AS$16="無",試算表!AB11, IF($AS$16="中",試算表!AC11,試算表!AD11)), IF(被保人足歲年齡>=喪葬費用檢核年齡,IF($AS$16="無",試算表!AB11,IF($AS$16="中",試算表!AC11,試算表!AD11)),"*****"))),"") -> 0 | W28: =IF(AND(總檢核,BNLTRU1檢核),IF(age+A28-1>=被保人最大保險年齡,"",IF(C28>喪葬費用檢核年齡, IF($AS$16="無",試算表!AE11, IF($AS$16="中",試算表!AF11,試算表!AG11)), IF(被保人足歲年齡>=喪葬費用檢核年齡,IF($AS$16="無",試算表!AE11,IF($AS$16="中",試算表!AF11,試算表!AG11)),"*****"))),"") -> 0 | Z28: =IF(總檢核,IF(age+A28-1>=被保人最大保險年齡,"", IF($AS$16="無",試算表!AH11, IF($AS$16="中",試算表!AI11,試算表!AJ11))), "") -> 0 | AC28: =IF(總檢核,IF(age+A28-1>=被保人最大保險年齡,"", IF($AS$16="無",試算表!AK11, IF($AS$16="中",試算表!AL11,試算表!AM11))), "") -> 0 | AF28: =IF(總檢核,IF(age+A28-1>=被保人最大保險年齡,"", IF($AS$16="無",試算表!AN11, IF($AS$16="中",試算表!AO11,試算表!AP11))), "") -> 0 | AI28: =IF(AND(總檢核,BNLTRU1檢核),IF(age+A28-1>=被保人最大保險年齡,"",IF(C28>喪葬費用檢核年齡, IF($AS$16="無",試算表!O11, IF($AS$16="中",試算表!S11, IF($AS$16="",試算表!S11,試算表!W11)))+IF(美滿定期附約!E7<>"",美滿定期附約!E7,0),IF(被保人足歲年齡>=喪葬費用檢核年齡, IF($AS$16="無",試算表!O11, IF($AS$16="中",試算表!S11, IF($AS$16="",試算表!S11,試算表!W11)))+IF(美滿定期附約!E7<>"",美滿定期附約!E7,0),"*****"))),"") -> 150000 | AL28: =IF(總檢核,IF(age+A28-1>=被保人最大保險年齡,"", IF($AS$16="無",試算表!P11, IF($AS$16="中",試算表!T11, IF($AS$16="",試算表!T11,試算表!X11)))+IF(美滿定期附約!F7<>"",美滿定期附約!F7,0)), "") -> 31540 | AO28: 2.9886 | AP28: 0.6284
A29: 6 | C29: 45 | E29: =IF(總檢核,IF(age+A29-1=被保人最大保險年齡,"***以下空白***",IF(age+A29-1>被保人最大保險年齡,"",試算表!D12+IF(美滿定期附約!C8<>"",美滿定期附約!C8,0))), "") -> 10038 | H29: =IF(總檢核,IF(age+A29-1=被保人最大保險年齡,"",IF(age+A29-1>被保人最大保險年齡,"",試算表!E12+IF(美滿定期附約!D8<>"",美滿定期附約!D8,0))), "") -> 60228 | K29: =IF(總檢核,IF(age+A29-1>=被保人最大保險年齡,"",VLOOKUP($A29,試算表!$B$7:$AP$116,6,FALSE)+IF(美滿定期附約!E8<>"",美滿定期附約!E8,0)),"") -> 145000 | N29: =IF(總檢核,IF(age+A29-1>=被保人最大保險年齡,"",試算表!I12+IF(美滿定期附約!F8<>"",美滿定期附約!F8,0)), "") -> 43110 | Q29: =IF(AND(總檢核,BNLTRU1檢核),IF(age+A29-1>=被保人最大保險年齡,"",IF(C29>喪葬費用檢核年齡, IF($AS$16="無",試算表!Y12, IF($AS$16="中",試算表!Z12,試算表!AA12)), IF(被保人足歲年齡>=喪葬費用檢核年齡,IF($AS$16="無",試算表!Y12,IF($AS$16="中",試算表!Z12,試算表!AA12)),"*****"))),"") -> 250 | T29: =IF(AND(總檢核,BNLTRU1檢核),IF(age+A29-1>=被保人最大保險年齡,"",IF(C29>喪葬費用檢核年齡, IF($AS$16="無",試算表!AB12, IF($AS$16="中",試算表!AC12,試算表!AD12)), IF(被保人足歲年齡>=喪葬費用檢核年齡,IF($AS$16="無",試算表!AB12,IF($AS$16="中",試算表!AC12,試算表!AD12)),"*****"))),"") -> 250 | W29: =IF(AND(總檢核,BNLTRU1檢核),IF(age+A29-1>=被保人最大保險年齡,"",IF(C29>喪葬費用檢核年齡, IF($AS$16="無",試算表!AE12, IF($AS$16="中",試算表!AF12,試算表!AG12)), IF(被保人足歲年齡>=喪葬費用檢核年齡,IF($AS$16="無",試算表!AE12,IF($AS$16="中",試算表!AF12,試算表!AG12)),"*****"))),"") -> 100250 | Z29: =IF(總檢核,IF(age+A29-1>=被保人最大保險年齡,"", IF($AS$16="無",試算表!AH12, IF($AS$16="中",試算表!AI12,試算表!AJ12))), "") -> 106 | AC29: =IF(總檢核,IF(age+A29-1>=被保人最大保險年齡,"", IF($AS$16="無",試算表!AK12, IF($AS$16="中",試算表!AL12,試算表!AM12))), "") -> 106 | AF29: =IF(總檢核,IF(age+A29-1>=被保人最大保險年齡,"", IF($AS$16="無",試算表!AN12, IF($AS$16="中",試算表!AO12,試算表!AP12))), "") -> 18788 | AI29: =IF(AND(總檢核,BNLTRU1檢核),IF(age+A29-1>=被保人最大保險年齡,"",IF(C29>喪葬費用檢核年齡, IF($AS$16="無",試算表!O12, IF($AS$16="中",試算表!S12, IF($AS$16="",試算表!S12,試算表!W12)))+IF(美滿定期附約!E8<>"",美滿定期附約!E8,0),IF(被保人足歲年齡>=喪葬費用檢核年齡, IF($AS$16="無",試算表!O12, IF($AS$16="中",試算表!S12, IF($AS$16="",試算表!S12,試算表!W12)))+IF(美滿定期附約!E8<>"",美滿定期附約!E8,0),"*****"))),"") -> 245500 | AL29: =IF(總檢核,IF(age+A29-1>=被保人最大保險年齡,"", IF($AS$16="無",試算表!P12, IF($AS$16="中",試算表!T12, IF($AS$16="",試算表!T12,試算表!X12)))+IF(美滿定期附約!F8<>"",美滿定期附約!F8,0)), "") -> 62004 | AO29: 4.0762 | AP29: 1.0295
A30: 7 | C30: 46 | E30: =IF(總檢核,IF(age+A30-1=被保人最大保險年齡,"***以下空白***",IF(age+A30-1>被保人最大保險年齡,"",試算表!D13+IF(美滿定期附約!C9<>"",美滿定期附約!C9,0))), "") -> 0 | H30: =IF(總檢核,IF(age+A30-1=被保人最大保險年齡,"",IF(age+A30-1>被保人最大保險年齡,"",試算表!E13+IF(美滿定期附約!D9<>"",美滿定期附約!D9,0))), "") -> 60228 | K30: =IF(總檢核,IF(age+A30-1>=被保人最大保險年齡,"",VLOOKUP($A30,試算表!$B$7:$AP$116,6,FALSE)+IF(美滿定期附約!E9<>"",美滿定期附約!E9,0)),"") -> 140000 | N30: =IF(總檢核,IF(age+A30-1>=被保人最大保險年齡,"",試算表!I13+IF(美滿定期附約!F9<>"",美滿定期附約!F9,0)), "") -> 43930 | Q30: =IF(AND(總檢核,BNLTRU1檢核),IF(age+A30-1>=被保人最大保險年齡,"",IF(C30>喪葬費用檢核年齡, IF($AS$16="無",試算表!Y13, IF($AS$16="中",試算表!Z13,試算表!AA13)), IF(被保人足歲年齡>=喪葬費用檢核年齡,IF($AS$16="無",試算表!Y13,IF($AS$16="中",試算表!Z13,試算表!AA13)),"*****"))),"") -> 251 | T30: =IF(AND(總檢核,BNLTRU1檢核),IF(age+A30-1>=被保人最大保險年齡,"",IF(C30>喪葬費用檢核年齡, IF($AS$16="無",試算表!AB13, IF($AS$16="中",試算表!AC13,試算表!AD13)), IF(被保人足歲年齡>=喪葬費用檢核年齡,IF($AS$16="無",試算表!AB13,IF($AS$16="中",試算表!AC13,試算表!AD13)),"*****"))),"") -> 501 | W30: =IF(AND(總檢核,BNLTRU1檢核),IF(age+A30-1>=被保人最大保險年齡,"",IF(C30>喪葬費用檢核年齡, IF($AS$16="無",試算表!AE13, IF($AS$16="中",試算表!AF13,試算表!AG13)), IF(被保人足歲年齡>=喪葬費用檢核年齡,IF($AS$16="無",試算表!AE13,IF($AS$16="中",試算表!AF13,試算表!AG13)),"*****"))),"") -> 105526 | Z30: =IF(總檢核,IF(age+A30-1>=被保人最大保險年齡,"", IF($AS$16="無",試算表!AH13, IF($AS$16="中",試算表!AI13,試算表!AJ13))), "") -> 109 | AC30: =IF(總檢核,IF(age+A30-1>=被保人最大保險年齡,"", IF($AS$16="無",試算表!AK13, IF($AS$16="中",試算表!AL13,試算表!AM13))), "") -> 218 | AF30: =IF(總檢核,IF(age+A30-1>=被保人最大保險年齡,"", IF($AS$16="無",試算表!AN13, IF($AS$16="中",試算表!AO13,試算表!AP13))), "") -> 19677 | AI30: =IF(AND(總檢核,BNLTRU1檢核),IF(age+A30-1>=被保人最大保險年齡,"",IF(C30>喪葬費用檢核年齡, IF($AS$16="無",試算表!O13, IF($AS$16="中",試算表!S13, IF($AS$16="",試算表!S13,試算表!W13)))+IF(美滿定期附約!E9<>"",美滿定期附約!E9,0),IF(被保人足歲年齡>=喪葬費用檢核年齡, IF($AS$16="無",試算表!O13, IF($AS$16="中",試算表!S13, IF($AS$16="",試算表!S13,試算表!W13)))+IF(美滿定期附約!E9<>"",美滿定期附約!E9,0),"*****"))),"") -> 246027 | AL30: =IF(總檢核,IF(age+A30-1>=被保人最大保險年齡,"", IF($AS$16="無",試算表!P13, IF($AS$16="中",試算表!T13, IF($AS$16="",試算表!T13,試算表!X13)))+IF(美滿定期附約!F9<>"",美滿定期附約!F9,0)), "") -> 63825 | AO30: 4.0849 | AP30: 1.0597
A31: 8 | C31: 47 | E31: =IF(總檢核,IF(age+A31-1=被保人最大保險年齡,"***以下空白***",IF(age+A31-1>被保人最大保險年齡,"",試算表!D14+IF(美滿定期附約!C10<>"",美滿定期附約!C10,0))), "") -> 0 | H31: =IF(總檢核,IF(age+A31-1=被保人最大保險年齡,"",IF(age+A31-1>被保人最大保險年齡,"",試算表!E14+IF(美滿定期附約!D10<>"",美滿定期附約!D10,0))), "") -> 60228 | K31: =IF(總檢核,IF(age+A31-1>=被保人最大保險年齡,"",VLOOKUP($A31,試算表!$B$7:$AP$116,6,FALSE)+IF(美滿定期附約!E10<>"",美滿定期附約!E10,0)),"") -> 135000 | N31: =IF(總檢核,IF(age+A31-1>=被保人最大保險年齡,"",試算表!I14+IF(美滿定期附約!F10<>"",美滿定期附約!F10,0)), "") -> 44770 | Q31: =IF(AND(總檢核,BNLTRU1檢核),IF(age+A31-1>=被保人最大保險年齡,"",IF(C31>喪葬費用檢核年齡, IF($AS$16="無",試算表!Y14, IF($AS$16="中",試算表!Z14,試算表!AA14)), IF(被保人足歲年齡>=喪葬費用檢核年齡,IF($AS$16="無",試算表!Y14,IF($AS$16="中",試算表!Z14,試算表!AA14)),"*****"))),"") -> 251 | T31: =IF(AND(總檢核,BNLTRU1檢核),IF(age+A31-1>=被保人最大保險年齡,"",IF(C31>喪葬費用檢核年齡, IF($AS$16="無",試算表!AB14, IF($AS$16="中",試算表!AC14,試算表!AD14)), IF(被保人足歲年齡>=喪葬費用檢核年齡,IF($AS$16="無",試算表!AB14,IF($AS$16="中",試算表!AC14,試算表!AD14)),"*****"))),"") -> 752 | W31: =IF(AND(總檢核,BNLTRU1檢核),IF(age+A31-1>=被保人最大保險年齡,"",IF(C31>喪葬費用檢核年齡, IF($AS$16="無",試算表!AE14, IF($AS$16="中",試算表!AF14,試算表!AG14)), IF(被保人足歲年齡>=喪葬費用檢核年齡,IF($AS$16="無",試算表!AE14,IF($AS$16="中",試算表!AF14,試算表!AG14)),"*****"))),"") -> 110827 | Z31: =IF(總檢核,IF(age+A31-1>=被保人最大保險年齡,"", IF($AS$16="無",試算表!AH14, IF($AS$16="中",試算表!AI14,試算表!AJ14))), "") -> 112 | AC31: =IF(總檢核,IF(age+A31-1>=被保人最大保險年齡,"", IF($AS$16="無",試算表!AK14, IF($AS$16="中",試算表!AL14,試算表!AM14))), "") -> 334 | AF31: =IF(總檢核,IF(age+A31-1>=被保人最大保險年齡,"", IF($AS$16="無",試算表!AN14, IF($AS$16="中",試算表!AO14,試算表!AP14))), "") -> 20594 | AI31: =IF(AND(總檢核,BNLTRU1檢核),IF(age+A31-1>=被保人最大保險年齡,"",IF(C31>喪葬費用檢核年齡, IF($AS$16="無",試算表!O14, IF($AS$16="中",試算表!S14, IF($AS$16="",試算表!S14,試算表!W14)))+IF(美滿定期附約!E10<>"",美滿定期附約!E10,0),IF(被保人足歲年齡>=喪葬費用檢核年齡, IF($AS$16="無",試算表!O14, IF($AS$16="中",試算表!S14, IF($AS$16="",試算表!S14,試算表!W14)))+IF(美滿定期附約!E10<>"",美滿定期附約!E10,0),"*****"))),"") -> 246579 | AL31: =IF(總檢核,IF(age+A31-1>=被保人最大保險年齡,"", IF($AS$16="無",試算表!P14, IF($AS$16="中",試算表!T14, IF($AS$16="",試算表!T14,試算表!X14)))+IF(美滿定期附約!F10<>"",美滿定期附約!F10,0)), "") -> 65698 | AO31: 4.0941 | AP31: 1.0908
A32: 9 | C32: 48 | E32: =IF(總檢核,IF(age+A32-1=被保人最大保險年齡,"***以下空白***",IF(age+A32-1>被保人最大保險年齡,"",試算表!D15+IF(美滿定期附約!C11<>"",美滿定期附約!C11,0))), "") -> 0 | H32: =IF(總檢核,IF(age+A32-1=被保人最大保險年齡,"",IF(age+A32-1>被保人最大保險年齡,"",試算表!E15+IF(美滿定期附約!D11<>"",美滿定期附約!D11,0))), "") -> 60228 | K32: =IF(總檢核,IF(age+A32-1>=被保人最大保險年齡,"",VLOOKUP($A32,試算表!$B$7:$AP$116,6,FALSE)+IF(美滿定期附約!E11<>"",美滿定期附約!E11,0)),"") -> 130000 | N32: =IF(總檢核,IF(age+A32-1>=被保人最大保險年齡,"",試算表!I15+IF(美滿定期附約!F11<>"",美滿定期附約!F11,0)), "") -> 45630 | Q32: =IF(AND(總檢核,BNLTRU1檢核),IF(age+A32-1>=被保人最大保險年齡,"",IF(C32>喪葬費用檢核年齡, IF($AS$16="無",試算表!Y15, IF($AS$16="中",試算表!Z15,試算表!AA15)), IF(被保人足歲年齡>=喪葬費用檢核年齡,IF($AS$16="無",試算表!Y15,IF($AS$16="中",試算表!Z15,試算表!AA15)),"*****"))),"") -> 252 | T32: =IF(AND(總檢核,BNLTRU1檢核),IF(age+A32-1>=被保人最大保險年齡,"",IF(C32>喪葬費用檢核年齡, IF($AS$16="無",試算表!AB15, IF($AS$16="中",試算表!AC15,試算表!AD15)), IF(被保人足歲年齡>=喪葬費用檢核年齡,IF($AS$16="無",試算表!AB15,IF($AS$16="中",試算表!AC15,試算表!AD15)),"*****"))),"") -> 1004 | W32: =IF(AND(總檢核,BNLTRU1檢核),IF(age+A32-1>=被保人最大保險年齡,"",IF(C32>喪葬費用檢核年齡, IF($AS$16="無",試算表!AE15, IF($AS$16="中",試算表!AF15,試算表!AG15)), IF(被保人足歲年齡>=喪葬費用檢核年齡,IF($AS$16="無",試算表!AE15,IF($AS$16="中",試算表!AF15,試算表!AG15)),"*****"))),"") -> 116154 | Z32: =IF(總檢核,IF(age+A32-1>=被保人最大保險年齡,"", IF($AS$16="無",試算表!AH15, IF($AS$16="中",試算表!AI15,試算表!AJ15))), "") -> 114 | AC32: =IF(總檢核,IF(age+A32-1>=被保人最大保險年齡,"", IF($AS$16="無",試算表!AK15, IF($AS$16="中",試算表!AL15,試算表!AM15))), "") -> 455 | AF32: =IF(總檢核,IF(age+A32-1>=被保人最大保險年齡,"", IF($AS$16="無",試算表!AN15, IF($AS$16="中",試算表!AO15,試算表!AP15))), "") -> 21542 | AI32: =IF(AND(總檢核,BNLTRU1檢核),IF(age+A32-1>=被保人最大保險年齡,"",IF(C32>喪葬費用檢核年齡, IF($AS$16="無",試算表!O15, IF($AS$16="中",試算表!S15, IF($AS$16="",試算表!S15,試算表!W15)))+IF(美滿定期附約!E11<>"",美滿定期附約!E11,0),IF(被保人足歲年齡>=喪葬費用檢核年齡, IF($AS$16="無",試算表!O15, IF($AS$16="中",試算表!S15, IF($AS$16="",試算表!S15,試算表!W15)))+IF(美滿定期附約!E11<>"",美滿定期附約!E11,0),"*****"))),"") -> 247158 | AL32: =IF(總檢核,IF(age+A32-1>=被保人最大保險年齡,"", IF($AS$16="無",試算表!P15, IF($AS$16="中",試算表!T15, IF($AS$16="",試算表!T15,試算表!X15)))+IF(美滿定期附約!F11<>"",美滿定期附約!F11,0)), "") -> 67627 | AO32: 4.1037 | AP32: 1.1228
A33: 10 | C33: 49 | E33: =IF(總檢核,IF(age+A33-1=被保人最大保險年齡,"***以下空白***",IF(age+A33-1>被保人最大保險年齡,"",試算表!D16+IF(美滿定期附約!C12<>"",美滿定期附約!C12,0))), "") -> 0 | H33: =IF(總檢核,IF(age+A33-1=被保人最大保險年齡,"",IF(age+A33-1>被保人最大保險年齡,"",試算表!E16+IF(美滿定期附約!D12<>"",美滿定期附約!D12,0))), "") -> 60228 | K33: =IF(總檢核,IF(age+A33-1>=被保人最大保險年齡,"",VLOOKUP($A33,試算表!$B$7:$AP$116,6,FALSE)+IF(美滿定期附約!E12<>"",美滿定期附約!E12,0)),"") -> 125000 | N33: =IF(總檢核,IF(age+A33-1>=被保人最大保險年齡,"",試算表!I16+IF(美滿定期附約!F12<>"",美滿定期附約!F12,0)), "") -> 46510 | Q33: =IF(AND(總檢核,BNLTRU1檢核),IF(age+A33-1>=被保人最大保險年齡,"",IF(C33>喪葬費用檢核年齡, IF($AS$16="無",試算表!Y16, IF($AS$16="中",試算表!Z16,試算表!AA16)), IF(被保人足歲年齡>=喪葬費用檢核年齡,IF($AS$16="無",試算表!Y16,IF($AS$16="中",試算表!Z16,試算表!AA16)),"*****"))),"") -> 252 | T33: =IF(AND(總檢核,BNLTRU1檢核),IF(age+A33-1>=被保人最大保險年齡,"",IF(C33>喪葬費用檢核年齡, IF($AS$16="無",試算表!AB16, IF($AS$16="中",試算表!AC16,試算表!AD16)), IF(被保人足歲年齡>=喪葬費用檢核年齡,IF($AS$16="無",試算表!AB16,IF($AS$16="中",試算表!AC16,試算表!AD16)),"*****"))),"") -> 1256 | W33: =IF(AND(總檢核,BNLTRU1檢核),IF(age+A33-1>=被保人最大保險年齡,"",IF(C33>喪葬費用檢核年齡, IF($AS$16="無",試算表!AE16, IF($AS$16="中",試算表!AF16,試算表!AG16)), IF(被保人足歲年齡>=喪葬費用檢核年齡,IF($AS$16="無",試算表!AE16,IF($AS$16="中",試算表!AF16,試算表!AG16)),"*****"))),"") -> 121508 | Z33: =IF(總檢核,IF(age+A33-1>=被保人最大保險年齡,"", IF($AS$16="無",試算表!AH16, IF($AS$16="中",試算表!AI16,試算表!AJ16))), "") -> 117 | AC33: =IF(總檢核,IF(age+A33-1>=被保人最大保險年齡,"", IF($AS$16="無",試算表!AK16, IF($AS$16="中",試算表!AL16,試算表!AM16))), "") -> 582 | AF33: =IF(總檢核,IF(age+A33-1>=被保人最大保險年齡,"", IF($AS$16="無",試算表!AN16, IF($AS$16="中",試算表!AO16,試算表!AP16))), "") -> 22520 | AI33: =IF(AND(總檢核,BNLTRU1檢核),IF(age+A33-1>=被保人最大保險年齡,"",IF(C33>喪葬費用檢核年齡, IF($AS$16="無",試算表!O16, IF($AS$16="中",試算表!S16, IF($AS$16="",試算表!S16,試算表!W16)))+IF(美滿定期附約!E12<>"",美滿定期附約!E12,0),IF(被保人足歲年齡>=喪葬費用檢核年齡, IF($AS$16="無",試算表!O16, IF($AS$16="中",試算表!S16, IF($AS$16="",試算表!S16,試算表!W16)))+IF(美滿定期附約!E12<>"",美滿定期附約!E12,0),"*****"))),"") -> 247764 | AL33: =IF(總檢核,IF(age+A33-1>=被保人最大保險年齡,"", IF($AS$16="無",試算表!P16, IF($AS$16="中",試算表!T16, IF($AS$16="",試算表!T16,試算表!X16)))+IF(美滿定期附約!F12<>"",美滿定期附約!F12,0)), "") -> 69612 | AO33: 4.1138 | AP33: 1.1558
A34: 11 | C34: 50 | E34: =IF(總檢核,IF(age+A34-1=被保人最大保險年齡,"***以下空白***",IF(age+A34-1>被保人最大保險年齡,"",試算表!D17+IF(美滿定期附約!C13<>"",美滿定期附約!C13,0))), "") -> 0 | H34: =IF(總檢核,IF(age+A34-1=被保人最大保險年齡,"",IF(age+A34-1>被保人最大保險年齡,"",試算表!E17+IF(美滿定期附約!D13<>"",美滿定期附約!D13,0))), "") -> 60228 | K34: =IF(總檢核,IF(age+A34-1>=被保人最大保險年齡,"",VLOOKUP($A34,試算表!$B$7:$AP$116,6,FALSE)+IF(美滿定期附約!E13<>"",美滿定期附約!E13,0)),"") -> 120000 | N34: =IF(總檢核,IF(age+A34-1>=被保人最大保險年齡,"",試算表!I17+IF(美滿定期附約!F13<>"",美滿定期附約!F13,0)), "") -> 47420 | Q34: =IF(AND(總檢核,BNLTRU1檢核),IF(age+A34-1>=被保人最大保險年齡,"",IF(C34>喪葬費用檢核年齡, IF($AS$16="無",試算表!Y17, IF($AS$16="中",試算表!Z17,試算表!AA17)), IF(被保人足歲年齡>=喪葬費用檢核年齡,IF($AS$16="無",試算表!Y17,IF($AS$16="中",試算表!Z17,試算表!AA17)),"*****"))),"") -> 253 | T34: =IF(AND(總檢核,BNLTRU1檢核),IF(age+A34-1>=被保人最大保險年齡,"",IF(C34>喪葬費用檢核年齡, IF($AS$16="無",試算表!AB17, IF($AS$16="中",試算表!AC17,試算表!AD17)), IF(被保人足歲年齡>=喪葬費用檢核年齡,IF($AS$16="無",試算表!AB17,IF($AS$16="中",試算表!AC17,試算表!AD17)),"*****"))),"") -> 1509 | W34: =IF(AND(總檢核,BNLTRU1檢核),IF(age+A34-1>=被保人最大保險年齡,"",IF(C34>喪葬費用檢核年齡, IF($AS$16="無",試算表!AE17, IF($AS$16="中",試算表!AF17,試算表!AG17)), IF(被保人足歲年齡>=喪葬費用檢核年齡,IF($AS$16="無",試算表!AE17,IF($AS$16="中",試算表!AF17,試算表!AG17)),"*****"))),"") -> 131962 | Z34: =IF(總檢核,IF(age+A34-1>=被保人最大保險年齡,"", IF($AS$16="無",試算表!AH17, IF($AS$16="中",試算表!AI17,試算表!AJ17))), "") -> 120 | AC34: =IF(總檢核,IF(age+A34-1>=被保人最大保險年齡,"", IF($AS$16="無",試算表!AK17, IF($AS$16="中",試算表!AL17,試算表!AM17))), "") -> 714 | AF34: =IF(總檢核,IF(age+A34-1>=被保人最大保險年齡,"", IF($AS$16="無",試算表!AN17, IF($AS$16="中",試算表!AO17,試算表!AP17))), "") -> 23530 | AI34: =IF(AND(總檢核,BNLTRU1檢核),IF(age+A34-1>=被保人最大保險年齡,"",IF(C34>喪葬費用檢核年齡, IF($AS$16="無",試算表!O17, IF($AS$16="中",試算表!S17, IF($AS$16="",試算表!S17,試算表!W17)))+IF(美滿定期附約!E13<>"",美滿定期附約!E13,0),IF(被保人足歲年齡>=喪葬費用檢核年齡, IF($AS$16="無",試算表!O17, IF($AS$16="中",試算表!S17, IF($AS$16="",試算表!S17,試算表!W17)))+IF(美滿定期附約!E13<>"",美滿定期附約!E13,0),"*****"))),"") -> 253471 | AL34: =IF(總檢核,IF(age+A34-1>=被保人最大保險年齡,"", IF($AS$16="無",試算表!P17, IF($AS$16="中",試算表!T17, IF($AS$16="",試算表!T17,試算表!X17)))+IF(美滿定期附約!F13<>"",美滿定期附約!F13,0)), "") -> 71664 | AO34: 4.2085 | AP34: 1.1899
A35: 12 | C35: 51 | E35: =IF(總檢核,IF(age+A35-1=被保人最大保險年齡,"***以下空白***",IF(age+A35-1>被保人最大保險年齡,"",試算表!D18+IF(美滿定期附約!C14<>"",美滿定期附約!C14,0))), "") -> 0 | H35: =IF(總檢核,IF(age+A35-1=被保人最大保險年齡,"",IF(age+A35-1>被保人最大保險年齡,"",試算表!E18+IF(美滿定期附約!D14<>"",美滿定期附約!D14,0))), "") -> 60228 | K35: =IF(總檢核,IF(age+A35-1>=被保人最大保險年齡,"",VLOOKUP($A35,試算表!$B$7:$AP$116,6,FALSE)+IF(美滿定期附約!E14<>"",美滿定期附約!E14,0)),"") -> 115000 | N35: =IF(總檢核,IF(age+A35-1>=被保人最大保險年齡,"",試算表!I18+IF(美滿定期附約!F14<>"",美滿定期附約!F14,0)), "") -> 48350 | Q35: =IF(AND(總檢核,BNLTRU1檢核),IF(age+A35-1>=被保人最大保險年齡,"",IF(C35>喪葬費用檢核年齡, IF($AS$16="無",試算表!Y18, IF($AS$16="中",試算表!Z18,試算表!AA18)), IF(被保人足歲年齡>=喪葬費用檢核年齡,IF($AS$16="無",試算表!Y18,IF($AS$16="中",試算表!Z18,試算表!AA18)),"*****"))),"") -> 254 | T35: =IF(AND(總檢核,BNLTRU1檢核),IF(age+A35-1>=被保人最大保險年齡,"",IF(C35>喪葬費用檢核年齡, IF($AS$16="無",試算表!AB18, IF($AS$16="中",試算表!AC18,試算表!AD18)), IF(被保人足歲年齡>=喪葬費用檢核年齡,IF($AS$16="無",試算表!AB18,IF($AS$16="中",試算表!AC18,試算表!AD18)),"*****"))),"") -> 1763 | W35: =IF(AND(總檢核,BNLTRU1檢核),IF(age+A35-1>=被保人最大保險年齡,"",IF(C35>喪葬費用檢核年齡, IF($AS$16="無",試算表!AE18, IF($AS$16="中",試算表!AF18,試算表!AG18)), IF(被保人足歲年齡>=喪葬費用檢核年齡,IF($AS$16="無",試算表!AE18,IF($AS$16="中",試算表!AF18,試算表!AG18)),"*****"))),"") -> 137380 | Z35: =IF(總檢核,IF(age+A35-1>=被保人最大保險年齡,"", IF($AS$16="無",試算表!AH18, IF($AS$16="中",試算表!AI18,試算表!AJ18))), "") -> 123 | AC35: =IF(總檢核,IF(age+A35-1>=被保人最大保險年齡,"", IF($AS$16="無",試算表!AK18, IF($AS$16="中",試算表!AL18,試算表!AM18))), "") -> 851 | AF35: =IF(總檢核,IF(age+A35-1>=被保人最大保險年齡,"", IF($AS$16="無",試算表!AN18, IF($AS$16="中",試算表!AO18,試算表!AP18))), "") -> 24571 | AI35: =IF(AND(總檢核,BNLTRU1檢核),IF(age+A35-1>=被保人最大保險年齡,"",IF(C35>喪葬費用檢核年齡, IF($AS$16="無",試算表!O18, IF($AS$16="中",試算表!S18, IF($AS$16="",試算表!S18,試算表!W18)))+IF(美滿定期附約!E14<>"",美滿定期附約!E14,0),IF(被保人足歲年齡>=喪葬費用檢核年齡, IF($AS$16="無",試算表!O18, IF($AS$16="中",試算表!S18, IF($AS$16="",試算表!S18,試算表!W18)))+IF(美滿定期附約!E14<>"",美滿定期附約!E14,0),"*****"))),"") -> 254143 | AL35: =IF(總檢核,IF(age+A35-1>=被保人最大保險年齡,"", IF($AS$16="無",試算表!P18, IF($AS$16="中",試算表!T18, IF($AS$16="",試算表!T18,試算表!X18)))+IF(美滿定期附約!F14<>"",美滿定期附約!F14,0)), "") -> 73772 | AO35: 4.2197 | AP35: 1.2249
A36: 13 | C36: 52 | E36: =IF(總檢核,IF(age+A36-1=被保人最大保險年齡,"***以下空白***",IF(age+A36-1>被保人最大保險年齡,"",試算表!D19+IF(美滿定期附約!C15<>"",美滿定期附約!C15,0))), "") -> 0 | H36: =IF(總檢核,IF(age+A36-1=被保人最大保險年齡,"",IF(age+A36-1>被保人最大保險年齡,"",試算表!E19+IF(美滿定期附約!D15<>"",美滿定期附約!D15,0))), "") -> 60228 | K36: =IF(總檢核,IF(age+A36-1>=被保人最大保險年齡,"",VLOOKUP($A36,試算表!$B$7:$AP$116,6,FALSE)+IF(美滿定期附約!E15<>"",美滿定期附約!E15,0)),"") -> 110000 | N36: =IF(總檢核,IF(age+A36-1>=被保人最大保險年齡,"",試算表!I19+IF(美滿定期附約!F15<>"",美滿定期附約!F15,0)), "") -> 49310 | Q36: =IF(AND(總檢核,BNLTRU1檢核),IF(age+A36-1>=被保人最大保險年齡,"",IF(C36>喪葬費用檢核年齡, IF($AS$16="無",試算表!Y19, IF($AS$16="中",試算表!Z19,試算表!AA19)), IF(被保人足歲年齡>=喪葬費用檢核年齡,IF($AS$16="無",試算表!Y19,IF($AS$16="中",試算表!Z19,試算表!AA19)),"*****"))),"") -> 255 | T36: =IF(AND(總檢核,BNLTRU1檢核),IF(age+A36-1>=被保人最大保險年齡,"",IF(C36>喪葬費用檢核年齡, IF($AS$16="無",試算表!AB19, IF($AS$16="中",試算表!AC19,試算表!AD19)), IF(被保人足歲年齡>=喪葬費用檢核年齡,IF($AS$16="無",試算表!AB19,IF($AS$16="中",試算表!AC19,試算表!AD19)),"*****"))),"") -> 2018 | W36: =IF(AND(總檢核,BNLTRU1檢核),IF(age+A36-1>=被保人最大保險年齡,"",IF(C36>喪葬費用檢核年齡, IF($AS$16="無",試算表!AE19, IF($AS$16="中",試算表!AF19,試算表!AG19)), IF(被保人足歲年齡>=喪葬費用檢核年齡,IF($AS$16="無",試算表!AE19,IF($AS$16="中",試算表!AF19,試算表!AG19)),"*****"))),"") -> 142825 | Z36: =IF(總檢核,IF(age+A36-1>=被保人最大保險年齡,"", IF($AS$16="無",試算表!AH19, IF($AS$16="中",試算表!AI19,試算表!AJ19))), "") -> 125 | AC36: =IF(總檢核,IF(age+A36-1>=被保人最大保險年齡,"", IF($AS$16="無",試算表!AK19, IF($AS$16="中",試算表!AL19,試算表!AM19))), "") -> 995 | AF36: =IF(總檢核,IF(age+A36-1>=被保人最大保險年齡,"", IF($AS$16="無",試算表!AN19, IF($AS$16="中",試算表!AO19,試算表!AP19))), "") -> 25646 | AI36: =IF(AND(總檢核,BNLTRU1檢核),IF(age+A36-1>=被保人最大保險年齡,"",IF(C36>喪葬費用檢核年齡, IF($AS$16="無",試算表!O19, IF($AS$16="中",試算表!S19, IF($AS$16="",試算表!S19,試算表!W19)))+IF(美滿定期附約!E15<>"",美滿定期附約!E15,0),IF(被保人足歲年齡>=喪葬費用檢核年齡, IF($AS$16="無",試算表!O19, IF($AS$16="中",試算表!S19, IF($AS$16="",試算表!S19,試算表!W19)))+IF(美滿定期附約!E15<>"",美滿定期附約!E15,0),"*****"))),"") -> 254843 | AL36: =IF(總檢核,IF(age+A36-1>=被保人最大保險年齡,"", IF($AS$16="無",試算表!P19, IF($AS$16="中",試算表!T19, IF($AS$16="",試算表!T19,試算表!X19)))+IF(美滿定期附約!F15<>"",美滿定期附約!F15,0)), "") -> 75951 | AO36: 4.2313 | AP36: 1.2611
A37: 14 | C37: 53 | E37: =IF(總檢核,IF(age+A37-1=被保人最大保險年齡,"***以下空白***",IF(age+A37-1>被保人最大保險年齡,"",試算表!D20+IF(美滿定期附約!C16<>"",美滿定期附約!C16,0))), "") -> 0 | H37: =IF(總檢核,IF(age+A37-1=被保人最大保險年齡,"",IF(age+A37-1>被保人最大保險年齡,"",試算表!E20+IF(美滿定期附約!D16<>"",美滿定期附約!D16,0))), "") -> 60228 | K37: =IF(總檢核,IF(age+A37-1>=被保人最大保險年齡,"",VLOOKUP($A37,試算表!$B$7:$AP$116,6,FALSE)+IF(美滿定期附約!E16<>"",美滿定期附約!E16,0)),"") -> 105000 | N37: =IF(總檢核,IF(age+A37-1>=被保人最大保險年齡,"",試算表!I20+IF(美滿定期附約!F16<>"",美滿定期附約!F16,0)), "") -> 50310 | Q37: =IF(AND(總檢核,BNLTRU1檢核),IF(age+A37-1>=被保人最大保險年齡,"",IF(C37>喪葬費用檢核年齡, IF($AS$16="無",試算表!Y20, IF($AS$16="中",試算表!Z20,試算表!AA20)), IF(被保人足歲年齡>=喪葬費用檢核年齡,IF($AS$16="無",試算表!Y20,IF($AS$16="中",試算表!Z20,試算表!AA20)),"*****"))),"") -> 255 | T37: =IF(AND(總檢核,BNLTRU1檢核),IF(age+A37-1>=被保人最大保險年齡,"",IF(C37>喪葬費用檢核年齡, IF($AS$16="無",試算表!AB20, IF($AS$16="中",試算表!AC20,試算表!AD20)), IF(被保人足歲年齡>=喪葬費用檢核年齡,IF($AS$16="無",試算表!AB20,IF($AS$16="中",試算表!AC20,試算表!AD20)),"*****"))),"") -> 2273 | W37: =IF(AND(總檢核,BNLTRU1檢核),IF(age+A37-1>=被保人最大保險年齡,"",IF(C37>喪葬費用檢核年齡, IF($AS$16="無",試算表!AE20, IF($AS$16="中",試算表!AF20,試算表!AG20)), IF(被保人足歲年齡>=喪葬費用檢核年齡,IF($AS$16="無",試算表!AE20,IF($AS$16="中",試算表!AF20,試算表!AG20)),"*****"))),"") -> 148295 | Z37: =IF(總檢核,IF(age+A37-1>=被保人最大保險年齡,"", IF($AS$16="無",試算表!AH20, IF($AS$16="中",試算表!AI20,試算表!AJ20))), "") -> 128 | AC37: =IF(總檢核,IF(age+A37-1>=被保人最大保險年齡,"", IF($AS$16="無",試算表!AK20, IF($AS$16="中",試算表!AL20,試算表!AM20))), "") -> 1143 | AF37: =IF(總檢核,IF(age+A37-1>=被保人最大保險年齡,"", IF($AS$16="無",試算表!AN20, IF($AS$16="中",試算表!AO20,試算表!AP20))), "") -> 26754 | AI37: =IF(AND(總檢核,BNLTRU1檢核),IF(age+A37-1>=被保人最大保險年齡,"",IF(C37>喪葬費用檢核年齡, IF($AS$16="無",試算表!O20, IF($AS$16="中",試算表!S20, IF($AS$16="",試算表!S20,試算表!W20)))+IF(美滿定期附約!E16<>"",美滿定期附約!E16,0),IF(被保人足歲年齡>=喪葬費用檢核年齡, IF($AS$16="無",試算表!O20, IF($AS$16="中",試算表!S20, IF($AS$16="",試算表!S20,試算表!W20)))+IF(美滿定期附約!E16<>"",美滿定期附約!E16,0),"*****"))),"") -> 255568 | AL37: =IF(總檢核,IF(age+A37-1>=被保人最大保險年齡,"", IF($AS$16="無",試算表!P20, IF($AS$16="中",試算表!T20, IF($AS$16="",試算表!T20,試算表!X20)))+IF(美滿定期附約!F16<>"",美滿定期附約!F16,0)), "") -> 78207 | AO37: 4.2433 | AP37: 1.2985
A38: 15 | C38: 54 | E38: =IF(總檢核,IF(age+A38-1=被保人最大保險年齡,"***以下空白***",IF(age+A38-1>被保人最大保險年齡,"",試算表!D21+IF(美滿定期附約!C17<>"",美滿定期附約!C17,0))), "") -> 0 | H38: =IF(總檢核,IF(age+A38-1=被保人最大保險年齡,"",IF(age+A38-1>被保人最大保險年齡,"",試算表!E21+IF(美滿定期附約!D17<>"",美滿定期附約!D17,0))), "") -> 60228 | K38: =IF(總檢核,IF(age+A38-1>=被保人最大保險年齡,"",VLOOKUP($A38,試算表!$B$7:$AP$116,6,FALSE)+IF(美滿定期附約!E17<>"",美滿定期附約!E17,0)),"") -> 100000 | N38: =IF(總檢核,IF(age+A38-1>=被保人最大保險年齡,"",試算表!I21+IF(美滿定期附約!F17<>"",美滿定期附約!F17,0)), "") -> 51340 | Q38: =IF(AND(總檢核,BNLTRU1檢核),IF(age+A38-1>=被保人最大保險年齡,"",IF(C38>喪葬費用檢核年齡, IF($AS$16="無",試算表!Y21, IF($AS$16="中",試算表!Z21,試算表!AA21)), IF(被保人足歲年齡>=喪葬費用檢核年齡,IF($AS$16="無",試算表!Y21,IF($AS$16="中",試算表!Z21,試算表!AA21)),"*****"))),"") -> 255 | T38: =IF(AND(總檢核,BNLTRU1檢核),IF(age+A38-1>=被保人最大保險年齡,"",IF(C38>喪葬費用檢核年齡, IF($AS$16="無",試算表!AB21, IF($AS$16="中",試算表!AC21,試算表!AD21)), IF(被保人足歲年齡>=喪葬費用檢核年齡,IF($AS$16="無",試算表!AB21,IF($AS$16="中",試算表!AC21,試算表!AD21)),"*****"))),"") -> 2528 | W38: =IF(AND(總檢核,BNLTRU1檢核),IF(age+A38-1>=被保人最大保險年齡,"",IF(C38>喪葬費用檢核年齡, IF($AS$16="無",試算表!AE21, IF($AS$16="中",試算表!AF21,試算表!AG21)), IF(被保人足歲年齡>=喪葬費用檢核年齡,IF($AS$16="無",試算表!AE21,IF($AS$16="中",試算表!AF21,試算表!AG21)),"*****"))),"") -> 158919 | Z38: =IF(總檢核,IF(age+A38-1>=被保人最大保險年齡,"", IF($AS$16="無",試算表!AH21, IF($AS$16="中",試算表!AI21,試算表!AJ21))), "") -> 131 | AC38: =IF(總檢核,IF(age+A38-1>=被保人最大保險年齡,"", IF($AS$16="無",試算表!AK21, IF($AS$16="中",試算表!AL21,試算表!AM21))), "") -> 1298 | AF38: =IF(總檢核,IF(age+A38-1>=被保人最大保險年齡,"", IF($AS$16="無",試算表!AN21, IF($AS$16="中",試算表!AO21,試算表!AP21))), "") -> 27895 | AI38: =IF(AND(總檢核,BNLTRU1檢核),IF(age+A38-1>=被保人最大保險年齡,"",IF(C38>喪葬費用檢核年齡, IF($AS$16="無",試算表!O21, IF($AS$16="中",試算表!S21, IF($AS$16="",試算表!S21,試算表!W21)))+IF(美滿定期附約!E17<>"",美滿定期附約!E17,0),IF(被保人足歲年齡>=喪葬費用檢核年齡, IF($AS$16="無",試算表!O21, IF($AS$16="中",試算表!S21, IF($AS$16="",試算表!S21,試算表!W21)))+IF(美滿定期附約!E17<>"",美滿定期附約!E17,0),"*****"))),"") -> 261447 | AL38: =IF(總檢核,IF(age+A38-1>=被保人最大保險年齡,"", IF($AS$16="無",試算表!P21, IF($AS$16="中",試算表!T21, IF($AS$16="",試算表!T21,試算表!X21)))+IF(美滿定期附約!F17<>"",美滿定期附約!F17,0)), "") -> 80533 | AO38: 4.341 | AP38: 1.3371
A39: 16 | C39: 55 | E39: =IF(總檢核,IF(age+A39-1=被保人最大保險年齡,"***以下空白***",IF(age+A39-1>被保人最大保險年齡,"",試算表!D22+IF(美滿定期附約!C18<>"",美滿定期附約!C18,0))), "") -> 0 | H39: =IF(總檢核,IF(age+A39-1=被保人最大保險年齡,"",IF(age+A39-1>被保人最大保險年齡,"",試算表!E22+IF(美滿定期附約!D18<>"",美滿定期附約!D18,0))), "") -> 60228 | K39: =IF(總檢核,IF(age+A39-1>=被保人最大保險年齡,"",VLOOKUP($A39,試算表!$B$7:$AP$116,6,FALSE)+IF(美滿定期附約!E18<>"",美滿定期附約!E18,0)),"") -> 100000 | N39: =IF(總檢核,IF(age+A39-1>=被保人最大保險年齡,"",試算表!I22+IF(美滿定期附約!F18<>"",美滿定期附約!F18,0)), "") -> 52370 | Q39: =IF(AND(總檢核,BNLTRU1檢核),IF(age+A39-1>=被保人最大保險年齡,"",IF(C39>喪葬費用檢核年齡, IF($AS$16="無",試算表!Y22, IF($AS$16="中",試算表!Z22,試算表!AA22)), IF(被保人足歲年齡>=喪葬費用檢核年齡,IF($AS$16="無",試算表!Y22,IF($AS$16="中",試算表!Z22,試算表!AA22)),"*****"))),"") -> 257 | T39: =IF(AND(總檢核,BNLTRU1檢核),IF(age+A39-1>=被保人最大保險年齡,"",IF(C39>喪葬費用檢核年齡, IF($AS$16="無",試算表!AB22, IF($AS$16="中",試算表!AC22,試算表!AD22)), IF(被保人足歲年齡>=喪葬費用檢核年齡,IF($AS$16="無",試算表!AB22,IF($AS$16="中",試算表!AC22,試算表!AD22)),"*****"))),"") -> 2785 | W39: =IF(AND(總檢核,BNLTRU1檢核),IF(age+A39-1>=被保人最大保險年齡,"",IF(C39>喪葬費用檢核年齡, IF($AS$16="無",試算表!AE22, IF($AS$16="中",試算表!AF22,試算表!AG22)), IF(被保人足歲年齡>=喪葬費用檢核年齡,IF($AS$16="無",試算表!AE22,IF($AS$16="中",試算表!AF22,試算表!AG22)),"*****"))),"") -> 160344 | Z39: =IF(總檢核,IF(age+A39-1>=被保人最大保險年齡,"", IF($AS$16="無",試算表!AH22, IF($AS$16="中",試算表!AI22,試算表!AJ22))), "") -> 134 | AC39: =IF(總檢核,IF(age+A39-1>=被保人最大保險年齡,"", IF($AS$16="無",試算表!AK22, IF($AS$16="中",試算表!AL22,試算表!AM22))), "") -> 1458 | AF39: =IF(總檢核,IF(age+A39-1>=被保人最大保險年齡,"", IF($AS$16="無",試算表!AN22, IF($AS$16="中",試算表!AO22,試算表!AP22))), "") -> 29068 | AI39: =IF(AND(總檢核,BNLTRU1檢核),IF(age+A39-1>=被保人最大保險年齡,"",IF(C39>喪葬費用檢核年齡, IF($AS$16="無",試算表!O22, IF($AS$16="中",試算表!S22, IF($AS$16="",試算表!S22,試算表!W22)))+IF(美滿定期附約!E18<>"",美滿定期附約!E18,0),IF(被保人足歲年齡>=喪葬費用檢核年齡, IF($AS$16="無",試算表!O22, IF($AS$16="中",試算表!S22, IF($AS$16="",試算表!S22,試算表!W22)))+IF(美滿定期附約!E18<>"",美滿定期附約!E18,0),"*****"))),"") -> 263129 | AL39: =IF(總檢核,IF(age+A39-1>=被保人最大保險年齡,"", IF($AS$16="無",試算表!P22, IF($AS$16="中",試算表!T22, IF($AS$16="",試算表!T22,試算表!X22)))+IF(美滿定期附約!F18<>"",美滿定期附約!F18,0)), "") -> 82896 | AO39: 4.3689 | AP39: 1.3764
A40: 17 | C40: 56 | E40: =IF(總檢核,IF(age+A40-1=被保人最大保險年齡,"***以下空白***",IF(age+A40-1>被保人最大保險年齡,"",試算表!D23+IF(美滿定期附約!C19<>"",美滿定期附約!C19,0))), "") -> 0 | H40: =IF(總檢核,IF(age+A40-1=被保人最大保險年齡,"",IF(age+A40-1>被保人最大保險年齡,"",試算表!E23+IF(美滿定期附約!D19<>"",美滿定期附約!D19,0))), "") -> 60228 | K40: =IF(總檢核,IF(age+A40-1>=被保人最大保險年齡,"",VLOOKUP($A40,試算表!$B$7:$AP$116,6,FALSE)+IF(美滿定期附約!E19<>"",美滿定期附約!E19,0)),"") -> 100000 | N40: =IF(總檢核,IF(age+A40-1>=被保人最大保險年齡,"",試算表!I23+IF(美滿定期附約!F19<>"",美滿定期附約!F19,0)), "") -> 53420 | Q40: =IF(AND(總檢核,BNLTRU1檢核),IF(age+A40-1>=被保人最大保險年齡,"",IF(C40>喪葬費用檢核年齡, IF($AS$16="無",試算表!Y23, IF($AS$16="中",試算表!Z23,試算表!AA23)), IF(被保人足歲年齡>=喪葬費用檢核年齡,IF($AS$16="無",試算表!Y23,IF($AS$16="中",試算表!Z23,試算表!AA23)),"*****"))),"") -> 257 | T40: =IF(AND(總檢核,BNLTRU1檢核),IF(age+A40-1>=被保人最大保險年齡,"",IF(C40>喪葬費用檢核年齡, IF($AS$16="無",試算表!AB23, IF($AS$16="中",試算表!AC23,試算表!AD23)), IF(被保人足歲年齡>=喪葬費用檢核年齡,IF($AS$16="無",試算表!AB23,IF($AS$16="中",試算表!AC23,試算表!AD23)),"*****"))),"") -> 3042 | W40: =IF(AND(總檢核,BNLTRU1檢核),IF(age+A40-1>=被保人最大保險年齡,"",IF(C40>喪葬費用檢核年齡, IF($AS$16="無",試算表!AE23, IF($AS$16="中",試算表!AF23,試算表!AG23)), IF(被保人足歲年齡>=喪葬費用檢核年齡,IF($AS$16="無",試算表!AE23,IF($AS$16="中",試算表!AF23,試算表!AG23)),"*****"))),"") -> 161775 | Z40: =IF(總檢核,IF(age+A40-1>=被保人最大保險年齡,"", IF($AS$16="無",試算表!AH23, IF($AS$16="中",試算表!AI23,試算表!AJ23))), "") -> 137 | AC40: =IF(總檢核,IF(age+A40-1>=被保人最大保險年齡,"", IF($AS$16="無",試算表!AK23, IF($AS$16="中",試算表!AL23,試算表!AM23))), "") -> 1625 | AF40: =IF(總檢核,IF(age+A40-1>=被保人最大保險年齡,"", IF($AS$16="無",試算表!AN23, IF($AS$16="中",試算表!AO23,試算表!AP23))), "") -> 30275 | AI40: =IF(AND(總檢核,BNLTRU1檢核),IF(age+A40-1>=被保人最大保險年齡,"",IF(C40>喪葬費用檢核年齡, IF($AS$16="無",試算表!O23, IF($AS$16="中",試算表!S23, IF($AS$16="",試算表!S23,試算表!W23)))+IF(美滿定期附約!E19<>"",美滿定期附約!E19,0),IF(被保人足歲年齡>=喪葬費用檢核年齡, IF($AS$16="無",試算表!O23, IF($AS$16="中",試算表!S23, IF($AS$16="",試算表!S23,試算表!W23)))+IF(美滿定期附約!E19<>"",美滿定期附約!E19,0),"*****"))),"") -> 264817 | AL40: =IF(總檢核,IF(age+A40-1>=被保人最大保險年齡,"", IF($AS$16="無",試算表!P23, IF($AS$16="中",試算表!T23, IF($AS$16="",試算表!T23,試算表!X23)))+IF(美滿定期附約!F19<>"",美滿定期附約!F19,0)), "") -> 85320 | AO40: 4.3969 | AP40: 1.4166
A41: 18 | C41: 57 | E41: =IF(總檢核,IF(age+A41-1=被保人最大保險年齡,"***以下空白***",IF(age+A41-1>被保人最大保險年齡,"",試算表!D24+IF(美滿定期附約!C20<>"",美滿定期附約!C20,0))), "") -> 0 | H41: =IF(總檢核,IF(age+A41-1=被保人最大保險年齡,"",IF(age+A41-1>被保人最大保險年齡,"",試算表!E24+IF(美滿定期附約!D20<>"",美滿定期附約!D20,0))), "") -> 60228 | K41: =IF(總檢核,IF(age+A41-1>=被保人最大保險年齡,"",VLOOKUP($A41,試算表!$B$7:$AP$116,6,FALSE)+IF(美滿定期附約!E20<>"",美滿定期附約!E20,0)),"") -> 100000 | N41: =IF(總檢核,IF(age+A41-1>=被保人最大保險年齡,"",試算表!I24+IF(美滿定期附約!F20<>"",美滿定期附約!F20,0)), "") -> 54490 | Q41: =IF(AND(總檢核,BNLTRU1檢核),IF(age+A41-1>=被保人最大保險年齡,"",IF(C41>喪葬費用檢核年齡, IF($AS$16="無",試算表!Y24, IF($AS$16="中",試算表!Z24,試算表!AA24)), IF(被保人足歲年齡>=喪葬費用檢核年齡,IF($AS$16="無",試算表!Y24,IF($AS$16="中",試算表!Z24,試算表!AA24)),"*****"))),"") -> 257 | T41: =IF(AND(總檢核,BNLTRU1檢核),IF(age+A41-1>=被保人最大保險年齡,"",IF(C41>喪葬費用檢核年齡, IF($AS$16="無",試算表!AB24, IF($AS$16="中",試算表!AC24,試算表!AD24)), IF(被保人足歲年齡>=喪葬費用檢核年齡,IF($AS$16="無",試算表!AB24,IF($AS$16="中",試算表!AC24,試算表!AD24)),"*****"))),"") -> 3299 | W41: =IF(AND(總檢核,BNLTRU1檢核),IF(age+A41-1>=被保人最大保險年齡,"",IF(C41>喪葬費用檢核年齡, IF($AS$16="無",試算表!AE24, IF($AS$16="中",試算表!AF24,試算表!AG24)), IF(被保人足歲年齡>=喪葬費用檢核年齡,IF($AS$16="無",試算表!AE24,IF($AS$16="中",試算表!AF24,試算表!AG24)),"*****"))),"") -> 163213 | Z41: =IF(總檢核,IF(age+A41-1>=被保人最大保險年齡,"", IF($AS$16="無",試算表!AH24, IF($AS$16="中",試算表!AI24,試算表!AJ24))), "") -> 140 | AC41: =IF(總檢核,IF(age+A41-1>=被保人最大保險年齡,"", IF($AS$16="無",試算表!AK24, IF($AS$16="中",試算表!AL24,試算表!AM24))), "") -> 1798 | AF41: =IF(總檢核,IF(age+A41-1>=被保人最大保險年齡,"", IF($AS$16="無",試算表!AN24, IF($AS$16="中",試算表!AO24,試算表!AP24))), "") -> 31519 | AI41: =IF(AND(總檢核,BNLTRU1檢核),IF(age+A41-1>=被保人最大保險年齡,"",IF(C41>喪葬費用檢核年齡, IF($AS$16="無",試算表!O24, IF($AS$16="中",試算表!S24, IF($AS$16="",試算表!S24,試算表!W24)))+IF(美滿定期附約!E20<>"",美滿定期附約!E20,0),IF(被保人足歲年齡>=喪葬費用檢核年齡, IF($AS$16="無",試算表!O24, IF($AS$16="中",試算表!S24, IF($AS$16="",試算表!S24,試算表!W24)))+IF(美滿定期附約!E20<>"",美滿定期附約!E20,0),"*****"))),"") -> 266512 | AL41: =IF(總檢核,IF(age+A41-1>=被保人最大保險年齡,"", IF($AS$16="無",試算表!P24, IF($AS$16="中",試算表!T24, IF($AS$16="",試算表!T24,試算表!X24)))+IF(美滿定期附約!F20<>"",美滿定期附約!F20,0)), "") -> 87807 | AO41: 4.4251 | AP41: 1.4579
A42: 19 | C42: 58 | E42: =IF(總檢核,IF(age+A42-1=被保人最大保險年齡,"***以下空白***",IF(age+A42-1>被保人最大保險年齡,"",試算表!D25+IF(美滿定期附約!C21<>"",美滿定期附約!C21,0))), "") -> 0 | H42: =IF(總檢核,IF(age+A42-1=被保人最大保險年齡,"",IF(age+A42-1>被保人最大保險年齡,"",試算表!E25+IF(美滿定期附約!D21<>"",美滿定期附約!D21,0))), "") -> 60228 | K42: =IF(總檢核,IF(age+A42-1>=被保人最大保險年齡,"",VLOOKUP($A42,試算表!$B$7:$AP$116,6,FALSE)+IF(美滿定期附約!E21<>"",美滿定期附約!E21,0)),"") -> 100000 | N42: =IF(總檢核,IF(age+A42-1>=被保人最大保險年齡,"",試算表!I25+IF(美滿定期附約!F21<>"",美滿定期附約!F21,0)), "") -> 55560 | Q42: =IF(AND(總檢核,BNLTRU1檢核),IF(age+A42-1>=被保人最大保險年齡,"",IF(C42>喪葬費用檢核年齡, IF($AS$16="無",試算表!Y25, IF($AS$16="中",試算表!Z25,試算表!AA25)), IF(被保人足歲年齡>=喪葬費用檢核年齡,IF($AS$16="無",試算表!Y25,IF($AS$16="中",試算表!Z25,試算表!AA25)),"*****"))),"") -> 258 | T42: =IF(AND(總檢核,BNLTRU1檢核),IF(age+A42-1>=被保人最大保險年齡,"",IF(C42>喪葬費用檢核年齡, IF($AS$16="無",試算表!AB25, IF($AS$16="中",試算表!AC25,試算表!AD25)), IF(被保人足歲年齡>=喪葬費用檢核年齡,IF($AS$16="無",試算表!AB25,IF($AS$16="中",試算表!AC25,試算表!AD25)),"*****"))),"") -> 3557 | W42: =IF(AND(總檢核,BNLTRU1檢核),IF(age+A42-1>=被保人最大保險年齡,"",IF(C42>喪葬費用檢核年齡, IF($AS$16="無",試算表!AE25, IF($AS$16="中",試算表!AF25,試算表!AG25)), IF(被保人足歲年齡>=喪葬費用檢核年齡,IF($AS$16="無",試算表!AE25,IF($AS$16="中",試算表!AF25,試算表!AG25)),"*****"))),"") -> 164656 | Z42: =IF(總檢核,IF(age+A42-1>=被保人最大保險年齡,"", IF($AS$16="無",試算表!AH25, IF($AS$16="中",試算表!AI25,試算表!AJ25))), "") -> 143 | AC42: =IF(總檢核,IF(age+A42-1>=被保人最大保險年齡,"", IF($AS$16="無",試算表!AK25, IF($AS$16="中",試算表!AL25,試算表!AM25))), "") -> 1977 | AF42: =IF(總檢核,IF(age+A42-1>=被保人最大保險年齡,"", IF($AS$16="無",試算表!AN25, IF($AS$16="中",試算表!AO25,試算表!AP25))), "") -> 32798 | AI42: =IF(AND(總檢核,BNLTRU1檢核),IF(age+A42-1>=被保人最大保險年齡,"",IF(C42>喪葬費用檢核年齡, IF($AS$16="無",試算表!O25, IF($AS$16="中",試算表!S25, IF($AS$16="",試算表!S25,試算表!W25)))+IF(美滿定期附約!E21<>"",美滿定期附約!E21,0),IF(被保人足歲年齡>=喪葬費用檢核年齡, IF($AS$16="無",試算表!O25, IF($AS$16="中",試算表!S25, IF($AS$16="",試算表!S25,試算表!W25)))+IF(美滿定期附約!E21<>"",美滿定期附約!E21,0),"*****"))),"") -> 268213 | AL42: =IF(總檢核,IF(age+A42-1>=被保人最大保險年齡,"", IF($AS$16="無",試算表!P25, IF($AS$16="中",試算表!T25, IF($AS$16="",試算表!T25,試算表!X25)))+IF(美滿定期附約!F21<>"",美滿定期附約!F21,0)), "") -> 90335 | AO42: 4.4533 | AP42: 1.4999
A43: 20 | C43: 59 | E43: =IF(總檢核,IF(age+A43-1=被保人最大保險年齡,"***以下空白***",IF(age+A43-1>被保人最大保險年齡,"",試算表!D26+IF(美滿定期附約!C22<>"",美滿定期附約!C22,0))), "") -> 0 | H43: =IF(總檢核,IF(age+A43-1=被保人最大保險年齡,"",IF(age+A43-1>被保人最大保險年齡,"",試算表!E26+IF(美滿定期附約!D22<>"",美滿定期附約!D22,0))), "") -> 60228 | K43: =IF(總檢核,IF(age+A43-1>=被保人最大保險年齡,"",VLOOKUP($A43,試算表!$B$7:$AP$116,6,FALSE)+IF(美滿定期附約!E22<>"",美滿定期附約!E22,0)),"") -> 100000 | N43: =IF(總檢核,IF(age+A43-1>=被保人最大保險年齡,"",試算表!I26+IF(美滿定期附約!F22<>"",美滿定期附約!F22,0)), "") -> 56650 | Q43: =IF(AND(總檢核,BNLTRU1檢核),IF(age+A43-1>=被保人最大保險年齡,"",IF(C43>喪葬費用檢核年齡, IF($AS$16="無",試算表!Y26, IF($AS$16="中",試算表!Z26,試算表!AA26)), IF(被保人足歲年齡>=喪葬費用檢核年齡,IF($AS$16="無",試算表!Y26,IF($AS$16="中",試算表!Z26,試算表!AA26)),"*****"))),"") -> 259 | T43: =IF(AND(總檢核,BNLTRU1檢核),IF(age+A43-1>=被保人最大保險年齡,"",IF(C43>喪葬費用檢核年齡, IF($AS$16="無",試算表!AB26, IF($AS$16="中",試算表!AC26,試算表!AD26)), IF(被保人足歲年齡>=喪葬費用檢核年齡,IF($AS$16="無",試算表!AB26,IF($AS$16="中",試算表!AC26,試算表!AD26)),"*****"))),"") -> 3816 | W43: =IF(AND(總檢核,BNLTRU1檢核),IF(age+A43-1>=被保人最大保險年齡,"",IF(C43>喪葬費用檢核年齡, IF($AS$16="無",試算表!AE26, IF($AS$16="中",試算表!AF26,試算表!AG26)), IF(被保人足歲年齡>=喪葬費用檢核年齡,IF($AS$16="無",試算表!AE26,IF($AS$16="中",試算表!AF26,試算表!AG26)),"*****"))),"") -> 166106 | Z43: =IF(總檢核,IF(age+A43-1>=被保人最大保險年齡,"", IF($AS$16="無",試算表!AH26, IF($AS$16="中",試算表!AI26,試算表!AJ26))), "") -> 147 | AC43: =IF(總檢核,IF(age+A43-1>=被保人最大保險年齡,"", IF($AS$16="無",試算表!AK26, IF($AS$16="中",試算表!AL26,試算表!AM26))), "") -> 2162 | AF43: =IF(總檢核,IF(age+A43-1>=被保人最大保險年齡,"", IF($AS$16="無",試算表!AN26, IF($AS$16="中",試算表!AO26,試算表!AP26))), "") -> 34114 | AI43: =IF(AND(總檢核,BNLTRU1檢核),IF(age+A43-1>=被保人最大保險年齡,"",IF(C43>喪葬費用檢核年齡, IF($AS$16="無",試算表!O26, IF($AS$16="中",試算表!S26, IF($AS$16="",試算表!S26,試算表!W26)))+IF(美滿定期附約!E22<>"",美滿定期附約!E22,0),IF(被保人足歲年齡>=喪葬費用檢核年齡, IF($AS$16="無",試算表!O26, IF($AS$16="中",試算表!S26, IF($AS$16="",試算表!S26,試算表!W26)))+IF(美滿定期附約!E22<>"",美滿定期附約!E22,0),"*****"))),"") -> 269922 | AL43: =IF(總檢核,IF(age+A43-1>=被保人最大保險年齡,"", IF($AS$16="無",試算表!P26, IF($AS$16="中",試算表!T26, IF($AS$16="",試算表!T26,試算表!X26)))+IF(美滿定期附約!F22<>"",美滿定期附約!F22,0)), "") -> 92926 | AO43: 4.4817 | AP43: 1.5429
A44: 21 | C44: 60 | E44: =IF(總檢核,IF(age+A44-1=被保人最大保險年齡,"***以下空白***",IF(age+A44-1>被保人最大保險年齡,"",試算表!D27+IF(美滿定期附約!C23<>"",美滿定期附約!C23,0))), "") -> 0 | H44: =IF(總檢核,IF(age+A44-1=被保人最大保險年齡,"",IF(age+A44-1>被保人最大保險年齡,"",試算表!E27+IF(美滿定期附約!D23<>"",美滿定期附約!D23,0))), "") -> 60228 | K44: =IF(總檢核,IF(age+A44-1>=被保人最大保險年齡,"",VLOOKUP($A44,試算表!$B$7:$AP$116,6,FALSE)+IF(美滿定期附約!E23<>"",美滿定期附約!E23,0)),"") -> 100000 | N44: =IF(總檢核,IF(age+A44-1>=被保人最大保險年齡,"",試算表!I27+IF(美滿定期附約!F23<>"",美滿定期附約!F23,0)), "") -> 57750 | Q44: =IF(AND(總檢核,BNLTRU1檢核),IF(age+A44-1>=被保人最大保險年齡,"",IF(C44>喪葬費用檢核年齡, IF($AS$16="無",試算表!Y27, IF($AS$16="中",試算表!Z27,試算表!AA27)), IF(被保人足歲年齡>=喪葬費用檢核年齡,IF($AS$16="無",試算表!Y27,IF($AS$16="中",試算表!Z27,試算表!AA27)),"*****"))),"") -> 260 | T44: =IF(AND(總檢核,BNLTRU1檢核),IF(age+A44-1>=被保人最大保險年齡,"",IF(C44>喪葬費用檢核年齡, IF($AS$16="無",試算表!AB27, IF($AS$16="中",試算表!AC27,試算表!AD27)), IF(被保人足歲年齡>=喪葬費用檢核年齡,IF($AS$16="無",試算表!AB27,IF($AS$16="中",試算表!AC27,試算表!AD27)),"*****"))),"") -> 4076 | W44: =IF(AND(總檢核,BNLTRU1檢核),IF(age+A44-1>=被保人最大保險年齡,"",IF(C44>喪葬費用檢核年齡, IF($AS$16="無",試算表!AE27, IF($AS$16="中",試算表!AF27,試算表!AG27)), IF(被保人足歲年齡>=喪葬費用檢核年齡,IF($AS$16="無",試算表!AE27,IF($AS$16="中",試算表!AF27,試算表!AG27)),"*****"))),"") -> 171725 | Z44: =IF(總檢核,IF(age+A44-1>=被保人最大保險年齡,"", IF($AS$16="無",試算表!AH27, IF($AS$16="中",試算表!AI27,試算表!AJ27))), "") -> 150 | AC44: =IF(總檢核,IF(age+A44-1>=被保人最大保險年齡,"", IF($AS$16="無",試算表!AK27, IF($AS$16="中",試算表!AL27,試算表!AM27))), "") -> 2354 | AF44: =IF(總檢核,IF(age+A44-1>=被保人最大保險年齡,"", IF($AS$16="無",試算表!AN27, IF($AS$16="中",試算表!AO27,試算表!AP27))), "") -> 35459 | AI44: =IF(AND(總檢核,BNLTRU1檢核),IF(age+A44-1>=被保人最大保險年齡,"",IF(C44>喪葬費用檢核年齡, IF($AS$16="無",試算表!O27, IF($AS$16="中",試算表!S27, IF($AS$16="",試算表!S27,試算表!W27)))+IF(美滿定期附約!E23<>"",美滿定期附約!E23,0),IF(被保人足歲年齡>=喪葬費用檢核年齡, IF($AS$16="無",試算表!O27, IF($AS$16="中",試算表!S27, IF($AS$16="",試算表!S27,試算表!W27)))+IF(美滿定期附約!E23<>"",美滿定期附約!E23,0),"*****"))),"") -> 275801 | AL44: =IF(總檢核,IF(age+A44-1>=被保人最大保險年齡,"", IF($AS$16="無",試算表!P27, IF($AS$16="中",試算表!T27, IF($AS$16="",試算表!T27,試算表!X27)))+IF(美滿定期附約!F23<>"",美滿定期附約!F23,0)), "") -> 95563 | AO44: 4.5793 | AP44: 1.5867
A45: 22 | C45: 61 | E45: =IF(總檢核,IF(age+A45-1=被保人最大保險年齡,"***以下空白***",IF(age+A45-1>被保人最大保險年齡,"",試算表!D28+IF(美滿定期附約!C24<>"",美滿定期附約!C24,0))), "") -> 0 | H45: =IF(總檢核,IF(age+A45-1=被保人最大保險年齡,"",IF(age+A45-1>被保人最大保險年齡,"",試算表!E28+IF(美滿定期附約!D24<>"",美滿定期附約!D24,0))), "") -> 60228 | K45: =IF(總檢核,IF(age+A45-1>=被保人最大保險年齡,"",VLOOKUP($A45,試算表!$B$7:$AP$116,6,FALSE)+IF(美滿定期附約!E24<>"",美滿定期附約!E24,0)),"") -> 100000 | N45: =IF(總檢核,IF(age+A45-1>=被保人最大保險年齡,"",試算表!I28+IF(美滿定期附約!F24<>"",美滿定期附約!F24,0)), "") -> 58850 | Q45: =IF(AND(總檢核,BNLTRU1檢核),IF(age+A45-1>=被保人最大保險年齡,"",IF(C45>喪葬費用檢核年齡, IF($AS$16="無",試算表!Y28, IF($AS$16="中",試算表!Z28,試算表!AA28)), IF(被保人足歲年齡>=喪葬費用檢核年齡,IF($AS$16="無",試算表!Y28,IF($AS$16="中",試算表!Z28,試算表!AA28)),"*****"))),"") -> 260 | T45: =IF(AND(總檢核,BNLTRU1檢核),IF(age+A45-1>=被保人最大保險年齡,"",IF(C45>喪葬費用檢核年齡, IF($AS$16="無",試算表!AB28, IF($AS$16="中",試算表!AC28,試算表!AD28)), IF(被保人足歲年齡>=喪葬費用檢核年齡,IF($AS$16="無",試算表!AB28,IF($AS$16="中",試算表!AC28,試算表!AD28)),"*****"))),"") -> 4336 | W45: =IF(AND(總檢核,BNLTRU1檢核),IF(age+A45-1>=被保人最大保險年齡,"",IF(C45>喪葬費用檢核年齡, IF($AS$16="無",試算表!AE28, IF($AS$16="中",試算表!AF28,試算表!AG28)), IF(被保人足歲年齡>=喪葬費用檢核年齡,IF($AS$16="無",試算表!AE28,IF($AS$16="中",試算表!AF28,試算表!AG28)),"*****"))),"") -> 173198 | Z45: =IF(總檢核,IF(age+A45-1>=被保人最大保險年齡,"", IF($AS$16="無",試算表!AH28, IF($AS$16="中",試算表!AI28,試算表!AJ28))), "") -> 153 | AC45: =IF(總檢核,IF(age+A45-1>=被保人最大保險年齡,"", IF($AS$16="無",試算表!AK28, IF($AS$16="中",試算表!AL28,試算表!AM28))), "") -> 2552 | AF45: =IF(總檢核,IF(age+A45-1>=被保人最大保險年齡,"", IF($AS$16="無",試算表!AN28, IF($AS$16="中",試算表!AO28,試算表!AP28))), "") -> 36842 | AI45: =IF(AND(總檢核,BNLTRU1檢核),IF(age+A45-1>=被保人最大保險年齡,"",IF(C45>喪葬費用檢核年齡, IF($AS$16="無",試算表!O28, IF($AS$16="中",試算表!S28, IF($AS$16="",試算表!S28,試算表!W28)))+IF(美滿定期附約!E24<>"",美滿定期附約!E24,0),IF(被保人足歲年齡>=喪葬費用檢核年齡, IF($AS$16="無",試算表!O28, IF($AS$16="中",試算表!S28, IF($AS$16="",試算表!S28,試算表!W28)))+IF(美滿定期附約!E24<>"",美滿定期附約!E24,0),"*****"))),"") -> 277534 | AL45: =IF(總檢核,IF(age+A45-1>=被保人最大保險年齡,"", IF($AS$16="無",試算表!P28, IF($AS$16="中",試算表!T28, IF($AS$16="",試算表!T28,試算表!X28)))+IF(美滿定期附約!F24<>"",美滿定期附約!F24,0)), "") -> 98244 | AO45: 4.6081 | AP45: 1.6312
A46: 23 | C46: 62 | E46: =IF(總檢核,IF(age+A46-1=被保人最大保險年齡,"***以下空白***",IF(age+A46-1>被保人最大保險年齡,"",試算表!D29+IF(美滿定期附約!C25<>"",美滿定期附約!C25,0))), "") -> 0 | H46: =IF(總檢核,IF(age+A46-1=被保人最大保險年齡,"",IF(age+A46-1>被保人最大保險年齡,"",試算表!E29+IF(美滿定期附約!D25<>"",美滿定期附約!D25,0))), "") -> 60228 | K46: =IF(總檢核,IF(age+A46-1>=被保人最大保險年齡,"",VLOOKUP($A46,試算表!$B$7:$AP$116,6,FALSE)+IF(美滿定期附約!E25<>"",美滿定期附約!E25,0)),"") -> 100000 | N46: =IF(總檢核,IF(age+A46-1>=被保人最大保險年齡,"",試算表!I29+IF(美滿定期附約!F25<>"",美滿定期附約!F25,0)), "") -> 59970 | Q46: =IF(AND(總檢核,BNLTRU1檢核),IF(age+A46-1>=被保人最大保險年齡,"",IF(C46>喪葬費用檢核年齡, IF($AS$16="無",試算表!Y29, IF($AS$16="中",試算表!Z29,試算表!AA29)), IF(被保人足歲年齡>=喪葬費用檢核年齡,IF($AS$16="無",試算表!Y29,IF($AS$16="中",試算表!Z29,試算表!AA29)),"*****"))),"") -> 261 | T46: =IF(AND(總檢核,BNLTRU1檢核),IF(age+A46-1>=被保人最大保險年齡,"",IF(C46>喪葬費用檢核年齡, IF($AS$16="無",試算表!AB29, IF($AS$16="中",試算表!AC29,試算表!AD29)), IF(被保人足歲年齡>=喪葬費用檢核年齡,IF($AS$16="無",試算表!AB29,IF($AS$16="中",試算表!AC29,試算表!AD29)),"*****"))),"") -> 4597 | W46: =IF(AND(總檢核,BNLTRU1檢核),IF(age+A46-1>=被保人最大保險年齡,"",IF(C46>喪葬費用檢核年齡, IF($AS$16="無",試算表!AE29, IF($AS$16="中",試算表!AF29,試算表!AG29)), IF(被保人足歲年齡>=喪葬費用檢核年齡,IF($AS$16="無",試算表!AE29,IF($AS$16="中",試算表!AF29,試算表!AG29)),"*****"))),"") -> 174677 | Z46: =IF(總檢核,IF(age+A46-1>=被保人最大保險年齡,"", IF($AS$16="無",試算表!AH29, IF($AS$16="中",試算表!AI29,試算表!AJ29))), "") -> 156 | AC46: =IF(總檢核,IF(age+A46-1>=被保人最大保險年齡,"", IF($AS$16="無",試算表!AK29, IF($AS$16="中",試算表!AL29,試算表!AM29))), "") -> 2757 | AF46: =IF(總檢核,IF(age+A46-1>=被保人最大保險年齡,"", IF($AS$16="無",試算表!AN29, IF($AS$16="中",試算表!AO29,試算表!AP29))), "") -> 38261 | AI46: =IF(AND(總檢核,BNLTRU1檢核),IF(age+A46-1>=被保人最大保險年齡,"",IF(C46>喪葬費用檢核年齡, IF($AS$16="無",試算表!O29, IF($AS$16="中",試算表!S29, IF($AS$16="",試算表!S29,試算表!W29)))+IF(美滿定期附約!E25<>"",美滿定期附約!E25,0),IF(被保人足歲年齡>=喪葬費用檢核年齡, IF($AS$16="無",試算表!O29, IF($AS$16="中",試算表!S29, IF($AS$16="",試算表!S29,試算表!W29)))+IF(美滿定期附約!E25<>"",美滿定期附約!E25,0),"*****"))),"") -> 279274 | AL46: =IF(總檢核,IF(age+A46-1>=被保人最大保險年齡,"", IF($AS$16="無",試算表!P29, IF($AS$16="中",試算表!T29, IF($AS$16="",試算表!T29,試算表!X29)))+IF(美滿定期附約!F25<>"",美滿定期附約!F25,0)), "") -> 100988 | AO46: 4.6369 | AP46: 1.6768
A47: 24 | C47: 63 | E47: =IF(總檢核,IF(age+A47-1=被保人最大保險年齡,"***以下空白***",IF(age+A47-1>被保人最大保險年齡,"",試算表!D30+IF(美滿定期附約!C26<>"",美滿定期附約!C26,0))), "") -> 0 | H47: =IF(總檢核,IF(age+A47-1=被保人最大保險年齡,"",IF(age+A47-1>被保人最大保險年齡,"",試算表!E30+IF(美滿定期附約!D26<>"",美滿定期附約!D26,0))), "") -> 60228 | K47: =IF(總檢核,IF(age+A47-1>=被保人最大保險年齡,"",VLOOKUP($A47,試算表!$B$7:$AP$116,6,FALSE)+IF(美滿定期附約!E26<>"",美滿定期附約!E26,0)),"") -> 100000 | N47: =IF(總檢核,IF(age+A47-1>=被保人最大保險年齡,"",試算表!I30+IF(美滿定期附約!F26<>"",美滿定期附約!F26,0)), "") -> 61090 | Q47: =IF(AND(總檢核,BNLTRU1檢核),IF(age+A47-1>=被保人最大保險年齡,"",IF(C47>喪葬費用檢核年齡, IF($AS$16="無",試算表!Y30, IF($AS$16="中",試算表!Z30,試算表!AA30)), IF(被保人足歲年齡>=喪葬費用檢核年齡,IF($AS$16="無",試算表!Y30,IF($AS$16="中",試算表!Z30,試算表!AA30)),"*****"))),"") -> 261 | T47: =IF(AND(總檢核,BNLTRU1檢核),IF(age+A47-1>=被保人最大保險年齡,"",IF(C47>喪葬費用檢核年齡, IF($AS$16="無",試算表!AB30, IF($AS$16="中",試算表!AC30,試算表!AD30)), IF(被保人足歲年齡>=喪葬費用檢核年齡,IF($AS$16="無",試算表!AB30,IF($AS$16="中",試算表!AC30,試算表!AD30)),"*****"))),"") -> 4858 | W47: =IF(AND(總檢核,BNLTRU1檢核),IF(age+A47-1>=被保人最大保險年齡,"",IF(C47>喪葬費用檢核年齡, IF($AS$16="無",試算表!AE30, IF($AS$16="中",試算表!AF30,試算表!AG30)), IF(被保人足歲年齡>=喪葬費用檢核年齡,IF($AS$16="無",試算表!AE30,IF($AS$16="中",試算表!AF30,試算表!AG30)),"*****"))),"") -> 176162 | Z47: =IF(總檢核,IF(age+A47-1>=被保人最大保險年齡,"", IF($AS$16="無",試算表!AH30, IF($AS$16="中",試算表!AI30,試算表!AJ30))), "") -> 160 | AC47: =IF(總檢核,IF(age+A47-1>=被保人最大保險年齡,"", IF($AS$16="無",試算表!AK30, IF($AS$16="中",試算表!AL30,試算表!AM30))), "") -> 2968 | AF47: =IF(總檢核,IF(age+A47-1>=被保人最大保險年齡,"", IF($AS$16="無",試算表!AN30, IF($AS$16="中",試算表!AO30,試算表!AP30))), "") -> 39718 | AI47: =IF(AND(總檢核,BNLTRU1檢核),IF(age+A47-1>=被保人最大保險年齡,"",IF(C47>喪葬費用檢核年齡, IF($AS$16="無",試算表!O30, IF($AS$16="中",試算表!S30, IF($AS$16="",試算表!S30,試算表!W30)))+IF(美滿定期附約!E26<>"",美滿定期附約!E26,0),IF(被保人足歲年齡>=喪葬費用檢核年齡, IF($AS$16="無",試算表!O30, IF($AS$16="中",試算表!S30, IF($AS$16="",試算表!S30,試算表!W30)))+IF(美滿定期附約!E26<>"",美滿定期附約!E26,0),"*****"))),"") -> 281020 | AL47: =IF(總檢核,IF(age+A47-1>=被保人最大保險年齡,"", IF($AS$16="無",試算表!P30, IF($AS$16="中",試算表!T30, IF($AS$16="",試算表!T30,試算表!X30)))+IF(美滿定期附約!F26<>"",美滿定期附約!F26,0)), "") -> 103776 | AO47: 4.6659 | AP47: 1.7231
A48: 25 | C48: 64 | E48: =IF(總檢核,IF(age+A48-1=被保人最大保險年齡,"***以下空白***",IF(age+A48-1>被保人最大保險年齡,"",試算表!D31+IF(美滿定期附約!C27<>"",美滿定期附約!C27,0))), "") -> 0 | H48: =IF(總檢核,IF(age+A48-1=被保人最大保險年齡,"",IF(age+A48-1>被保人最大保險年齡,"",試算表!E31+IF(美滿定期附約!D27<>"",美滿定期附約!D27,0))), "") -> 60228 | K48: =IF(總檢核,IF(age+A48-1>=被保人最大保險年齡,"",VLOOKUP($A48,試算表!$B$7:$AP$116,6,FALSE)+IF(美滿定期附約!E27<>"",美滿定期附約!E27,0)),"") -> 100000 | N48: =IF(總檢核,IF(age+A48-1>=被保人最大保險年齡,"",試算表!I31+IF(美滿定期附約!F27<>"",美滿定期附約!F27,0)), "") -> 62230 | Q48: =IF(AND(總檢核,BNLTRU1檢核),IF(age+A48-1>=被保人最大保險年齡,"",IF(C48>喪葬費用檢核年齡, IF($AS$16="無",試算表!Y31, IF($AS$16="中",試算表!Z31,試算表!AA31)), IF(被保人足歲年齡>=喪葬費用檢核年齡,IF($AS$16="無",試算表!Y31,IF($AS$16="中",試算表!Z31,試算表!AA31)),"*****"))),"") -> 263 | T48: =IF(AND(總檢核,BNLTRU1檢核),IF(age+A48-1>=被保人最大保險年齡,"",IF(C48>喪葬費用檢核年齡, IF($AS$16="無",試算表!AB31, IF($AS$16="中",試算表!AC31,試算表!AD31)), IF(被保人足歲年齡>=喪葬費用檢核年齡,IF($AS$16="無",試算表!AB31,IF($AS$16="中",試算表!AC31,試算表!AD31)),"*****"))),"") -> 5121 | W48: =IF(AND(總檢核,BNLTRU1檢核),IF(age+A48-1>=被保人最大保險年齡,"",IF(C48>喪葬費用檢核年齡, IF($AS$16="無",試算表!AE31, IF($AS$16="中",試算表!AF31,試算表!AG31)), IF(被保人足歲年齡>=喪葬費用檢核年齡,IF($AS$16="無",試算表!AE31,IF($AS$16="中",試算表!AF31,試算表!AG31)),"*****"))),"") -> 177654 | Z48: =IF(總檢核,IF(age+A48-1>=被保人最大保險年齡,"", IF($AS$16="無",試算表!AH31, IF($AS$16="中",試算表!AI31,試算表!AJ31))), "") -> 163 | AC48: =IF(總檢核,IF(age+A48-1>=被保人最大保險年齡,"", IF($AS$16="無",試算表!AK31, IF($AS$16="中",試算表!AL31,試算表!AM31))), "") -> 3186 | AF48: =IF(總檢核,IF(age+A48-1>=被保人最大保險年齡,"", IF($AS$16="無",試算表!AN31, IF($AS$16="中",試算表!AO31,試算表!AP31))), "") -> 41212 | AI48: =IF(AND(總檢核,BNLTRU1檢核),IF(age+A48-1>=被保人最大保險年齡,"",IF(C48>喪葬費用檢核年齡, IF($AS$16="無",試算表!O31, IF($AS$16="中",試算表!S31, IF($AS$16="",試算表!S31,試算表!W31)))+IF(美滿定期附約!E27<>"",美滿定期附約!E27,0),IF(被保人足歲年齡>=喪葬費用檢核年齡, IF($AS$16="無",試算表!O31, IF($AS$16="中",試算表!S31, IF($AS$16="",試算表!S31,試算表!W31)))+IF(美滿定期附約!E27<>"",美滿定期附約!E27,0),"*****"))),"") -> 282775 | AL48: =IF(總檢核,IF(age+A48-1>=被保人最大保險年齡,"", IF($AS$16="無",試算表!P31, IF($AS$16="中",試算表!T31, IF($AS$16="",試算表!T31,試算表!X31)))+IF(美滿定期附約!F27<>"",美滿定期附約!F27,0)), "") -> 106628 | AO48: 4.6951 | AP48: 1.7704
A49: 26 | C49: 65 | E49: =IF(總檢核,IF(age+A49-1=被保人最大保險年齡,"***以下空白***",IF(age+A49-1>被保人最大保險年齡,"",試算表!D32+IF(美滿定期附約!C28<>"",美滿定期附約!C28,0))), "") -> 0 | H49: =IF(總檢核,IF(age+A49-1=被保人最大保險年齡,"",IF(age+A49-1>被保人最大保險年齡,"",試算表!E32+IF(美滿定期附約!D28<>"",美滿定期附約!D28,0))), "") -> 60228 | K49: =IF(總檢核,IF(age+A49-1>=被保人最大保險年齡,"",VLOOKUP($A49,試算表!$B$7:$AP$116,6,FALSE)+IF(美滿定期附約!E28<>"",美滿定期附約!E28,0)),"") -> 100000 | N49: =IF(總檢核,IF(age+A49-1>=被保人最大保險年齡,"",試算表!I32+IF(美滿定期附約!F28<>"",美滿定期附約!F28,0)), "") -> 63360 | Q49: =IF(AND(總檢核,BNLTRU1檢核),IF(age+A49-1>=被保人最大保險年齡,"",IF(C49>喪葬費用檢核年齡, IF($AS$16="無",試算表!Y32, IF($AS$16="中",試算表!Z32,試算表!AA32)), IF(被保人足歲年齡>=喪葬費用檢核年齡,IF($AS$16="無",試算表!Y32,IF($AS$16="中",試算表!Z32,試算表!AA32)),"*****"))),"") -> 262 | T49: =IF(AND(總檢核,BNLTRU1檢核),IF(age+A49-1>=被保人最大保險年齡,"",IF(C49>喪葬費用檢核年齡, IF($AS$16="無",試算表!AB32, IF($AS$16="中",試算表!AC32,試算表!AD32)), IF(被保人足歲年齡>=喪葬費用檢核年齡,IF($AS$16="無",試算表!AB32,IF($AS$16="中",試算表!AC32,試算表!AD32)),"*****"))),"") -> 5383 | W49: =IF(AND(總檢核,BNLTRU1檢核),IF(age+A49-1>=被保人最大保險年齡,"",IF(C49>喪葬費用檢核年齡, IF($AS$16="無",試算表!AE32, IF($AS$16="中",試算表!AF32,試算表!AG32)), IF(被保人足歲年齡>=喪葬費用檢核年齡,IF($AS$16="無",試算表!AE32,IF($AS$16="中",試算表!AF32,試算表!AG32)),"*****"))),"") -> 179152 | Z49: =IF(總檢核,IF(age+A49-1>=被保人最大保險年齡,"", IF($AS$16="無",試算表!AH32, IF($AS$16="中",試算表!AI32,試算表!AJ32))), "") -> 167 | AC49: =IF(總檢核,IF(age+A49-1>=被保人最大保險年齡,"", IF($AS$16="無",試算表!AK32, IF($AS$16="中",試算表!AL32,試算表!AM32))), "") -> 3411 | AF49: =IF(總檢核,IF(age+A49-1>=被保人最大保險年齡,"", IF($AS$16="無",試算表!AN32, IF($AS$16="中",試算表!AO32,試算表!AP32))), "") -> 42732 | AI49: =IF(AND(總檢核,BNLTRU1檢核),IF(age+A49-1>=被保人最大保險年齡,"",IF(C49>喪葬費用檢核年齡, IF($AS$16="無",試算表!O32, IF($AS$16="中",試算表!S32, IF($AS$16="",試算表!S32,試算表!W32)))+IF(美滿定期附約!E28<>"",美滿定期附約!E28,0),IF(被保人足歲年齡>=喪葬費用檢核年齡, IF($AS$16="無",試算表!O32, IF($AS$16="中",試算表!S32, IF($AS$16="",試算表!S32,試算表!W32)))+IF(美滿定期附約!E28<>"",美滿定期附約!E28,0),"*****"))),"") -> 284535 | AL49: =IF(總檢核,IF(age+A49-1>=被保人最大保險年齡,"", IF($AS$16="無",試算表!P32, IF($AS$16="中",試算表!T32, IF($AS$16="",試算表!T32,試算表!X32)))+IF(美滿定期附約!F28<>"",美滿定期附約!F28,0)), "") -> 109503 | AO49: 4.7243 | AP49: 1.8181
A50: 27 | C50: 66 | E50: =IF(總檢核,IF(age+A50-1=被保人最大保險年齡,"***以下空白***",IF(age+A50-1>被保人最大保險年齡,"",試算表!D33+IF(美滿定期附約!C29<>"",美滿定期附約!C29,0))), "") -> 0 | H50: =IF(總檢核,IF(age+A50-1=被保人最大保險年齡,"",IF(age+A50-1>被保人最大保險年齡,"",試算表!E33+IF(美滿定期附約!D29<>"",美滿定期附約!D29,0))), "") -> 60228 | K50: =IF(總檢核,IF(age+A50-1>=被保人最大保險年齡,"",VLOOKUP($A50,試算表!$B$7:$AP$116,6,FALSE)+IF(美滿定期附約!E29<>"",美滿定期附約!E29,0)),"") -> 100000 | N50: =IF(總檢核,IF(age+A50-1>=被保人最大保險年齡,"",試算表!I33+IF(美滿定期附約!F29<>"",美滿定期附約!F29,0)), "") -> 64490 | Q50: =IF(AND(總檢核,BNLTRU1檢核),IF(age+A50-1>=被保人最大保險年齡,"",IF(C50>喪葬費用檢核年齡, IF($AS$16="無",試算表!Y33, IF($AS$16="中",試算表!Z33,試算表!AA33)), IF(被保人足歲年齡>=喪葬費用檢核年齡,IF($AS$16="無",試算表!Y33,IF($AS$16="中",試算表!Z33,試算表!AA33)),"*****"))),"") -> 264 | T50: =IF(AND(總檢核,BNLTRU1檢核),IF(age+A50-1>=被保人最大保險年齡,"",IF(C50>喪葬費用檢核年齡, IF($AS$16="無",試算表!AB33, IF($AS$16="中",試算表!AC33,試算表!AD33)), IF(被保人足歲年齡>=喪葬費用檢核年齡,IF($AS$16="無",試算表!AB33,IF($AS$16="中",試算表!AC33,試算表!AD33)),"*****"))),"") -> 5647 | W50: =IF(AND(總檢核,BNLTRU1檢核),IF(age+A50-1>=被保人最大保險年齡,"",IF(C50>喪葬費用檢核年齡, IF($AS$16="無",試算表!AE33, IF($AS$16="中",試算表!AF33,試算表!AG33)), IF(被保人足歲年齡>=喪葬費用檢核年齡,IF($AS$16="無",試算表!AE33,IF($AS$16="中",試算表!AF33,試算表!AG33)),"*****"))),"") -> 180656 | Z50: =IF(總檢核,IF(age+A50-1>=被保人最大保險年齡,"", IF($AS$16="無",試算表!AH33, IF($AS$16="中",試算表!AI33,試算表!AJ33))), "") -> 170 | AC50: =IF(總檢核,IF(age+A50-1>=被保人最大保險年齡,"", IF($AS$16="無",試算表!AK33, IF($AS$16="中",試算表!AL33,試算表!AM33))), "") -> 3642 | AF50: =IF(總檢核,IF(age+A50-1>=被保人最大保險年齡,"", IF($AS$16="無",試算表!AN33, IF($AS$16="中",試算表!AO33,試算表!AP33))), "") -> 44287 | AI50: =IF(AND(總檢核,BNLTRU1檢核),IF(age+A50-1>=被保人最大保險年齡,"",IF(C50>喪葬費用檢核年齡, IF($AS$16="無",試算表!O33, IF($AS$16="中",試算表!S33, IF($AS$16="",試算表!S33,試算表!W33)))+IF(美滿定期附約!E29<>"",美滿定期附約!E29,0),IF(被保人足歲年齡>=喪葬費用檢核年齡, IF($AS$16="無",試算表!O33, IF($AS$16="中",試算表!S33, IF($AS$16="",試算表!S33,試算表!W33)))+IF(美滿定期附約!E29<>"",美滿定期附約!E29,0),"*****"))),"") -> 286303 | AL50: =IF(總檢核,IF(age+A50-1>=被保人最大保險年齡,"", IF($AS$16="無",試算表!P33, IF($AS$16="中",試算表!T33, IF($AS$16="",試算表!T33,試算表!X33)))+IF(美滿定期附約!F29<>"",美滿定期附約!F29,0)), "") -> 112419 | AO50: 4.7537 | AP50: 1.8666
A51: 28 | C51: 67 | E51: =IF(總檢核,IF(age+A51-1=被保人最大保險年齡,"***以下空白***",IF(age+A51-1>被保人最大保險年齡,"",試算表!D34+IF(美滿定期附約!C30<>"",美滿定期附約!C30,0))), "") -> 0 | H51: =IF(總檢核,IF(age+A51-1=被保人最大保險年齡,"",IF(age+A51-1>被保人最大保險年齡,"",試算表!E34+IF(美滿定期附約!D30<>"",美滿定期附約!D30,0))), "") -> 60228 | K51: =IF(總檢核,IF(age+A51-1>=被保人最大保險年齡,"",VLOOKUP($A51,試算表!$B$7:$AP$116,6,FALSE)+IF(美滿定期附約!E30<>"",美滿定期附約!E30,0)),"") -> 100000 | N51: =IF(總檢核,IF(age+A51-1>=被保人最大保險年齡,"",試算表!I34+IF(美滿定期附約!F30<>"",美滿定期附約!F30,0)), "") -> 65630 | Q51: =IF(AND(總檢核,BNLTRU1檢核),IF(age+A51-1>=被保人最大保險年齡,"",IF(C51>喪葬費用檢核年齡, IF($AS$16="無",試算表!Y34, IF($AS$16="中",試算表!Z34,試算表!AA34)), IF(被保人足歲年齡>=喪葬費用檢核年齡,IF($AS$16="無",試算表!Y34,IF($AS$16="中",試算表!Z34,試算表!AA34)),"*****"))),"") -> 264 | T51: =IF(AND(總檢核,BNLTRU1檢核),IF(age+A51-1>=被保人最大保險年齡,"",IF(C51>喪葬費用檢核年齡, IF($AS$16="無",試算表!AB34, IF($AS$16="中",試算表!AC34,試算表!AD34)), IF(被保人足歲年齡>=喪葬費用檢核年齡,IF($AS$16="無",試算表!AB34,IF($AS$16="中",試算表!AC34,試算表!AD34)),"*****"))),"") -> 5911 | W51: =IF(AND(總檢核,BNLTRU1檢核),IF(age+A51-1>=被保人最大保險年齡,"",IF(C51>喪葬費用檢核年齡, IF($AS$16="無",試算表!AE34, IF($AS$16="中",試算表!AF34,試算表!AG34)), IF(被保人足歲年齡>=喪葬費用檢核年齡,IF($AS$16="無",試算表!AE34,IF($AS$16="中",試算表!AF34,試算表!AG34)),"*****"))),"") -> 182167 | Z51: =IF(總檢核,IF(age+A51-1>=被保人最大保險年齡,"", IF($AS$16="無",試算表!AH34, IF($AS$16="中",試算表!AI34,試算表!AJ34))), "") -> 173 | AC51: =IF(總檢核,IF(age+A51-1>=被保人最大保險年齡,"", IF($AS$16="無",試算表!AK34, IF($AS$16="中",試算表!AL34,試算表!AM34))), "") -> 3879 | AF51: =IF(總檢核,IF(age+A51-1>=被保人最大保險年齡,"", IF($AS$16="無",試算表!AN34, IF($AS$16="中",試算表!AO34,試算表!AP34))), "") -> 45908 | AI51: =IF(AND(總檢核,BNLTRU1檢核),IF(age+A51-1>=被保人最大保險年齡,"",IF(C51>喪葬費用檢核年齡, IF($AS$16="無",試算表!O34, IF($AS$16="中",試算表!S34, IF($AS$16="",試算表!S34,試算表!W34)))+IF(美滿定期附約!E30<>"",美滿定期附約!E30,0),IF(被保人足歲年齡>=喪葬費用檢核年齡, IF($AS$16="無",試算表!O34, IF($AS$16="中",試算表!S34, IF($AS$16="",試算表!S34,試算表!W34)))+IF(美滿定期附約!E30<>"",美滿定期附約!E30,0),"*****"))),"") -> 288078 | AL51: =IF(總檢核,IF(age+A51-1>=被保人最大保險年齡,"", IF($AS$16="無",試算表!P34, IF($AS$16="中",試算表!T34, IF($AS$16="",試算表!T34,試算表!X34)))+IF(美滿定期附約!F30<>"",美滿定期附約!F30,0)), "") -> 115417 | AO51: 4.7831 | AP51: 1.9163
A52: 29 | C52: 68 | E52: =IF(總檢核,IF(age+A52-1=被保人最大保險年齡,"***以下空白***",IF(age+A52-1>被保人最大保險年齡,"",試算表!D35+IF(美滿定期附約!C31<>"",美滿定期附約!C31,0))), "") -> 0 | H52: =IF(總檢核,IF(age+A52-1=被保人最大保險年齡,"",IF(age+A52-1>被保人最大保險年齡,"",試算表!E35+IF(美滿定期附約!D31<>"",美滿定期附約!D31,0))), "") -> 60228 | K52: =IF(總檢核,IF(age+A52-1>=被保人最大保險年齡,"",VLOOKUP($A52,試算表!$B$7:$AP$116,6,FALSE)+IF(美滿定期附約!E31<>"",美滿定期附約!E31,0)),"") -> 100000 | N52: =IF(總檢核,IF(age+A52-1>=被保人最大保險年齡,"",試算表!I35+IF(美滿定期附約!F31<>"",美滿定期附約!F31,0)), "") -> 66770 | Q52: =IF(AND(總檢核,BNLTRU1檢核),IF(age+A52-1>=被保人最大保險年齡,"",IF(C52>喪葬費用檢核年齡, IF($AS$16="無",試算表!Y35, IF($AS$16="中",試算表!Z35,試算表!AA35)), IF(被保人足歲年齡>=喪葬費用檢核年齡,IF($AS$16="無",試算表!Y35,IF($AS$16="中",試算表!Z35,試算表!AA35)),"*****"))),"") -> 265 | T52: =IF(AND(總檢核,BNLTRU1檢核),IF(age+A52-1>=被保人最大保險年齡,"",IF(C52>喪葬費用檢核年齡, IF($AS$16="無",試算表!AB35, IF($AS$16="中",試算表!AC35,試算表!AD35)), IF(被保人足歲年齡>=喪葬費用檢核年齡,IF($AS$16="無",試算表!AB35,IF($AS$16="中",試算表!AC35,試算表!AD35)),"*****"))),"") -> 6176 | W52: =IF(AND(總檢核,BNLTRU1檢核),IF(age+A52-1>=被保人最大保險年齡,"",IF(C52>喪葬費用檢核年齡, IF($AS$16="無",試算表!AE35, IF($AS$16="中",試算表!AF35,試算表!AG35)), IF(被保人足歲年齡>=喪葬費用檢核年齡,IF($AS$16="無",試算表!AE35,IF($AS$16="中",試算表!AF35,試算表!AG35)),"*****"))),"") -> 183684 | Z52: =IF(總檢核,IF(age+A52-1>=被保人最大保險年齡,"", IF($AS$16="無",試算表!AH35, IF($AS$16="中",試算表!AI35,試算表!AJ35))), "") -> 177 | AC52: =IF(總檢核,IF(age+A52-1>=被保人最大保險年齡,"", IF($AS$16="無",試算表!AK35, IF($AS$16="中",試算表!AL35,試算表!AM35))), "") -> 4123 | AF52: =IF(總檢核,IF(age+A52-1>=被保人最大保險年齡,"", IF($AS$16="無",試算表!AN35, IF($AS$16="中",試算表!AO35,試算表!AP35))), "") -> 48205 | AI52: =IF(AND(總檢核,BNLTRU1檢核),IF(age+A52-1>=被保人最大保險年齡,"",IF(C52>喪葬費用檢核年齡, IF($AS$16="無",試算表!O35, IF($AS$16="中",試算表!S35, IF($AS$16="",試算表!S35,試算表!W35)))+IF(美滿定期附約!E31<>"",美滿定期附約!E31,0),IF(被保人足歲年齡>=喪葬費用檢核年齡, IF($AS$16="無",試算表!O35, IF($AS$16="中",試算表!S35, IF($AS$16="",試算表!S35,試算表!W35)))+IF(美滿定期附約!E31<>"",美滿定期附約!E31,0),"*****"))),"") -> 289860 | AL52: =IF(總檢核,IF(age+A52-1>=被保人最大保險年齡,"", IF($AS$16="無",試算表!P35, IF($AS$16="中",試算表!T35, IF($AS$16="",試算表!T35,試算表!X35)))+IF(美滿定期附約!F31<>"",美滿定期附約!F31,0)), "") -> 119098 | AO52: 4.8127 | AP52: 1.9775
A53: 30 | C53: 69 | E53: =IF(總檢核,IF(age+A53-1=被保人最大保險年齡,"***以下空白***",IF(age+A53-1>被保人最大保險年齡,"",試算表!D36+IF(美滿定期附約!C32<>"",美滿定期附約!C32,0))), "") -> 0 | H53: =IF(總檢核,IF(age+A53-1=被保人最大保險年齡,"",IF(age+A53-1>被保人最大保險年齡,"",試算表!E36+IF(美滿定期附約!D32<>"",美滿定期附約!D32,0))), "") -> 60228 | K53: =IF(總檢核,IF(age+A53-1>=被保人最大保險年齡,"",VLOOKUP($A53,試算表!$B$7:$AP$116,6,FALSE)+IF(美滿定期附約!E32<>"",美滿定期附約!E32,0)),"") -> 100000 | N53: =IF(總檢核,IF(age+A53-1>=被保人最大保險年齡,"",試算表!I36+IF(美滿定期附約!F32<>"",美滿定期附約!F32,0)), "") -> 67900 | Q53: =IF(AND(總檢核,BNLTRU1檢核),IF(age+A53-1>=被保人最大保險年齡,"",IF(C53>喪葬費用檢核年齡, IF($AS$16="無",試算表!Y36, IF($AS$16="中",試算表!Z36,試算表!AA36)), IF(被保人足歲年齡>=喪葬費用檢核年齡,IF($AS$16="無",試算表!Y36,IF($AS$16="中",試算表!Z36,試算表!AA36)),"*****"))),"") -> 265 | T53: =IF(AND(總檢核,BNLTRU1檢核),IF(age+A53-1>=被保人最大保險年齡,"",IF(C53>喪葬費用檢核年齡, IF($AS$16="無",試算表!AB36, IF($AS$16="中",試算表!AC36,試算表!AD36)), IF(被保人足歲年齡>=喪葬費用檢核年齡,IF($AS$16="無",試算表!AB36,IF($AS$16="中",試算表!AC36,試算表!AD36)),"*****"))),"") -> 6441 | W53: =IF(AND(總檢核,BNLTRU1檢核),IF(age+A53-1>=被保人最大保險年齡,"",IF(C53>喪葬費用檢核年齡, IF($AS$16="無",試算表!AE36, IF($AS$16="中",試算表!AF36,試算表!AG36)), IF(被保人足歲年齡>=喪葬費用檢核年齡,IF($AS$16="無",試算表!AE36,IF($AS$16="中",試算表!AF36,試算表!AG36)),"*****"))),"") -> 185208 | Z53: =IF(總檢核,IF(age+A53-1>=被保人最大保險年齡,"", IF($AS$16="無",試算表!AH36, IF($AS$16="中",試算表!AI36,試算表!AJ36))), "") -> 180 | AC53: =IF(總檢核,IF(age+A53-1>=被保人最大保險年齡,"", IF($AS$16="無",試算表!AK36, IF($AS$16="中",試算表!AL36,試算表!AM36))), "") -> 4374 | AF53: =IF(總檢核,IF(age+A53-1>=被保人最大保險年齡,"", IF($AS$16="無",試算表!AN36, IF($AS$16="中",試算表!AO36,試算表!AP36))), "") -> 50592 | AI53: =IF(AND(總檢核,BNLTRU1檢核),IF(age+A53-1>=被保人最大保險年齡,"",IF(C53>喪葬費用檢核年齡, IF($AS$16="無",試算表!O36, IF($AS$16="中",試算表!S36, IF($AS$16="",試算表!S36,試算表!W36)))+IF(美滿定期附約!E32<>"",美滿定期附約!E32,0),IF(被保人足歲年齡>=喪葬費用檢核年齡, IF($AS$16="無",試算表!O36, IF($AS$16="中",試算表!S36, IF($AS$16="",試算表!S36,試算表!W36)))+IF(美滿定期附約!E32<>"",美滿定期附約!E32,0),"*****"))),"") -> 291649 | AL53: =IF(總檢核,IF(age+A53-1>=被保人最大保險年齡,"", IF($AS$16="無",試算表!P36, IF($AS$16="中",試算表!T36, IF($AS$16="",試算表!T36,試算表!X36)))+IF(美滿定期附約!F32<>"",美滿定期附約!F32,0)), "") -> 122866 | AO53: 4.8424 | AP53: 2.04
A54: 31 | C54: 70 | E54: =IF(總檢核,IF(age+A54-1=被保人最大保險年齡,"***以下空白***",IF(age+A54-1>被保人最大保險年齡,"",試算表!D37+IF(美滿定期附約!C33<>"",美滿定期附約!C33,0))), "") -> 0 | H54: =IF(總檢核,IF(age+A54-1=被保人最大保險年齡,"",IF(age+A54-1>被保人最大保險年齡,"",試算表!E37+IF(美滿定期附約!D33<>"",美滿定期附約!D33,0))), "") -> 60228 | K54: =IF(總檢核,IF(age+A54-1>=被保人最大保險年齡,"",VLOOKUP($A54,試算表!$B$7:$AP$116,6,FALSE)+IF(美滿定期附約!E33<>"",美滿定期附約!E33,0)),"") -> 100000 | N54: =IF(總檢核,IF(age+A54-1>=被保人最大保險年齡,"",試算表!I37+IF(美滿定期附約!F33<>"",美滿定期附約!F33,0)), "") -> 69000 | Q54: =IF(AND(總檢核,BNLTRU1檢核),IF(age+A54-1>=被保人最大保險年齡,"",IF(C54>喪葬費用檢核年齡, IF($AS$16="無",試算表!Y37, IF($AS$16="中",試算表!Z37,試算表!AA37)), IF(被保人足歲年齡>=喪葬費用檢核年齡,IF($AS$16="無",試算表!Y37,IF($AS$16="中",試算表!Z37,試算表!AA37)),"*****"))),"") -> 266 | T54: =IF(AND(總檢核,BNLTRU1檢核),IF(age+A54-1>=被保人最大保險年齡,"",IF(C54>喪葬費用檢核年齡, IF($AS$16="無",試算表!AB37, IF($AS$16="中",試算表!AC37,試算表!AD37)), IF(被保人足歲年齡>=喪葬費用檢核年齡,IF($AS$16="無",試算表!AB37,IF($AS$16="中",試算表!AC37,試算表!AD37)),"*****"))),"") -> 6707 | W54: =IF(AND(總檢核,BNLTRU1檢核),IF(age+A54-1>=被保人最大保險年齡,"",IF(C54>喪葬費用檢核年齡, IF($AS$16="無",試算表!AE37, IF($AS$16="中",試算表!AF37,試算表!AG37)), IF(被保人足歲年齡>=喪葬費用檢核年齡,IF($AS$16="無",試算表!AE37,IF($AS$16="中",試算表!AF37,試算表!AG37)),"*****"))),"") -> 186738 | Z54: =IF(總檢核,IF(age+A54-1>=被保人最大保險年齡,"", IF($AS$16="無",試算表!AH37, IF($AS$16="中",試算表!AI37,試算表!AJ37))), "") -> 184 | AC54: =IF(總檢核,IF(age+A54-1>=被保人最大保險年齡,"", IF($AS$16="無",試算表!AK37, IF($AS$16="中",試算表!AL37,試算表!AM37))), "") -> 4628 | AF54: =IF(總檢核,IF(age+A54-1>=被保人最大保險年齡,"", IF($AS$16="無",試算表!AN37, IF($AS$16="中",試算表!AO37,試算表!AP37))), "") -> 53014 | AI54: =IF(AND(總檢核,BNLTRU1檢核),IF(age+A54-1>=被保人最大保險年齡,"",IF(C54>喪葬費用檢核年齡, IF($AS$16="無",試算表!O37, IF($AS$16="中",試算表!S37, IF($AS$16="",試算表!S37,試算表!W37)))+IF(美滿定期附約!E33<>"",美滿定期附約!E33,0),IF(被保人足歲年齡>=喪葬費用檢核年齡, IF($AS$16="無",試算表!O37, IF($AS$16="中",試算表!S37, IF($AS$16="",試算表!S37,試算表!W37)))+IF(美滿定期附約!E33<>"",美滿定期附約!E33,0),"*****"))),"") -> 293445 | AL54: =IF(總檢核,IF(age+A54-1>=被保人最大保險年齡,"", IF($AS$16="無",試算表!P37, IF($AS$16="中",試算表!T37, IF($AS$16="",試算表!T37,試算表!X37)))+IF(美滿定期附約!F33<>"",美滿定期附約!F33,0)), "") -> 126642 | AO54: 4.8722 | AP54: 2.1027
A55: 32 | C55: 71 | E55: =IF(總檢核,IF(age+A55-1=被保人最大保險年齡,"***以下空白***",IF(age+A55-1>被保人最大保險年齡,"",試算表!D38+IF(美滿定期附約!C34<>"",美滿定期附約!C34,0))), "") -> 0 | H55: =IF(總檢核,IF(age+A55-1=被保人最大保險年齡,"",IF(age+A55-1>被保人最大保險年齡,"",試算表!E38+IF(美滿定期附約!D34<>"",美滿定期附約!D34,0))), "") -> 60228 | K55: =IF(總檢核,IF(age+A55-1>=被保人最大保險年齡,"",VLOOKUP($A55,試算表!$B$7:$AP$116,6,FALSE)+IF(美滿定期附約!E34<>"",美滿定期附約!E34,0)),"") -> 100000 | N55: =IF(總檢核,IF(age+A55-1>=被保人最大保險年齡,"",試算表!I38+IF(美滿定期附約!F34<>"",美滿定期附約!F34,0)), "") -> 70100 | Q55: =IF(AND(總檢核,BNLTRU1檢核),IF(age+A55-1>=被保人最大保險年齡,"",IF(C55>喪葬費用檢核年齡, IF($AS$16="無",試算表!Y38, IF($AS$16="中",試算表!Z38,試算表!AA38)), IF(被保人足歲年齡>=喪葬費用檢核年齡,IF($AS$16="無",試算表!Y38,IF($AS$16="中",試算表!Z38,試算表!AA38)),"*****"))),"") -> 267 | T55: =IF(AND(總檢核,BNLTRU1檢核),IF(age+A55-1>=被保人最大保險年齡,"",IF(C55>喪葬費用檢核年齡, IF($AS$16="無",試算表!AB38, IF($AS$16="中",試算表!AC38,試算表!AD38)), IF(被保人足歲年齡>=喪葬費用檢核年齡,IF($AS$16="無",試算表!AB38,IF($AS$16="中",試算表!AC38,試算表!AD38)),"*****"))),"") -> 6974 | W55: =IF(AND(總檢核,BNLTRU1檢核),IF(age+A55-1>=被保人最大保險年齡,"",IF(C55>喪葬費用檢核年齡, IF($AS$16="無",試算表!AE38, IF($AS$16="中",試算表!AF38,試算表!AG38)), IF(被保人足歲年齡>=喪葬費用檢核年齡,IF($AS$16="無",試算表!AE38,IF($AS$16="中",試算表!AF38,試算表!AG38)),"*****"))),"") -> 197902 | Z55: =IF(總檢核,IF(age+A55-1>=被保人最大保險年齡,"", IF($AS$16="無",試算表!AH38, IF($AS$16="中",試算表!AI38,試算表!AJ38))), "") -> 187 | AC55: =IF(總檢核,IF(age+A55-1>=被保人最大保險年齡,"", IF($AS$16="無",試算表!AK38, IF($AS$16="中",試算表!AL38,試算表!AM38))), "") -> 4889 | AF55: =IF(總檢核,IF(age+A55-1>=被保人最大保險年齡,"", IF($AS$16="無",試算表!AN38, IF($AS$16="中",試算表!AO38,試算表!AP38))), "") -> 55489 | AI55: =IF(AND(總檢核,BNLTRU1檢核),IF(age+A55-1>=被保人最大保險年齡,"",IF(C55>喪葬費用檢核年齡, IF($AS$16="無",試算表!O38, IF($AS$16="中",試算表!S38, IF($AS$16="",試算表!S38,試算表!W38)))+IF(美滿定期附約!E34<>"",美滿定期附約!E34,0),IF(被保人足歲年齡>=喪葬費用檢核年齡, IF($AS$16="無",試算表!O38, IF($AS$16="中",試算表!S38, IF($AS$16="",試算表!S38,試算表!W38)))+IF(美滿定期附約!E34<>"",美滿定期附約!E34,0),"*****"))),"") -> 304876 | AL55: =IF(總檢核,IF(age+A55-1>=被保人最大保險年齡,"", IF($AS$16="無",試算表!P38, IF($AS$16="中",試算表!T38, IF($AS$16="",試算表!T38,試算表!X38)))+IF(美滿定期附約!F34<>"",美滿定期附約!F34,0)), "") -> 130478 | AO55: 5.062 | AP55: 2.1664
A56: 33 | C56: =IF(總檢核,IF(age+A56-1>=被保人最大保險年齡,"",age+A56-1), "") -> 72 | E56: =IF(總檢核,IF(age+A56-1=被保人最大保險年齡,"***以下空白***",IF(age+A56-1>被保人最大保險年齡,"",試算表!D39+IF(美滿定期附約!C35<>"",美滿定期附約!C35,0))), "") -> 0 | H56: =IF(總檢核,IF(age+A56-1=被保人最大保險年齡,"",IF(age+A56-1>被保人最大保險年齡,"",試算表!E39+IF(美滿定期附約!D35<>"",美滿定期附約!D35,0))), "") -> 60228 | K56: =IF(總檢核,IF(age+A56-1>=被保人最大保險年齡,"",VLOOKUP($A56,試算表!$B$7:$AP$116,6,FALSE)+IF(美滿定期附約!E35<>"",美滿定期附約!E35,0)),"") -> 100000 | N56: =IF(總檢核,IF(age+A56-1>=被保人最大保險年齡,"",試算表!I39+IF(美滿定期附約!F35<>"",美滿定期附約!F35,0)), "") -> 71180 | Q56: =IF(AND(總檢核,BNLTRU1檢核),IF(age+A56-1>=被保人最大保險年齡,"",IF(C56>喪葬費用檢核年齡, IF($AS$16="無",試算表!Y39, IF($AS$16="中",試算表!Z39,試算表!AA39)), IF(被保人足歲年齡>=喪葬費用檢核年齡,IF($AS$16="無",試算表!Y39,IF($AS$16="中",試算表!Z39,試算表!AA39)),"*****"))),"") -> 267 | T56: =IF(AND(總檢核,BNLTRU1檢核),IF(age+A56-1>=被保人最大保險年齡,"",IF(C56>喪葬費用檢核年齡, IF($AS$16="無",試算表!AB39, IF($AS$16="中",試算表!AC39,試算表!AD39)), IF(被保人足歲年齡>=喪葬費用檢核年齡,IF($AS$16="無",試算表!AB39,IF($AS$16="中",試算表!AC39,試算表!AD39)),"*****"))),"") -> 7241 | W56: =IF(AND(總檢核,BNLTRU1檢核),IF(age+A56-1>=被保人最大保險年齡,"",IF(C56>喪葬費用檢核年齡, IF($AS$16="無",試算表!AE39, IF($AS$16="中",試算表!AF39,試算表!AG39)), IF(被保人足歲年齡>=喪葬費用檢核年齡,IF($AS$16="無",試算表!AE39,IF($AS$16="中",試算表!AF39,試算表!AG39)),"*****"))),"") -> 199469 | Z56: =IF(總檢核,IF(age+A56-1>=被保人最大保險年齡,"", IF($AS$16="無",試算表!AH39, IF($AS$16="中",試算表!AI39,試算表!AJ39))), "") -> 190 | AC56: =IF(總檢核,IF(age+A56-1>=被保人最大保險年齡,"", IF($AS$16="無",試算表!AK39, IF($AS$16="中",試算表!AL39,試算表!AM39))), "") -> 5155 | AF56: =IF(總檢核,IF(age+A56-1>=被保人最大保險年齡,"", IF($AS$16="無",試算表!AN39, IF($AS$16="中",試算表!AO39,試算表!AP39))), "") -> 58018 | AI56: =IF(AND(總檢核,BNLTRU1檢核),IF(age+A56-1>=被保人最大保險年齡,"",IF(C56>喪葬費用檢核年齡, IF($AS$16="無",試算表!O39, IF($AS$16="中",試算表!S39, IF($AS$16="",試算表!S39,試算表!W39)))+IF(美滿定期附約!E35<>"",美滿定期附約!E35,0),IF(被保人足歲年齡>=喪葬費用檢核年齡, IF($AS$16="無",試算表!O39, IF($AS$16="中",試算表!S39, IF($AS$16="",試算表!S39,試算表!W39)))+IF(美滿定期附約!E35<>"",美滿定期附約!E35,0),"*****"))),"") -> 306710 | AL56: =IF(總檢核,IF(age+A56-1>=被保人最大保險年齡,"", IF($AS$16="無",試算表!P39, IF($AS$16="中",試算表!T39, IF($AS$16="",試算表!T39,試算表!X39)))+IF(美滿定期附約!F35<>"",美滿定期附約!F35,0)), "") -> 134353 | AO56: 5.0925 | AP56: 2.2307
A57: 34 | C57: 73 | E57: =IF(總檢核,IF(age+A57-1=被保人最大保險年齡,"***以下空白***",IF(age+A57-1>被保人最大保險年齡,"",試算表!D40+IF(美滿定期附約!C36<>"",美滿定期附約!C36,0))), "") -> 0 | H57: =IF(總檢核,IF(age+A57-1=被保人最大保險年齡,"",IF(age+A57-1>被保人最大保險年齡,"",試算表!E40+IF(美滿定期附約!D36<>"",美滿定期附約!D36,0))), "") -> 60228 | K57: =IF(總檢核,IF(age+A57-1>=被保人最大保險年齡,"",VLOOKUP($A57,試算表!$B$7:$AP$116,6,FALSE)+IF(美滿定期附約!E36<>"",美滿定期附約!E36,0)),"") -> 100000 | N57: =IF(總檢核,IF(age+A57-1>=被保人最大保險年齡,"",試算表!I40+IF(美滿定期附約!F36<>"",美滿定期附約!F36,0)), "") -> 72260 | Q57: =IF(AND(總檢核,BNLTRU1檢核),IF(age+A57-1>=被保人最大保險年齡,"",IF(C57>喪葬費用檢核年齡, IF($AS$16="無",試算表!Y40, IF($AS$16="中",試算表!Z40,試算表!AA40)), IF(被保人足歲年齡>=喪葬費用檢核年齡,IF($AS$16="無",試算表!Y40,IF($AS$16="中",試算表!Z40,試算表!AA40)),"*****"))),"") -> 269 | T57: =IF(AND(總檢核,BNLTRU1檢核),IF(age+A57-1>=被保人最大保險年齡,"",IF(C57>喪葬費用檢核年齡, IF($AS$16="無",試算表!AB40, IF($AS$16="中",試算表!AC40,試算表!AD40)), IF(被保人足歲年齡>=喪葬費用檢核年齡,IF($AS$16="無",試算表!AB40,IF($AS$16="中",試算表!AC40,試算表!AD40)),"*****"))),"") -> 7510 | W57: =IF(AND(總檢核,BNLTRU1檢核),IF(age+A57-1>=被保人最大保險年齡,"",IF(C57>喪葬費用檢核年齡, IF($AS$16="無",試算表!AE40, IF($AS$16="中",試算表!AF40,試算表!AG40)), IF(被保人足歲年齡>=喪葬費用檢核年齡,IF($AS$16="無",試算表!AE40,IF($AS$16="中",試算表!AF40,試算表!AG40)),"*****"))),"") -> 201043 | Z57: =IF(總檢核,IF(age+A57-1>=被保人最大保險年齡,"", IF($AS$16="無",試算表!AH40, IF($AS$16="中",試算表!AI40,試算表!AJ40))), "") -> 194 | AC57: =IF(總檢核,IF(age+A57-1>=被保人最大保險年齡,"", IF($AS$16="無",試算表!AK40, IF($AS$16="中",試算表!AL40,試算表!AM40))), "") -> 5427 | AF57: =IF(總檢核,IF(age+A57-1>=被保人最大保險年齡,"", IF($AS$16="無",試算表!AN40, IF($AS$16="中",試算表!AO40,試算表!AP40))), "") -> 60599 | AI57: =IF(AND(總檢核,BNLTRU1檢核),IF(age+A57-1>=被保人最大保險年齡,"",IF(C57>喪葬費用檢核年齡, IF($AS$16="無",試算表!O40, IF($AS$16="中",試算表!S40, IF($AS$16="",試算表!S40,試算表!W40)))+IF(美滿定期附約!E36<>"",美滿定期附約!E36,0),IF(被保人足歲年齡>=喪葬費用檢核年齡, IF($AS$16="無",試算表!O40, IF($AS$16="中",試算表!S40, IF($AS$16="",試算表!S40,試算表!W40)))+IF(美滿定期附約!E36<>"",美滿定期附約!E36,0),"*****"))),"") -> 308553 | AL57: =IF(總檢核,IF(age+A57-1>=被保人最大保險年齡,"", IF($AS$16="無",試算表!P40, IF($AS$16="中",試算表!T40, IF($AS$16="",試算表!T40,試算表!X40)))+IF(美滿定期附約!F36<>"",美滿定期附約!F36,0)), "") -> 138286 | AO57: 5.1231 | AP57: 2.296
A58: 35 | C58: 74 | E58: =IF(總檢核,IF(age+A58-1=被保人最大保險年齡,"***以下空白***",IF(age+A58-1>被保人最大保險年齡,"",試算表!D41+IF(美滿定期附約!C37<>"",美滿定期附約!C37,0))), "") -> 0 | H58: =IF(總檢核,IF(age+A58-1=被保人最大保險年齡,"",IF(age+A58-1>被保人最大保險年齡,"",試算表!E41+IF(美滿定期附約!D37<>"",美滿定期附約!D37,0))), "") -> 60228 | K58: =IF(總檢核,IF(age+A58-1>=被保人最大保險年齡,"",VLOOKUP($A58,試算表!$B$7:$AP$116,6,FALSE)+IF(美滿定期附約!E37<>"",美滿定期附約!E37,0)),"") -> 100000 | N58: =IF(總檢核,IF(age+A58-1>=被保人最大保險年齡,"",試算表!I41+IF(美滿定期附約!F37<>"",美滿定期附約!F37,0)), "") -> 73330 | Q58: =IF(AND(總檢核,BNLTRU1檢核),IF(age+A58-1>=被保人最大保險年齡,"",IF(C58>喪葬費用檢核年齡, IF($AS$16="無",試算表!Y41, IF($AS$16="中",試算表!Z41,試算表!AA41)), IF(被保人足歲年齡>=喪葬費用檢核年齡,IF($AS$16="無",試算表!Y41,IF($AS$16="中",試算表!Z41,試算表!AA41)),"*****"))),"") -> 268 | T58: =IF(AND(總檢核,BNLTRU1檢核),IF(age+A58-1>=被保人最大保險年齡,"",IF(C58>喪葬費用檢核年齡, IF($AS$16="無",試算表!AB41, IF($AS$16="中",試算表!AC41,試算表!AD41)), IF(被保人足歲年齡>=喪葬費用檢核年齡,IF($AS$16="無",試算表!AB41,IF($AS$16="中",試算表!AC41,試算表!AD41)),"*****"))),"") -> 7778 | W58: =IF(AND(總檢核,BNLTRU1檢核),IF(age+A58-1>=被保人最大保險年齡,"",IF(C58>喪葬費用檢核年齡, IF($AS$16="無",試算表!AE41, IF($AS$16="中",試算表!AF41,試算表!AG41)), IF(被保人足歲年齡>=喪葬費用檢核年齡,IF($AS$16="無",試算表!AE41,IF($AS$16="中",試算表!AF41,試算表!AG41)),"*****"))),"") -> 202623 | Z58: =IF(總檢核,IF(age+A58-1>=被保人最大保險年齡,"", IF($AS$16="無",試算表!AH41, IF($AS$16="中",試算表!AI41,試算表!AJ41))), "") -> 197 | AC58: =IF(總檢核,IF(age+A58-1>=被保人最大保險年齡,"", IF($AS$16="無",試算表!AK41, IF($AS$16="中",試算表!AL41,試算表!AM41))), "") -> 5704 | AF58: =IF(總檢核,IF(age+A58-1>=被保人最大保險年齡,"", IF($AS$16="無",試算表!AN41, IF($AS$16="中",試算表!AO41,試算表!AP41))), "") -> 63230 | AI58: =IF(AND(總檢核,BNLTRU1檢核),IF(age+A58-1>=被保人最大保險年齡,"",IF(C58>喪葬費用檢核年齡, IF($AS$16="無",試算表!O41, IF($AS$16="中",試算表!S41, IF($AS$16="",試算表!S41,試算表!W41)))+IF(美滿定期附約!E37<>"",美滿定期附約!E37,0),IF(被保人足歲年齡>=喪葬費用檢核年齡, IF($AS$16="無",試算表!O41, IF($AS$16="中",試算表!S41, IF($AS$16="",試算表!S41,試算表!W41)))+IF(美滿定期附約!E37<>"",美滿定期附約!E37,0),"*****"))),"") -> 310401 | AL58: =IF(總檢核,IF(age+A58-1>=被保人最大保險年齡,"", IF($AS$16="無",試算表!P41, IF($AS$16="中",試算表!T41, IF($AS$16="",試算表!T41,試算表!X41)))+IF(美滿定期附約!F37<>"",美滿定期附約!F37,0)), "") -> 142264 | AO58: 5.1538 | AP58: 2.3621
A60: * | B60: 本保險為英式分紅保險單，保單紅利為「增額分紅保額」及「額外分紅保額」– 保單紅利部分非本保險單之保證給付項目，保誠人壽不保證其給付金額(保額)。
A61: * | B61: 本建議書係銷售人員於銷售過程提供予要保人參考，當建議書所列投保資料與要保書填寫不同時，試算金額也會隨之異動，詳細金額仍須以要保書/保單首頁填寫內容為準。
A62: ="商品利益說明_以假設"&$AS$16&"分紅為例" -> 商品利益說明_以假設中分紅為例 | AN62: ="(單位："&幣別&"/元)" -> (單位：美元/元) | AR62: 選擇分紅 | AS62: 中
Q64: ="非保證給付項目"&"(假設"&$AS$16&"分紅)" -> 非保證給付項目(假設中分紅)
A65: 年度 | C65: 年齡 | E65: 折扣後 當年度 所繳保險費 | H65: 折扣後 累計 所繳保險費 | K65: 當年度末 壽險保障 | N65: 當年度末 解約金 /祝壽保險金 | Q65: 假設紅利 | AI65: 當年度末 壽險保障 及假設紅利_ 分紅保額 | AL65: 當年度末 可能領取 解約金總和 | AO65: (A+D+E)/ 折扣後累計 所繳保險費 (單位：%) | AP65: (B+G+H)/ 折扣後累計 所繳保險費 (單位：%)
Q66: 分紅保額 | Z66: 分紅保額解約金
Q67: 當年度末 增額 分紅保額 | T67: 累積 已分配增額 分紅保額 | W67: 長青額外 分紅保額 | Z67: 當年度末 增額 分紅保額 | AC67: 累積 已分配增額 分紅保額 | AF67: 長青解約額外 分紅保額
Q68: (預估值) | T68: (預估值) | W68: (預估值) | Z68: (預估值) | AC68: (預估值) | AF68: (預估值) | AI68: (預估值) | AL68: (預估值)
K69: A | N69: B | Q69: C | T69: D | W69: E | Z69: F | AC69: G | AF69: H | AI69: A + D + E | AL69: B + G + H
A70: 36 | C70: 75 | E70: =IF(總檢核,IF(age+A70-1=被保人最大保險年齡,"***以下空白***",IF(age+A70-1>被保人最大保險年齡,"",試算表!D42+IF(美滿定期附約!C38<>"",美滿定期附約!C38,0))), "") -> 0 | H70: =IF(總檢核,IF(age+A70-1=被保人最大保險年齡,"",IF(age+A70-1>被保人最大保險年齡,"",試算表!E42+IF(美滿定期附約!D38<>"",美滿定期附約!D38,0))), "") -> 60228 | K70: =IF(總檢核,IF(age+A70-1>=被保人最大保險年齡,"",VLOOKUP($A70,試算表!$B$7:$AP$116,6,FALSE)+IF(美滿定期附約!E38<>"",美滿定期附約!E38,0)),"") -> 100000 | N70: =IF(總檢核,IF(age+A70-1>=被保人最大保險年齡,"",試算表!I42+IF(美滿定期附約!F38<>"",美滿定期附約!F38,0)), "") -> 74400 | Q70: =IF(AND(總檢核,BNLTRU1檢核),IF(age+A70-1>=被保人最大保險年齡,"",IF(C70>喪葬費用檢核年齡, IF($AS$16="無",試算表!Y42, IF($AS$16="中",試算表!Z42,試算表!AA42)), IF(被保人足歲年齡>=喪葬費用檢核年齡,IF($AS$16="無",試算表!Y42,IF($AS$16="中",試算表!Z42,試算表!AA42)),"*****"))),"") -> 270 | T70: =IF(AND(總檢核,BNLTRU1檢核),IF(age+A70-1>=被保人最大保險年齡,"",IF(C70>喪葬費用檢核年齡, IF($AS$16="無",試算表!AB42, IF($AS$16="中",試算表!AC42,試算表!AD42)), IF(被保人足歲年齡>=喪葬費用檢核年齡,IF($AS$16="無",試算表!AB42,IF($AS$16="中",試算表!AC42,試算表!AD42)),"*****"))),"") -> 8048 | W70: =IF(AND(總檢核,BNLTRU1檢核),IF(age+A70-1>=被保人最大保險年齡,"",IF(C70>喪葬費用檢核年齡, IF($AS$16="無",試算表!AE42, IF($AS$16="中",試算表!AF42,試算表!AG42)), IF(被保人足歲年齡>=喪葬費用檢核年齡,IF($AS$16="無",試算表!AE42,IF($AS$16="中",試算表!AF42,試算表!AG42)),"*****"))),"") -> 204210 | Z70: =IF(總檢核,IF(age+A70-1>=被保人最大保險年齡,"", IF($AS$16="無",試算表!AH42, IF($AS$16="中",試算表!AI42,試算表!AJ42))), "") -> 200 | AC70: =IF(總檢核,IF(age+A70-1>=被保人最大保險年齡,"", IF($AS$16="無",試算表!AK42, IF($AS$16="中",試算表!AL42,試算表!AM42))), "") -> 5987 | AF70: =IF(總檢核,IF(age+A70-1>=被保人最大保險年齡,"", IF($AS$16="無",試算表!AN42, IF($AS$16="中",試算表!AO42,試算表!AP42))), "") -> 65915 | AI70: =IF(AND(總檢核,BNLTRU1檢核),IF(age+A70-1>=被保人最大保險年齡,"",IF(C70>喪葬費用檢核年齡, IF($AS$16="無",試算表!O42, IF($AS$16="中",試算表!S42, IF($AS$16="",試算表!S42,試算表!W42)))+IF(美滿定期附約!E38<>"",美滿定期附約!E38,0),IF(被保人足歲年齡>=喪葬費用檢核年齡, IF($AS$16="無",試算表!O42, IF($AS$16="中",試算表!S42, IF($AS$16="",試算表!S42,試算表!W42)))+IF(美滿定期附約!E38<>"",美滿定期附約!E38,0),"*****"))),"") -> 312258 | AL70: =IF(總檢核,IF(age+A70-1>=被保人最大保險年齡,"", IF($AS$16="無",試算表!P42, IF($AS$16="中",試算表!T42, IF($AS$16="",試算表!T42,試算表!X42)))+IF(美滿定期附約!F38<>"",美滿定期附約!F38,0)), "") -> 146302 | AO70: =IF(總檢核,IF(age+$A70-1>=被保人最大保險年齡,"",IF(OR($AI70="",$AI70=0),"",IF($C70>喪葬費用檢核年齡,ROUND($AI70/$H70,4),IF(被保人足歲年齡>=喪葬費用檢核年齡,ROUND($AI70/$H70,4),"*****")))),"") -> 5.1846 | AP70: =IF(總檢核,IF(age+$A70-1>=被保人最大保險年齡,"",IF(OR($AL70="",$AL70=0),"",ROUND($AL70/$H70,4))),"") -> 2.4291
A71: 37 | C71: 76 | E71: =IF(總檢核,IF(age+A71-1=被保人最大保險年齡,"***以下空白***",IF(age+A71-1>被保人最大保險年齡,"",試算表!D43+IF(美滿定期附約!C39<>"",美滿定期附約!C39,0))), "") -> 0 | H71: =IF(總檢核,IF(age+A71-1=被保人最大保險年齡,"",IF(age+A71-1>被保人最大保險年齡,"",試算表!E43+IF(美滿定期附約!D39<>"",美滿定期附約!D39,0))), "") -> 60228 | K71: =IF(總檢核,IF(age+A71-1>=被保人最大保險年齡,"",VLOOKUP($A71,試算表!$B$7:$AP$116,6,FALSE)+IF(美滿定期附約!E39<>"",美滿定期附約!E39,0)),"") -> 100000 | N71: =IF(總檢核,IF(age+A71-1>=被保人最大保險年齡,"",試算表!I43+IF(美滿定期附約!F39<>"",美滿定期附約!F39,0)), "") -> 75450 | Q71: =IF(AND(總檢核,BNLTRU1檢核),IF(age+A71-1>=被保人最大保險年齡,"",IF(C71>喪葬費用檢核年齡, IF($AS$16="無",試算表!Y43, IF($AS$16="中",試算表!Z43,試算表!AA43)), IF(被保人足歲年齡>=喪葬費用檢核年齡,IF($AS$16="無",試算表!Y43,IF($AS$16="中",試算表!Z43,試算表!AA43)),"*****"))),"") -> 270 | T71: =IF(AND(總檢核,BNLTRU1檢核),IF(age+A71-1>=被保人最大保險年齡,"",IF(C71>喪葬費用檢核年齡, IF($AS$16="無",試算表!AB43, IF($AS$16="中",試算表!AC43,試算表!AD43)), IF(被保人足歲年齡>=喪葬費用檢核年齡,IF($AS$16="無",試算表!AB43,IF($AS$16="中",試算表!AC43,試算表!AD43)),"*****"))),"") -> 8318 | W71: =IF(AND(總檢核,BNLTRU1檢核),IF(age+A71-1>=被保人最大保險年齡,"",IF(C71>喪葬費用檢核年齡, IF($AS$16="無",試算表!AE43, IF($AS$16="中",試算表!AF43,試算表!AG43)), IF(被保人足歲年齡>=喪葬費用檢核年齡,IF($AS$16="無",試算表!AE43,IF($AS$16="中",試算表!AF43,試算表!AG43)),"*****"))),"") -> 205804 | Z71: =IF(總檢核,IF(age+A71-1>=被保人最大保險年齡,"", IF($AS$16="無",試算表!AH43, IF($AS$16="中",試算表!AI43,試算表!AJ43))), "") -> 204 | AC71: =IF(總檢核,IF(age+A71-1>=被保人最大保險年齡,"", IF($AS$16="無",試算表!AK43, IF($AS$16="中",試算表!AL43,試算表!AM43))), "") -> 6276 | AF71: =IF(總檢核,IF(age+A71-1>=被保人最大保險年齡,"", IF($AS$16="無",試算表!AN43, IF($AS$16="中",試算表!AO43,試算表!AP43))), "") -> 68647 | AI71: =IF(AND(總檢核,BNLTRU1檢核),IF(age+A71-1>=被保人最大保險年齡,"",IF(C71>喪葬費用檢核年齡, IF($AS$16="無",試算表!O43, IF($AS$16="中",試算表!S43, IF($AS$16="",試算表!S43,試算表!W43)))+IF(美滿定期附約!E39<>"",美滿定期附約!E39,0),IF(被保人足歲年齡>=喪葬費用檢核年齡, IF($AS$16="無",試算表!O43, IF($AS$16="中",試算表!S43, IF($AS$16="",試算表!S43,試算表!W43)))+IF(美滿定期附約!E39<>"",美滿定期附約!E39,0),"*****"))),"") -> 314122 | AL71: =IF(總檢核,IF(age+A71-1>=被保人最大保險年齡,"", IF($AS$16="無",試算表!P43, IF($AS$16="中",試算表!T43, IF($AS$16="",試算表!T43,試算表!X43)))+IF(美滿定期附約!F39<>"",美滿定期附約!F39,0)), "") -> 150373 | AO71: 5.2155 | AP71: 2.4967
A72: 38 | C72: 77 | E72: =IF(總檢核,IF(age+A72-1=被保人最大保險年齡,"***以下空白***",IF(age+A72-1>被保人最大保險年齡,"",試算表!D44+IF(美滿定期附約!C40<>"",美滿定期附約!C40,0))), "") -> 0 | H72: =IF(總檢核,IF(age+A72-1=被保人最大保險年齡,"",IF(age+A72-1>被保人最大保險年齡,"",試算表!E44+IF(美滿定期附約!D40<>"",美滿定期附約!D40,0))), "") -> 60228 | K72: =IF(總檢核,IF(age+A72-1>=被保人最大保險年齡,"",VLOOKUP($A72,試算表!$B$7:$AP$116,6,FALSE)+IF(美滿定期附約!E40<>"",美滿定期附約!E40,0)),"") -> 100000 | N72: =IF(總檢核,IF(age+A72-1>=被保人最大保險年齡,"",試算表!I44+IF(美滿定期附約!F40<>"",美滿定期附約!F40,0)), "") -> 76480 | Q72: =IF(AND(總檢核,BNLTRU1檢核),IF(age+A72-1>=被保人最大保險年齡,"",IF(C72>喪葬費用檢核年齡, IF($AS$16="無",試算表!Y44, IF($AS$16="中",試算表!Z44,試算表!AA44)), IF(被保人足歲年齡>=喪葬費用檢核年齡,IF($AS$16="無",試算表!Y44,IF($AS$16="中",試算表!Z44,試算表!AA44)),"*****"))),"") -> 271 | T72: =IF(AND(總檢核,BNLTRU1檢核),IF(age+A72-1>=被保人最大保險年齡,"",IF(C72>喪葬費用檢核年齡, IF($AS$16="無",試算表!AB44, IF($AS$16="中",試算表!AC44,試算表!AD44)), IF(被保人足歲年齡>=喪葬費用檢核年齡,IF($AS$16="無",試算表!AB44,IF($AS$16="中",試算表!AC44,試算表!AD44)),"*****"))),"") -> 8589 | W72: =IF(AND(總檢核,BNLTRU1檢核),IF(age+A72-1>=被保人最大保險年齡,"",IF(C72>喪葬費用檢核年齡, IF($AS$16="無",試算表!AE44, IF($AS$16="中",試算表!AF44,試算表!AG44)), IF(被保人足歲年齡>=喪葬費用檢核年齡,IF($AS$16="無",試算表!AE44,IF($AS$16="中",試算表!AF44,試算表!AG44)),"*****"))),"") -> 209576 | Z72: =IF(總檢核,IF(age+A72-1>=被保人最大保險年齡,"", IF($AS$16="無",試算表!AH44, IF($AS$16="中",試算表!AI44,試算表!AJ44))), "") -> 207 | AC72: =IF(總檢核,IF(age+A72-1>=被保人最大保險年齡,"", IF($AS$16="無",試算表!AK44, IF($AS$16="中",試算表!AL44,試算表!AM44))), "") -> 6569 | AF72: =IF(總檢核,IF(age+A72-1>=被保人最大保險年齡,"", IF($AS$16="無",試算表!AN44, IF($AS$16="中",試算表!AO44,試算表!AP44))), "") -> 71423 | AI72: =IF(AND(總檢核,BNLTRU1檢核),IF(age+A72-1>=被保人最大保險年齡,"",IF(C72>喪葬費用檢核年齡, IF($AS$16="無",試算表!O44, IF($AS$16="中",試算表!S44, IF($AS$16="",試算表!S44,試算表!W44)))+IF(美滿定期附約!E40<>"",美滿定期附約!E40,0),IF(被保人足歲年齡>=喪葬費用檢核年齡, IF($AS$16="無",試算表!O44, IF($AS$16="中",試算表!S44, IF($AS$16="",試算表!S44,試算表!W44)))+IF(美滿定期附約!E40<>"",美滿定期附約!E40,0),"*****"))),"") -> 318165 | AL72: =IF(總檢核,IF(age+A72-1>=被保人最大保險年齡,"", IF($AS$16="無",試算表!P44, IF($AS$16="中",試算表!T44, IF($AS$16="",試算表!T44,試算表!X44)))+IF(美滿定期附約!F40<>"",美滿定期附約!F40,0)), "") -> 154472 | AO72: 5.2827 | AP72: 2.5648
